Workbook

Sheet BUSCAR FECHA
A1: DIA | B1: SEMANA | C1: SEMANA REAL | D1: MES REAL | E1: FECHA | F1: MES REAL
A2: 2009-02-02 | B2: 906 | C2: =RIGHT(B2,2) -> 06 | D2: =MONTH(A2) -> 2 | E2: ='SIMULACION DATOS PRODUCTIVOS'!C13 -> 00:00:00 | F2: =VLOOKUP($E2,$A$2:$D$30000,4, FALSE) ->  | G2: =VLOOKUP(F2,H3:I14,2,FALSE) ->  | H2: ESTACION
A3: 2009-02-03 | B3: 906 | C3: =RIGHT(B3,2) -> 06 | D3: =MONTH(A3) -> 2 | E3: ='EXPLOTACION TIPO'!C12 -> 00:00:00 | F3: =VLOOKUP(E3,J3:K14,2,FALSE) ->  | H3: 1 | I3: INVIERNO | J3: ENERO | K3: 1
A4: 2009-02-04 | B4: 906 | C4: 06 | D4: 2 | F4: =VLOOKUP($E4,$A$2:$D$3000,4, FALSE) ->  | H4: 2 | I4: INVIERNO | J4: FEBRERO | K4: 2
A5: 2009-02-05 | B5: 906 | C5: 06 | D5: 2 | F5: =VLOOKUP($E5,$A$2:$D$3000,4, FALSE) ->  | H5: 3 | I5: TEMPLADO | J5: MARZO | K5: 3
A6: 2009-02-06 | B6: 906 | C6: 06 | D6: 2 | F6: =VLOOKUP($E6,$A$2:$D$3000,4, FALSE) ->  | H6: 4 | I6: TEMPLADO | J6: ABRIL | K6: 4
A7: 2009-02-07 | B7: 906 | C7: 06 | D7: 2 | H7: 5 | I7: TEMPLADO | J7: MAYO | K7: 5
A8: 2009-02-08 | B8: 906 | C8: 06 | D8: 2 | H8: 6 | I8: VERANO | J8: JUNIO | K8: 6
A9: 2009-02-09 | B9: 907 | C9: 07 | D9: 2 | H9: 7 | I9: VERANO | J9: JULIO | K9: 7
A10: 2009-02-10 | B10: 907 | C10: 07 | D10: 2 | H10: 8 | I10: VERANO | J10: AGOSTO | K10: 8
A11: 2009-02-11 | B11: 907 | C11: 07 | D11: 2 | H11: 9 | I11: TEMPLADO | J11: SEPTIEMBRE | K11: 9
A12: 2009-02-12 | B12: 907 | C12: 07 | D12: 2 | H12: 10 | I12: TEMPLADO | J12: OCTUBRE | K12: 10
A13: 2009-02-13 | B13: 907 | C13: 07 | D13: 2 | H13: 11 | I13: INVIERNO | J13: NOVIEMBRE | K13: 11
A14: 2009-02-14 | B14: 907 | C14: 07 | D14: 2 | H14: 12 | I14: INVIERNO | J14: DICIEMBRE | K14: 12
A15: 2009-02-15 | B15: 907 | C15: 07 | D15: 2
A16: 2009-02-16 | B16: 908 | C16: 08 | D16: 2
A17: 2009-02-17 | B17: 908 | C17: 08 | D17: 2
A18: 2009-02-18 | B18: 908 | C18: 08 | D18: 2
A19: 2009-02-19 | B19: 908 | C19: 08 | D19: 2
A20: 2009-02-20 | B20: 908 | C20: 08 | D20: 2
A21: 2009-02-21 | B21: 908 | C21: 08 | D21: 2
A22: 2009-02-22 | B22: 908 | C22: 08 | D22: 2
A23: 2009-02-23 | B23: 909 | C23: 09 | D23: 2
A24: 2009-02-24 | B24: 909 | C24: 09 | D24: 2
A25: 2009-02-25 | B25: 909 | C25: 09 | D25: 2
A26: 2009-02-26 | B26: 909 | C26: 09 | D26: 2
A27: 2009-02-27 | B27: 909 | C27: 09 | D27: 2
A28: 2009-02-28 | B28: 909 | C28: 09 | D28: 2
A29: 2009-03-01 | B29: 909 | C29: 09 | D29: 3
A30: 2009-03-02 | B30: 910 | C30: 10 | D30: 3
A31: 2009-03-03 | B31: 910 | C31: 10 | D31: 3
A32: 2009-03-04 | B32: 910 | C32: 10 | D32: 3
A33: 2009-03-05 | B33: 910 | C33: 10 | D33: 3
A34: 2009-03-06 | B34: 910 | C34: 10 | D34: 3
A35: 2009-03-07 | B35: 910 | C35: 10 | D35: 3
A36: 2009-03-08 | B36: 910 | C36: 10 | D36: 3
A37: 2009-03-09 | B37: 911 | C37: 11 | D37: 3
A38: 2009-03-10 | B38: 911 | C38: 11 | D38: 3
A39: 2009-03-11 | B39: 911 | C39: 11 | D39: 3
A40: 2009-03-12 | B40: 911 | C40: 11 | D40: 3
A41: 2009-03-13 | B41: 911 | C41: 11 | D41: 3
A42: 2009-03-14 | B42: 911 | C42: 11 | D42: 3
A43: 2009-03-15 | B43: 911 | C43: 11 | D43: 3
A44: 2009-03-16 | B44: 912 | C44: 12 | D44: 3
A45: 2009-03-17 | B45: 912 | C45: 12 | D45: 3
A46: 2009-03-18 | B46: 912 | C46: 12 | D46: 3
A47: 2009-03-19 | B47: 912 | C47: 12 | D47: 3
A48: 2009-03-20 | B48: 912 | C48: 12 | D48: 3
A49: 2009-03-21 | B49: 912 | C49: 12 | D49: 3
A50: 2009-03-22 | B50: 912 | C50: 12 | D50: 3
A51: 2009-03-23 | B51: 913 | C51: 13 | D51: 3
A52: 2009-03-24 | B52: 913 | C52: 13 | D52: 3
A53: 2009-03-25 | B53: 913 | C53: 13 | D53: 3
A54: 2009-03-26 | B54: 913 | C54: 13 | D54: 3
A55: 2009-03-27 | B55: 913 | C55: 13 | D55: 3
A56: 2009-03-28 | B56: 913 | C56: 13 | D56: 3
A57: 2009-03-29 | B57: 913 | C57: 13 | D57: 3
A58: 2009-03-30 | B58: 914 | C58: 14 | D58: 3
A59: 2009-03-31 | B59: 914 | C59: 14 | D59: 3
A60: 2009-04-01 | B60: 914 | C60: 14 | D60: 4
A61: 2009-04-02 | B61: 914 | C61: 14 | D61: 4
A62: 2009-04-03 | B62: 914 | C62: 14 | D62: 4
A63: 2009-04-04 | B63: 914 | C63: 14 | D63: 4
A64: 2009-04-05 | B64: 914 | C64: 14 | D64: 4
A65: 2009-04-06 | B65: 915 | C65: 15 | D65: 4
A66: 2009-04-07 | B66: 915 | C66: 15 | D66: 4
A67: 2009-04-08 | B67: 915 | C67: =RIGHT(B67,2) -> 15 | D67: =MONTH(A67) -> 4
A68: 2009-04-09 | B68: 915 | C68: 15 | D68: 4
A69: 2009-04-10 | B69: 915 | C69: 15 | D69: 4
A70: 2009-04-11 | B70: 915 | C70: 15 | D70: 4
A71: 2009-04-12 | B71: 915 | C71: 15 | D71: 4
A72: 2009-04-13 | B72: 916 | C72: 16 | D72: 4
A73: 2009-04-14 | B73: 916 | C73: 16 | D73: 4
A74: 2009-04-15 | B74: 916 | C74: 16 | D74: 4
A75: 2009-04-16 | B75: 916 | C75: 16 | D75: 4
A76: 2009-04-17 | B76: 916 | C76: 16 | D76: 4
A77: 2009-04-18 | B77: 916 | C77: 16 | D77: 4
A78: 2009-04-19 | B78: 916 | C78: 16 | D78: 4
A79: 2009-04-20 | B79: 917 | C79: 17 | D79: 4
A80: 2009-04-21 | B80: 917 | C80: 17 | D80: 4
A81: 2009-04-22 | B81: 917 | C81: 17 | D81: 4
A82: 2009-04-23 | B82: 917 | C82: 17 | D82: 4
A83: 2009-04-24 | B83: 917 | C83: 17 | D83: 4
A84: 2009-04-25 | B84: 917 | C84: 17 | D84: 4
A85: 2009-04-26 | B85: 917 | C85: 17 | D85: 4
A86: 2009-04-27 | B86: 918 | C86: 18 | D86: 4
A87: 2009-04-28 | B87: 918 | C87: 18 | D87: 4
A88: 2009-04-29 | B88: 918 | C88: 18 | D88: 4
A89: 2009-04-30 | B89: 918 | C89: 18 | D89: 4
A90: 2009-05-01 | B90: 918 | C90: 18 | D90: 5
A91: 2009-05-02 | B91: 918 | C91: 18 | D91: 5
A92: 2009-05-03 | B92: 918 | C92: 18 | D92: 5
A93: 2009-05-04 | B93: 919 | C93: 19 | D93: 5
A94: 2009-05-05 | B94: 919 | C94: 19 | D94: 5
A95: 2009-05-06 | B95: 919 | C95: 19 | D95: 5
A96: 2009-05-07 | B96: 919 | C96: 19 | D96: 5
A97: 2009-05-08 | B97: 919 | C97: 19 | D97: 5
A98: 2009-05-09 | B98: 919 | C98: 19 | D98: 5
A99: 2009-05-10 | B99: 919 | C99: 19 | D99: 5
A100: 2009-05-11 | B100: 920 | C100: 20 | D100: 5
A101: 2009-05-12 | B101: 920 | C101: 20 | D101: 5
A102: 2009-05-13 | B102: 920 | C102: 20 | D102: 5
A103: 2009-05-14 | B103: 920 | C103: 20 | D103: 5
A104: 2009-05-15 | B104: 920 | C104: 20 | D104: 5
A105: 2009-05-16 | B105: 920 | C105: 20 | D105: 5
A106: 2009-05-17 | B106: 920 | C106: 20 | D106: 5
A107: 2009-05-18 | B107: 921 | C107: 21 | D107: 5
A108: 2009-05-19 | B108: 921 | C108: 21 | D108: 5
A109: 2009-05-20 | B109: 921 | C109: 21 | D109: 5
A110: 2009-05-21 | B110: 921 | C110: 21 | D110: 5
A111: 2009-05-22 | B111: 921 | C111: 21 | D111: 5
A112: 2009-05-23 | B112: 921 | C112: 21 | D112: 5
A113: 2009-05-24 | B113: 921 | C113: 21 | D113: 5
A114: 2009-05-25 | B114: 922 | C114: 22 | D114: 5
A115: 2009-05-26 | B115: 922 | C115: 22 | D115: 5
A116: 2009-05-27 | B116: 922 | C116: 22 | D116: 5
A117: 2009-05-28 | B117: 922 | C117: 22 | D117: 5
A118: 2009-05-29 | B118: 922 | C118: 22 | D118: 5
A119: 2009-05-30 | B119: 922 | C119: 22 | D119: 5
A120: 2009-05-31 | B120: 922 | C120: 22 | D120: 5
A121: 2009-06-01 | B121: 923 | C121: 23 | D121: 6
A122: 2009-06-02 | B122: 923 | C122: 23 | D122: 6
A123: 2009-06-03 | B123: 923 | C123: 23 | D123: 6
A124: 2009-06-04 | B124: 923 | C124: 23 | D124: 6
A125: 2009-06-05 | B125: 923 | C125: 23 | D125: 6
A126: 2009-06-06 | B126: 923 | C126: 23 | D126: 6
A127: 2009-06-07 | B127: 923 | C127: 23 | D127: 6
A128: 2009-06-08 | B128: 924 | C128: 24 | D128: 6
A129: 2009-06-09 | B129: 924 | C129: 24 | D129: 6
A130: 2009-06-10 | B130: 924 | C130: 24 | D130: 6
A131: 2009-06-11 | B131: 924 | C131: =RIGHT(B131,2) -> 24 | D131: =MONTH(A131) -> 6
A132: 2009-06-12 | B132: 924 | C132: 24 | D132: 6
A133: 2009-06-13 | B133: 924 | C133: 24 | D133: 6
A134: 2009-06-14 | B134: 924 | C134: 24 | D134: 6
A135: 2009-06-15 | B135: 925 | C135: 25 | D135: 6
A136: 2009-06-16 | B136: 925 | C136: 25 | D136: 6
A137: 2009-06-17 | B137: 925 | C137: 25 | D137: 6
A138: 2009-06-18 | B138: 925 | C138: 25 | D138: 6
A139: 2009-06-19 | B139: 925 | C139: 25 | D139: 6
A140: 2009-06-20 | B140: 925 | C140: 25 | D140: 6
A141: 2009-06-21 | B141: 925 | C141: 25 | D141: 6
A142: 2009-06-22 | B142: 926 | C142: 26 | D142: 6
A143: 2009-06-23 | B143: 926 | C143: 26 | D143: 6
A144: 2009-06-24 | B144: 926 | C144: 26 | D144: 6
A145: 2009-06-25 | B145: 926 | C145: 26 | D145: 6
A146: 2009-06-26 | B146: 926 | C146: 26 | D146: 6
A147: 2009-06-27 | B147: 926 | C147: 26 | D147: 6
A148: 2009-06-28 | B148: 926 | C148: 26 | D148: 6
A149: 2009-06-29 | B149: 927 | C149: 27 | D149: 6
A150: 2009-06-30 | B150: 927 | C150: 27 | D150: 6
A151: 2009-07-01 | B151: 927 | C151: 27 | D151: 7
A152: 2009-07-02 | B152: 927 | C152: 27 | D152: 7
A153: 2009-07-03 | B153: 927 | C153: 27 | D153: 7
A154: 2009-07-04 | B154: 927 | C154: 27 | D154: 7
A155: 2009-07-05 | B155: 927 | C155: 27 | D155: 7
A156: 2009-07-06 | B156: 928 | C156: 28 | D156: 7
A157: 2009-07-07 | B157: 928 | C157: 28 | D157: 7
A158: 2009-07-08 | B158: 928 | C158: 28 | D158: 7
A159: 2009-07-09 | B159: 928 | C159: 28 | D159: 7
A160: 2009-07-10 | B160: 928 | C160: 28 | D160: 7
A161: 2009-07-11 | B161: 928 | C161: 28 | D161: 7
A162: 2009-07-12 | B162: 928 | C162: 28 | D162: 7
A163: 2009-07-13 | B163: 929 | C163: 29 | D163: 7
A164: 2009-07-14 | B164: 929 | C164: 29 | D164: 7
A165: 2009-07-15 | B165: 929 | C165: 29 | D165: 7
A166: 2009-07-16 | B166: 929 | C166: 29 | D166: 7
A167: 2009-07-17 | B167: 929 | C167: 29 | D167: 7
A168: 2009-07-18 | B168: 929 | C168: 29 | D168: 7
A169: 2009-07-19 | B169: 929 | C169: 29 | D169: 7
A170: 2009-07-20 | B170: 930 | C170: 30 | D170: 7
A171: 2009-07-21 | B171: 930 | C171: 30 | D171: 7
A172: 2009-07-22 | B172: 930 | C172: 30 | D172: 7
A173: 2009-07-23 | B173: 930 | C173: 30 | D173: 7
A174: 2009-07-24 | B174: 930 | C174: 30 | D174: 7
A175: 2009-07-25 | B175: 930 | C175: 30 | D175: 7
A176: 2009-07-26 | B176: 930 | C176: 30 | D176: 7
A177: 2009-07-27 | B177: 931 | C177: 31 | D177: 7
A178: 2009-07-28 | B178: 931 | C178: 31 | D178: 7
A179: 2009-07-29 | B179: 931 | C179: 31 | D179: 7
A180: 2009-07-30 | B180: 931 | C180: 31 | D180: 7
A181: 2009-07-31 | B181: 931 | C181: 31 | D181: 7
A182: 2009-08-01 | B182: 931 | C182: 31 | D182: 8
A183: 2009-08-02 | B183: 931 | C183: 31 | D183: 8
A184: 2009-08-03 | B184: 932 | C184: 32 | D184: 8
A185: 2009-08-04 | B185: 932 | C185: 32 | D185: 8
A186: 2009-08-05 | B186: 932 | C186: 32 | D186: 8
A187: 2009-08-06 | B187: 932 | C187: 32 | D187: 8
A188: 2009-08-07 | B188: 932 | C188: 32 | D188: 8
A189: 2009-08-08 | B189: 932 | C189: 32 | D189: 8
A190: 2009-08-09 | B190: 932 | C190: 32 | D190: 8
A191: 2009-08-10 | B191: 933 | C191: 33 | D191: 8
A192: 2009-08-11 | B192: 933 | C192: 33 | D192: 8
A193: 2009-08-12 | B193: 933 | C193: 33 | D193: 8
A194: 2009-08-13 | B194: 933 | C194: 33 | D194: 8
A195: 2009-08-14 | B195: 933 | C195: =RIGHT(B195,2) -> 33 | D195: =MONTH(A195) -> 8
A196: 2009-08-15 | B196: 933 | C196: 33 | D196: 8
A197: 2009-08-16 | B197: 933 | C197: 33 | D197: 8
A198: 2009-08-17 | B198: 934 | C198: 34 | D198: 8
A199: 2009-08-18 | B199: 934 | C199: 34 | D199: 8
A200: 2009-08-19 | B200: 934 | C200: 34 | D200: 8
... 4154 more rows

Sheet HOJA DE DATOS
A1: ESPECIE | B1: RAZA | C1: EPOCA | D1: CuentaDeNºREGISTRO | E1: PromedioDeLECHE/ANIMALDIA | F1: PromedioDe%EQ | G1: PromedioDegrEQ/ANIMALDIA | H1: DesvEstDegrEQ/ANIMALDIA | I1: 0 | J1: 0 | K1: 0 | L1: 0 | M1: 0 | N1: 0 | O1: 0 | P1: 0 | Q1: 0 | R1: 0 | S1: 0 | T1: 0 | U1: 0 | V1: 0 | W1: 0 | X1: 0 | Y1: 0 | Z1: 0 | AA1: 0 | AB1: 0 | AC1: 0 | AD1: 0 | AE1: 0 | AF1: 0 | AG1: 0 | AH1: 0 | AI1: 0 | AJ1: 0 | AK1: 0 | AL1: 0 | AM1: 0 | AN1: 0 | AO1: 0 | AP1: 0 | AQ1: 0 | AR1: 0 | AS1: 0 | AT1: 0 | AU1: 0 | AV1: 0 | AW1: 0 | AX1: 0 | AY1: 0 | AZ1: 0 | BA1: 0
A2: CAPRINO | B2: FLORIDA | C2: INVIERNO | D2: 43 | E2: 1.865515321 | F2: 9.544186047 | G2: 178.2040796 | H2: 49.50098881 | I2: 0 | J2: 0 | K2: 0 | L2: 0 | M2: 0 | N2: 0 | O2: 0 | P2: 0 | Q2: 0 | R2: 0 | S2: 0 | T2: 0 | U2: 0 | V2: 0 | W2: 0 | X2: 0 | Y2: 0 | Z2: 0 | AA2: 0 | AB2: 0 | AC2: 0 | AD2: 0 | AE2: 0 | AF2: 0 | AG2: 0 | AH2: 0 | AI2: 0 | AJ2: 0 | AK2: 0 | AL2: 0 | AM2: 0 | AN2: 0 | AO2: 0 | AP2: 0 | AQ2: 0 | AR2: 0 | AS2: 0 | AT2: 0 | AU2: 0 | AV2: 0 | AW2: 0 | AX2: 0 | AY2: 0 | AZ2: 0 | BA2: 0
A3: CAPRINO | B3: FLORIDA | C3: TEMPLADO | D3: 43 | E3: 1.988221047 | F3: 8.441860465 | G3: 167.863653 | H3: 28.61611329 | I3: 0 | J3: 0 | K3: 0 | L3: 0 | M3: 0 | N3: 0 | O3: 0 | P3: 0 | Q3: 0 | R3: 0 | S3: 0 | T3: 0 | U3: 0 | V3: 0 | W3: 0 | X3: 0 | Y3: 0 | Z3: 0 | AA3: 0 | AB3: 0 | AC3: 0 | AD3: 0 | AE3: 0 | AF3: 0 | AG3: 0 | AH3: 0 | AI3: 0 | AJ3: 0 | AK3: 0 | AL3: 0 | AM3: 0 | AN3: 0 | AO3: 0 | AP3: 0 | AQ3: 0 | AR3: 0 | AS3: 0 | AT3: 0 | AU3: 0 | AV3: 0 | AW3: 0 | AX3: 0 | AY3: 0 | AZ3: 0 | BA3: 0
A4: CAPRINO | B4: FLORIDA | C4: VERANO | D4: 23 | E4: 2.380410276 | F4: 7.660869565 | G4: 182.6984589 | H4: 39.0260749 | I4: 0 | J4: 0 | K4: 0 | L4: 0 | M4: 0 | N4: 0 | O4: 0 | P4: 0 | Q4: 0 | R4: 0 | S4: 0 | T4: 0 | U4: 0 | V4: 0 | W4: 0 | X4: 0 | Y4: 0 | Z4: 0 | AA4: 0 | AB4: 0 | AC4: 0 | AD4: 0 | AE4: 0 | AF4: 0 | AG4: 0 | AH4: 0 | AI4: 0 | AJ4: 0 | AK4: 0 | AL4: 0 | AM4: 0 | AN4: 0 | AO4: 0 | AP4: 0 | AQ4: 0 | AR4: 0 | AS4: 0 | AT4: 0 | AU4: 0 | AV4: 0 | AW4: 0 | AX4: 0 | AY4: 0 | AZ4: 0 | BA4: 0
A5: CAPRINO | B5: MALAGUEÑA | C5: INVIERNO | D5: 54 | E5: 1.916275453 | F5: 9.190740741 | G5: 177.786153 | H5: 67.75321099 | I5: 0 | J5: 0 | K5: 0 | L5: 0 | M5: 0 | N5: 0 | O5: 0 | P5: 0 | Q5: 0 | R5: 0 | S5: 0 | T5: 0 | U5: 0 | V5: 0 | W5: 0 | X5: 0 | Y5: 0 | Z5: 0 | AA5: 0 | AB5: 0 | AC5: 0 | AD5: 0 | AE5: 0 | AF5: 0 | AG5: 0 | AH5: 0 | AI5: 0 | AJ5: 0 | AK5: 0 | AL5: 0 | AM5: 0 | AN5: 0 | AO5: 0 | AP5: 0 | AQ5: 0 | AR5: 0 | AS5: 0 | AT5: 0 | AU5: 0 | AV5: 0 | AW5: 0 | AX5: 0 | AY5: 0 | AZ5: 0 | BA5: 0
A6: CAPRINO | B6: MALAGUEÑA | C6: TEMPLADO | D6: 50 | E6: 1.862775165 | F6: 8.6266 | G6: 161.7802396 | H6: 70.46366496 | I6: 0 | J6: 0 | K6: 0 | L6: 0 | M6: 0 | N6: 0 | O6: 0 | P6: 0 | Q6: 0 | R6: 0 | S6: 0 | T6: 0 | U6: 0 | V6: 0 | W6: 0 | X6: 0 | Y6: 0 | Z6: 0 | AA6: 0 | AB6: 0 | AC6: 0 | AD6: 0 | AE6: 0 | AF6: 0 | AG6: 0 | AH6: 0 | AI6: 0 | AJ6: 0 | AK6: 0 | AL6: 0 | AM6: 0 | AN6: 0 | AO6: 0 | AP6: 0 | AQ6: 0 | AR6: 0 | AS6: 0 | AT6: 0 | AU6: 0 | AV6: 0 | AW6: 0 | AX6: 0 | AY6: 0 | AZ6: 0 | BA6: 0
A7: CAPRINO | B7: MALAGUEÑA | C7: VERANO | D7: 29 | E7: 2.240237861 | F7: 8.037931034 | G7: 181.755444 | H7: 96.0361571 | I7: 0 | J7: 0 | K7: 0 | L7: 0 | M7: 0 | N7: 0 | O7: 0 | P7: 0 | Q7: 0 | R7: 0 | S7: 0 | T7: 0 | U7: 0 | V7: 0 | W7: 0 | X7: 0 | Y7: 0 | Z7: 0 | AA7: 0 | AB7: 0 | AC7: 0 | AD7: 0 | AE7: 0 | AF7: 0 | AG7: 0 | AH7: 0 | AI7: 0 | AJ7: 0 | AK7: 0 | AL7: 0 | AM7: 0 | AN7: 0 | AO7: 0 | AP7: 0 | AQ7: 0 | AR7: 0 | AS7: 0 | AT7: 0 | AU7: 0 | AV7: 0 | AW7: 0 | AX7: 0 | AY7: 0 | AZ7: 0 | BA7: 0
A8: CAPRINO | B8: MURCIANA | C8: INVIERNO | D8: 166 | E8: 1.851040143 | F8: 9.645180723 | G8: 177.2442922 | H8: 42.39750925 | I8: 0 | J8: 0 | K8: 0 | L8: 0 | M8: 0 | N8: 0 | O8: 0 | P8: 0 | Q8: 0 | R8: 0 | S8: 0 | T8: 0 | U8: 0 | V8: 0 | W8: 0 | X8: 0 | Y8: 0 | Z8: 0 | AA8: 0 | AB8: 0 | AC8: 0 | AD8: 0 | AE8: 0 | AF8: 0 | AG8: 0 | AH8: 0 | AI8: 0 | AJ8: 0 | AK8: 0 | AL8: 0 | AM8: 0 | AN8: 0 | AO8: 0 | AP8: 0 | AQ8: 0 | AR8: 0 | AS8: 0 | AT8: 0 | AU8: 0 | AV8: 0 | AW8: 0 | AX8: 0 | AY8: 0 | AZ8: 0 | BA8: 0
A9: CAPRINO | B9: MURCIANA | C9: TEMPLADO | D9: 207 | E9: 1.938021927 | F9: 8.899082126 | G9: 171.6044096 | H9: 38.46983788 | I9: 0 | J9: 0 | K9: 0 | L9: 0 | M9: 0 | N9: 0 | O9: 0 | P9: 0 | Q9: 0 | R9: 0 | S9: 0 | T9: 0 | U9: 0 | V9: 0 | W9: 0 | X9: 0 | Y9: 0 | Z9: 0 | AA9: 0 | AB9: 0 | AC9: 0 | AD9: 0 | AE9: 0 | AF9: 0 | AG9: 0 | AH9: 0 | AI9: 0 | AJ9: 0 | AK9: 0 | AL9: 0 | AM9: 0 | AN9: 0 | AO9: 0 | AP9: 0 | AQ9: 0 | AR9: 0 | AS9: 0 | AT9: 0 | AU9: 0 | AV9: 0 | AW9: 0 | AX9: 0 | AY9: 0 | AZ9: 0 | BA9: 0
A10: CAPRINO | B10: MURCIANA | C10: VERANO | D10: 118 | E10: 1.902580849 | F10: 8.292457627 | G10: 157.2689067 | H10: 34.68502689 | I10: 0 | J10: 0 | K10: 0 | L10: 0 | M10: 0 | N10: 0 | O10: 0 | P10: 0 | Q10: 0 | R10: 0 | S10: 0 | T10: 0 | U10: 0 | V10: 0 | W10: 0 | X10: 0 | Y10: 0 | Z10: 0 | AA10: 0 | AB10: 0 | AC10: 0 | AD10: 0 | AE10: 0 | AF10: 0 | AG10: 0 | AH10: 0 | AI10: 0 | AJ10: 0 | AK10: 0 | AL10: 0 | AM10: 0 | AN10: 0 | AO10: 0 | AP10: 0 | AQ10: 0 | AR10: 0 | AS10: 0 | AT10: 0 | AU10: 0 | AV10: 0 | AW10: 0 | AX10: 0 | AY10: 0 | AZ10: 0 | BA10: 0
A11: OVINO | B11: ASSAF | C11: INVIERNO | D11: 218 | E11: 1.534474669 | F11: 12.39220183 | G11: 188.8890228 | H11: 69.02446214 | I11: 0 | J11: 0 | K11: 0 | L11: 0 | M11: 0 | N11: 0 | O11: 0 | P11: 0 | Q11: 0 | R11: 0 | S11: 0 | T11: 0 | U11: 0 | V11: 0 | W11: 0 | X11: 0 | Y11: 0 | Z11: 0 | AA11: 0 | AB11: 0 | AC11: 0 | AD11: 0 | AE11: 0 | AF11: 0 | AG11: 0 | AH11: 0 | AI11: 0 | AJ11: 0 | AK11: 0 | AL11: 0 | AM11: 0 | AN11: 0 | AO11: 0 | AP11: 0 | AQ11: 0 | AR11: 0 | AS11: 0 | AT11: 0 | AU11: 0 | AV11: 0 | AW11: 0 | AX11: 0 | AY11: 0 | AZ11: 0 | BA11: 0
A12: OVINO | B12: ASSAF | C12: TEMPLADO | D12: 274 | E12: 1.746647528 | F12: 11.55912409 | G12: 198.6089482 | H12: 65.86459594 | I12: 0 | J12: 0 | K12: 0 | L12: 0 | M12: 0 | N12: 0 | O12: 0 | P12: 0 | Q12: 0 | R12: 0 | S12: 0 | T12: 0 | U12: 0 | V12: 0 | W12: 0 | X12: 0 | Y12: 0 | Z12: 0 | AA12: 0 | AB12: 0 | AC12: 0 | AD12: 0 | AE12: 0 | AF12: 0 | AG12: 0 | AH12: 0 | AI12: 0 | AJ12: 0 | AK12: 0 | AL12: 0 | AM12: 0 | AN12: 0 | AO12: 0 | AP12: 0 | AQ12: 0 | AR12: 0 | AS12: 0 | AT12: 0 | AU12: 0 | AV12: 0 | AW12: 0 | AX12: 0 | AY12: 0 | AZ12: 0 | BA12: 0
A13: OVINO | B13: ASSAF | C13: VERANO | D13: 157 | E13: 1.798410406 | F13: 10.9910828 | G13: 196.1613005 | H13: 48.32626989 | I13: 0 | J13: 0 | K13: 0 | L13: 0 | M13: 0 | N13: 0 | O13: 0 | P13: 0 | Q13: 0 | R13: 0 | S13: 0 | T13: 0 | U13: 0 | V13: 0 | W13: 0 | X13: 0 | Y13: 0 | Z13: 0 | AA13: 0 | AB13: 0 | AC13: 0 | AD13: 0 | AE13: 0 | AF13: 0 | AG13: 0 | AH13: 0 | AI13: 0 | AJ13: 0 | AK13: 0 | AL13: 0 | AM13: 0 | AN13: 0 | AO13: 0 | AP13: 0 | AQ13: 0 | AR13: 0 | AS13: 0 | AT13: 0 | AU13: 0 | AV13: 0 | AW13: 0 | AX13: 0 | AY13: 0 | AZ13: 0 | BA13: 0
A14: OVINO | B14: LACAUNE | C14: INVIERNO | D14: 151 | E14: 1.625722515 | F14: 12.69668874 | G14: 206.0799661 | H14: 59.26572248 | I14: 0 | J14: 0 | K14: 0 | L14: 0 | M14: 0 | N14: 0 | O14: 0 | P14: 0 | Q14: 0 | R14: 0 | S14: 0 | T14: 0 | U14: 0 | V14: 0 | W14: 0 | X14: 0 | Y14: 0 | Z14: 0 | AA14: 0 | AB14: 0 | AC14: 0 | AD14: 0 | AE14: 0 | AF14: 0 | AG14: 0 | AH14: 0 | AI14: 0 | AJ14: 0 | AK14: 0 | AL14: 0 | AM14: 0 | AN14: 0 | AO14: 0 | AP14: 0 | AQ14: 0 | AR14: 0 | AS14: 0 | AT14: 0 | AU14: 0 | AV14: 0 | AW14: 0 | AX14: 0 | AY14: 0 | AZ14: 0 | BA14: 0
A15: OVINO | B15: LACAUNE | C15: TEMPLADO | D15: 181 | E15: 1.861925969 | F15: 11.89447514 | G15: 219.8154524 | H15: 62.92769563 | I15: 0 | J15: 0 | K15: 0 | L15: 0 | M15: 0 | N15: 0 | O15: 0 | P15: 0 | Q15: 0 | R15: 0 | S15: 0 | T15: 0 | U15: 0 | V15: 0 | W15: 0 | X15: 0 | Y15: 0 | Z15: 0 | AA15: 0 | AB15: 0 | AC15: 0 | AD15: 0 | AE15: 0 | AF15: 0 | AG15: 0 | AH15: 0 | AI15: 0 | AJ15: 0 | AK15: 0 | AL15: 0 | AM15: 0 | AN15: 0 | AO15: 0 | AP15: 0 | AQ15: 0 | AR15: 0 | AS15: 0 | AT15: 0 | AU15: 0 | AV15: 0 | AW15: 0 | AX15: 0 | AY15: 0 | AZ15: 0 | BA15: 0
A16: OVINO | B16: LACAUNE | C16: VERANO | D16: 107 | E16: 1.815661746 | F16: 11.47383178 | G16: 206.4768649 | H16: 57.13140933 | I16: 0 | J16: 0 | K16: 0 | L16: 0 | M16: 0 | N16: 0 | O16: 0 | P16: 0 | Q16: 0 | R16: 0 | S16: 0 | T16: 0 | U16: 0 | V16: 0 | W16: 0 | X16: 0 | Y16: 0 | Z16: 0 | AA16: 0 | AB16: 0 | AC16: 0 | AD16: 0 | AE16: 0 | AF16: 0 | AG16: 0 | AH16: 0 | AI16: 0 | AJ16: 0 | AK16: 0 | AL16: 0 | AM16: 0 | AN16: 0 | AO16: 0 | AP16: 0 | AQ16: 0 | AR16: 0 | AS16: 0 | AT16: 0 | AU16: 0 | AV16: 0 | AW16: 0 | AX16: 0 | AY16: 0 | AZ16: 0 | BA16: 0
A17: OVINO | B17: MANCHEGA | C17: INVIERNO | D17: 36 | E17: 1.151119691 | F17: 13.44166667 | G17: 154.5286074 | H17: 38.51850579 | I17: 0 | J17: 0 | K17: 0 | L17: 0 | M17: 0 | N17: 0 | O17: 0 | P17: 0 | Q17: 0 | R17: 0 | S17: 0 | T17: 0 | U17: 0 | V17: 0 | W17: 0 | X17: 0 | Y17: 0 | Z17: 0 | AA17: 0 | AB17: 0 | AC17: 0 | AD17: 0 | AE17: 0 | AF17: 0 | AG17: 0 | AH17: 0 | AI17: 0 | AJ17: 0 | AK17: 0 | AL17: 0 | AM17: 0 | AN17: 0 | AO17: 0 | AP17: 0 | AQ17: 0 | AR17: 0 | AS17: 0 | AT17: 0 | AU17: 0 | AV17: 0 | AW17: 0 | AX17: 0 | AY17: 0 | AZ17: 0 | BA17: 0
A18: OVINO | B18: MANCHEGA | C18: TEMPLADO | D18: 44 | E18: 1.238335673 | F18: 12.75227273 | G18: 157.6868792 | H18: 24.36306624 | I18: 0 | J18: 0 | K18: 0 | L18: 0 | M18: 0 | N18: 0 | O18: 0 | P18: 0 | Q18: 0 | R18: 0 | S18: 0 | T18: 0 | U18: 0 | V18: 0 | W18: 0 | X18: 0 | Y18: 0 | Z18: 0 | AA18: 0 | AB18: 0 | AC18: 0 | AD18: 0 | AE18: 0 | AF18: 0 | AG18: 0 | AH18: 0 | AI18: 0 | AJ18: 0 | AK18: 0 | AL18: 0 | AM18: 0 | AN18: 0 | AO18: 0 | AP18: 0 | AQ18: 0 | AR18: 0 | AS18: 0 | AT18: 0 | AU18: 0 | AV18: 0 | AW18: 0 | AX18: 0 | AY18: 0 | AZ18: 0 | BA18: 0
A19: OVINO | B19: MANCHEGA | C19: VERANO | D19: 24 | E19: 1.285644415 | F19: 12.38333333 | G19: 159.4169824 | H19: 31.4073967 | I19: 0 | J19: 0 | K19: 0 | L19: 0 | M19: 0 | N19: 0 | O19: 0 | P19: 0 | Q19: 0 | R19: 0 | S19: 0 | T19: 0 | U19: 0 | V19: 0 | W19: 0 | X19: 0 | Y19: 0 | Z19: 0 | AA19: 0 | AB19: 0 | AC19: 0 | AD19: 0 | AE19: 0 | AF19: 0 | AG19: 0 | AH19: 0 | AI19: 0 | AJ19: 0 | AK19: 0 | AL19: 0 | AM19: 0 | AN19: 0 | AO19: 0 | AP19: 0 | AQ19: 0 | AR19: 0 | AS19: 0 | AT19: 0 | AU19: 0 | AV19: 0 | AW19: 0 | AX19: 0 | AY19: 0 | AZ19: 0 | BA19: 0
A20: 0 | B20: 0 | C20: 0 | D20: 0 | E20: 0 | F20: 0 | G20: 0 | H20: 0 | I20: 0 | J20: 0 | K20: 0 | L20: 0 | M20: 0 | N20: 0 | O20: 0 | P20: 0 | Q20: 0 | R20: 0 | S20: 0 | T20: 0 | U20: 0 | V20: 0 | W20: 0 | X20: 0 | Y20: 0 | Z20: 0 | AA20: 0 | AB20: 0 | AC20: 0 | AD20: 0 | AE20: 0 | AF20: 0 | AG20: 0 | AH20: 0 | AI20: 0 | AJ20: 0 | AK20: 0 | AL20: 0 | AM20: 0 | AN20: 0 | AO20: 0 | AP20: 0 | AQ20: 0 | AR20: 0 | AS20: 0 | AT20: 0 | AU20: 0 | AV20: 0 | AW20: 0 | AX20: 0 | AY20: 0 | AZ20: 0 | BA20: 0
A21: 0 | B21: 0 | C21: 0 | D21: 0 | E21: 0 | F21: 0 | G21: 0 | H21: 0 | I21: 0 | J21: 0 | K21: 0 | L21: 0 | M21: 0 | N21: 0 | O21: 0 | P21: 0 | Q21: 0 | R21: 0 | S21: 0 | T21: 0 | U21: 0 | V21: 0 | W21: 0 | X21: 0 | Y21: 0 | Z21: 0 | AA21: 0 | AB21: 0 | AC21: 0 | AD21: 0 | AE21: 0 | AF21: 0 | AG21: 0 | AH21: 0 | AI21: 0 | AJ21: 0 | AK21: 0 | AL21: 0 | AM21: 0 | AN21: 0 | AO21: 0 | AP21: 0 | AQ21: 0 | AR21: 0 | AS21: 0 | AT21: 0 | AU21: 0 | AV21: 0 | AW21: 0 | AX21: 0 | AY21: 0 | AZ21: 0 | BA21: 0
A22: 0 | B22: 0 | C22: 0 | D22: 0 | E22: 0 | F22: 0 | G22: 0 | H22: 0 | I22: 0 | J22: 0 | K22: 0 | L22: 0 | M22: 0 | N22: 0 | O22: 0 | P22: 0 | Q22: 0 | R22: 0 | S22: 0 | T22: 0 | U22: 0 | V22: 0 | W22: 0 | X22: 0 | Y22: 0 | Z22: 0 | AA22: 0 | AB22: 0 | AC22: 0 | AD22: 0 | AE22: 0 | AF22: 0 | AG22: 0 | AH22: 0 | AI22: 0 | AJ22: 0 | AK22: 0 | AL22: 0 | AM22: 0 | AN22: 0 | AO22: 0 | AP22: 0 | AQ22: 0 | AR22: 0 | AS22: 0 | AT22: 0 | AU22: 0 | AV22: 0 | AW22: 0 | AX22: 0 | AY22: 0 | AZ22: 0 | BA22: 0
A23: ESPECIE | B23: MES CONTROL | C23: PromedioDeANIMALES EN ORDEÑO | D23: PromedioDeLITROS TOTAL MES | E23: PromedioDeGRAMOS GRASA | F23: PromedioDeGRAMOS PROTEINA | G23: LITROS/ANIMAL DIA | H23: EQ | I23: 0 | J23: 0 | K23: 0 | L23: 0 | M23: 0 | N23: 0 | O23: 0 | P23: 0 | Q23: 0 | R23: 0 | S23: 0 | T23: 0 | U23: 0 | V23: 0 | W23: 0 | X23: 0 | Y23: 0 | Z23: 0 | AA23: 0 | AB23: 0 | AC23: 0 | AD23: 0 | AE23: 0 | AF23: 0 | AG23: 0 | AH23: 0 | AI23: 0 | AJ23: 0 | AK23: 0 | AL23: 0 | AM23: 0 | AN23: 0 | AO23: 0 | AP23: 0 | AQ23: 0 | AR23: 0 | AS23: 0 | AT23: 0 | AU23: 0 | AV23: 0 | AW23: 0 | AX23: 0 | AY23: 0 | AZ23: 0 | BA23: 0
A24: CAPRINO | B24: 1 | C24: 352.1666667 | D24: 20889 | E24: 55.42857143 | F24: 38.28571429 | G24: 1.977188831 | H24: 9.371428571 | I24: 0 | J24: 0 | K24: 0 | L24: 0 | M24: 0 | N24: 0 | O24: 0 | P24: 0 | Q24: 0 | R24: 0 | S24: 0 | T24: 0 | U24: 0 | V24: 0 | W24: 0 | X24: 0 | Y24: 0 | Z24: 0 | AA24: 0 | AB24: 0 | AC24: 0 | AD24: 0 | AE24: 0 | AF24: 0 | AG24: 0 | AH24: 0 | AI24: 0 | AJ24: 0 | AK24: 0 | AL24: 0 | AM24: 0 | AN24: 0 | AO24: 0 | AP24: 0 | AQ24: 0 | AR24: 0 | AS24: 0 | AT24: 0 | AU24: 0 | AV24: 0 | AW24: 0 | AX24: 0 | AY24: 0 | AZ24: 0 | BA24: 0
A25: CAPRINO | B25: 2 | C25: 352.2875 | D25: 19679.82716 | E25: 53.67901235 | F25: 37.33333333 | G25: 1.862099106 | H25: 9.101234568 | I25: 0 | J25: 0 | K25: 0 | L25: 0 | M25: 0 | N25: 0 | O25: 0 | P25: 0 | Q25: 0 | R25: 0 | S25: 0 | T25: 0 | U25: 0 | V25: 0 | W25: 0 | X25: 0 | Y25: 0 | Z25: 0 | AA25: 0 | AB25: 0 | AC25: 0 | AD25: 0 | AE25: 0 | AF25: 0 | AG25: 0 | AH25: 0 | AI25: 0 | AJ25: 0 | AK25: 0 | AL25: 0 | AM25: 0 | AN25: 0 | AO25: 0 | AP25: 0 | AQ25: 0 | AR25: 0 | AS25: 0 | AT25: 0 | AU25: 0 | AV25: 0 | AW25: 0 | AX25: 0 | AY25: 0 | AZ25: 0 | BA25: 0
A26: CAPRINO | B26: 3 | C26: 379.52 | D26: 24457.10667 | E26: 50.89189189 | F26: 36.17567568 | G26: 2.14807359 | H26: 8.706756757 | I26: 0 | J26: 0 | K26: 0 | L26: 0 | M26: 0 | N26: 0 | O26: 0 | P26: 0 | Q26: 0 | R26: 0 | S26: 0 | T26: 0 | U26: 0 | V26: 0 | W26: 0 | X26: 0 | Y26: 0 | Z26: 0 | AA26: 0 | AB26: 0 | AC26: 0 | AD26: 0 | AE26: 0 | AF26: 0 | AG26: 0 | AH26: 0 | AI26: 0 | AJ26: 0 | AK26: 0 | AL26: 0 | AM26: 0 | AN26: 0 | AO26: 0 | AP26: 0 | AQ26: 0 | AR26: 0 | AS26: 0 | AT26: 0 | AU26: 0 | AV26: 0 | AW26: 0 | AX26: 0 | AY26: 0 | AZ26: 0 | BA26: 0
A27: CAPRINO | B27: 4 | C27: 419.8082192 | D27: 28297.12329 | E27: 49.42465753 | F27: 35.78082192 | G27: 2.246829385 | H27: 8.520547945 | I27: 0 | J27: 0 | K27: 0 | L27: 0 | M27: 0 | N27: 0 | O27: 0 | P27: 0 | Q27: 0 | R27: 0 | S27: 0 | T27: 0 | U27: 0 | V27: 0 | W27: 0 | X27: 0 | Y27: 0 | Z27: 0 | AA27: 0 | AB27: 0 | AC27: 0 | AD27: 0 | AE27: 0 | AF27: 0 | AG27: 0 | AH27: 0 | AI27: 0 | AJ27: 0 | AK27: 0 | AL27: 0 | AM27: 0 | AN27: 0 | AO27: 0 | AP27: 0 | AQ27: 0 | AR27: 0 | AS27: 0 | AT27: 0 | AU27: 0 | AV27: 0 | AW27: 0 | AX27: 0 | AY27: 0 | AZ27: 0 | BA27: 0
A28: CAPRINO | B28: 5 | C28: 437.5857143 | D28: 32390.15714 | E28: 47.84285714 | F28: 35.4 | G28: 2.4673381 | H28: 8.324285714 | I28: 0 | J28: 0 | K28: 0 | L28: 0 | M28: 0 | N28: 0 | O28: 0 | P28: 0 | Q28: 0 | R28: 0 | S28: 0 | T28: 0 | U28: 0 | V28: 0 | W28: 0 | X28: 0 | Y28: 0 | Z28: 0 | AA28: 0 | AB28: 0 | AC28: 0 | AD28: 0 | AE28: 0 | AF28: 0 | AG28: 0 | AH28: 0 | AI28: 0 | AJ28: 0 | AK28: 0 | AL28: 0 | AM28: 0 | AN28: 0 | AO28: 0 | AP28: 0 | AQ28: 0 | AR28: 0 | AS28: 0 | AT28: 0 | AU28: 0 | AV28: 0 | AW28: 0 | AX28: 0 | AY28: 0 | AZ28: 0 | BA28: 0
A29: CAPRINO | B29: 6 | C29: 455.0147059 | D29: 32417.73529 | E29: 45.76470588 | F29: 34.80882353 | G29: 2.374848906 | H29: 8.057352941 | I29: 0 | J29: 0 | K29: 0 | L29: 0 | M29: 0 | N29: 0 | O29: 0 | P29: 0 | Q29: 0 | R29: 0 | S29: 0 | T29: 0 | U29: 0 | V29: 0 | W29: 0 | X29: 0 | Y29: 0 | Z29: 0 | AA29: 0 | AB29: 0 | AC29: 0 | AD29: 0 | AE29: 0 | AF29: 0 | AG29: 0 | AH29: 0 | AI29: 0 | AJ29: 0 | AK29: 0 | AL29: 0 | AM29: 0 | AN29: 0 | AO29: 0 | AP29: 0 | AQ29: 0 | AR29: 0 | AS29: 0 | AT29: 0 | AU29: 0 | AV29: 0 | AW29: 0 | AX29: 0 | AY29: 0 | AZ29: 0 | BA29: 0
A30: CAPRINO | B30: 7 | C30: 495.0967742 | D30: 35259.37097 | E30: 45.37096774 | F30: 34.59677419 | G30: 2.373904309 | H30: 7.996774194 | I30: 0 | J30: 0 | K30: 0 | L30: 0 | M30: 0 | N30: 0 | O30: 0 | P30: 0 | Q30: 0 | R30: 0 | S30: 0 | T30: 0 | U30: 0 | V30: 0 | W30: 0 | X30: 0 | Y30: 0 | Z30: 0 | AA30: 0 | AB30: 0 | AC30: 0 | AD30: 0 | AE30: 0 | AF30: 0 | AG30: 0 | AH30: 0 | AI30: 0 | AJ30: 0 | AK30: 0 | AL30: 0 | AM30: 0 | AN30: 0 | AO30: 0 | AP30: 0 | AQ30: 0 | AR30: 0 | AS30: 0 | AT30: 0 | AU30: 0 | AV30: 0 | AW30: 0 | AX30: 0 | AY30: 0 | AZ30: 0 | BA30: 0
A31: CAPRINO | B31: 8 | C31: 449.0172414 | D31: 31281.82759 | E31: 45.65517241 | F31: 34.62068966 | G31: 2.322243981 | H31: 8.027586207 | I31: 0 | J31: 0 | K31: 0 | L31: 0 | M31: 0 | N31: 0 | O31: 0 | P31: 0 | Q31: 0 | R31: 0 | S31: 0 | T31: 0 | U31: 0 | V31: 0 | W31: 0 | X31: 0 | Y31: 0 | Z31: 0 | AA31: 0 | AB31: 0 | AC31: 0 | AD31: 0 | AE31: 0 | AF31: 0 | AG31: 0 | AH31: 0 | AI31: 0 | AJ31: 0 | AK31: 0 | AL31: 0 | AM31: 0 | AN31: 0 | AO31: 0 | AP31: 0 | AQ31: 0 | AR31: 0 | AS31: 0 | AT31: 0 | AU31: 0 | AV31: 0 | AW31: 0 | AX31: 0 | AY31: 0 | AZ31: 0 | BA31: 0
A32: CAPRINO | B32: 9 | C32: 422.6785714 | D32: 26732.32143 | E32: 49.14285714 | F32: 36.30357143 | G32: 2.108167864 | H32: 8.544642857 | I32: 0 | J32: 0 | K32: 0 | L32: 0 | M32: 0 | N32: 0 | O32: 0 | P32: 0 | Q32: 0 | R32: 0 | S32: 0 | T32: 0 | U32: 0 | V32: 0 | W32: 0 | X32: 0 | Y32: 0 | Z32: 0 | AA32: 0 | AB32: 0 | AC32: 0 | AD32: 0 | AE32: 0 | AF32: 0 | AG32: 0 | AH32: 0 | AI32: 0 | AJ32: 0 | AK32: 0 | AL32: 0 | AM32: 0 | AN32: 0 | AO32: 0 | AP32: 0 | AQ32: 0 | AR32: 0 | AS32: 0 | AT32: 0 | AU32: 0 | AV32: 0 | AW32: 0 | AX32: 0 | AY32: 0 | AZ32: 0 | BA32: 0
A33: CAPRINO | B33: 10 | C33: 416.9322034 | D33: 26448.59322 | E33: 53.66101695 | F33: 38.6779661 | G33: 2.114539886 | H33: 9.233898305 | I33: 0 | J33: 0 | K33: 0 | L33: 0 | M33: 0 | N33: 0 | O33: 0 | P33: 0 | Q33: 0 | R33: 0 | S33: 0 | T33: 0 | U33: 0 | V33: 0 | W33: 0 | X33: 0 | Y33: 0 | Z33: 0 | AA33: 0 | AB33: 0 | AC33: 0 | AD33: 0 | AE33: 0 | AF33: 0 | AG33: 0 | AH33: 0 | AI33: 0 | AJ33: 0 | AK33: 0 | AL33: 0 | AM33: 0 | AN33: 0 | AO33: 0 | AP33: 0 | AQ33: 0 | AR33: 0 | AS33: 0 | AT33: 0 | AU33: 0 | AV33: 0 | AW33: 0 | AX33: 0 | AY33: 0 | AZ33: 0 | BA33: 0
A34: CAPRINO | B34: 11 | C34: 377.220339 | D34: 22542.40678 | E34: 57.27586207 | F34: 39.5 | G34: 1.991975198 | H34: 9.677586207 | I34: 0 | J34: 0 | K34: 0 | L34: 0 | M34: 0 | N34: 0 | O34: 0 | P34: 0 | Q34: 0 | R34: 0 | S34: 0 | T34: 0 | U34: 0 | V34: 0 | W34: 0 | X34: 0 | Y34: 0 | Z34: 0 | AA34: 0 | AB34: 0 | AC34: 0 | AD34: 0 | AE34: 0 | AF34: 0 | AG34: 0 | AH34: 0 | AI34: 0 | AJ34: 0 | AK34: 0 | AL34: 0 | AM34: 0 | AN34: 0 | AO34: 0 | AP34: 0 | AQ34: 0 | AR34: 0 | AS34: 0 | AT34: 0 | AU34: 0 | AV34: 0 | AW34: 0 | AX34: 0 | AY34: 0 | AZ34: 0 | BA34: 0
A35: CAPRINO | B35: 12 | C35: 330.7931034 | D35: 21531.39655 | E35: 56.70689655 | F35: 39.27586207 | G35: 2.169674068 | H35: 9.598275862 | I35: 0 | J35: 0 | K35: 0 | L35: 0 | M35: 0 | N35: 0 | O35: 0 | P35: 0 | Q35: 0 | R35: 0 | S35: 0 | T35: 0 | U35: 0 | V35: 0 | W35: 0 | X35: 0 | Y35: 0 | Z35: 0 | AA35: 0 | AB35: 0 | AC35: 0 | AD35: 0 | AE35: 0 | AF35: 0 | AG35: 0 | AH35: 0 | AI35: 0 | AJ35: 0 | AK35: 0 | AL35: 0 | AM35: 0 | AN35: 0 | AO35: 0 | AP35: 0 | AQ35: 0 | AR35: 0 | AS35: 0 | AT35: 0 | AU35: 0 | AV35: 0 | AW35: 0 | AX35: 0 | AY35: 0 | AZ35: 0 | BA35: 0
A36: OVINO | B36: 1 | C36: 447.2566372 | D36: 20618.13158 | E36: 69.41071429 | F36: 55.07142857 | G36: 1.5366369 | H36: 12.44821429 | I36: 0 | J36: 0 | K36: 0 | L36: 0 | M36: 0 | N36: 0 | O36: 0 | P36: 0 | Q36: 0 | R36: 0 | S36: 0 | T36: 0 | U36: 0 | V36: 0 | W36: 0 | X36: 0 | Y36: 0 | Z36: 0 | AA36: 0 | AB36: 0 | AC36: 0 | AD36: 0 | AE36: 0 | AF36: 0 | AG36: 0 | AH36: 0 | AI36: 0 | AJ36: 0 | AK36: 0 | AL36: 0 | AM36: 0 | AN36: 0 | AO36: 0 | AP36: 0 | AQ36: 0 | AR36: 0 | AS36: 0 | AT36: 0 | AU36: 0 | AV36: 0 | AW36: 0 | AX36: 0 | AY36: 0 | AZ36: 0 | BA36: 0
A37: OVINO | B37: 2 | C37: 483.9636364 | D37: 23706.81982 | E37: 67.37614679 | F37: 54.16513761 | G37: 1.632823766 | H37: 12.15412844 | I37: 0 | J37: 0 | K37: 0 | L37: 0 | M37: 0 | N37: 0 | O37: 0 | P37: 0 | Q37: 0 | R37: 0 | S37: 0 | T37: 0 | U37: 0 | V37: 0 | W37: 0 | X37: 0 | Y37: 0 | Z37: 0 | AA37: 0 | AB37: 0 | AC37: 0 | AD37: 0 | AE37: 0 | AF37: 0 | AG37: 0 | AH37: 0 | AI37: 0 | AJ37: 0 | AK37: 0 | AL37: 0 | AM37: 0 | AN37: 0 | AO37: 0 | AP37: 0 | AQ37: 0 | AR37: 0 | AS37: 0 | AT37: 0 | AU37: 0 | AV37: 0 | AW37: 0 | AX37: 0 | AY37: 0 | AZ37: 0 | BA37: 0
A38: OVINO | B38: 3 | C38: 595.8190476 | D38: 32330.25472 | E38: 63.73333333 | F38: 51.75238095 | G38: 1.808728945 | H38: 11.54857143 | I38: 0 | J38: 0 | K38: 0 | L38: 0 | M38: 0 | N38: 0 | O38: 0 | P38: 0 | Q38: 0 | R38: 0 | S38: 0 | T38: 0 | U38: 0 | V38: 0 | W38: 0 | X38: 0 | Y38: 0 | Z38: 0 | AA38: 0 | AB38: 0 | AC38: 0 | AD38: 0 | AE38: 0 | AF38: 0 | AG38: 0 | AH38: 0 | AI38: 0 | AJ38: 0 | AK38: 0 | AL38: 0 | AM38: 0 | AN38: 0 | AO38: 0 | AP38: 0 | AQ38: 0 | AR38: 0 | AS38: 0 | AT38: 0 | AU38: 0 | AV38: 0 | AW38: 0 | AX38: 0 | AY38: 0 | AZ38: 0 | BA38: 0
A39: OVINO | B39: 4 | C39: 630.0192308 | D39: 35771.94286 | E39: 62.64423077 | F39: 51.05769231 | G39: 1.892637616 | H39: 11.37019231 | I39: 0 | J39: 0 | K39: 0 | L39: 0 | M39: 0 | N39: 0 | O39: 0 | P39: 0 | Q39: 0 | R39: 0 | S39: 0 | T39: 0 | U39: 0 | V39: 0 | W39: 0 | X39: 0 | Y39: 0 | Z39: 0 | AA39: 0 | AB39: 0 | AC39: 0 | AD39: 0 | AE39: 0 | AF39: 0 | AG39: 0 | AH39: 0 | AI39: 0 | AJ39: 0 | AK39: 0 | AL39: 0 | AM39: 0 | AN39: 0 | AO39: 0 | AP39: 0 | AQ39: 0 | AR39: 0 | AS39: 0 | AT39: 0 | AU39: 0 | AV39: 0 | AW39: 0 | AX39: 0 | AY39: 0 | AZ39: 0 | BA39: 0
A40: OVINO | B40: 5 | C40: 685.9807692 | D40: 41154.33654 | E40: 62.47572816 | F40: 50.4368932 | G40: 1.999780868 | H40: 11.29126214 | I40: 0 | J40: 0 | K40: 0 | L40: 0 | M40: 0 | N40: 0 | O40: 0 | P40: 0 | Q40: 0 | R40: 0 | S40: 0 | T40: 0 | U40: 0 | V40: 0 | W40: 0 | X40: 0 | Y40: 0 | Z40: 0 | AA40: 0 | AB40: 0 | AC40: 0 | AD40: 0 | AE40: 0 | AF40: 0 | AG40: 0 | AH40: 0 | AI40: 0 | AJ40: 0 | AK40: 0 | AL40: 0 | AM40: 0 | AN40: 0 | AO40: 0 | AP40: 0 | AQ40: 0 | AR40: 0 | AS40: 0 | AT40: 0 | AU40: 0 | AV40: 0 | AW40: 0 | AX40: 0 | AY40: 0 | AZ40: 0 | BA40: 0
A41: OVINO | B41: 6 | C41: 662.24 | D41: 37880.84158 | E41: 61.88 | F41: 50.16 | G41: 1.906702584 | H41: 11.204 | I41: 0 | J41: 0 | K41: 0 | L41: 0 | M41: 0 | N41: 0 | O41: 0 | P41: 0 | Q41: 0 | R41: 0 | S41: 0 | T41: 0 | U41: 0 | V41: 0 | W41: 0 | X41: 0 | Y41: 0 | Z41: 0 | AA41: 0 | AB41: 0 | AC41: 0 | AD41: 0 | AE41: 0 | AF41: 0 | AG41: 0 | AH41: 0 | AI41: 0 | AJ41: 0 | AK41: 0 | AL41: 0 | AM41: 0 | AN41: 0 | AO41: 0 | AP41: 0 | AQ41: 0 | AR41: 0 | AS41: 0 | AT41: 0 | AU41: 0 | AV41: 0 | AW41: 0 | AX41: 0 | AY41: 0 | AZ41: 0 | BA41: 0
A42: OVINO | B42: 7 | C42: 632.4285714 | D42: 35027.19388 | E42: 61.91752577 | F42: 50.51546392 | G42: 1.846173911 | H42: 11.24329897 | I42: 0 | J42: 0 | K42: 0 | L42: 0 | M42: 0 | N42: 0 | O42: 0 | P42: 0 | Q42: 0 | R42: 0 | S42: 0 | T42: 0 | U42: 0 | V42: 0 | W42: 0 | X42: 0 | Y42: 0 | Z42: 0 | AA42: 0 | AB42: 0 | AC42: 0 | AD42: 0 | AE42: 0 | AF42: 0 | AG42: 0 | AH42: 0 | AI42: 0 | AJ42: 0 | AK42: 0 | AL42: 0 | AM42: 0 | AN42: 0 | AO42: 0 | AP42: 0 | AQ42: 0 | AR42: 0 | AS42: 0 | AT42: 0 | AU42: 0 | AV42: 0 | AW42: 0 | AX42: 0 | AY42: 0 | AZ42: 0 | BA42: 0
A43: OVINO | B43: 8 | C43: 631.6185567 | D43: 31690.8866 | E43: 63.23958333 | F43: 51.27083333 | G43: 1.672469682 | H43: 11.45104167 | I43: 0 | J43: 0 | K43: 0 | L43: 0 | M43: 0 | N43: 0 | O43: 0 | P43: 0 | Q43: 0 | R43: 0 | S43: 0 | T43: 0 | U43: 0 | V43: 0 | W43: 0 | X43: 0 | Y43: 0 | Z43: 0 | AA43: 0 | AB43: 0 | AC43: 0 | AD43: 0 | AE43: 0 | AF43: 0 | AG43: 0 | AH43: 0 | AI43: 0 | AJ43: 0 | AK43: 0 | AL43: 0 | AM43: 0 | AN43: 0 | AO43: 0 | AP43: 0 | AQ43: 0 | AR43: 0 | AS43: 0 | AT43: 0 | AU43: 0 | AV43: 0 | AW43: 0 | AX43: 0 | AY43: 0 | AZ43: 0 | BA43: 0
A44: OVINO | B44: 9 | C44: 550.3333333 | D44: 25008.79798 | E44: 67.41836735 | F44: 53.54081633 | G44: 1.514766686 | H44: 12.09591837 | I44: 0 | J44: 0 | K44: 0 | L44: 0 | M44: 0 | N44: 0 | O44: 0 | P44: 0 | Q44: 0 | R44: 0 | S44: 0 | T44: 0 | U44: 0 | V44: 0 | W44: 0 | X44: 0 | Y44: 0 | Z44: 0 | AA44: 0 | AB44: 0 | AC44: 0 | AD44: 0 | AE44: 0 | AF44: 0 | AG44: 0 | AH44: 0 | AI44: 0 | AJ44: 0 | AK44: 0 | AL44: 0 | AM44: 0 | AN44: 0 | AO44: 0 | AP44: 0 | AQ44: 0 | AR44: 0 | AS44: 0 | AT44: 0 | AU44: 0 | AV44: 0 | AW44: 0 | AX44: 0 | AY44: 0 | AZ44: 0 | BA44: 0
A45: OVINO | B45: 10 | C45: 498.010101 | D45: 21731.62 | E45: 71.08080808 | F45: 56.07070707 | G45: 1.454563536 | H45: 12.71515152 | I45: 0 | J45: 0 | K45: 0 | L45: 0 | M45: 0 | N45: 0 | O45: 0 | P45: 0 | Q45: 0 | R45: 0 | S45: 0 | T45: 0 | U45: 0 | V45: 0 | W45: 0 | X45: 0 | Y45: 0 | Z45: 0 | AA45: 0 | AB45: 0 | AC45: 0 | AD45: 0 | AE45: 0 | AF45: 0 | AG45: 0 | AH45: 0 | AI45: 0 | AJ45: 0 | AK45: 0 | AL45: 0 | AM45: 0 | AN45: 0 | AO45: 0 | AP45: 0 | AQ45: 0 | AR45: 0 | AS45: 0 | AT45: 0 | AU45: 0 | AV45: 0 | AW45: 0 | AX45: 0 | AY45: 0 | AZ45: 0 | BA45: 0
A46: OVINO | B46: 11 | C46: 456.1354167 | D46: 18558.96907 | E46: 74.47916667 | F46: 57.79166667 | G46: 1.356247026 | H46: 13.22708333 | I46: 0 | J46: 0 | K46: 0 | L46: 0 | M46: 0 | N46: 0 | O46: 0 | P46: 0 | Q46: 0 | R46: 0 | S46: 0 | T46: 0 | U46: 0 | V46: 0 | W46: 0 | X46: 0 | Y46: 0 | Z46: 0 | AA46: 0 | AB46: 0 | AC46: 0 | AD46: 0 | AE46: 0 | AF46: 0 | AG46: 0 | AH46: 0 | AI46: 0 | AJ46: 0 | AK46: 0 | AL46: 0 | AM46: 0 | AN46: 0 | AO46: 0 | AP46: 0 | AQ46: 0 | AR46: 0 | AS46: 0 | AT46: 0 | AU46: 0 | AV46: 0 | AW46: 0 | AX46: 0 | AY46: 0 | AZ46: 0 | BA46: 0
A47: OVINO | B47: 12 | C47: 456.4255319 | D47: 21074.38298 | E47: 71.09677419 | F47: 56.17204301 | G47: 1.539088818 | H47: 12.72688172 | I47: 0 | J47: 0 | K47: 0 | L47: 0 | M47: 0 | N47: 0 | O47: 0 | P47: 0 | Q47: 0 | R47: 0 | S47: 0 | T47: 0 | U47: 0 | V47: 0 | W47: 0 | X47: 0 | Y47: 0 | Z47: 0 | AA47: 0 | AB47: 0 | AC47: 0 | AD47: 0 | AE47: 0 | AF47: 0 | AG47: 0 | AH47: 0 | AI47: 0 | AJ47: 0 | AK47: 0 | AL47: 0 | AM47: 0 | AN47: 0 | AO47: 0 | AP47: 0 | AQ47: 0 | AR47: 0 | AS47: 0 | AT47: 0 | AU47: 0 | AV47: 0 | AW47: 0 | AX47: 0 | AY47: 0 | AZ47: 0 | BA47: 0
A48: 0 | B48: 0 | C48: 0 | D48: 0 | E48: 0 | F48: 0 | G48: 0 | H48: 0 | I48: 0 | J48: 0 | K48: 0 | L48: 0 | M48: 0 | N48: 0 | O48: 0 | P48: 0 | Q48: 0 | R48: 0 | S48: 0 | T48: 0 | U48: 0 | V48: 0 | W48: 0 | X48: 0 | Y48: 0 | Z48: 0 | AA48: 0 | AB48: 0 | AC48: 0 | AD48: 0 | AE48: 0 | AF48: 0 | AG48: 0 | AH48: 0 | AI48: 0 | AJ48: 0 | AK48: 0 | AL48: 0 | AM48: 0 | AN48: 0 | AO48: 0 | AP48: 0 | AQ48: 0 | AR48: 0 | AS48: 0 | AT48: 0 | AU48: 0 | AV48: 0 | AW48: 0 | AX48: 0 | AY48: 0 | AZ48: 0 | BA48: 0
A49: 0 | B49: 0 | C49: 0 | D49: 0 | E49: 0 | F49: 0 | G49: 0 | H49: 0 | I49: 0 | J49: 0 | K49: 0 | L49: 0 | M49: 0 | N49: 0 | O49: 0 | P49: 0 | Q49: 0 | R49: 0 | S49: 0 | T49: 0 | U49: 0 | V49: 0 | W49: 0 | X49: 0 | Y49: 0 | Z49: 0 | AA49: 0 | AB49: 0 | AC49: 0 | AD49: 0 | AE49: 0 | AF49: 0 | AG49: 0 | AH49: 0 | AI49: 0 | AJ49: 0 | AK49: 0 | AL49: 0 | AM49: 0 | AN49: 0 | AO49: 0 | AP49: 0 | AQ49: 0 | AR49: 0 | AS49: 0 | AT49: 0 | AU49: 0 | AV49: 0 | AW49: 0 | AX49: 0 | AY49: 0 | AZ49: 0 | BA49: 0
A50: 0 | B50: 0 | C50: 0 | D50: 0 | E50: 0 | F50: 0 | G50: 0 | H50: 0 | I50: 0 | J50: 0 | K50: 0 | L50: 0 | M50: 0 | N50: 0 | O50: 0 | P50: 0 | Q50: 0 | R50: 0 | S50: 0 | T50: 0 | U50: 0 | V50: 0 | W50: 0 | X50: 0 | Y50: 0 | Z50: 0 | AA50: 0 | AB50: 0 | AC50: 0 | AD50: 0 | AE50: 0 | AF50: 0 | AG50: 0 | AH50: 0 | AI50: 0 | AJ50: 0 | AK50: 0 | AL50: 0 | AM50: 0 | AN50: 0 | AO50: 0 | AP50: 0 | AQ50: 0 | AR50: 0 | AS50: 0 | AT50: 0 | AU50: 0 | AV50: 0 | AW50: 0 | AX50: 0 | AY50: 0 | AZ50: 0 | BA50: 0
A51: ESPECIE | B51: CuentaDeMES CONTROL | C51: PromedioDeANIMALES SECOS | D51: PromedioDeANIMALES EN PREPARTO | E51: PromedioDeANIMALES EN ORDEÑO | F51: ANIMALES TOTALES | G51: %ANIMALES SECOS | H51: %ANIMALES EN PREPARTO | I51: %ANIMALES EN ORDEÑO | J51: 0 | K51: 0 | L51: 0 | M51: 0 | N51: 0 | O51: 0 | P51: 0 | Q51: 0 | R51: 0 | S51: 0 | T51: 0 | U51: 0 | V51: 0 | W51: 0 | X51: 0 | Y51: 0 | Z51: 0 | AA51: 0 | AB51: 0 | AC51: 0 | AD51: 0 | AE51: 0 | AF51: 0 | AG51: 0 | AH51: 0 | AI51: 0 | AJ51: 0 | AK51: 0 | AL51: 0 | AM51: 0 | AN51: 0 | AO51: 0 | AP51: 0 | AQ51: 0 | AR51: 0 | AS51: 0 | AT51: 0 | AU51: 0 | AV51: 0 | AW51: 0 | AX51: 0 | AY51: 0 | AZ51: 0 | BA51: 0
A52: CAPRINO | B52: 810 | C52: 93.97018634 | D52: 74.55796178 | E52: 404.7153465 | F52: 573.2434947 | G52: 0.1639271744 | H52: 0.1300633369 | I52: 0.7060094887 | J52: 0 | K52: 0 | L52: 0 | M52: 0 | N52: 0 | O52: 0 | P52: 0 | Q52: 0 | R52: 0 | S52: 0 | T52: 0 | U52: 0 | V52: 0 | W52: 0 | X52: 0 | Y52: 0 | Z52: 0 | AA52: 0 | AB52: 0 | AC52: 0 | AD52: 0 | AE52: 0 | AF52: 0 | AG52: 0 | AH52: 0 | AI52: 0 | AJ52: 0 | AK52: 0 | AL52: 0 | AM52: 0 | AN52: 0 | AO52: 0 | AP52: 0 | AQ52: 0 | AR52: 0 | AS52: 0 | AT52: 0 | AU52: 0 | AV52: 0 | AW52: 0 | AX52: 0 | AY52: 0 | AZ52: 0 | BA52: 0
A53: OVINO | B53: 1227 | C53: 245.3290488 | D53: 169.6054366 | E53: 560.4175554 | F53: 975.3520408 | G53: 0.2515287184 | H53: 0.1738915074 | I53: 0.5745797742 | J53: 0 | K53: 0 | L53: 0 | M53: 0 | N53: 0 | O53: 0 | P53: 0 | Q53: 0 | R53: 0 | S53: 0 | T53: 0 | U53: 0 | V53: 0 | W53: 0 | X53: 0 | Y53: 0 | Z53: 0 | AA53: 0 | AB53: 0 | AC53: 0 | AD53: 0 | AE53: 0 | AF53: 0 | AG53: 0 | AH53: 0 | AI53: 0 | AJ53: 0 | AK53: 0 | AL53: 0 | AM53: 0 | AN53: 0 | AO53: 0 | AP53: 0 | AQ53: 0 | AR53: 0 | AS53: 0 | AT53: 0 | AU53: 0 | AV53: 0 | AW53: 0 | AX53: 0 | AY53: 0 | AZ53: 0 | BA53: 0
A54: 0 | B54: 0 | C54: 0 | D54: 0 | E54: 0 | F54: 0 | G54: 0 | H54: 0 | I54: 0 | J54: 0 | K54: 0 | L54: 0 | M54: 0 | N54: 0 | O54: 0 | P54: 0 | Q54: 0 | R54: 0 | S54: 0 | T54: 0 | U54: 0 | V54: 0 | W54: 0 | X54: 0 | Y54: 0 | Z54: 0 | AA54: 0 | AB54: 0 | AC54: 0 | AD54: 0 | AE54: 0 | AF54: 0 | AG54: 0 | AH54: 0 | AI54: 0 | AJ54: 0 | AK54: 0 | AL54: 0 | AM54: 0 | AN54: 0 | AO54: 0 | AP54: 0 | AQ54: 0 | AR54: 0 | AS54: 0 | AT54: 0 | AU54: 0 | AV54: 0 | AW54: 0 | AX54: 0 | AY54: 0 | AZ54: 0 | BA54: 0
A55: 0 | B55: 0 | C55: 0 | D55: 0 | E55: 0 | F55: 0 | G55: 0 | H55: 0 | I55: 0 | J55: 0 | K55: 0 | L55: 0 | M55: 0 | N55: 0 | O55: 0 | P55: 0 | Q55: 0 | R55: 0 | S55: 0 | T55: 0 | U55: 0 | V55: 0 | W55: 0 | X55: 0 | Y55: 0 | Z55: 0 | AA55: 0 | AB55: 0 | AC55: 0 | AD55: 0 | AE55: 0 | AF55: 0 | AG55: 0 | AH55: 0 | AI55: 0 | AJ55: 0 | AK55: 0 | AL55: 0 | AM55: 0 | AN55: 0 | AO55: 0 | AP55: 0 | AQ55: 0 | AR55: 0 | AS55: 0 | AT55: 0 | AU55: 0 | AV55: 0 | AW55: 0 | AX55: 0 | AY55: 0 | AZ55: 0 | BA55: 0
A56: 0 | B56: 0 | C56: 0 | D56: 0 | E56: 0 | F56: 0 | G56: 0 | H56: 0 | I56: 0 | J56: 0 | K56: 0 | L56: 0 | M56: 0 | N56: 0 | O56: 0 | P56: 0 | Q56: 0 | R56: 0 | S56: 0 | T56: 0 | U56: 0 | V56: 0 | W56: 0 | X56: 0 | Y56: 0 | Z56: 0 | AA56: 0 | AB56: 0 | AC56: 0 | AD56: 0 | AE56: 0 | AF56: 0 | AG56: 0 | AH56: 0 | AI56: 0 | AJ56: 0 | AK56: 0 | AL56: 0 | AM56: 0 | AN56: 0 | AO56: 0 | AP56: 0 | AQ56: 0 | AR56: 0 | AS56: 0 | AT56: 0 | AU56: 0 | AV56: 0 | AW56: 0 | AX56: 0 | AY56: 0 | AZ56: 0 | BA56: 0
A57: ESPECIE | B57: MES CONTROL | C57: PromedioDeANIMALES SECOS | D57: PromedioDeANIMALES EN PREPARTO | E57: PromedioDeANIMALES EN ORDEÑO | F57: ANIMALES TOTALES | G57: %ANIMALES SECOS | H57: %ANIMALES EN PREPARTO | I57: %ANIMALES EN ORDEÑO | J57: TOT ANIMALES | K57: 0 | L57: 0 | M57: 0 | N57: 0 | O57: 0 | P57: 0 | Q57: 0 | R57: 0 | S57: 0 | T57: 0 | U57: 0 | V57: 0 | W57: 0 | X57: 0 | Y57: 0 | Z57: 0 | AA57: 0 | AB57: 0 | AC57: 0 | AD57: 0 | AE57: 0 | AF57: 0 | AG57: 0 | AH57: 0 | AI57: 0 | AJ57: 0 | AK57: 0 | AL57: 0 | AM57: 0 | AN57: 0 | AO57: 0 | AP57: 0 | AQ57: 0 | AR57: 0 | AS57: 0 | AT57: 0 | AU57: 0 | AV57: 0 | AW57: 0 | AX57: 0 | AY57: 0 | AZ57: 0 | BA57: 0
A58: CAPRINO | B58: 1 | C58: 153.5 | D58: 101.9 | E58: 313.8 | F58: 569.2 | G58: 0.2696767393 | H58: 0.1790231904 | I58: 0.5513000703 | J58: 569.2 | K58: 0 | L58: 0 | M58: 0 | N58: 0 | O58: 0 | P58: 0 | Q58: 0 | R58: 0 | S58: 0 | T58: 0 | U58: 0 | V58: 0 | W58: 0 | X58: 0 | Y58: 0 | Z58: 0 | AA58: 0 | AB58: 0 | AC58: 0 | AD58: 0 | AE58: 0 | AF58: 0 | AG58: 0 | AH58: 0 | AI58: 0 | AJ58: 0 | AK58: 0 | AL58: 0 | AM58: 0 | AN58: 0 | AO58: 0 | AP58: 0 | AQ58: 0 | AR58: 0 | AS58: 0 | AT58: 0 | AU58: 0 | AV58: 0 | AW58: 0 | AX58: 0 | AY58: 0 | AZ58: 0 | BA58: 0
A59: CAPRINO | B59: 2 | C59: 12.71428571 | D59: 93.14285714 | E59: 315.2857143 | F59: 421.1428571 | G59: 0.03018995929 | H59: 0.2211668928 | I59: 0.7486431479 | J59: 421.1428571 | K59: 0 | L59: 0 | M59: 0 | N59: 0 | O59: 0 | P59: 0 | Q59: 0 | R59: 0 | S59: 0 | T59: 0 | U59: 0 | V59: 0 | W59: 0 | X59: 0 | Y59: 0 | Z59: 0 | AA59: 0 | AB59: 0 | AC59: 0 | AD59: 0 | AE59: 0 | AF59: 0 | AG59: 0 | AH59: 0 | AI59: 0 | AJ59: 0 | AK59: 0 | AL59: 0 | AM59: 0 | AN59: 0 | AO59: 0 | AP59: 0 | AQ59: 0 | AR59: 0 | AS59: 0 | AT59: 0 | AU59: 0 | AV59: 0 | AW59: 0 | AX59: 0 | AY59: 0 | AZ59: 0 | BA59: 0
A60: CAPRINO | B60: 3 | C60: 16.5 | D60: 10.875 | E60: 372.75 | F60: 400.125 | G60: 0.0412371134 | H60: 0.02717900656 | I60: 0.93158388 | J60: 400.125 | K60: 0 | L60: 0 | M60: 0 | N60: 0 | O60: 0 | P60: 0 | Q60: 0 | R60: 0 | S60: 0 | T60: 0 | U60: 0 | V60: 0 | W60: 0 | X60: 0 | Y60: 0 | Z60: 0 | AA60: 0 | AB60: 0 | AC60: 0 | AD60: 0 | AE60: 0 | AF60: 0 | AG60: 0 | AH60: 0 | AI60: 0 | AJ60: 0 | AK60: 0 | AL60: 0 | AM60: 0 | AN60: 0 | AO60: 0 | AP60: 0 | AQ60: 0 | AR60: 0 | AS60: 0 | AT60: 0 | AU60: 0 | AV60: 0 | AW60: 0 | AX60: 0 | AY60: 0 | AZ60: 0 | BA60: 0
A61: CAPRINO | B61: 4 | C61: 11.33333333 | D61: 14.5 | E61: 367.1666667 | F61: 393 | G61: 0.0288379983 | H61: 0.0368956743 | I61: 0.9342663274 | J61: 393 | K61: 0 | L61: 0 | M61: 0 | N61: 0 | O61: 0 | P61: 0 | Q61: 0 | R61: 0 | S61: 0 | T61: 0 | U61: 0 | V61: 0 | W61: 0 | X61: 0 | Y61: 0 | Z61: 0 | AA61: 0 | AB61: 0 | AC61: 0 | AD61: 0 | AE61: 0 | AF61: 0 | AG61: 0 | AH61: 0 | AI61: 0 | AJ61: 0 | AK61: 0 | AL61: 0 | AM61: 0 | AN61: 0 | AO61: 0 | AP61: 0 | AQ61: 0 | AR61: 0 | AS61: 0 | AT61: 0 | AU61: 0 | AV61: 0 | AW61: 0 | AX61: 0 | AY61: 0 | AZ61: 0 | BA61: 0
A62: CAPRINO | B62: 5 | C62: 71 | D62: 55.14285714 | E62: 375.4285714 | F62: 501.5714286 | G62: 0.1415551125 | H62: 0.109940188 | I62: 0.7485046995 | J62: 501.5714286 | K62: 0 | L62: 0 | M62: 0 | N62: 0 | O62: 0 | P62: 0 | Q62: 0 | R62: 0 | S62: 0 | T62: 0 | U62: 0 | V62: 0 | W62: 0 | X62: 0 | Y62: 0 | Z62: 0 | AA62: 0 | AB62: 0 | AC62: 0 | AD62: 0 | AE62: 0 | AF62: 0 | AG62: 0 | AH62: 0 | AI62: 0 | AJ62: 0 | AK62: 0 | AL62: 0 | AM62: 0 | AN62: 0 | AO62: 0 | AP62: 0 | AQ62: 0 | AR62: 0 | AS62: 0 | AT62: 0 | AU62: 0 | AV62: 0 | AW62: 0 | AX62: 0 | AY62: 0 | AZ62: 0 | BA62: 0
A63: CAPRINO | B63: 6 | C63: 47 | D63: 17 | E63: 421.4285714 | F63: 485.4285714 | G63: 0.0968216598 | H63: 0.03502060035 | I63: 0.8681577398 | J63: 485.4285714 | K63: 0 | L63: 0 | M63: 0 | N63: 0 | O63: 0 | P63: 0 | Q63: 0 | R63: 0 | S63: 0 | T63: 0 | U63: 0 | V63: 0 | W63: 0 | X63: 0 | Y63: 0 | Z63: 0 | AA63: 0 | AB63: 0 | AC63: 0 | AD63: 0 | AE63: 0 | AF63: 0 | AG63: 0 | AH63: 0 | AI63: 0 | AJ63: 0 | AK63: 0 | AL63: 0 | AM63: 0 | AN63: 0 | AO63: 0 | AP63: 0 | AQ63: 0 | AR63: 0 | AS63: 0 | AT63: 0 | AU63: 0 | AV63: 0 | AW63: 0 | AX63: 0 | AY63: 0 | AZ63: 0 | BA63: 0
A64: CAPRINO | B64: 7 | C64: 34.5 | D64: 21.66666667 | E64: 470.8333333 | F64: 527 | G64: 0.06546489564 | H64: 0.04111321948 | I64: 0.8934218849 | J64: 527 | K64: 0 | L64: 0 | M64: 0 | N64: 0 | O64: 0 | P64: 0 | Q64: 0 | R64: 0 | S64: 0 | T64: 0 | U64: 0 | V64: 0 | W64: 0 | X64: 0 | Y64: 0 | Z64: 0 | AA64: 0 | AB64: 0 | AC64: 0 | AD64: 0 | AE64: 0 | AF64: 0 | AG64: 0 | AH64: 0 | AI64: 0 | AJ64: 0 | AK64: 0 | AL64: 0 | AM64: 0 | AN64: 0 | AO64: 0 | AP64: 0 | AQ64: 0 | AR64: 0 | AS64: 0 | AT64: 0 | AU64: 0 | AV64: 0 | AW64: 0 | AX64: 0 | AY64: 0 | AZ64: 0 | BA64: 0
A65: CAPRINO | B65: 8 | C65: 52.8 | D65: 20.2 | E65: 396.4 | F65: 469.4 | G65: 0.1124840222 | H65: 0.04303365999 | I65: 0.8444823179 | J65: 469.4 | K65: 0 | L65: 0 | M65: 0 | N65: 0 | O65: 0 | P65: 0 | Q65: 0 | R65: 0 | S65: 0 | T65: 0 | U65: 0 | V65: 0 | W65: 0 | X65: 0 | Y65: 0 | Z65: 0 | AA65: 0 | AB65: 0 | AC65: 0 | AD65: 0 | AE65: 0 | AF65: 0 | AG65: 0 | AH65: 0 | AI65: 0 | AJ65: 0 | AK65: 0 | AL65: 0 | AM65: 0 | AN65: 0 | AO65: 0 | AP65: 0 | AQ65: 0 | AR65: 0 | AS65: 0 | AT65: 0 | AU65: 0 | AV65: 0 | AW65: 0 | AX65: 0 | AY65: 0 | AZ65: 0 | BA65: 0
A66: CAPRINO | B66: 9 | C66: 23.2 | D66: 50.8 | E66: 397.4 | F66: 471.4 | G66: 0.04921510395 | H66: 0.1077641069 | I66: 0.8430207891 | J66: 471.4 | K66: 0 | L66: 0 | M66: 0 | N66: 0 | O66: 0 | P66: 0 | Q66: 0 | R66: 0 | S66: 0 | T66: 0 | U66: 0 | V66: 0 | W66: 0 | X66: 0 | Y66: 0 | Z66: 0 | AA66: 0 | AB66: 0 | AC66: 0 | AD66: 0 | AE66: 0 | AF66: 0 | AG66: 0 | AH66: 0 | AI66: 0 | AJ66: 0 | AK66: 0 | AL66: 0 | AM66: 0 | AN66: 0 | AO66: 0 | AP66: 0 | AQ66: 0 | AR66: 0 | AS66: 0 | AT66: 0 | AU66: 0 | AV66: 0 | AW66: 0 | AX66: 0 | AY66: 0 | AZ66: 0 | BA66: 0
A67: CAPRINO | B67: 10 | C67: 135.2857143 | D67: 143.5714286 | E67: 271.2857143 | F67: 550.1428571 | G67: 0.2459101532 | H67: 0.2609711763 | I67: 0.4931186705 | J67: 550.1428571 | K67: 0 | L67: 0 | M67: 0 | N67: 0 | O67: 0 | P67: 0 | Q67: 0 | R67: 0 | S67: 0 | T67: 0 | U67: 0 | V67: 0 | W67: 0 | X67: 0 | Y67: 0 | Z67: 0 | AA67: 0 | AB67: 0 | AC67: 0 | AD67: 0 | AE67: 0 | AF67: 0 | AG67: 0 | AH67: 0 | AI67: 0 | AJ67: 0 | AK67: 0 | AL67: 0 | AM67: 0 | AN67: 0 | AO67: 0 | AP67: 0 | AQ67: 0 | AR67: 0 | AS67: 0 | AT67: 0 | AU67: 0 | AV67: 0 | AW67: 0 | AX67: 0 | AY67: 0 | AZ67: 0 | BA67: 0
A68: CAPRINO | B68: 11 | C68: 137.1428571 | D68: 68.57142857 | E68: 312.5714286 | F68: 518.2857143 | G68: 0.2646085998 | H68: 0.1323042999 | I68: 0.6030871003 | J68: 518.2857143 | K68: 0 | L68: 0 | M68: 0 | N68: 0 | O68: 0 | P68: 0 | Q68: 0 | R68: 0 | S68: 0 | T68: 0 | U68: 0 | V68: 0 | W68: 0 | X68: 0 | Y68: 0 | Z68: 0 | AA68: 0 | AB68: 0 | AC68: 0 | AD68: 0 | AE68: 0 | AF68: 0 | AG68: 0 | AH68: 0 | AI68: 0 | AJ68: 0 | AK68: 0 | AL68: 0 | AM68: 0 | AN68: 0 | AO68: 0 | AP68: 0 | AQ68: 0 | AR68: 0 | AS68: 0 | AT68: 0 | AU68: 0 | AV68: 0 | AW68: 0 | AX68: 0 | AY68: 0 | AZ68: 0 | BA68: 0
A69: CAPRINO | B69: 12 | C69: 201.25 | D69: 21.25 | E69: 335 | F69: 557.5 | G69: 0.3609865471 | H69: 0.03811659193 | I69: 0.600896861 | J69: 557.5 | K69: 0 | L69: 0 | M69: 0 | N69: 0 | O69: 0 | P69: 0 | Q69: 0 | R69: 0 | S69: 0 | T69: 0 | U69: 0 | V69: 0 | W69: 0 | X69: 0 | Y69: 0 | Z69: 0 | AA69: 0 | AB69: 0 | AC69: 0 | AD69: 0 | AE69: 0 | AF69: 0 | AG69: 0 | AH69: 0 | AI69: 0 | AJ69: 0 | AK69: 0 | AL69: 0 | AM69: 0 | AN69: 0 | AO69: 0 | AP69: 0 | AQ69: 0 | AR69: 0 | AS69: 0 | AT69: 0 | AU69: 0 | AV69: 0 | AW69: 0 | AX69: 0 | AY69: 0 | AZ69: 0 | BA69: 0
A70: OVINO | B70: 1 | C70: 276.3333333 | D70: 326.6666667 | E70: 416.7142857 | F70: 1019.714286 | G70: 0.2709909405 | H70: 0.3203511721 | I70: 0.4086578874 | J70: 1019.714286 | K70: 0 | L70: 0 | M70: 0 | N70: 0 | O70: 0 | P70: 0 | Q70: 0 | R70: 0 | S70: 0 | T70: 0 | U70: 0 | V70: 0 | W70: 0 | X70: 0 | Y70: 0 | Z70: 0 | AA70: 0 | AB70: 0 | AC70: 0 | AD70: 0 | AE70: 0 | AF70: 0 | AG70: 0 | AH70: 0 | AI70: 0 | AJ70: 0 | AK70: 0 | AL70: 0 | AM70: 0 | AN70: 0 | AO70: 0 | AP70: 0 | AQ70: 0 | AR70: 0 | AS70: 0 | AT70: 0 | AU70: 0 | AV70: 0 | AW70: 0 | AX70: 0 | AY70: 0 | AZ70: 0 | BA70: 0
A71: OVINO | B71: 2 | C71: 274.5 | D71: 313.3333333 | E71: 418.8571429 | F71: 1006.690476 | G71: 0.2726756699 | H71: 0.3112509165 | I71: 0.4160734136 | J71: 1006.690476 | K71: 0 | L71: 0 | M71: 0 | N71: 0 | O71: 0 | P71: 0 | Q71: 0 | R71: 0 | S71: 0 | T71: 0 | U71: 0 | V71: 0 | W71: 0 | X71: 0 | Y71: 0 | Z71: 0 | AA71: 0 | AB71: 0 | AC71: 0 | AD71: 0 | AE71: 0 | AF71: 0 | AG71: 0 | AH71: 0 | AI71: 0 | AJ71: 0 | AK71: 0 | AL71: 0 | AM71: 0 | AN71: 0 | AO71: 0 | AP71: 0 | AQ71: 0 | AR71: 0 | AS71: 0 | AT71: 0 | AU71: 0 | AV71: 0 | AW71: 0 | AX71: 0 | AY71: 0 | AZ71: 0 | BA71: 0
A72: OVINO | B72: 3 | C72: 231.5 | D72: 178.3333333 | E72: 609.8571429 | F72: 1019.690476 | G72: 0.2270296775 | H72: 0.1748896724 | I72: 0.5980806501 | J72: 1019.690476 | K72: 0 | L72: 0 | M72: 0 | N72: 0 | O72: 0 | P72: 0 | Q72: 0 | R72: 0 | S72: 0 | T72: 0 | U72: 0 | V72: 0 | W72: 0 | X72: 0 | Y72: 0 | Z72: 0 | AA72: 0 | AB72: 0 | AC72: 0 | AD72: 0 | AE72: 0 | AF72: 0 | AG72: 0 | AH72: 0 | AI72: 0 | AJ72: 0 | AK72: 0 | AL72: 0 | AM72: 0 | AN72: 0 | AO72: 0 | AP72: 0 | AQ72: 0 | AR72: 0 | AS72: 0 | AT72: 0 | AU72: 0 | AV72: 0 | AW72: 0 | AX72: 0 | AY72: 0 | AZ72: 0 | BA72: 0
A73: OVINO | B73: 4 | C73: 228.6666667 | D73: 132.8333333 | E73: 613.2857143 | F73: 974.7857143 | G73: 0.2345814709 | H73: 0.1362692655 | I73: 0.6291492636 | J73: 974.7857143 | K73: 0 | L73: 0 | M73: 0 | N73: 0 | O73: 0 | P73: 0 | Q73: 0 | R73: 0 | S73: 0 | T73: 0 | U73: 0 | V73: 0 | W73: 0 | X73: 0 | Y73: 0 | Z73: 0 | AA73: 0 | AB73: 0 | AC73: 0 | AD73: 0 | AE73: 0 | AF73: 0 | AG73: 0 | AH73: 0 | AI73: 0 | AJ73: 0 | AK73: 0 | AL73: 0 | AM73: 0 | AN73: 0 | AO73: 0 | AP73: 0 | AQ73: 0 | AR73: 0 | AS73: 0 | AT73: 0 | AU73: 0 | AV73: 0 | AW73: 0 | AX73: 0 | AY73: 0 | AZ73: 0 | BA73: 0
A74: OVINO | B74: 5 | C74: 178.5 | D74: 106.8333333 | E74: 671.5714286 | F74: 956.9047619 | G74: 0.18653894 | H74: 0.1116446877 | I74: 0.7018163722 | J74: 956.9047619 | K74: 0 | L74: 0 | M74: 0 | N74: 0 | O74: 0 | P74: 0 | Q74: 0 | R74: 0 | S74: 0 | T74: 0 | U74: 0 | V74: 0 | W74: 0 | X74: 0 | Y74: 0 | Z74: 0 | AA74: 0 | AB74: 0 | AC74: 0 | AD74: 0 | AE74: 0 | AF74: 0 | AG74: 0 | AH74: 0 | AI74: 0 | AJ74: 0 | AK74: 0 | AL74: 0 | AM74: 0 | AN74: 0 | AO74: 0 | AP74: 0 | AQ74: 0 | AR74: 0 | AS74: 0 | AT74: 0 | AU74: 0 | AV74: 0 | AW74: 0 | AX74: 0 | AY74: 0 | AZ74: 0 | BA74: 0
A75: OVINO | B75: 6 | C75: 208.3333333 | D75: 130.6666667 | E75: 603.2857143 | F75: 942.2857143 | G75: 0.2210935921 | H75: 0.138669901 | I75: 0.640236507 | J75: 942.2857143 | K75: 0 | L75: 0 | M75: 0 | N75: 0 | O75: 0 | P75: 0 | Q75: 0 | R75: 0 | S75: 0 | T75: 0 | U75: 0 | V75: 0 | W75: 0 | X75: 0 | Y75: 0 | Z75: 0 | AA75: 0 | AB75: 0 | AC75: 0 | AD75: 0 | AE75: 0 | AF75: 0 | AG75: 0 | AH75: 0 | AI75: 0 | AJ75: 0 | AK75: 0 | AL75: 0 | AM75: 0 | AN75: 0 | AO75: 0 | AP75: 0 | AQ75: 0 | AR75: 0 | AS75: 0 | AT75: 0 | AU75: 0 | AV75: 0 | AW75: 0 | AX75: 0 | AY75: 0 | AZ75: 0 | BA75: 0
A76: OVINO | B76: 7 | C76: 170.8333333 | D76: 183.1666667 | E76: 586.5714286 | F76: 940.5714286 | G76: 0.181627177 | H76: 0.1947397732 | I76: 0.6236330498 | J76: 940.5714286 | K76: 0 | L76: 0 | M76: 0 | N76: 0 | O76: 0 | P76: 0 | Q76: 0 | R76: 0 | S76: 0 | T76: 0 | U76: 0 | V76: 0 | W76: 0 | X76: 0 | Y76: 0 | Z76: 0 | AA76: 0 | AB76: 0 | AC76: 0 | AD76: 0 | AE76: 0 | AF76: 0 | AG76: 0 | AH76: 0 | AI76: 0 | AJ76: 0 | AK76: 0 | AL76: 0 | AM76: 0 | AN76: 0 | AO76: 0 | AP76: 0 | AQ76: 0 | AR76: 0 | AS76: 0 | AT76: 0 | AU76: 0 | AV76: 0 | AW76: 0 | AX76: 0 | AY76: 0 | AZ76: 0 | BA76: 0
A77: OVINO | B77: 8 | C77: 222.1428571 | D77: 98 | E77: 586.2857143 | F77: 906.4285714 | G77: 0.2450748621 | H77: 0.1081166273 | I77: 0.6468085106 | J77: 906.4285714 | K77: 0 | L77: 0 | M77: 0 | N77: 0 | O77: 0 | P77: 0 | Q77: 0 | R77: 0 | S77: 0 | T77: 0 | U77: 0 | V77: 0 | W77: 0 | X77: 0 | Y77: 0 | Z77: 0 | AA77: 0 | AB77: 0 | AC77: 0 | AD77: 0 | AE77: 0 | AF77: 0 | AG77: 0 | AH77: 0 | AI77: 0 | AJ77: 0 | AK77: 0 | AL77: 0 | AM77: 0 | AN77: 0 | AO77: 0 | AP77: 0 | AQ77: 0 | AR77: 0 | AS77: 0 | AT77: 0 | AU77: 0 | AV77: 0 | AW77: 0 | AX77: 0 | AY77: 0 | AZ77: 0 | BA77: 0
A78: OVINO | B78: 9 | C78: 267.4444444 | D78: 66.88888889 | E78: 542.6666667 | F78: 877 | G78: 0.3049537565 | H78: 0.07627011276 | I78: 0.6187761307 | J78: 877 | K78: 0 | L78: 0 | M78: 0 | N78: 0 | O78: 0 | P78: 0 | Q78: 0 | R78: 0 | S78: 0 | T78: 0 | U78: 0 | V78: 0 | W78: 0 | X78: 0 | Y78: 0 | Z78: 0 | AA78: 0 | AB78: 0 | AC78: 0 | AD78: 0 | AE78: 0 | AF78: 0 | AG78: 0 | AH78: 0 | AI78: 0 | AJ78: 0 | AK78: 0 | AL78: 0 | AM78: 0 | AN78: 0 | AO78: 0 | AP78: 0 | AQ78: 0 | AR78: 0 | AS78: 0 | AT78: 0 | AU78: 0 | AV78: 0 | AW78: 0 | AX78: 0 | AY78: 0 | AZ78: 0 | BA78: 0
A79: OVINO | B79: 10 | C79: 152.6666667 | D79: 188.3333333 | E79: 439.3333333 | F79: 780.3333333 | G79: 0.1956428877 | H79: 0.2413498505 | I79: 0.5630072619 | J79: 780.3333333 | K79: 0 | L79: 0 | M79: 0 | N79: 0 | O79: 0 | P79: 0 | Q79: 0 | R79: 0 | S79: 0 | T79: 0 | U79: 0 | V79: 0 | W79: 0 | X79: 0 | Y79: 0 | Z79: 0 | AA79: 0 | AB79: 0 | AC79: 0 | AD79: 0 | AE79: 0 | AF79: 0 | AG79: 0 | AH79: 0 | AI79: 0 | AJ79: 0 | AK79: 0 | AL79: 0 | AM79: 0 | AN79: 0 | AO79: 0 | AP79: 0 | AQ79: 0 | AR79: 0 | AS79: 0 | AT79: 0 | AU79: 0 | AV79: 0 | AW79: 0 | AX79: 0 | AY79: 0 | AZ79: 0 | BA79: 0
A80: OVINO | B80: 11 | C80: 226.6666667 | D80: 165.3333333 | E80: 391 | F80: 783 | G80: 0.2894848872 | H80: 0.2111536824 | I80: 0.4993614304 | J80: 783 | K80: 0 | L80: 0 | M80: 0 | N80: 0 | O80: 0 | P80: 0 | Q80: 0 | R80: 0 | S80: 0 | T80: 0 | U80: 0 | V80: 0 | W80: 0 | X80: 0 | Y80: 0 | Z80: 0 | AA80: 0 | AB80: 0 | AC80: 0 | AD80: 0 | AE80: 0 | AF80: 0 | AG80: 0 | AH80: 0 | AI80: 0 | AJ80: 0 | AK80: 0 | AL80: 0 | AM80: 0 | AN80: 0 | AO80: 0 | AP80: 0 | AQ80: 0 | AR80: 0 | AS80: 0 | AT80: 0 | AU80: 0 | AV80: 0 | AW80: 0 | AX80: 0 | AY80: 0 | AZ80: 0 | BA80: 0
A81: OVINO | B81: 12 | C81: 268.4444444 | D81: 97.77777778 | E81: 402.6666667 | F81: 768.8888889 | G81: 0.349132948 | H81: 0.1271676301 | I81: 0.523699422 | J81: 768.8888889 | K81: 0 | L81: 0 | M81: 0 | N81: 0 | O81: 0 | P81: 0 | Q81: 0 | R81: 0 | S81: 0 | T81: 0 | U81: 0 | V81: 0 | W81: 0 | X81: 0 | Y81: 0 | Z81: 0 | AA81: 0 | AB81: 0 | AC81: 0 | AD81: 0 | AE81: 0 | AF81: 0 | AG81: 0 | AH81: 0 | AI81: 0 | AJ81: 0 | AK81: 0 | AL81: 0 | AM81: 0 | AN81: 0 | AO81: 0 | AP81: 0 | AQ81: 0 | AR81: 0 | AS81: 0 | AT81: 0 | AU81: 0 | AV81: 0 | AW81: 0 | AX81: 0 | AY81: 0 | AZ81: 0 | BA81: 0
A82: 0 | B82: 0 | C82: 0 | D82: 0 | E82: 0 | F82: 0 | G82: 0 | H82: 0 | I82: 0 | J82: 0 | K82: 0 | L82: 0 | M82: 0 | N82: 0 | O82: 0 | P82: 0 | Q82: 0 | R82: 0 | S82: 0 | T82: 0 | U82: 0 | V82: 0 | W82: 0 | X82: 0 | Y82: 0 | Z82: 0 | AA82: 0 | AB82: 0 | AC82: 0 | AD82: 0 | AE82: 0 | AF82: 0 | AG82: 0 | AH82: 0 | AI82: 0 | AJ82: 0 | AK82: 0 | AL82: 0 | AM82: 0 | AN82: 0 | AO82: 0 | AP82: 0 | AQ82: 0 | AR82: 0 | AS82: 0 | AT82: 0 | AU82: 0 | AV82: 0 | AW82: 0 | AX82: 0 | AY82: 0 | AZ82: 0 | BA82: 0
A83: 0 | B83: 0 | C83: 0 | D83: 0 | E83: 0 | F83: 0 | G83: 0 | H83: 0 | I83: 0 | J83: 0 | K83: 0 | L83: 0 | M83: 0 | N83: 0 | O83: 0 | P83: 0 | Q83: 0 | R83: 0 | S83: 0 | T83: 0 | U83: 0 | V83: 0 | W83: 0 | X83: 0 | Y83: 0 | Z83: 0 | AA83: 0 | AB83: 0 | AC83: 0 | AD83: 0 | AE83: 0 | AF83: 0 | AG83: 0 | AH83: 0 | AI83: 0 | AJ83: 0 | AK83: 0 | AL83: 0 | AM83: 0 | AN83: 0 | AO83: 0 | AP83: 0 | AQ83: 0 | AR83: 0 | AS83: 0 | AT83: 0 | AU83: 0 | AV83: 0 | AW83: 0 | AX83: 0 | AY83: 0 | AZ83: 0 | BA83: 0
A84: 0 | B84: 0 | C84: 0 | D84: 0 | E84: 0 | F84: 0 | G84: 0 | H84: 0 | I84: 0 | J84: 0 | K84: 0 | L84: 0 | M84: 0 | N84: 0 | O84: 0 | P84: 0 | Q84: 0 | R84: 0 | S84: 0 | T84: 0 | U84: 0 | V84: 0 | W84: 0 | X84: 0 | Y84: 0 | Z84: 0 | AA84: 0 | AB84: 0 | AC84: 0 | AD84: 0 | AE84: 0 | AF84: 0 | AG84: 0 | AH84: 0 | AI84: 0 | AJ84: 0 | AK84: 0 | AL84: 0 | AM84: 0 | AN84: 0 | AO84: 0 | AP84: 0 | AQ84: 0 | AR84: 0 | AS84: 0 | AT84: 0 | AU84: 0 | AV84: 0 | AW84: 0 | AX84: 0 | AY84: 0 | AZ84: 0 | BA84: 0
A85: ESPECIE | B85: CuentaDeMES CONTROL | C85: PromedioDeANIMALES SECOS | D85: PromedioDeANIMALES EN PREPARTO | E85: PromedioDeANIMALES EN ORDEÑO | F85: ANIMALES TOTALES | G85: SumaDeNº PARTOS | H85: SumaDeNº ABORTOS | I85: SumaDeNº BAJAS ADULTAS | J85: SumaDeNº MAMITIS TRATADAS | K85: PromedioDeNº PARTOS | L85: PARTOS/ANIMAL | M85: %ABORTOS | N85: %BAJAS | O85: %MAMITIS | P85: TOT ANIM | Q85: PARTOS | R85: ABORTOS | S85: BAJAS | T85: MAMITIS | U85: 0 | V85: 0 | W85: 0 | X85: 0 | Y85: 0 | Z85: 0 | AA85: 0 | AB85: 0 | AC85: 0 | AD85: 0 | AE85: 0 | AF85: 0 | AG85: 0 | AH85: 0 | AI85: 0 | AJ85: 0 | AK85: 0 | AL85: 0 | AM85: 0 | AN85: 0 | AO85: 0 | AP85: 0 | AQ85: 0 | AR85: 0 | AS85: 0 | AT85: 0 | AU85: 0 | AV85: 0 | AW85: 0 | AX85: 0 | AY85: 0 | AZ85: 0 | BA85: 0
A86: CAPRINO | B86: 810 | C86: 93.97018634 | D86: 74.55796178 | E86: 404.7153465 | F86: 573.2434947 | G86: 31437 | H86: 1177 | I86: 12677 | J86: 938 | K86: 39.49371859 | L86: 0.8267422614 | M86: 0.03041820308 | N86: 0.3276223963 | O86: 0.02424152463 | P86: 573.2434947 | Q86: 39.49371859 | R86: 1177 | S86: 12677 | T86: 938 | U86: 0 | V86: 0 | W86: 0 | X86: 0 | Y86: 0 | Z86: 0 | AA86: 0 | AB86: 0 | AC86: 0 | AD86: 0 | AE86: 0 | AF86: 0 | AG86: 0 | AH86: 0 | AI86: 0 | AJ86: 0 | AK86: 0 | AL86: 0 | AM86: 0 | AN86: 0 | AO86: 0 | AP86: 0 | AQ86: 0 | AR86: 0 | AS86: 0 | AT86: 0 | AU86: 0 | AV86: 0 | AW86: 0 | AX86: 0 | AY86: 0 | AZ86: 0 | BA86: 0
A87: OVINO | B87: 1227 | C87: 245.3290488 | D87: 169.6054366 | E87: 560.4175554 | F87: 975.3520408 | G87: 122266 | H87: 3442 | I87: 20338 | J87: 1141 | K87: 101.6342477 | L87: 1.250431559 | M87: 0.03451327344 | N87: 0.2039311317 | O87: 0.01144091952 | P87: 975.3520408 | Q87: 101.6342477 | R87: 3442 | S87: 20338 | T87: 1141 | U87: 0 | V87: 0 | W87: 0 | X87: 0 | Y87: 0 | Z87: 0 | AA87: 0 | AB87: 0 | AC87: 0 | AD87: 0 | AE87: 0 | AF87: 0 | AG87: 0 | AH87: 0 | AI87: 0 | AJ87: 0 | AK87: 0 | AL87: 0 | AM87: 0 | AN87: 0 | AO87: 0 | AP87: 0 | AQ87: 0 | AR87: 0 | AS87: 0 | AT87: 0 | AU87: 0 | AV87: 0 | AW87: 0 | AX87: 0 | AY87: 0 | AZ87: 0 | BA87: 0
A88: 0 | B88: 0 | C88: 0 | D88: 0 | E88: 0 | F88: 0 | G88: 0 | H88: 0 | I88: 0 | J88: 0 | K88: 0 | L88: 0 | M88: 0 | N88: 0 | O88: 0 | P88: 0 | Q88: 0 | R88: 0 | S88: 0 | T88: 0 | U88: 0 | V88: 0 | W88: 0 | X88: 0 | Y88: 0 | Z88: 0 | AA88: 0 | AB88: 0 | AC88: 0 | AD88: 0 | AE88: 0 | AF88: 0 | AG88: 0 | AH88: 0 | AI88: 0 | AJ88: 0 | AK88: 0 | AL88: 0 | AM88: 0 | AN88: 0 | AO88: 0 | AP88: 0 | AQ88: 0 | AR88: 0 | AS88: 0 | AT88: 0 | AU88: 0 | AV88: 0 | AW88: 0 | AX88: 0 | AY88: 0 | AZ88: 0 | BA88: 0
A89: 0 | B89: 0 | C89: 0 | D89: 0 | E89: 0 | F89: 0 | G89: 0 | H89: 0 | I89: 0 | J89: 0 | K89: 0 | L89: 0 | M89: 0 | N89: 0 | O89: 0 | P89: 0 | Q89: 0 | R89: 0 | S89: 0 | T89: 0 | U89: 0 | V89: 0 | W89: 0 | X89: 0 | Y89: 0 | Z89: 0 | AA89: 0 | AB89: 0 | AC89: 0 | AD89: 0 | AE89: 0 | AF89: 0 | AG89: 0 | AH89: 0 | AI89: 0 | AJ89: 0 | AK89: 0 | AL89: 0 | AM89: 0 | AN89: 0 | AO89: 0 | AP89: 0 | AQ89: 0 | AR89: 0 | AS89: 0 | AT89: 0 | AU89: 0 | AV89: 0 | AW89: 0 | AX89: 0 | AY89: 0 | AZ89: 0 | BA89: 0
A90: 0 | B90: 0 | C90: 0 | D90: 0 | E90: 0 | F90: 0 | G90: 0 | H90: 0 | I90: 0 | J90: 0 | K90: 0 | L90: 0 | M90: 0 | N90: 0 | O90: 0 | P90: 0 | Q90: 0 | R90: 0 | S90: 0 | T90: 0 | U90: 0 | V90: 0 | W90: 0 | X90: 0 | Y90: 0 | Z90: 0 | AA90: 0 | AB90: 0 | AC90: 0 | AD90: 0 | AE90: 0 | AF90: 0 | AG90: 0 | AH90: 0 | AI90: 0 | AJ90: 0 | AK90: 0 | AL90: 0 | AM90: 0 | AN90: 0 | AO90: 0 | AP90: 0 | AQ90: 0 | AR90: 0 | AS90: 0 | AT90: 0 | AU90: 0 | AV90: 0 | AW90: 0 | AX90: 0 | AY90: 0 | AZ90: 0 | BA90: 0
A91: ESPECIE | B91: MES CONTROL | C91: PromedioDeANIMALES SECOS | D91: PromedioDeANIMALES EN PREPARTO | E91: PromedioDeANIMALES EN ORDEÑO | F91: ANIMALES TOTALES | G91: SumaDeNº PARTOS | H91: SumaDeNº ABORTOS | I91: SumaDeNº BAJAS ADULTAS | J91: SumaDeNº MAMITIS TRATADAS | K91: PromedioDeNº PARTOS | L91: PARTOS/ANIMAL | M91: %ABORTOS SOBRE TOTALES | N91: %BAJAS | O91: %MAMITIS SOBRE TOTALES | P91: TOT ANIM | Q91: PARTOS | R91: ABORTOS | S91: BAJAS | T91: MAMITIS | U91: 0 | V91: 0 | W91: 0 | X91: 0 | Y91: 0 | Z91: 0 | AA91: 0 | AB91: 0 | AC91: 0 | AD91: 0 | AE91: 0 | AF91: 0 | AG91: 0 | AH91: 0 | AI91: 0 | AJ91: 0 | AK91: 0 | AL91: 0 | AM91: 0 | AN91: 0 | AO91: 0 | AP91: 0 | AQ91: 0 | AR91: 0 | AS91: 0 | AT91: 0 | AU91: 0 | AV91: 0 | AW91: 0 | AX91: 0 | AY91: 0 | AZ91: 0 | BA91: 0
A92: CAPRINO | B92: 1 | C92: 153.5 | D92: 101.9 | E92: 313.8 | F92: 569.2 | G92: 340 | H92: 33 | I92: 132 | J92: 72 | K92: 30.90909091 | L92: 0.05430268958 | M92: 0.05797610682 | N92: 0.2319044273 | O92: 0.126493324 | P92: 569.2 | Q92: 30.90909091 | R92: 33 | S92: 132 | T92: 72 | U92: 0 | V92: 0 | W92: 0 | X92: 0 | Y92: 0 | Z92: 0 | AA92: 0 | AB92: 0 | AC92: 0 | AD92: 0 | AE92: 0 | AF92: 0 | AG92: 0 | AH92: 0 | AI92: 0 | AJ92: 0 | AK92: 0 | AL92: 0 | AM92: 0 | AN92: 0 | AO92: 0 | AP92: 0 | AQ92: 0 | AR92: 0 | AS92: 0 | AT92: 0 | AU92: 0 | AV92: 0 | AW92: 0 | AX92: 0 | AY92: 0 | AZ92: 0 | BA92: 0
A93: CAPRINO | B93: 2 | C93: 12.71428571 | D93: 93.14285714 | E93: 315.2857143 | F93: 421.1428571 | G93: 288 | H93: 16 | I93: 72 | J93: 13 | K93: 36 | L93: 0.0854816825 | M93: 0.03799185889 | N93: 0.170963365 | O93: 0.03086838535 | P93: 421.1428571 | Q93: 36 | R93: 16 | S93: 72 | T93: 13 | U93: 0 | V93: 0 | W93: 0 | X93: 0 | Y93: 0 | Z93: 0 | AA93: 0 | AB93: 0 | AC93: 0 | AD93: 0 | AE93: 0 | AF93: 0 | AG93: 0 | AH93: 0 | AI93: 0 | AJ93: 0 | AK93: 0 | AL93: 0 | AM93: 0 | AN93: 0 | AO93: 0 | AP93: 0 | AQ93: 0 | AR93: 0 | AS93: 0 | AT93: 0 | AU93: 0 | AV93: 0 | AW93: 0 | AX93: 0 | AY93: 0 | AZ93: 0 | BA93: 0
A94: CAPRINO | B94: 3 | C94: 16.5 | D94: 10.875 | E94: 372.75 | F94: 400.125 | G94: 574 | H94: 8 | I94: 71 | J94: 11 | K94: 71.75 | L94: 0.1793189628 | M94: 0.01999375195 | N94: 0.1774445486 | O94: 0.02749140893 | P94: 400.125 | Q94: 71.75 | R94: 8 | S94: 71 | T94: 11 | U94: 0 | V94: 0 | W94: 0 | X94: 0 | Y94: 0 | Z94: 0 | AA94: 0 | AB94: 0 | AC94: 0 | AD94: 0 | AE94: 0 | AF94: 0 | AG94: 0 | AH94: 0 | AI94: 0 | AJ94: 0 | AK94: 0 | AL94: 0 | AM94: 0 | AN94: 0 | AO94: 0 | AP94: 0 | AQ94: 0 | AR94: 0 | AS94: 0 | AT94: 0 | AU94: 0 | AV94: 0 | AW94: 0 | AX94: 0 | AY94: 0 | AZ94: 0 | BA94: 0
A95: CAPRINO | B95: 4 | C95: 11.33333333 | D95: 14.5 | E95: 367.1666667 | F95: 393 | G95: 19 | H95: 0 | I95: 31 | J95: 4 | K95: 3.166666667 | L95: 0.008057675997 | M95: 0 | N95: 0.07888040712 | O95: 0.01017811705 | P95: 393 | Q95: 3.166666667 | R95: 0 | S95: 31 | T95: 4 | U95: 0 | V95: 0 | W95: 0 | X95: 0 | Y95: 0 | Z95: 0 | AA95: 0 | AB95: 0 | AC95: 0 | AD95: 0 | AE95: 0 | AF95: 0 | AG95: 0 | AH95: 0 | AI95: 0 | AJ95: 0 | AK95: 0 | AL95: 0 | AM95: 0 | AN95: 0 | AO95: 0 | AP95: 0 | AQ95: 0 | AR95: 0 | AS95: 0 | AT95: 0 | AU95: 0 | AV95: 0 | AW95: 0 | AX95: 0 | AY95: 0 | AZ95: 0 | BA95: 0
A96: CAPRINO | B96: 5 | C96: 71 | D96: 55.14285714 | E96: 375.4285714 | F96: 501.5714286 | G96: 80 | H96: 6 | I96: 27 | J96: 3 | K96: 11.42857143 | L96: 0.02278553119 | M96: 0.01196240387 | N96: 0.05383081743 | O96: 0.005981201937 | P96: 501.5714286 | Q96: 11.42857143 | R96: 6 | S96: 27 | T96: 3 | U96: 0 | V96: 0 | W96: 0 | X96: 0 | Y96: 0 | Z96: 0 | AA96: 0 | AB96: 0 | AC96: 0 | AD96: 0 | AE96: 0 | AF96: 0 | AG96: 0 | AH96: 0 | AI96: 0 | AJ96: 0 | AK96: 0 | AL96: 0 | AM96: 0 | AN96: 0 | AO96: 0 | AP96: 0 | AQ96: 0 | AR96: 0 | AS96: 0 | AT96: 0 | AU96: 0 | AV96: 0 | AW96: 0 | AX96: 0 | AY96: 0 | AZ96: 0 | BA96: 0
A97: CAPRINO | B97: 6 | C97: 47 | D97: 17 | E97: 421.4285714 | F97: 485.4285714 | G97: 80 | H97: 1 | I97: 18 | J97: 5 | K97: 11.42857143 | L97: 0.02354326074 | M97: 0.002060035315 | N97: 0.03708063567 | O97: 0.01030017657 | P97: 485.4285714 | Q97: 11.42857143 | R97: 1 | S97: 18 | T97: 5 | U97: 0 | V97: 0 | W97: 0 | X97: 0 | Y97: 0 | Z97: 0 | AA97: 0 | AB97: 0 | AC97: 0 | AD97: 0 | AE97: 0 | AF97: 0 | AG97: 0 | AH97: 0 | AI97: 0 | AJ97: 0 | AK97: 0 | AL97: 0 | AM97: 0 | AN97: 0 | AO97: 0 | AP97: 0 | AQ97: 0 | AR97: 0 | AS97: 0 | AT97: 0 | AU97: 0 | AV97: 0 | AW97: 0 | AX97: 0 | AY97: 0 | AZ97: 0 | BA97: 0
A98: CAPRINO | B98: 7 | C98: 34.5 | D98: 21.66666667 | E98: 470.8333333 | F98: 527 | G98: 84 | H98: 3 | I98: 15 | J98: 4 | K98: 14 | L98: 0.0265654649 | M98: 0.00569259962 | N98: 0.0284629981 | O98: 0.007590132827 | P98: 527 | Q98: 14 | R98: 3 | S98: 15 | T98: 4 | U98: 0 | V98: 0 | W98: 0 | X98: 0 | Y98: 0 | Z98: 0 | AA98: 0 | AB98: 0 | AC98: 0 | AD98: 0 | AE98: 0 | AF98: 0 | AG98: 0 | AH98: 0 | AI98: 0 | AJ98: 0 | AK98: 0 | AL98: 0 | AM98: 0 | AN98: 0 | AO98: 0 | AP98: 0 | AQ98: 0 | AR98: 0 | AS98: 0 | AT98: 0 | AU98: 0 | AV98: 0 | AW98: 0 | AX98: 0 | AY98: 0 | AZ98: 0 | BA98: 0
A99: CAPRINO | B99: 8 | C99: 52.8 | D99: 20.2 | E99: 396.4 | F99: 469.4 | G99: 162 | H99: 7 | I99: 19 | J99: 11 | K99: 32.4 | L99: 0.06902428632 | M99: 0.01491265445 | N99: 0.04047720494 | O99: 0.02343417128 | P99: 469.4 | Q99: 32.4 | R99: 7 | S99: 19 | T99: 11 | U99: 0 | V99: 0 | W99: 0 | X99: 0 | Y99: 0 | Z99: 0 | AA99: 0 | AB99: 0 | AC99: 0 | AD99: 0 | AE99: 0 | AF99: 0 | AG99: 0 | AH99: 0 | AI99: 0 | AJ99: 0 | AK99: 0 | AL99: 0 | AM99: 0 | AN99: 0 | AO99: 0 | AP99: 0 | AQ99: 0 | AR99: 0 | AS99: 0 | AT99: 0 | AU99: 0 | AV99: 0 | AW99: 0 | AX99: 0 | AY99: 0 | AZ99: 0 | BA99: 0
A100: CAPRINO | B100: 9 | C100: 23.2 | D100: 50.8 | E100: 397.4 | F100: 471.4 | G100: 2 | H100: 2 | I100: 9 | J100: 4 | K100: 0.4 | L100: 0.0008485362749 | M100: 0.004242681375 | N100: 0.01909206619 | O100: 0.008485362749 | P100: 471.4 | Q100: 0.4 | R100: 2 | S100: 9 | T100: 4 | U100: 0 | V100: 0 | W100: 0 | X100: 0 | Y100: 0 | Z100: 0 | AA100: 0 | AB100: 0 | AC100: 0 | AD100: 0 | AE100: 0 | AF100: 0 | AG100: 0 | AH100: 0 | AI100: 0 | AJ100: 0 | AK100: 0 | AL100: 0 | AM100: 0 | AN100: 0 | AO100: 0 | AP100: 0 | AQ100: 0 | AR100: 0 | AS100: 0 | AT100: 0 | AU100: 0 | AV100: 0 | AW100: 0 | AX100: 0 | AY100: 0 | AZ100: 0 | BA100: 0
A101: CAPRINO | B101: 10 | C101: 135.2857143 | D101: 143.5714286 | E101: 271.2857143 | F101: 550.1428571 | G101: 286 | H101: 8 | I101: 36 | J101: 11 | K101: 40.85714286 | L101: 0.07426642431 | M101: 0.01454167749 | N101: 0.06543754869 | O101: 0.01999480654 | P101: 550.1428571 | Q101: 40.85714286 | R101: 8 | S101: 36 | T101: 11 | U101: 0 | V101: 0 | W101: 0 | X101: 0 | Y101: 0 | Z101: 0 | AA101: 0 | AB101: 0 | AC101: 0 | AD101: 0 | AE101: 0 | AF101: 0 | AG101: 0 | AH101: 0 | AI101: 0 | AJ101: 0 | AK101: 0 | AL101: 0 | AM101: 0 | AN101: 0 | AO101: 0 | AP101: 0 | AQ101: 0 | AR101: 0 | AS101: 0 | AT101: 0 | AU101: 0 | AV101: 0 | AW101: 0 | AX101: 0 | AY101: 0 | AZ101: 0 | BA101: 0
A102: CAPRINO | B102: 11 | C102: 137.1428571 | D102: 68.57142857 | E102: 312.5714286 | F102: 518.2857143 | G102: 972 | H102: 21 | I102: 44 | J102: 14 | K102: 138.8571429 | L102: 0.2679162073 | M102: 0.04051819184 | N102: 0.0848952591 | O102: 0.02701212789 | P102: 518.2857143 | Q102: 138.8571429 | R102: 21 | S102: 44 | T102: 14 | U102: 0 | V102: 0 | W102: 0 | X102: 0 | Y102: 0 | Z102: 0 | AA102: 0 | AB102: 0 | AC102: 0 | AD102: 0 | AE102: 0 | AF102: 0 | AG102: 0 | AH102: 0 | AI102: 0 | AJ102: 0 | AK102: 0 | AL102: 0 | AM102: 0 | AN102: 0 | AO102: 0 | AP102: 0 | AQ102: 0 | AR102: 0 | AS102: 0 | AT102: 0 | AU102: 0 | AV102: 0 | AW102: 0 | AX102: 0 | AY102: 0 | AZ102: 0 | BA102: 0
A103: CAPRINO | B103: 12 | C103: 201.25 | D103: 21.25 | E103: 335 | F103: 557.5 | G103: 6 | H103: 3 | I103: 20 | J103: 8 | K103: 1.5 | L103: 0.00269058296 | M103: 0.005381165919 | N103: 0.03587443946 | O103: 0.01434977578 | P103: 557.5 | Q103: 1.5 | R103: 3 | S103: 20 | T103: 8 | U103: 0 | V103: 0 | W103: 0 | X103: 0 | Y103: 0 | Z103: 0 | AA103: 0 | AB103: 0 | AC103: 0 | AD103: 0 | AE103: 0 | AF103: 0 | AG103: 0 | AH103: 0 | AI103: 0 | AJ103: 0 | AK103: 0 | AL103: 0 | AM103: 0 | AN103: 0 | AO103: 0 | AP103: 0 | AQ103: 0 | AR103: 0 | AS103: 0 | AT103: 0 | AU103: 0 | AV103: 0 | AW103: 0 | AX103: 0 | AY103: 0 | AZ103: 0 | BA103: 0
A104: OVINO | B104: 1 | C104: 276.3333333 | D104: 326.6666667 | E104: 416.7142857 | F104: 1019.714286 | G104: 193 | H104: 3 | I104: 14 | J104: 6 | K104: 32.16666667 | L104: 0.03154478379 | M104: 0.00294200056 | N104: 0.01372933595 | O104: 0.005884001121 | P104: 1019.714286 | Q104: 32.16666667 | R104: 3 | S104: 14 | T104: 6 | U104: 0 | V104: 0 | W104: 0 | X104: 0 | Y104: 0 | Z104: 0 | AA104: 0 | AB104: 0 | AC104: 0 | AD104: 0 | AE104: 0 | AF104: 0 | AG104: 0 | AH104: 0 | AI104: 0 | AJ104: 0 | AK104: 0 | AL104: 0 | AM104: 0 | AN104: 0 | AO104: 0 | AP104: 0 | AQ104: 0 | AR104: 0 | AS104: 0 | AT104: 0 | AU104: 0 | AV104: 0 | AW104: 0 | AX104: 0 | AY104: 0 | AZ104: 0 | BA104: 0
A105: OVINO | B105: 2 | C105: 274.5 | D105: 313.3333333 | E105: 418.8571429 | F105: 1006.690476 | G105: 1408 | H105: 30 | I105: 44 | J105: 2 | K105: 234.6666667 | L105: 0.2331070694 | M105: 0.02980061966 | N105: 0.04370757551 | O105: 0.001986707978 | P105: 1006.690476 | Q105: 234.6666667 | R105: 30 | S105: 44 | T105: 2 | U105: 0 | V105: 0 | W105: 0 | X105: 0 | Y105: 0 | Z105: 0 | AA105: 0 | AB105: 0 | AC105: 0 | AD105: 0 | AE105: 0 | AF105: 0 | AG105: 0 | AH105: 0 | AI105: 0 | AJ105: 0 | AK105: 0 | AL105: 0 | AM105: 0 | AN105: 0 | AO105: 0 | AP105: 0 | AQ105: 0 | AR105: 0 | AS105: 0 | AT105: 0 | AU105: 0 | AV105: 0 | AW105: 0 | AX105: 0 | AY105: 0 | AZ105: 0 | BA105: 0
A106: OVINO | B106: 3 | C106: 231.5 | D106: 178.3333333 | E106: 609.8571429 | F106: 1019.690476 | G106: 989 | H106: 11 | I106: 70 | J106: 6 | K106: 164.8333333 | L106: 0.1616503608 | M106: 0.01078758727 | N106: 0.06864828263 | O106: 0.005884138511 | P106: 1019.690476 | Q106: 164.8333333 | R106: 11 | S106: 70 | T106: 6 | U106: 0 | V106: 0 | W106: 0 | X106: 0 | Y106: 0 | Z106: 0 | AA106: 0 | AB106: 0 | AC106: 0 | AD106: 0 | AE106: 0 | AF106: 0 | AG106: 0 | AH106: 0 | AI106: 0 | AJ106: 0 | AK106: 0 | AL106: 0 | AM106: 0 | AN106: 0 | AO106: 0 | AP106: 0 | AQ106: 0 | AR106: 0 | AS106: 0 | AT106: 0 | AU106: 0 | AV106: 0 | AW106: 0 | AX106: 0 | AY106: 0 | AZ106: 0 | BA106: 0
A107: OVINO | B107: 4 | C107: 228.6666667 | D107: 132.8333333 | E107: 613.2857143 | F107: 974.7857143 | G107: 619 | H107: 3 | I107: 71 | J107: 2 | K107: 103.1666667 | L107: 0.1058352263 | M107: 0.003077599472 | N107: 0.07283652085 | O107: 0.002051732982 | P107: 974.7857143 | Q107: 103.1666667 | R107: 3 | S107: 71 | T107: 2 | U107: 0 | V107: 0 | W107: 0 | X107: 0 | Y107: 0 | Z107: 0 | AA107: 0 | AB107: 0 | AC107: 0 | AD107: 0 | AE107: 0 | AF107: 0 | AG107: 0 | AH107: 0 | AI107: 0 | AJ107: 0 | AK107: 0 | AL107: 0 | AM107: 0 | AN107: 0 | AO107: 0 | AP107: 0 | AQ107: 0 | AR107: 0 | AS107: 0 | AT107: 0 | AU107: 0 | AV107: 0 | AW107: 0 | AX107: 0 | AY107: 0 | AZ107: 0 | BA107: 0
A108: OVINO | B108: 5 | C108: 178.5 | D108: 106.8333333 | E108: 671.5714286 | F108: 956.9047619 | G108: 305 | H108: 3 | I108: 63 | J108: 2 | K108: 50.83333333 | L108: 0.05312266733 | M108: 0.003135108236 | N108: 0.06583727295 | O108: 0.002090072157 | P108: 956.9047619 | Q108: 50.83333333 | R108: 3 | S108: 63 | T108: 2 | U108: 0 | V108: 0 | W108: 0 | X108: 0 | Y108: 0 | Z108: 0 | AA108: 0 | AB108: 0 | AC108: 0 | AD108: 0 | AE108: 0 | AF108: 0 | AG108: 0 | AH108: 0 | AI108: 0 | AJ108: 0 | AK108: 0 | AL108: 0 | AM108: 0 | AN108: 0 | AO108: 0 | AP108: 0 | AQ108: 0 | AR108: 0 | AS108: 0 | AT108: 0 | AU108: 0 | AV108: 0 | AW108: 0 | AX108: 0 | AY108: 0 | AZ108: 0 | BA108: 0
A109: OVINO | B109: 6 | C109: 208.3333333 | D109: 130.6666667 | E109: 603.2857143 | F109: 942.2857143 | G109: 11 | H109: 2 | I109: 68 | J109: 0 | K109: 1.833333333 | L109: 0.00194562361 | M109: 0.002122498484 | N109: 0.07216494845 | O109: 0 | P109: 942.2857143 | Q109: 1.833333333 | R109: 2 | S109: 68 | T109: 0 | U109: 0 | V109: 0 | W109: 0 | X109: 0 | Y109: 0 | Z109: 0 | AA109: 0 | AB109: 0 | AC109: 0 | AD109: 0 | AE109: 0 | AF109: 0 | AG109: 0 | AH109: 0 | AI109: 0 | AJ109: 0 | AK109: 0 | AL109: 0 | AM109: 0 | AN109: 0 | AO109: 0 | AP109: 0 | AQ109: 0 | AR109: 0 | AS109: 0 | AT109: 0 | AU109: 0 | AV109: 0 | AW109: 0 | AX109: 0 | AY109: 0 | AZ109: 0 | BA109: 0
A110: OVINO | B110: 7 | C110: 170.8333333 | D110: 183.1666667 | E110: 586.5714286 | F110: 940.5714286 | G110: 664 | H110: 7 | I110: 46 | J110: 1 | K110: 110.6666667 | L110: 0.1176589712 | M110: 0.007442284326 | N110: 0.04890643985 | O110: 0.001063183475 | P110: 940.5714286 | Q110: 110.6666667 | R110: 7 | S110: 46 | T110: 1 | U110: 0 | V110: 0 | W110: 0 | X110: 0 | Y110: 0 | Z110: 0 | AA110: 0 | AB110: 0 | AC110: 0 | AD110: 0 | AE110: 0 | AF110: 0 | AG110: 0 | AH110: 0 | AI110: 0 | AJ110: 0 | AK110: 0 | AL110: 0 | AM110: 0 | AN110: 0 | AO110: 0 | AP110: 0 | AQ110: 0 | AR110: 0 | AS110: 0 | AT110: 0 | AU110: 0 | AV110: 0 | AW110: 0 | AX110: 0 | AY110: 0 | AZ110: 0 | BA110: 0
A111: OVINO | B111: 8 | C111: 222.1428571 | D111: 98 | E111: 586.2857143 | F111: 906.4285714 | G111: 367 | H111: 1 | I111: 69 | J111: 3 | K111: 61.16666667 | L111: 0.06748095613 | M111: 0.00110323089 | N111: 0.07612293144 | O111: 0.003309692671 | P111: 906.4285714 | Q111: 61.16666667 | R111: 1 | S111: 69 | T111: 3 | U111: 0 | V111: 0 | W111: 0 | X111: 0 | Y111: 0 | Z111: 0 | AA111: 0 | AB111: 0 | AC111: 0 | AD111: 0 | AE111: 0 | AF111: 0 | AG111: 0 | AH111: 0 | AI111: 0 | AJ111: 0 | AK111: 0 | AL111: 0 | AM111: 0 | AN111: 0 | AO111: 0 | AP111: 0 | AQ111: 0 | AR111: 0 | AS111: 0 | AT111: 0 | AU111: 0 | AV111: 0 | AW111: 0 | AX111: 0 | AY111: 0 | AZ111: 0 | BA111: 0
A112: OVINO | B112: 9 | C112: 267.4444444 | D112: 66.88888889 | E112: 542.6666667 | F112: 877 | G112: 498 | H112: 9 | I112: 77 | J112: 3 | K112: 62.25 | L112: 0.07098061574 | M112: 0.0102622577 | N112: 0.08779931585 | O112: 0.003420752566 | P112: 877 | Q112: 62.25 | R112: 9 | S112: 77 | T112: 3 | U112: 0 | V112: 0 | W112: 0 | X112: 0 | Y112: 0 | Z112: 0 | AA112: 0 | AB112: 0 | AC112: 0 | AD112: 0 | AE112: 0 | AF112: 0 | AG112: 0 | AH112: 0 | AI112: 0 | AJ112: 0 | AK112: 0 | AL112: 0 | AM112: 0 | AN112: 0 | AO112: 0 | AP112: 0 | AQ112: 0 | AR112: 0 | AS112: 0 | AT112: 0 | AU112: 0 | AV112: 0 | AW112: 0 | AX112: 0 | AY112: 0 | AZ112: 0 | BA112: 0
A113: OVINO | B113: 10 | C113: 152.6666667 | D113: 188.3333333 | E113: 439.3333333 | F113: 780.3333333 | G113: 165 | H113: 1 | I113: 63 | J113: 2 | K113: 20.625 | L113: 0.02643101239 | M113: 0.001281503631 | N113: 0.08073472875 | O113: 0.002563007262 | P113: 780.3333333 | Q113: 20.625 | R113: 1 | S113: 63 | T113: 2 | U113: 0 | V113: 0 | W113: 0 | X113: 0 | Y113: 0 | Z113: 0 | AA113: 0 | AB113: 0 | AC113: 0 | AD113: 0 | AE113: 0 | AF113: 0 | AG113: 0 | AH113: 0 | AI113: 0 | AJ113: 0 | AK113: 0 | AL113: 0 | AM113: 0 | AN113: 0 | AO113: 0 | AP113: 0 | AQ113: 0 | AR113: 0 | AS113: 0 | AT113: 0 | AU113: 0 | AV113: 0 | AW113: 0 | AX113: 0 | AY113: 0 | AZ113: 0 | BA113: 0
A114: OVINO | B114: 11 | C114: 226.6666667 | D114: 165.3333333 | E114: 391 | F114: 783 | G114: 694 | H114: 11 | I114: 41 | J114: 2 | K114: 86.75 | L114: 0.1107918263 | M114: 0.01404853129 | N114: 0.05236270754 | O114: 0.002554278416 | P114: 783 | Q114: 86.75 | R114: 11 | S114: 41 | T114: 2 | U114: 0 | V114: 0 | W114: 0 | X114: 0 | Y114: 0 | Z114: 0 | AA114: 0 | AB114: 0 | AC114: 0 | AD114: 0 | AE114: 0 | AF114: 0 | AG114: 0 | AH114: 0 | AI114: 0 | AJ114: 0 | AK114: 0 | AL114: 0 | AM114: 0 | AN114: 0 | AO114: 0 | AP114: 0 | AQ114: 0 | AR114: 0 | AS114: 0 | AT114: 0 | AU114: 0 | AV114: 0 | AW114: 0 | AX114: 0 | AY114: 0 | AZ114: 0 | BA114: 0
A115: OVINO | B115: 12 | C115: 268.4444444 | D115: 97.77777778 | E115: 402.6666667 | F115: 768.8888889 | G115: 826 | H115: 8 | I115: 104 | J115: 9 | K115: 103.25 | L115: 0.1342846821 | M115: 0.01040462428 | N115: 0.1352601156 | O115: 0.01170520231 | P115: 768.8888889 | Q115: 103.25 | R115: 8 | S115: 104 | T115: 9 | U115: 0 | V115: 0 | W115: 0 | X115: 0 | Y115: 0 | Z115: 0 | AA115: 0 | AB115: 0 | AC115: 0 | AD115: 0 | AE115: 0 | AF115: 0 | AG115: 0 | AH115: 0 | AI115: 0 | AJ115: 0 | AK115: 0 | AL115: 0 | AM115: 0 | AN115: 0 | AO115: 0 | AP115: 0 | AQ115: 0 | AR115: 0 | AS115: 0 | AT115: 0 | AU115: 0 | AV115: 0 | AW115: 0 | AX115: 0 | AY115: 0 | AZ115: 0 | BA115: 0
A116: 0 | B116: 0 | C116: 0 | D116: 0 | E116: 0 | F116: 0 | G116: 0 | H116: 0 | I116: 0 | J116: 0 | K116: 0 | L116: 0 | M116: 0 | N116: 0 | O116: 0 | P116: 0 | Q116: 0 | R116: 0 | S116: 0 | T116: 0 | U116: 0 | V116: 0 | W116: 0 | X116: 0 | Y116: 0 | Z116: 0 | AA116: 0 | AB116: 0 | AC116: 0 | AD116: 0 | AE116: 0 | AF116: 0 | AG116: 0 | AH116: 0 | AI116: 0 | AJ116: 0 | AK116: 0 | AL116: 0 | AM116: 0 | AN116: 0 | AO116: 0 | AP116: 0 | AQ116: 0 | AR116: 0 | AS116: 0 | AT116: 0 | AU116: 0 | AV116: 0 | AW116: 0 | AX116: 0 | AY116: 0 | AZ116: 0 | BA116: 0
A117: 0 | B117: 0 | C117: 0 | D117: 0 | E117: 0 | F117: 0 | G117: 0 | H117: 0 | I117: 0 | J117: 0 | K117: 0 | L117: 0 | M117: 0 | N117: 0 | O117: 0 | P117: 0 | Q117: 0 | R117: 0 | S117: 0 | T117: 0 | U117: 0 | V117: 0 | W117: 0 | X117: 0 | Y117: 0 | Z117: 0 | AA117: 0 | AB117: 0 | AC117: 0 | AD117: 0 | AE117: 0 | AF117: 0 | AG117: 0 | AH117: 0 | AI117: 0 | AJ117: 0 | AK117: 0 | AL117: 0 | AM117: 0 | AN117: 0 | AO117: 0 | AP117: 0 | AQ117: 0 | AR117: 0 | AS117: 0 | AT117: 0 | AU117: 0 | AV117: 0 | AW117: 0 | AX117: 0 | AY117: 0 | AZ117: 0 | BA117: 0
A118: COND CORP | B118: ESPECIE | C118: TIPO EXPLOTACION | D118: PromedioDeTEMPERATURA | E118: PromedioDeCORRIENTES AIRE | F118: PromedioDeVENTILACION | G118: PromedioDeAMBIENTE CARGADO | H118: PromedioDeDENSIDAD ANIMALES | I118: PromedioDeCALIDAD CAMA | J118: PromedioDeCONFORT ANIMALES | K118: PromedioDeANIMALES ESTRESADOS | L118: PromedioDeCOMEDEROS PIENSO | M118: PromedioDeCOMEDEROS PAJA | N118: PromedioDeBEBEDEROS | O118: PromedioDeCONSISTENCIA HECES | P118: PromedioDeESTADO CORPORAL | Q118: PromedioDeLIMPIEZA ANIMALES | R118: CuentaDeNº VISITA | S118: PromedioDeESTADO PEZUÑAS | T118: 0 | U118: 0 | V118: 0 | W118: 0 | X118: 0 | Y118: 0 | Z118: 0 | AA118: 0 | AB118: 0 | AC118: 0 | AD118: 0 | AE118: 0 | AF118: 0 | AG118: 0 | AH118: 0 | AI118: 0 | AJ118: 0 | AK118: 0 | AL118: 0 | AM118: 0 | AN118: 0 | AO118: 0 | AP118: 0 | AQ118: 0 | AR118: 0 | AS118: 0 | AT118: 0 | AU118: 0 | AV118: 0 | AW118: 0 | AX118: 0 | AY118: 0 | AZ118: 0 | BA118: 0
A119: 2.928181818 | B119: CAPRINO | C119: ORDEÑO | D119: 6.145454545 | E119: 6.245454545 | F119: 5.445454545 | G119: 5.472727273 | H119: 6.181818182 | I119: 5.972727273 | J119: 5.890909091 | K119: 5.763636364 | L119: 5.936363636 | M119: 6.272727273 | N119: 5.7 | O119: 3.372727273 | P119: 292.8181818 | Q119: 6.854545455 | R119: 110 | S119: 5.870967742 | T119: 0 | U119: 0 | V119: 0 | W119: 0 | X119: 0 | Y119: 0 | Z119: 0 | AA119: 0 | AB119: 0 | AC119: 0 | AD119: 0 | AE119: 0 | AF119: 0 | AG119: 0 | AH119: 0 | AI119: 0 | AJ119: 0 | AK119: 0 | AL119: 0 | AM119: 0 | AN119: 0 | AO119: 0 | AP119: 0 | AQ119: 0 | AR119: 0 | AS119: 0 | AT119: 0 | AU119: 0 | AV119: 0 | AW119: 0 | AX119: 0 | AY119: 0 | AZ119: 0 | BA119: 0
A120: 3.1 | B120: OVINO | C120: ORDEÑO | D120: 6.128 | E120: 6.28 | F120: 5.848 | G120: 5.712 | H120: 6.088 | I120: 5.904 | J120: 5.928 | K120: 5.656 | L120: 5.992 | M120: 6.008 | N120: 5.512 | O120: 3.44 | P120: 310 | Q120: 6.16 | R120: 125 | S120: 5.628571429 | T120: 0 | U120: 0 | V120: 0 | W120: 0 | X120: 0 | Y120: 0 | Z120: 0 | AA120: 0 | AB120: 0 | AC120: 0 | AD120: 0 | AE120: 0 | AF120: 0 | AG120: 0 | AH120: 0 | AI120: 0 | AJ120: 0 | AK120: 0 | AL120: 0 | AM120: 0 | AN120: 0 | AO120: 0 | AP120: 0 | AQ120: 0 | AR120: 0 | AS120: 0 | AT120: 0 | AU120: 0 | AV120: 0 | AW120: 0 | AX120: 0 | AY120: 0 | AZ120: 0 | BA120: 0
A121: 0 | B121: 0 | C121: 0 | D121: 0 | E121: 0 | F121: 0 | G121: 0 | H121: 0 | I121: 0 | J121: 0 | K121: 0 | L121: 0 | M121: 0 | N121: 0 | O121: 0 | P121: 0 | Q121: 0 | R121: 0 | S121: 0 | T121: 0 | U121: 0 | V121: 0 | W121: 0 | X121: 0 | Y121: 0 | Z121: 0 | AA121: 0 | AB121: 0 | AC121: 0 | AD121: 0 | AE121: 0 | AF121: 0 | AG121: 0 | AH121: 0 | AI121: 0 | AJ121: 0 | AK121: 0 | AL121: 0 | AM121: 0 | AN121: 0 | AO121: 0 | AP121: 0 | AQ121: 0 | AR121: 0 | AS121: 0 | AT121: 0 | AU121: 0 | AV121: 0 | AW121: 0 | AX121: 0 | AY121: 0 | AZ121: 0 | BA121: 0
A122: 0 | B122: 0 | C122: 0 | D122: 0 | E122: 0 | F122: 0 | G122: 0 | H122: 0 | I122: 0 | J122: 0 | K122: 0 | L122: 0 | M122: 0 | N122: 0 | O122: 0 | P122: 0 | Q122: 0 | R122: 0 | S122: 0 | T122: 0 | U122: 0 | V122: 0 | W122: 0 | X122: 0 | Y122: 0 | Z122: 0 | AA122: 0 | AB122: 0 | AC122: 0 | AD122: 0 | AE122: 0 | AF122: 0 | AG122: 0 | AH122: 0 | AI122: 0 | AJ122: 0 | AK122: 0 | AL122: 0 | AM122: 0 | AN122: 0 | AO122: 0 | AP122: 0 | AQ122: 0 | AR122: 0 | AS122: 0 | AT122: 0 | AU122: 0 | AV122: 0 | AW122: 0 | AX122: 0 | AY122: 0 | AZ122: 0 | BA122: 0
A123: COND CORP | B123: ESPECIE | C123: TIPO EXPLOTACION | D123: DesvEstDeTEMPERATURA | E123: DesvEstDeCORRIENTES AIRE | F123: DesvEstDeVENTILACION | G123: DesvEstDeAMBIENTE CARGADO | H123: DesvEstDeDENSIDAD ANIMALES | I123: DesvEstDeCALIDAD CAMA | J123: DesvEstDeCONFORT ANIMALES | K123: DesvEstDeANIMALES ESTRESADOS | L123: DesvEstDeCOMEDEROS PIENSO | M123: DesvEstDeCOMEDEROS PAJA | N123: DesvEstDeBEBEDEROS | O123: DesvEstDeCONSISTENCIA HECES | P123: DesvEstDeESTADO CORPORAL | Q123: DesvEstDeLIMPIEZA ANIMALES | R123: DesvEstDeESTADO PEZUÑAS | S123: 0 | T123: 0 | U123: 0 | V123: 0 | W123: 0 | X123: 0 | Y123: 0 | Z123: 0 | AA123: 0 | AB123: 0 | AC123: 0 | AD123: 0 | AE123: 0 | AF123: 0 | AG123: 0 | AH123: 0 | AI123: 0 | AJ123: 0 | AK123: 0 | AL123: 0 | AM123: 0 | AN123: 0 | AO123: 0 | AP123: 0 | AQ123: 0 | AR123: 0 | AS123: 0 | AT123: 0 | AU123: 0 | AV123: 0 | AW123: 0 | AX123: 0 | AY123: 0 | AZ123: 0 | BA123: 0
A124: 0.3682046245 | B124: CAPRINO | C124: ORDEÑO | D124: 0.9752568576 | E124: 0.7684890888 | F124: 1.018961187 | G124: 1.001916429 | H124: 0.9304415267 | I124: 1.10427934 | J124: 0.8918124473 | K124: 0.8342141578 | L124: 1.025162979 | M124: 0.8873121035 | N124: 1.071310609 | O124: 0.6476363646 | P124: 36.82046245 | Q124: 0.6032992417 | R124: 1.175923339 | S124: 0 | T124: 0 | U124: 0 | V124: 0 | W124: 0 | X124: 0 | Y124: 0 | Z124: 0 | AA124: 0 | AB124: 0 | AC124: 0 | AD124: 0 | AE124: 0 | AF124: 0 | AG124: 0 | AH124: 0 | AI124: 0 | AJ124: 0 | AK124: 0 | AL124: 0 | AM124: 0 | AN124: 0 | AO124: 0 | AP124: 0 | AQ124: 0 | AR124: 0 | AS124: 0 | AT124: 0 | AU124: 0 | AV124: 0 | AW124: 0 | AX124: 0 | AY124: 0 | AZ124: 0 | BA124: 0
A125: 0.3345073412 | B125: OVINO | C125: ORDEÑO | D125: 0.9586280519 | E125: 0.7787500324 | F125: 0.8803958054 | G125: 0.9488193002 | H125: 1.070242662 | I125: 1.065772475 | J125: 0.8814943324 | K125: 0.9341547844 | L125: 0.9288911183 | M125: 1.011992605 | N125: 1.036557578 | O125: 0.6273343503 | P125: 33.45073412 | Q125: 1.00322062 | R125: 1.352246808 | S125: 0 | T125: 0 | U125: 0 | V125: 0 | W125: 0 | X125: 0 | Y125: 0 | Z125: 0 | AA125: 0 | AB125: 0 | AC125: 0 | AD125: 0 | AE125: 0 | AF125: 0 | AG125: 0 | AH125: 0 | AI125: 0 | AJ125: 0 | AK125: 0 | AL125: 0 | AM125: 0 | AN125: 0 | AO125: 0 | AP125: 0 | AQ125: 0 | AR125: 0 | AS125: 0 | AT125: 0 | AU125: 0 | AV125: 0 | AW125: 0 | AX125: 0 | AY125: 0 | AZ125: 0 | BA125: 0
A126: 0 | B126: 0 | C126: 0 | D126: 0 | E126: 0 | F126: 0 | G126: 0 | H126: 0 | I126: 0 | J126: 0 | K126: 0 | L126: 0 | M126: 0 | N126: 0 | O126: 0 | P126: 0 | Q126: 0 | R126: 0 | S126: 0 | T126: 0 | U126: 0 | V126: 0 | W126: 0 | X126: 0 | Y126: 0 | Z126: 0 | AA126: 0 | AB126: 0 | AC126: 0 | AD126: 0 | AE126: 0 | AF126: 0 | AG126: 0 | AH126: 0 | AI126: 0 | AJ126: 0 | AK126: 0 | AL126: 0 | AM126: 0 | AN126: 0 | AO126: 0 | AP126: 0 | AQ126: 0 | AR126: 0 | AS126: 0 | AT126: 0 | AU126: 0 | AV126: 0 | AW126: 0 | AX126: 0 | AY126: 0 | AZ126: 0 | BA126: 0
A127: 0 | B127: 0 | C127: 0 | D127: 0 | E127: 0 | F127: 0 | G127: 0 | H127: 0 | I127: 0 | J127: 0 | K127: 0 | L127: 0 | M127: 0 | N127: 0 | O127: 0 | P127: 0 | Q127: 0 | R127: 0 | S127: 0 | T127: 0 | U127: 0 | V127: 0 | W127: 0 | X127: 0 | Y127: 0 | Z127: 0 | AA127: 0 | AB127: 0 | AC127: 0 | AD127: 0 | AE127: 0 | AF127: 0 | AG127: 0 | AH127: 0 | AI127: 0 | AJ127: 0 | AK127: 0 | AL127: 0 | AM127: 0 | AN127: 0 | AO127: 0 | AP127: 0 | AQ127: 0 | AR127: 0 | AS127: 0 | AT127: 0 | AU127: 0 | AV127: 0 | AW127: 0 | AX127: 0 | AY127: 0 | AZ127: 0 | BA127: 0
A128: PromedioDeOL ALI SISTEMA ALIMENTACION | B128: PromedioDeOL ALI CALIDAD Y DISPONIBILIDAD DE FORRAJES | C128: PromedioDeOL ALI LOTES ALIMENTACION | D128: PromedioDeOL ALI APROVECHAMIENTO RECURSOS NATURALES | E128: PromedioDeOL ALI AUTOMATIZACION | F128: PromedioDeOL SA PLAN SANITARIO | G128: PromedioDeOL SA MORTALIDAD CORDEROS | H128: PromedioDeOL SA MORTALIDAD ADULTOS | I128: PromedioDeOL SA INCIDENCIA PATOLOGIA MAS FRECUENTE | J128: PromedioDeOL SA PORCENTAJE DE MAMITIS | K128: PromedioDeOL IBA LACTANCIA ARTIFICIAL | L128: PromedioDeOL IBA SALA ORDEÑO | M128: PromedioDeOL IBA VENTILACION Y AMBIENTE | N128: PromedioDeOL IBA NAVES PARA LOTES | O128: PromedioDeOL IBA COMEDEROS, BEBEDEROS | P128: PromedioDeOL PRI LECHE/OVEJA AÑO | Q128: PromedioDeOL PRI CORDEROS VENDIDOS | R128: PromedioDeOL PRI OVEJAS/ UTH | S128: PromedioDeOL PRI CALIDAD DE LECHE | T128: PromedioDeOL PRI TASA REPOSICION | U128: PromedioDeOL REC INGRESOS BRUTOS LECHE | V128: PromedioDeOL REC INGRESOS BRUTOS VENTA ANIMALES | W128: PromedioDeOL REC GASTOS ALIMENTACION | X128: PromedioDeOL REC AMORTIZACION | Y128: PromedioDeOL REC MANO DE OBRA | Z128: CuentaDeNº REGISTRO | AA128: 0 | AB128: 0 | AC128: 0 | AD128: 0 | AE128: 0 | AF128: 0 | AG128: 0 | AH128: 0 | AI128: 0 | AJ128: 0 | AK128: 0 | AL128: 0 | AM128: 0 | AN128: 0 | AO128: 0 | AP128: 0 | AQ128: 0 | AR128: 0 | AS128: 0 | AT128: 0 | AU128: 0 | AV128: 0 | AW128: 0 | AX128: 0 | AY128: 0 | AZ128: 0 | BA128: 0
A129: 3.039215686 | B129: 2.941176471 | C129: 2.901960784 | D129: 2.352941176 | E129: 2.941176471 | F129: 3.333333333 | G129: 2.862745098 | H129: 3.235294118 | I129: 2.784313725 | J129: 2.568627451 | K129: 1.549019608 | L129: 2.941176471 | M129: 2.470588235 | N129: 2.274509804 | O129: 2.745098039 | P129: 2.549019608 | Q129: 2.37254902 | R129: 2.529411765 | S129: 2.058823529 | T129: 2.68627451 | U129: 3.098039216 | V129: 3.176470588 | W129: 3.137254902 | X129: 2.862745098 | Y129: 2.921568627 | Z129: 51 | AA129: 0 | AB129: 0 | AC129: 0 | AD129: 0 | AE129: 0 | AF129: 0 | AG129: 0 | AH129: 0 | AI129: 0 | AJ129: 0 | AK129: 0 | AL129: 0 | AM129: 0 | AN129: 0 | AO129: 0 | AP129: 0 | AQ129: 0 | AR129: 0 | AS129: 0 | AT129: 0 | AU129: 0 | AV129: 0 | AW129: 0 | AX129: 0 | AY129: 0 | AZ129: 0 | BA129: 0
A130: 0 | B130: 0 | C130: 0 | D130: 0 | E130: 0 | F130: 0 | G130: 0 | H130: 0 | I130: 0 | J130: 0 | K130: 0 | L130: 0 | M130: 0 | N130: 0 | O130: 0 | P130: 0 | Q130: 0 | R130: 0 | S130: 0 | T130: 0 | U130: 0 | V130: 0 | W130: 0 | X130: 0 | Y130: 0 | Z130: 0 | AA130: 0 | AB130: 0 | AC130: 0 | AD130: 0 | AE130: 0 | AF130: 0 | AG130: 0 | AH130: 0 | AI130: 0 | AJ130: 0 | AK130: 0 | AL130: 0 | AM130: 0 | AN130: 0 | AO130: 0 | AP130: 0 | AQ130: 0 | AR130: 0 | AS130: 0 | AT130: 0 | AU130: 0 | AV130: 0 | AW130: 0 | AX130: 0 | AY130: 0 | AZ130: 0 | BA130: 0
A131: DesvEstDeOL ALI SISTEMA ALIMENTACION | B131: DesvEstDeOL ALI CALIDAD Y DISPONIBILIDAD DE FORRAJES | C131: DesvEstDeOL ALI LOTES ALIMENTACION | D131: DesvEstDeOL ALI APROVECHAMIENTO RECURSOS NATURALES | E131: DesvEstDeOL ALI AUTOMATIZACION | F131: DesvEstDeOL SA PLAN SANITARIO | G131: DesvEstDeOL SA MORTALIDAD CORDEROS | H131: DesvEstDeOL SA MORTALIDAD ADULTOS | I131: DesvEstDeOL SA INCIDENCIA PATOLOGIA MAS FRECUENTE | J131: DesvEstDeOL SA PORCENTAJE DE MAMITIS | K131: DesvEstDeOL IBA LACTANCIA ARTIFICIAL | L131: DesvEstDeOL IBA SALA ORDEÑO | M131: DesvEstDeOL IBA VENTILACION Y AMBIENTE | N131: DesvEstDeOL IBA NAVES PARA LOTES | O131: DesvEstDeOL IBA COMEDEROS, BEBEDEROS | P131: DesvEstDeOL PRI LECHE/OVEJA AÑO | Q131: DesvEstDeOL PRI CORDEROS VENDIDOS | R131: DesvEstDeOL PRI OVEJAS/ UTH | S131: DesvEstDeOL PRI CALIDAD DE LECHE | T131: DesvEstDeOL PRI TASA REPOSICION | U131: DesvEstDeOL REC INGRESOS BRUTOS LECHE | V131: DesvEstDeOL REC INGRESOS BRUTOS VENTA ANIMALES | W131: DesvEstDeOL REC GASTOS ALIMENTACION | X131: DesvEstDeOL REC AMORTIZACION | Y131: DesvEstDeOL REC MANO DE OBRA | Z131: CuentaDeNº REGISTRO | AA131: 0 | AB131: 0 | AC131: 0 | AD131: 0 | AE131: 0 | AF131: 0 | AG131: 0 | AH131: 0 | AI131: 0 | AJ131: 0 | AK131: 0 | AL131: 0 | AM131: 0 | AN131: 0 | AO131: 0 | AP131: 0 | AQ131: 0 | AR131: 0 | AS131: 0 | AT131: 0 | AU131: 0 | AV131: 0 | AW131: 0 | AX131: 0 | AY131: 0 | AZ131: 0 | BA131: 0
A132: 0.7200217862 | B132: 0.8345481342 | C132: 0.8307804033 | D132: 1.546913435 | E132: 1.084652289 | F132: 0.9309493363 | G132: 1.077397008 | H132: 1.031275624 | I132: 0.8558907755 | J132: 0.9849853189 | K132: 1.553238237 | L132: 0.7324415255 | M132: 0.7836565875 | N132: 1.001567399 | O132: 1.110731961 | P132: 1.205217416 | Q132: 1.057559158 | R132: 1.137592918 | S132: 1.027847551 | T132: 1.14000344 | U132: 0.6709665256 | V132: 0.6230853024 | W132: 0.9595750694 | X132: 1.166526602 | Y132: 0.9558898944 | Z132: 51 | AA132: 0 | AB132: 0 | AC132: 0 | AD132: 0 | AE132: 0 | AF132: 0 | AG132: 0 | AH132: 0 | AI132: 0 | AJ132: 0 | AK132: 0 | AL132: 0 | AM132: 0 | AN132: 0 | AO132: 0 | AP132: 0 | AQ132: 0 | AR132: 0 | AS132: 0 | AT132: 0 | AU132: 0 | AV132: 0 | AW132: 0 | AX132: 0 | AY132: 0 | AZ132: 0 | BA132: 0
A133: 0 | B133: 0 | C133: 0 | D133: 0 | E133: 0 | F133: 0 | G133: 0 | H133: 0 | I133: 0 | J133: 0 | K133: 0 | L133: 0 | M133: 0 | N133: 0 | O133: 0 | P133: 0 | Q133: 0 | R133: 0 | S133: 0 | T133: 0 | U133: 0 | V133: 0 | W133: 0 | X133: 0 | Y133: 0 | Z133: 0 | AA133: 0 | AB133: 0 | AC133: 0 | AD133: 0 | AE133: 0 | AF133: 0 | AG133: 0 | AH133: 0 | AI133: 0 | AJ133: 0 | AK133: 0 | AL133: 0 | AM133: 0 | AN133: 0 | AO133: 0 | AP133: 0 | AQ133: 0 | AR133: 0 | AS133: 0 | AT133: 0 | AU133: 0 | AV133: 0 | AW133: 0 | AX133: 0 | AY133: 0 | AZ133: 0 | BA133: 0
A134: PromedioDeCL ALI SISTEMA ALIMENTACION | B134: PromedioDeCL ALI CALIDAD DISPONIBILIDAD FORRAJES | C134: PromedioDeCL ALI LOTES ALIMENTACION | D134: PromedioDeCL ALI APROVECHAMIENTO RECURSOS | E134: PromedioDeCL ALI AUTOMATIZACION | F134: PromedioDeCL SA PROTOCOLO SANITARIO | G134: PromedioDeCL SA MORTALIDAD EN CHIVOS | H134: PromedioDeCL SA MORTALIDAD EN ADULTOS | I134: PromedioDeCL SA INCIDENCIA PATOLOGIA MAS FRECUENTE | J134: PromedioDeCL SA PORCENTAJE DE MAMITIS | K134: PromedioDeCL IBA LACTANCIA ARTIFICIAL | L134: PromedioDeCL IBA TIPO SALA ORDEÑO | M134: PromedioDeCL IBA CONTROL AMBIENTAL NAVES | N134: PromedioDeCL IBA PAEQUES POR LOTES | O134: PromedioDeCL IBA COMEDEROS BEBEDEROS | P134: PromedioDeCL PRI PORCENTAJE REPOSICION | Q134: PromedioDeCL PRI PRODUCCION MEDIA | R134: PromedioDeCL PRI CALIDAD MEDIA | S134: PromedioDeCL PRI CABRITOS VENDIDOS | T134: PromedioDeCL PRI CABRAS POR UHT | U134: PromedioDeCL REC INGRESOS BRUTOS LECHE | V134: PromedioDeCL REC INGRESOS BRUTOS VENTA ANIMALES | W134: PromedioDeCL REC COSTE MANO DE OBRA | X134: PromedioDeCL REC COSTE ALIMENTACION | Y134: PromedioDeCL REC AMORTIZACIONES/SUBVENCIONES | Z134: CuentaDeNº REGISTRO | AA134: 0 | AB134: 0 | AC134: 0 | AD134: 0 | AE134: 0 | AF134: 0 | AG134: 0 | AH134: 0 | AI134: 0 | AJ134: 0 | AK134: 0 | AL134: 0 | AM134: 0 | AN134: 0 | AO134: 0 | AP134: 0 | AQ134: 0 | AR134: 0 | AS134: 0 | AT134: 0 | AU134: 0 | AV134: 0 | AW134: 0 | AX134: 0 | AY134: 0 | AZ134: 0 | BA134: 0
A135: 3.469387755 | B135: 3.102040816 | C135: 2.795918367 | D135: 1.367346939 | E135: 2.224489796 | F135: 2.959183673 | G135: 2.897959184 | H135: 2.87755102 | I135: 2.367346939 | J135: 2.408163265 | K135: 2.020408163 | L135: 2.693877551 | M135: 2.326530612 | N135: 2.224489796 | O135: 2.551020408 | P135: 3.428571429 | Q135: 2.224489796 | R135: 2.693877551 | S135: 1.612244898 | T135: 1.775510204 | U135: 2.836734694 | V135: 2.326530612 | W135: 2.571428571 | X135: 3.081632653 | Y135: 2.489795918 | Z135: 49 | AA135: 0 | AB135: 0 | AC135: 0 | AD135: 0 | AE135: 0 | AF135: 0 | AG135: 0 | AH135: 0 | AI135: 0 | AJ135: 0 | AK135: 0 | AL135: 0 | AM135: 0 | AN135: 0 | AO135: 0 | AP135: 0 | AQ135: 0 | AR135: 0 | AS135: 0 | AT135: 0 | AU135: 0 | AV135: 0 | AW135: 0 | AX135: 0 | AY135: 0 | AZ135: 0 | BA135: 0
A136: 0 | B136: 0 | C136: 0 | D136: 0 | E136: 0 | F136: 0 | G136: 0 | H136: 0 | I136: 0 | J136: 0 | K136: 0 | L136: 0 | M136: 0 | N136: 0 | O136: 0 | P136: 0 | Q136: 0 | R136: 0 | S136: 0 | T136: 0 | U136: 0 | V136: 0 | W136: 0 | X136: 0 | Y136: 0 | Z136: 0 | AA136: 0 | AB136: 0 | AC136: 0 | AD136: 0 | AE136: 0 | AF136: 0 | AG136: 0 | AH136: 0 | AI136: 0 | AJ136: 0 | AK136: 0 | AL136: 0 | AM136: 0 | AN136: 0 | AO136: 0 | AP136: 0 | AQ136: 0 | AR136: 0 | AS136: 0 | AT136: 0 | AU136: 0 | AV136: 0 | AW136: 0 | AX136: 0 | AY136: 0 | AZ136: 0 | BA136: 0
A137: DesvEstDeCL ALI SISTEMA ALIMENTACION | B137: DesvEstDeCL ALI CALIDAD DISPONIBILIDAD FORRAJES | C137: DesvEstDeCL ALI LOTES ALIMENTACION | D137: DesvEstDeCL ALI APROVECHAMIENTO RECURSOS | E137: DesvEstDeCL ALI AUTOMATIZACION | F137: DesvEstDeCL SA PROTOCOLO SANITARIO | G137: DesvEstDeCL SA MORTALIDAD EN CHIVOS | H137: DesvEstDeCL SA MORTALIDAD EN ADULTOS | I137: DesvEstDeCL SA INCIDENCIA PATOLOGIA MAS FRECUENTE | J137: DesvEstDeCL SA PORCENTAJE DE MAMITIS | K137: DesvEstDeCL IBA LACTANCIA ARTIFICIAL | L137: DesvEstDeCL IBA TIPO SALA ORDEÑO | M137: DesvEstDeCL IBA CONTROL AMBIENTAL NAVES | N137: DesvEstDeCL IBA PAEQUES POR LOTES | O137: DesvEstDeCL IBA COMEDEROS BEBEDEROS | P137: DesvEstDeCL PRI PORCENTAJE REPOSICION | Q137: DesvEstDeCL PRI PRODUCCION MEDIA | R137: DesvEstDeCL PRI CALIDAD MEDIA | S137: DesvEstDeCL PRI CABRITOS VENDIDOS | T137: DesvEstDeCL PRI CABRAS POR UHT | U137: DesvEstDeCL REC INGRESOS BRUTOS LECHE | V137: DesvEstDeCL REC INGRESOS BRUTOS VENTA ANIMALES | W137: DesvEstDeCL REC COSTE MANO DE OBRA | X137: DesvEstDeCL REC COSTE ALIMENTACION | Y137: DesvEstDeCL REC AMORTIZACIONES/SUBVENCIONES | Z137: CuentaDeNº REGISTRO | AA137: 0 | AB137: 0 | AC137: 0 | AD137: 0 | AE137: 0 | AF137: 0 | AG137: 0 | AH137: 0 | AI137: 0 | AJ137: 0 | AK137: 0 | AL137: 0 | AM137: 0 | AN137: 0 | AO137: 0 | AP137: 0 | AQ137: 0 | AR137: 0 | AS137: 0 | AT137: 0 | AU137: 0 | AV137: 0 | AW137: 0 | AX137: 0 | AY137: 0 | AZ137: 0 | BA137: 0
A138: 0.8190960672 | B138: 0.8718968297 | C138: 0.8892785427 | D138: 1.509606427 | E138: 0.7148807046 | F138: 1.337896104 | G138: 1.025607502 | H138: 1.053420086 | I138: 0.8825596663 | J138: 1.059055541 | K138: 1.19878056 | L138: 0.7417344997 | M138: 0.7184402986 | N138: 0.7709654695 | O138: 0.9142671129 | P138: 0.7071067812 | Q138: 1.065858537 | R138: 0.9175166128 | S138: 1.076574942 | T138: 1.212183053 | U138: 0.8743316203 | V138: 0.8511696634 | W138: 1.040833 | X138: 0.7592961295 | Y138: 1.138757528 | Z138: 49 | AA138: 0 | AB138: 0 | AC138: 0 | AD138: 0 | AE138: 0 | AF138: 0 | AG138: 0 | AH138: 0 | AI138: 0 | AJ138: 0 | AK138: 0 | AL138: 0 | AM138: 0 | AN138: 0 | AO138: 0 | AP138: 0 | AQ138: 0 | AR138: 0 | AS138: 0 | AT138: 0 | AU138: 0 | AV138: 0 | AW138: 0 | AX138: 0 | AY138: 0 | AZ138: 0 | BA138: 0
A139: 0 | B139: 0 | C139: 0 | D139: 0 | E139: 0 | F139: 0 | G139: 0 | H139: 0 | I139: 0 | J139: 0 | K139: 0 | L139: 0 | M139: 0 | N139: 0 | O139: 0 | P139: 0 | Q139: 0 | R139: 0 | S139: 0 | T139: 0 | U139: 0 | V139: 0 | W139: 0 | X139: 0 | Y139: 0 | Z139: 0 | AA139: 0 | AB139: 0 | AC139: 0 | AD139: 0 | AE139: 0 | AF139: 0 | AG139: 0 | AH139: 0 | AI139: 0 | AJ139: 0 | AK139: 0 | AL139: 0 | AM139: 0 | AN139: 0 | AO139: 0 | AP139: 0 | AQ139: 0 | AR139: 0 | AS139: 0 | AT139: 0 | AU139: 0 | AV139: 0 | AW139: 0 | AX139: 0 | AY139: 0 | AZ139: 0 | BA139: 0
A140: 0 | B140: 0 | C140: 0 | D140: 0 | E140: 0 | F140: 0 | G140: 0 | H140: 0 | I140: 0 | J140: 0 | K140: 0 | L140: 0 | M140: 0 | N140: 0 | O140: 0 | P140: 0 | Q140: 0 | R140: 0 | S140: 0 | T140: 0 | U140: 0 | V140: 0 | W140: 0 | X140: 0 | Y140: 0 | Z140: 0 | AA140: 0 | AB140: 0 | AC140: 0 | AD140: 0 | AE140: 0 | AF140: 0 | AG140: 0 | AH140: 0 | AI140: 0 | AJ140: 0 | AK140: 0 | AL140: 0 | AM140: 0 | AN140: 0 | AO140: 0 | AP140: 0 | AQ140: 0 | AR140: 0 | AS140: 0 | AT140: 0 | AU140: 0 | AV140: 0 | AW140: 0 | AX140: 0 | AY140: 0 | AZ140: 0 | BA140: 0
A141: NUMEROREGISTRO | B141: GANADO | C141: CODIGO IRIS | D141: NOMBRE PRODUCTO | E141: PRESENTACION | F141: UFL/UFV | G141: PROTEINA BRUTA | H141: FIBRA BRUTA | I141: GRASA BRUTA | J141: CENIZAS | K141: MODO DE EMPLEO | L141: OBSERVACIONES | M141: 0 | N141: 0 | O141: 0 | P141: 0 | Q141: 0 | R141: 0 | S141: 0 | T141: 0 | U141: 0 | V141: 0 | W141: 0 | X141: 0 | Y141: 0 | Z141: 0 | AA141: 0 | AB141: 0 | AC141: 0 | AD141: 0 | AE141: 0 | AF141: 0 | AG141: 0 | AH141: 0 | AI141: 0 | AJ141: 0 | AK141: 0 | AL141: 0 | AM141: 0 | AN141: 0 | AO141: 0 | AP141: 0 | AQ141: 0 | AR141: 0 | AS141: 0 | AT141: 0 | AU141: 0 | AV141: 0 | AW141: 0 | AX141: 0 | AY141: 0 | AZ141: 0 | BA141: 0
A142: 278 | B142: OVINO | C142: 1808 GGR | D142: OVIRECRIA | E142: GRANULADO 3,5 | F142: 88 | G142: 165 | H142: 82 | I142: 35 | J142: 78 | K142: Pienso complementario destinados a corderas de reposición desde los 3 a los 6-7 meses. Se puede suministar a voluntad con paja ad libitumn pero es aconsejable el aporte de forrajes | L142: Los animales dispondrán en todo momento de agua limpia y fresca a libre servicio. Consultar a los servicios técnicos. | M142: 0 | N142: 0 | O142: 0 | P142: 0 | Q142: 0 | R142: 0 | S142: 0 | T142: 0 | U142: 0 | V142: 0 | W142: 0 | X142: 0 | Y142: 0 | Z142: 0 | AA142: 0 | AB142: 0 | AC142: 0 | AD142: 0 | AE142: 0 | AF142: 0 | AG142: 0 | AH142: 0 | AI142: 0 | AJ142: 0 | AK142: 0 | AL142: 0 | AM142: 0 | AN142: 0 | AO142: 0 | AP142: 0 | AQ142: 0 | AR142: 0 | AS142: 0 | AT142: 0 | AU142: 0 | AV142: 0 | AW142: 0 | AX142: 0 | AY142: 0 | AZ142: 0 | BA142: 0
A143: 285 | B143: CAPRINO | C143: 1610 GGR | D143: CAPRIRECRIA | E143: GRANULADO 3,5 | F143: 89 | G143: 165 | H143: 82 | I143: 35 | J143: 78 | K143: Pienso complementario destinados a chivas de reposición desde los 3 a los 6-7 meses. Se puede suministar a voluntad con paja ad libitumn pero es aconsejable el aporte de forrajes | L143: Los animales dispondrán en todo momento de agua limpia y fresca a libre servicio. Consultar a los servicios técnicos. | M143: 0 | N143: 0 | O143: 0 | P143: 0 | Q143: 0 | R143: 0 | S143: 0 | T143: 0 | U143: 0 | V143: 0 | W143: 0 | X143: 0 | Y143: 0 | Z143: 0 | AA143: 0 | AB143: 0 | AC143: 0 | AD143: 0 | AE143: 0 | AF143: 0 | AG143: 0 | AH143: 0 | AI143: 0 | AJ143: 0 | AK143: 0 | AL143: 0 | AM143: 0 | AN143: 0 | AO143: 0 | AP143: 0 | AQ143: 0 | AR143: 0 | AS143: 0 | AT143: 0 | AU143: 0 | AV143: 0 | AW143: 0 | AX143: 0 | AY143: 0 | AZ143: 0 | BA143: 0
A144: 298 | B144: CAPRINO | C144: 1512 GGR | D144: CAPRI KOMPLET ESTANDAR | E144: GRANULADO 3,5 | F144: 90 | G144: 170 | H144: 120 | I144: 35 | J144: 75 | K144: Pienso complementario destinado a cabras de leche para ser suministrado con paja a voluntad. La paja deberá ser limpia y seca y se administrará ad libitum. Los animales dispondrán de agua limpia y fresca. | L144: Preferiblemente administrar varias veces al día pero que siempre lo tengan disponible. La transición a este alñimento debe ser lenta (15 días mínimo) y paulatina. Recomendamos tener a los animales desparasitados y vacunados de Enterotoxemia. | M144: 0 | N144: 0 | O144: 0 | P144: 0 | Q144: 0 | R144: 0 | S144: 0 | T144: 0 | U144: 0 | V144: 0 | W144: 0 | X144: 0 | Y144: 0 | Z144: 0 | AA144: 0 | AB144: 0 | AC144: 0 | AD144: 0 | AE144: 0 | AF144: 0 | AG144: 0 | AH144: 0 | AI144: 0 | AJ144: 0 | AK144: 0 | AL144: 0 | AM144: 0 | AN144: 0 | AO144: 0 | AP144: 0 | AQ144: 0 | AR144: 0 | AS144: 0 | AT144: 0 | AU144: 0 | AV144: 0 | AW144: 0 | AX144: 0 | AY144: 0 | AZ144: 0 | BA144: 0
A145: 299 | B145: CAPRINO | C145: 1515 GGR | D145: CAPRI KOMPLET ESPECIAL | E145: GRANULADO 10 | F145: 92 | G145: 170 | H145: 120 | I145: 40 | J145: 83 | K145: Pienso complementario de paja para cabras en ordeño. Los animales dispondrán en todo momento de paja de cereales limpia y agua limpia y fresca. Puede emplearse racionado o a voluntad. Diseñado especialmente para cabras tipo murciano. | L145: Preferiblemente administrar varias veces al día pero que siempre lo tengan disponible. La transición a este alimento debe ser lenta (15 días mínimo) y paulatina. Recomendamos tener a los animales desparasitados y vacunados de Enterotoxemia. | M145: 0 | N145: 0 | O145: 0 | P145: 0 | Q145: 0 | R145: 0 | S145: 0 | T145: 0 | U145: 0 | V145: 0 | W145: 0 | X145: 0 | Y145: 0 | Z145: 0 | AA145: 0 | AB145: 0 | AC145: 0 | AD145: 0 | AE145: 0 | AF145: 0 | AG145: 0 | AH145: 0 | AI145: 0 | AJ145: 0 | AK145: 0 | AL145: 0 | AM145: 0 | AN145: 0 | AO145: 0 | AP145: 0 | AQ145: 0 | AR145: 0 | AS145: 0 | AT145: 0 | AU145: 0 | AV145: 0 | AW145: 0 | AX145: 0 | AY145: 0 | AZ145: 0 | BA145: 0
A146: 374 | B146: OVINO/CAPRINO | C146: 1669 GGR | D146: INOGEST | E146: GRANULADO 3,5 | F146: 92 | G146: 143 | H146: 71 | I146: 28 | J146: 67 | K146: Pienso complementario especial para el preparto de ovejas y cabras de ordeño . Utilizar como complementario de forrajes los últimos 45 días de antes del parto. | L146: No se recomienda la utilización de paja en esta fase sobre todo en razas muy lecheras y prolíficas.Los animales dispondrán de agua limpia y fresca a libre disposición. | M146: 0 | N146: 0 | O146: 0 | P146: 0 | Q146: 0 | R146: 0 | S146: 0 | T146: 0 | U146: 0 | V146: 0 | W146: 0 | X146: 0 | Y146: 0 | Z146: 0 | AA146: 0 | AB146: 0 | AC146: 0 | AD146: 0 | AE146: 0 | AF146: 0 | AG146: 0 | AH146: 0 | AI146: 0 | AJ146: 0 | AK146: 0 | AL146: 0 | AM146: 0 | AN146: 0 | AO146: 0 | AP146: 0 | AQ146: 0 | AR146: 0 | AS146: 0 | AT146: 0 | AU146: 0 | AV146: 0 | AW146: 0 | AX146: 0 | AY146: 0 | AZ146: 0 | BA146: 0
A147: 383 | B147: OVINO | C147: 1705 GGR | D147: OVIKOMPLET | E147: GRANULADO 10 | F147: 88 | G147: 180 | H147: 120 | I147: 40 | J147: 80 | K147: Pienso complementario de paja para ovejas en ordeño. Los animales dispondrán en todo momento de paja de cereales limpia y agua limpia y fresca. Puede emplearse racionado o a voluntad. Consultar cada caso con los servicios técnicos. | L147: Preferiblemente administrar varias veces al día pero que siempre lo tengan disponible.La transición a este alimento debe ser lenta (15 días mínimo) y paulatina. Necesaria vacunacion Enterotoxemia. | M147: 0 | N147: 0 | O147: 0 | P147: 0 | Q147: 0 | R147: 0 | S147: 0 | T147: 0 | U147: 0 | V147: 0 | W147: 0 | X147: 0 | Y147: 0 | Z147: 0 | AA147: 0 | AB147: 0 | AC147: 0 | AD147: 0 | AE147: 0 | AF147: 0 | AG147: 0 | AH147: 0 | AI147: 0 | AJ147: 0 | AK147: 0 | AL147: 0 | AM147: 0 | AN147: 0 | AO147: 0 | AP147: 0 | AQ147: 0 | AR147: 0 | AS147: 0 | AT147: 0 | AU147: 0 | AV147: 0 | AW147: 0 | AX147: 0 | AY147: 0 | AZ147: 0 | BA147: 0
A148: 391 | B148: OVINO | C148: 1777 GGR | D148: OVIKOMPLET BASIC | E148: GRANULADO 10 | F148: 81 | G148: 165 | H148: 135 | I148: 30 | J148: 87 | K148: Pienso complementario de paja para ovejas en ordeño. Los animales dispondrán en todo momento de paja de cereales limpia y agua limpia y fresca. Puede emplearse racionado. Consultar cada caso con los servicios técnicos. | L148: Preferiblemente administrar varias veces al día pero que siempre lo tengan disponible.La transición a este alimento debe ser lenta (15 días mínimo) y paulatina. Necesaria vacunacion Enterotoxemia. | M148: 0 | N148: 0 | O148: 0 | P148: 0 | Q148: 0 | R148: 0 | S148: 0 | T148: 0 | U148: 0 | V148: 0 | W148: 0 | X148: 0 | Y148: 0 | Z148: 0 | AA148: 0 | AB148: 0 | AC148: 0 | AD148: 0 | AE148: 0 | AF148: 0 | AG148: 0 | AH148: 0 | AI148: 0 | AJ148: 0 | AK148: 0 | AL148: 0 | AM148: 0 | AN148: 0 | AO148: 0 | AP148: 0 | AQ148: 0 | AR148: 0 | AS148: 0 | AT148: 0 | AU148: 0 | AV148: 0 | AW148: 0 | AX148: 0 | AY148: 0 | AZ148: 0 | BA148: 0
A149: 396 | B149: OVINO | C149: 1797 GGR | D149: OVIKOMPLET EQ | E149: GRANULADO 10 | F149: 86 | G149: 180 | H149: 155 | I149: 40 | J149: 90 | K149: Pienso complementario de paja para ovejas en ordeño. Los animales dispondrán en todo momento de paja de cereales limpia y agua limpia y fresca. Puede emplearse racionado o a voluntad. Consultar cada caso con los servicios técnicos. | L149: Preferiblemente administrar varias veces al día pero que siempre lo tengan disponible.La transición a este alimento debe ser lenta (15 días mínimo) y paulatina. Necesaria vacunacion Enterotoxemia. | M149: 0 | N149: 0 | O149: 0 | P149: 0 | Q149: 0 | R149: 0 | S149: 0 | T149: 0 | U149: 0 | V149: 0 | W149: 0 | X149: 0 | Y149: 0 | Z149: 0 | AA149: 0 | AB149: 0 | AC149: 0 | AD149: 0 | AE149: 0 | AF149: 0 | AG149: 0 | AH149: 0 | AI149: 0 | AJ149: 0 | AK149: 0 | AL149: 0 | AM149: 0 | AN149: 0 | AO149: 0 | AP149: 0 | AQ149: 0 | AR149: 0 | AS149: 0 | AT149: 0 | AU149: 0 | AV149: 0 | AW149: 0 | AX149: 0 | AY149: 0 | AZ149: 0 | BA149: 0
A150: 397 | B150: CAPRINO | D150: CAPRIKOMPLET PLUS | E150: GRANULADO 3,5 | F150: 94 | G150: 180 | H150: 100 | I150: 38 | J150: 74 | K150: Pienso complementario de paja para cabras en ordeño. Los animales dispondrán en todo momento de paja de cereales y algo de forraje y agua limpia y fresca . Puede emplearse racionado o a voluntad. Diseñado especialmente para cabras tipo murciano. | L150: Preferiblemente administrar varias veces al día pero que siempre lo tengan disponible. La transición a este alimento debe ser lenta (15 días mínimo) y paulatina. Recomendamos tener a los animales desparasitados y vacunados de Enterotoxemia. | M150: 0 | N150: 0 | O150: 0 | P150: 0 | Q150: 0 | R150: 0 | S150: 0 | T150: 0 | U150: 0 | V150: 0 | W150: 0 | X150: 0 | Y150: 0 | Z150: 0 | AA150: 0 | AB150: 0 | AC150: 0 | AD150: 0 | AE150: 0 | AF150: 0 | AG150: 0 | AH150: 0 | AI150: 0 | AJ150: 0 | AK150: 0 | AL150: 0 | AM150: 0 | AN150: 0 | AO150: 0 | AP150: 0 | AQ150: 0 | AR150: 0 | AS150: 0 | AT150: 0 | AU150: 0 | AV150: 0 | AW150: 0 | AX150: 0 | AY150: 0 | AZ150: 0 | BA150: 0
A151: 413 | B151: OVINO/CAPRINO | C151: 1818 GGR | D151: KOMPLET GESTACION | E151: GRANULADO 3,5 | F151: 90 | G151: 175 | H151: 90 | I151: 25 | J151: 83 | K151: Pienso complementario especial para el preparto de ovejas y cabras de ordeño . Utilizar como complementario de forrajes (incluido paja) los últimos 45 días de antes del parto. | L151: racionar adecuadamente según peso vivo y prolificidad. .Los animales dispondrán de agua limpia y fresca a libre disposición. | M151: 0 | N151: 0 | O151: 0 | P151: 0 | Q151: 0 | R151: 0 | S151: 0 | T151: 0 | U151: 0 | V151: 0 | W151: 0 | X151: 0 | Y151: 0 | Z151: 0 | AA151: 0 | AB151: 0 | AC151: 0 | AD151: 0 | AE151: 0 | AF151: 0 | AG151: 0 | AH151: 0 | AI151: 0 | AJ151: 0 | AK151: 0 | AL151: 0 | AM151: 0 | AN151: 0 | AO151: 0 | AP151: 0 | AQ151: 0 | AR151: 0 | AS151: 0 | AT151: 0 | AU151: 0 | AV151: 0 | AW151: 0 | AX151: 0 | AY151: 0 | AZ151: 0 | BA151: 0
A152: 414 | B152: OVINO/CAPRINO | C152: 1819 GGR | D152: KOMPLET RECRIA | E152: GRANULADO 3,5 | F152: 91 | G152: 170 | H152: 100 | I152: 38 | J152: 74 | K152: Pienso complementario destinados a corderas y chivas de reposición desde los 3 hasta el preparto. Se puede suministar a voluntad con paja ad libitumn en la primera fase- Despues racionado. El aporte de forrajes es siempre preferible. | L152: Los animales dispondrán en todo momento de agua limpia y fresca a libre servicio. Consultar a los servicios técnicos. | M152: 0 | N152: 0 | O152: 0 | P152: 0 | Q152: 0 | R152: 0 | S152: 0 | T152: 0 | U152: 0 | V152: 0 | W152: 0 | X152: 0 | Y152: 0 | Z152: 0 | AA152: 0 | AB152: 0 | AC152: 0 | AD152: 0 | AE152: 0 | AF152: 0 | AG152: 0 | AH152: 0 | AI152: 0 | AJ152: 0 | AK152: 0 | AL152: 0 | AM152: 0 | AN152: 0 | AO152: 0 | AP152: 0 | AQ152: 0 | AR152: 0 | AS152: 0 | AT152: 0 | AU152: 0 | AV152: 0 | AW152: 0 | AX152: 0 | AY152: 0 | AZ152: 0 | BA152: 0
A153: 420 | B153: OVINO | C153: 1856 GGR | D153: OVIKOMPLET PLUS | E153: GRANULADO 10 | F153: 90 | G153: 185 | H153: 110 | I153: 38 | J153: 81 | K153: Pienso complementario de paja y forrajes para ovejas en ordeño. Los animales dispondrán en todo momento de paja de cereales limpia y agua limpia y fresca. Puede emplearse racionado o a voluntad. Consultar cada caso con los servicios técnicos. | L153: Preferiblemente administrar varias veces al día pero que siempre lo tengan disponible.La transición a este alimento debe ser lenta (15 días mínimo) y paulatina. Necesaria vacunacion Enterotoxemia. | M153: 0 | N153: 0 | O153: 0 | P153: 0 | Q153: 0 | R153: 0 | S153: 0 | T153: 0 | U153: 0 | V153: 0 | W153: 0 | X153: 0 | Y153: 0 | Z153: 0 | AA153: 0 | AB153: 0 | AC153: 0 | AD153: 0 | AE153: 0 | AF153: 0 | AG153: 0 | AH153: 0 | AI153: 0 | AJ153: 0 | AK153: 0 | AL153: 0 | AM153: 0 | AN153: 0 | AO153: 0 | AP153: 0 | AQ153: 0 | AR153: 0 | AS153: 0 | AT153: 0 | AU153: 0 | AV153: 0 | AW153: 0 | AX153: 0 | AY153: 0 | AZ153: 0 | BA153: 0
A154: 0 | B154: 0 | C154: 0 | D154: 0 | E154: 0 | F154: 0 | G154: 0 | H154: 0 | I154: 0 | J154: 0 | K154: 0 | L154: 0 | M154: 0 | N154: 0 | O154: 0 | P154: 0 | Q154: 0 | R154: 0 | S154: 0 | T154: 0 | U154: 0 | V154: 0 | W154: 0 | X154: 0 | Y154: 0 | Z154: 0 | AA154: 0 | AB154: 0 | AC154: 0 | AD154: 0 | AE154: 0 | AF154: 0 | AG154: 0 | AH154: 0 | AI154: 0 | AJ154: 0 | AK154: 0 | AL154: 0 | AM154: 0 | AN154: 0 | AO154: 0 | AP154: 0 | AQ154: 0 | AR154: 0 | AS154: 0 | AT154: 0 | AU154: 0 | AV154: 0 | AW154: 0 | AX154: 0 | AY154: 0 | AZ154: 0 | BA154: 0
A155: 0 | B155: 0 | C155: 0 | D155: 0 | E155: 0 | F155: 0 | G155: 0 | H155: 0 | I155: 0 | J155: 0 | K155: 0 | L155: 0 | M155: 0 | N155: 0 | O155: 0 | P155: 0 | Q155: 0 | R155: 0 | S155: 0 | T155: 0 | U155: 0 | V155: 0 | W155: 0 | X155: 0 | Y155: 0 | Z155: 0 | AA155: 0 | AB155: 0 | AC155: 0 | AD155: 0 | AE155: 0 | AF155: 0 | AG155: 0 | AH155: 0 | AI155: 0 | AJ155: 0 | AK155: 0 | AL155: 0 | AM155: 0 | AN155: 0 | AO155: 0 | AP155: 0 | AQ155: 0 | AR155: 0 | AS155: 0 | AT155: 0 | AU155: 0 | AV155: 0 | AW155: 0 | AX155: 0 | AY155: 0 | AZ155: 0 | BA155: 0
A156: 0 | B156: 0 | C156: 0 | D156: 0 | E156: 0 | F156: 0 | G156: 0 | H156: 0 | I156: 0 | J156: 0 | K156: 0 | L156: 0 | M156: 0 | N156: 0 | O156: 0 | P156: 0 | Q156: 0 | R156: 0 | S156: 0 | T156: 0 | U156: 0 | V156: 0 | W156: 0 | X156: 0 | Y156: 0 | Z156: 0 | AA156: 0 | AB156: 0 | AC156: 0 | AD156: 0 | AE156: 0 | AF156: 0 | AG156: 0 | AH156: 0 | AI156: 0 | AJ156: 0 | AK156: 0 | AL156: 0 | AM156: 0 | AN156: 0 | AO156: 0 | AP156: 0 | AQ156: 0 | AR156: 0 | AS156: 0 | AT156: 0 | AU156: 0 | AV156: 0 | AW156: 0 | AX156: 0 | AY156: 0 | AZ156: 0 | BA156: 0
A157: 0 | B157: 0 | C157: 0 | D157: 0 | E157: 0 | F157: 0 | G157: 0 | H157: 0 | I157: 0 | J157: 0 | K157: 0 | L157: 0 | M157: 0 | N157: 0 | O157: 0 | P157: 0 | Q157: 0 | R157: 0 | S157: 0 | T157: 0 | U157: 0 | V157: 0 | W157: 0 | X157: 0 | Y157: 0 | Z157: 0 | AA157: 0 | AB157: 0 | AC157: 0 | AD157: 0 | AE157: 0 | AF157: 0 | AG157: 0 | AH157: 0 | AI157: 0 | AJ157: 0 | AK157: 0 | AL157: 0 | AM157: 0 | AN157: 0 | AO157: 0 | AP157: 0 | AQ157: 0 | AR157: 0 | AS157: 0 | AT157: 0 | AU157: 0 | AV157: 0 | AW157: 0 | AX157: 0 | AY157: 0 | AZ157: 0 | BA157: 0
A158: 0 | B158: 0 | C158: 0 | D158: 0 | E158: 0 | F158: 0 | G158: 0 | H158: 0 | I158: 0 | J158: 0 | K158: 0 | L158: 0 | M158: 0 | N158: 0 | O158: 0 | P158: 0 | Q158: 0 | R158: 0 | S158: 0 | T158: 0 | U158: 0 | V158: 0 | W158: 0 | X158: 0 | Y158: 0 | Z158: 0 | AA158: 0 | AB158: 0 | AC158: 0 | AD158: 0 | AE158: 0 | AF158: 0 | AG158: 0 | AH158: 0 | AI158: 0 | AJ158: 0 | AK158: 0 | AL158: 0 | AM158: 0 | AN158: 0 | AO158: 0 | AP158: 0 | AQ158: 0 | AR158: 0 | AS158: 0 | AT158: 0 | AU158: 0 | AV158: 0 | AW158: 0 | AX158: 0 | AY158: 0 | AZ158: 0 | BA158: 0
A159: NUMEROREGISTRO | B159: HOMOLOGADO | C159: NOMBRE PRODUCTO | D159: GANADO | E159: CLASE | F159: TIPO | G159: PRESENTACION | H159: TIPO DE PIENSO | I159: DESTINO PIENSO | J159: HUMEDAD | K159: PROTEINA BRUTA | L159: FIBRA BRUTA | M159: GRASA BRUTA | N159: CENIZAS | O159: A+A | P159: UFL/UFV | Q159: MODO DE EMPLEO | R159: OBSERVACIONES | S159: MODO EMPLEO ETIQUETA | T159: %HUM | U159: %PB | V159: %FB | W159: GB | X159: %MM | Y159: %A+A | Z159: 0 | AA159: 0 | AB159: 0 | AC159: 0 | AD159: 0 | AE159: 0 | AF159: 0 | AG159: 0 | AH159: 0 | AI159: 0 | AJ159: 0 | AK159: 0 | AL159: 0 | AM159: 0 | AN159: 0 | AO159: 0 | AP159: 0 | AQ159: 0 | AR159: 0 | AS159: 0 | AT159: 0 | AU159: 0 | AV159: 0 | AW159: 0 | AX159: 0 | AY159: 0 | AZ159: 0 | BA159: 0
A160: 296 | B160: TRUE | C160: AMALTEA | D160: CAPRINO | E160: LECHE | F160: ORDEÑO | G160: GRANULADO 3,5 | H160: PIENSO COMPLEMENTARIO | I160: CABRAS EN ORDEÑO | J160: 110 | K160: 165 | L160: 80 | M160: 40 | N160: 80 | O160: 310 | P160: 96 | Q160: Pienso complementario de forrajes para caprino de alta producción en ordeño. Las cantidades a suministrar irán en función del peso, producción y calidad de los forrajes | R160: Puede administrarse en pesebre, en sala de ordeño o en carro mezclador.Los animales dispondrán de agua limpia y fresca a libre disposición. | S160: Pienso para caprino de alta producción en ordeño. Las cantidades a suministrar irán en función del peso, producción y calidad de los forrajes.Los animales dispondrán de agua limpia y fresca a libre disposición. | T160: 11 | U160: 16.5 | V160: 8 | W160: 4 | X160: 8 | Y160: 31 | Z160: 0 | AA160: 0 | AB160: 0 | AC160: 0 | AD160: 0 | AE160: 0 | AF160: 0 | AG160: 0 | AH160: 0 | AI160: 0 | AJ160: 0 | AK160: 0 | AL160: 0 | AM160: 0 | AN160: 0 | AO160: 0 | AP160: 0 | AQ160: 0 | AR160: 0 | AS160: 0 | AT160: 0 | AU160: 0 | AV160: 0 | AW160: 0 | AX160: 0 | AY160: 0 | AZ160: 0 | BA160: 0
A161: 297 | B161: TRUE | C161: AMALTEA L 3000 | D161: CAPRINO | E161: LECHE | F161: ORDEÑO | G161: GRANULADO 3,5 | H161: PIENSO COMPLEMENTARIO | I161: CABRAS EN ORDEÑO | J161: 110 | K161: 180 | L161: 75 | M161: 40 | N161: 78 | O161: 310 | P161: 94 | Q161: Pienso complementario de forrajes para caprino de alta producción en ordeño. Las cantidades a suministrar irán en función del peso, producción y calidad de los forrajes | R161: Puede administrarse en pesebre, en sala de ordeño o en carro mezclador. Los animales dispondrán de agua limpia y fresca a libre disposición. | S161: Pienso para caprino de alta producción en ordeño. Las cantidades a suministrar irán en función del peso, producción y calidad de los forrajes.Los animales dispondrán de agua limpia y fresca a libre disposición. | T161: 11 | U161: 18 | V161: 7.5 | W161: 4 | X161: 7.8 | Y161: 31 | Z161: 0 | AA161: 0 | AB161: 0 | AC161: 0 | AD161: 0 | AE161: 0 | AF161: 0 | AG161: 0 | AH161: 0 | AI161: 0 | AJ161: 0 | AK161: 0 | AL161: 0 | AM161: 0 | AN161: 0 | AO161: 0 | AP161: 0 | AQ161: 0 | AR161: 0 | AS161: 0 | AT161: 0 | AU161: 0 | AV161: 0 | AW161: 0 | AX161: 0 | AY161: 0 | AZ161: 0 | BA161: 0
A162: 299 | B162: TRUE | C162: CAPRI KOMPLET ESPECIAL | D162: CAPRINO | E162: LECHE | F162: ORDEÑO | G162: GRANULADO 10 | H162: PIENSO COMPLEMENTARIO | I162: CABRAS EN ORDEÑO | J162: 110 | K162: 170 | L162: 120 | M162: 40 | N162: 83 | O162: 240 | P162: 92 | Q162: Pienso complementario de paja para cabras en ordeño. Los animales dispondrán en todo momento de paja de cereales limpia y agua limpia y fresca. Puede emplearse racionado o a voluntad. Diseñado especialmente para cabras tipo murciano. | R162: Preferiblemente administrar varias veces al día pero que siempre lo tengan disponible. La transición a este alimento debe ser lenta (15 días mínimo) y paulatina. Recomendamos tener a los animales desparasitados y vacunados de Enterotoxemia. | S162: Pienso destinado a cabras de leche para ser suministrado con paja a voluntad. La paja deberá ser limpia y seca y se administrará ad libitum. Los animales dispondrán de agua limpia y fresca. | T162: 11 | U162: 17 | V162: 12 | W162: 4 | X162: 8.3 | Y162: 24 | Z162: 0 | AA162: 0 | AB162: 0 | AC162: 0 | AD162: 0 | AE162: 0 | AF162: 0 | AG162: 0 | AH162: 0 | AI162: 0 | AJ162: 0 | AK162: 0 | AL162: 0 | AM162: 0 | AN162: 0 | AO162: 0 | AP162: 0 | AQ162: 0 | AR162: 0 | AS162: 0 | AT162: 0 | AU162: 0 | AV162: 0 | AW162: 0 | AX162: 0 | AY162: 0 | AZ162: 0 | BA162: 0
A163: 298 | B163: TRUE | C163: CAPRI KOMPLET ESTANDAR | D163: CAPRINO | E163: LECHE | F163: ORDEÑO | G163: GRANULADO 3,5 | H163: PIENSO COMPLEMENTARIO | I163: CABRAS EN ORDEÑO | J163: 110 | K163: 170 | L163: 120 | M163: 35 | N163: 75 | O163: 220 | P163: 90 | Q163: Pienso complementario destinado a cabras de leche para ser suministrado con paja a voluntad. La paja deberá ser limpia y seca y se administrará ad libitum. Los animales dispondrán de agua limpia y fresca. | R163: Preferiblemente administrar varias veces al día pero que siempre lo tengan disponible. La transición a este alñimento debe ser lenta (15 días mínimo) y paulatina. Recomendamos tener a los animales desparasitados y vacunados de Enterotoxemia. | S163: Pienso destinado a cabras de leche para ser suministrado con paja a voluntad. La paja deberá ser limpia y seca y se administrará ad libitum. Los animales dispondrán de agua limpia y fresca. | T163: 11 | U163: 17 | V163: 12 | W163: 3.5 | X163: 7.5 | Y163: 22 | Z163: 0 | AA163: 0 | AB163: 0 | AC163: 0 | AD163: 0 | AE163: 0 | AF163: 0 | AG163: 0 | AH163: 0 | AI163: 0 | AJ163: 0 | AK163: 0 | AL163: 0 | AM163: 0 | AN163: 0 | AO163: 0 | AP163: 0 | AQ163: 0 | AR163: 0 | AS163: 0 | AT163: 0 | AU163: 0 | AV163: 0 | AW163: 0 | AX163: 0 | AY163: 0 | AZ163: 0 | BA163: 0
A164: 397 | B164: TRUE | C164: CAPRIKOMPLET PLUS | D164: CAPRINO | E164: LECHE | F164: ORDEÑO | G164: GRANULADO 3,5 | H164: PIENSO COMPLEMENTARIO | I164: CABRAS EN ORDEÑO | J164: 110 | K164: 180 | L164: 100 | M164: 38 | N164: 74 | O164: 210 | P164: 94 | Q164: Pienso complementario de paja para cabras en ordeño. Los animales dispondrán en todo momento de paja de cereales y algo de forraje y agua limpia y fresca . Puede emplearse racionado o a voluntad. Diseñado especialmente para cabras tipo murciano. | R164: Preferiblemente administrar varias veces al día pero que siempre lo tengan disponible. La transición a este alimento debe ser lenta (15 días mínimo) y paulatina. Recomendamos tener a los animales desparasitados y vacunados de Enterotoxemia. | S164: Pienso destinado a cabras de leche para ser suministrado con paja a voluntad y algo de forraje (mínimo 300gr al día). La paja deberá ser limpia y seca. Los animales dispondrán de agua limpia y fresca. | T164: 11 | U164: 18 | V164: 10 | W164: 3.8 | X164: 7.4 | Y164: 21 | Z164: 0 | AA164: 0 | AB164: 0 | AC164: 0 | AD164: 0 | AE164: 0 | AF164: 0 | AG164: 0 | AH164: 0 | AI164: 0 | AJ164: 0 | AK164: 0 | AL164: 0 | AM164: 0 | AN164: 0 | AO164: 0 | AP164: 0 | AQ164: 0 | AR164: 0 | AS164: 0 | AT164: 0 | AU164: 0 | AV164: 0 | AW164: 0 | AX164: 0 | AY164: 0 | AZ164: 0 | BA164: 0
A165: 323 | B165: TRUE | C165: CAPRILAC INT. F 1500 | D165: CAPRINO | E165: LECHE | F165: ORDEÑO | G165: MEZCLA F | H165: PIENSO COMPLETO | I165: CABRAS EN ORDEÑO | J165: 90 | K165: 158 | L165: 182 | M165: 27 | N165: 75 | O165: 160 | P165: 82 | Q165: Mezcla Integral con fibra larga completa destinada a la alimentacion de cabras de ordeño de media-alta producción. | R165: Los animales dispondrán de agua limpia y fresca a libre servicio. Racionar según recomendaciones de los servicios técnicos. | S165: Mezcla Integral con fibra larga completa destinada a la alimentacion de cabras de ordeño de media-alta producción.Los animales dispondrán de agua limpia y fresca a libre servicio. Racionar según recomendaciones de los servicios técnicos. | T165: 9 | U165: 15.8 | V165: 18.2 | W165: 2.7 | X165: 7.5 | Y165: 16 | Z165: 0 | AA165: 0 | AB165: 0 | AC165: 0 | AD165: 0 | AE165: 0 | AF165: 0 | AG165: 0 | AH165: 0 | AI165: 0 | AJ165: 0 | AK165: 0 | AL165: 0 | AM165: 0 | AN165: 0 | AO165: 0 | AP165: 0 | AQ165: 0 | AR165: 0 | AS165: 0 | AT165: 0 | AU165: 0 | AV165: 0 | AW165: 0 | AX165: 0 | AY165: 0 | AZ165: 0 | BA165: 0
A166: 310 | B166: TRUE | C166: CAPRILAC INT. F 2500 | D166: CAPRINO | E166: LECHE | F166: ORDEÑO | G166: MEZCLA F | H166: PIENSO COMPLETO | I166: CABRAS EN ORDEÑO | J166: 90 | K166: 158 | L166: 175 | M166: 30 | N166: 73 | O166: 195 | P166: 80 | Q166: Mezcla Integral con fibra larga completa destinada a la alimentacion de cabras de ordeño de alta producción.Pienso completo. | R166: Los animales dispondrán de agua limpia y fresca a libre servicio. Racionar según recomendaciones de los servicios técnicos | S166: Mezcla Integral con fibra larga completa destinada a la alimentacion de cabras de ordeño de alta producción.Los animales dispondrán de agua limpia y fresca a libre servicio. | T166: 9 | U166: 15.8 | V166: 17.5 | W166: 3 | X166: 7.3 | Y166: 19.5 | Z166: 0 | AA166: 0 | AB166: 0 | AC166: 0 | AD166: 0 | AE166: 0 | AF166: 0 | AG166: 0 | AH166: 0 | AI166: 0 | AJ166: 0 | AK166: 0 | AL166: 0 | AM166: 0 | AN166: 0 | AO166: 0 | AP166: 0 | AQ166: 0 | AR166: 0 | AS166: 0 | AT166: 0 | AU166: 0 | AV166: 0 | AW166: 0 | AX166: 0 | AY166: 0 | AZ166: 0 | BA166: 0
A167: 364 | B167: TRUE | C167: CAPRILAC INT. F GESTACION | D167: CAPRINO | E167: LECHE | F167: GESTACION | G167: MEZCLA F | H167: PIENSO COMPLETO | I167: CABRAS EN GESTACION | J167: 90 | K167: 145 | L167: 170 | M167: 31 | N167: 72 | O167: 220 | P167: 78 | Q167: Mezcla Integral con fibra larga completa destinada a la alimentacion de cabras de alta producción de leche en laq época de preparto (7 semanas antes del parto).Pienso completo. | R167: Los animales dispondrán de agua limpia y fresca a libre servicio. Racionar según recomendaciones de los servicios técnicos | S167: Mezcla Integral con fibra larga completa destinada a la alimentacion de cabras de alta producción de leche en laq época de preparto (7 semanas antes del parto).Los animales dispondrán de agua limpia y fresca a libre servicio. | T167: 9 | U167: 14.5 | V167: 17 | W167: 3.1 | X167: 7.2 | Y167: 22 | Z167: 0 | AA167: 0 | AB167: 0 | AC167: 0 | AD167: 0 | AE167: 0 | AF167: 0 | AG167: 0 | AH167: 0 | AI167: 0 | AJ167: 0 | AK167: 0 | AL167: 0 | AM167: 0 | AN167: 0 | AO167: 0 | AP167: 0 | AQ167: 0 | AR167: 0 | AS167: 0 | AT167: 0 | AU167: 0 | AV167: 0 | AW167: 0 | AX167: 0 | AY167: 0 | AZ167: 0 | BA167: 0
A168: 327 | B168: TRUE | C168: CAPRILAC INT. F MANTENIMIENTO | D168: CAPRINO | E168: LECHE | F168: ORDEÑO | G168: MEZCLA F | H168: PIENSO COMPLETO | I168: OVEJAS Y CABRAS EN MANTENIMIENTO Y LACTACION | J168: 90 | K168: 158 | L168: 182 | M168: 29 | N168: 82 | O168: 160 | P168: 76 | Q168: Mezcla Integral con fibra larga completa destinada a la alimentacion de cabras de ordeño en fase de mantenimiento o secado.Pienso completo. | R168: Los animales dispondrán de agua limpia y fresca a libre servicio. Racionar según recomendaciones de los servicios técnicos. | S168: Mezcla Integral con fibra larga completa destinada a la alimentacion de cabras de ordeño en fase de mantenimiento o secado.Los animales dispondrán de agua limpia y fresca a libre servicio. Racionar según recomendaciones de los servicios técnicos. | T168: 9 | U168: 15.8 | V168: 18.2 | W168: 2.9 | X168: 8.2 | Y168: 16 | Z168: 0 | AA168: 0 | AB168: 0 | AC168: 0 | AD168: 0 | AE168: 0 | AF168: 0 | AG168: 0 | AH168: 0 | AI168: 0 | AJ168: 0 | AK168: 0 | AL168: 0 | AM168: 0 | AN168: 0 | AO168: 0 | AP168: 0 | AQ168: 0 | AR168: 0 | AS168: 0 | AT168: 0 | AU168: 0 | AV168: 0 | AW168: 0 | AX168: 0 | AY168: 0 | AZ168: 0 | BA168: 0
A169: 324 | B169: TRUE | C169: CAPRILAC INT. N 1500 | D169: CAPRINO | E169: LECHE | F169: ORDEÑO | G169: MEZCLA N | H169: PIENSO COMPLEMENTARIO | I169: CABRAS EN ORDEÑO | J169: 90 | K169: 160 | L169: 129 | M169: 35 | N169: 74 | O169: 240 | P169: 86 | Q169: Mezcla Integral con fibra larga complementaria de forraje destinada a la alimentacion de cabras de ordeño de media-alta producción.Pienso complementario. | R169: Los animales dispondrán de agua limpia y fresca a libre servicio. Racionar según recomendaciones de los servicios técnicos | S169: Mezcla Integral con fibra larga complementaria de forraje destinada a la alimentacion de cabras de ordeño de media-alta producción.Los animales dispondrán de agua limpia y fresca a libre servicio. Racionar según recomendaciones de los servicios técnicos. | T169: 9 | U169: 16 | V169: 12.9 | W169: 3.5 | X169: 7.4 | Y169: 24 | Z169: 0 | AA169: 0 | AB169: 0 | AC169: 0 | AD169: 0 | AE169: 0 | AF169: 0 | AG169: 0 | AH169: 0 | AI169: 0 | AJ169: 0 | AK169: 0 | AL169: 0 | AM169: 0 | AN169: 0 | AO169: 0 | AP169: 0 | AQ169: 0 | AR169: 0 | AS169: 0 | AT169: 0 | AU169: 0 | AV169: 0 | AW169: 0 | AX169: 0 | AY169: 0 | AZ169: 0 | BA169: 0
A170: 311 | B170: TRUE | C170: CAPRILAC INT. N 2500 | D170: CAPRINO | E170: LECHE | F170: ORDEÑO | G170: MEZCLA N | H170: PIENSO COMPLEMENTARIO | I170: CABRAS EN ORDEÑO | J170: 90 | K170: 152 | L170: 110 | M170: 45 | N170: 69 | O170: 290 | P170: 93 | Q170: Mezcla Integral con fibra corta destinada a la alimentacion de cabras de ordeño de media-alta producción.Pienso complementario. | R170: Los animales dispondrán de agua limpia y fresca a libre servicio. Racionar según recomendaciones de los servicios técnicos | S170: Mezcla Integral con fibra corta destinada a la alimentacion de cabras de ordeño de media-alta producción.Los animales dispondrán de agua limpia y fresca a libre servicio. Racionar según recomendaciones de los servicios técnicos. | T170: 9 | U170: 15.2 | V170: 11 | W170: 4.5 | X170: 6.9 | Y170: 29 | Z170: 0 | AA170: 0 | AB170: 0 | AC170: 0 | AD170: 0 | AE170: 0 | AF170: 0 | AG170: 0 | AH170: 0 | AI170: 0 | AJ170: 0 | AK170: 0 | AL170: 0 | AM170: 0 | AN170: 0 | AO170: 0 | AP170: 0 | AQ170: 0 | AR170: 0 | AS170: 0 | AT170: 0 | AU170: 0 | AV170: 0 | AW170: 0 | AX170: 0 | AY170: 0 | AZ170: 0 | BA170: 0
A171: 365 | B171: TRUE | C171: CAPRILAC INT. N GESTACION | D171: CAPRINO | E171: LECHE | F171: GESTACION | G171: MEZCLA N | H171: PIENSO COMPLEMENTARIO | I171: CABRAS EN GESTACION | J171: 90 | K171: 145 | L171: 98 | M171: 41 | N171: 74 | O171: 300 | P171: 92 | Q171: Mezcla Integral con fibra corta completa destinada a la alimentacion de cabras de alta producción de leche en laq época de preparto (7 semanas antes del parto).Pienso complementario. | R171: Los animales dispondrán de agua limpia y fresca a libre servicio. Racionar según recomendaciones de los servicios técnicos | S171: Mezcla Integral con fibra corta completa destinada a la alimentacion de cabras de alta producción de leche en la época de preparto (7 semanas antes del parto).Complementario de forrajes.Los animales dispondrán de agua limpia y fresca a libre servicio. | T171: 9 | U171: 14.5 | V171: 9.8 | W171: 4.1 | X171: 7.4 | Y171: 30 | Z171: 0 | AA171: 0 | AB171: 0 | AC171: 0 | AD171: 0 | AE171: 0 | AF171: 0 | AG171: 0 | AH171: 0 | AI171: 0 | AJ171: 0 | AK171: 0 | AL171: 0 | AM171: 0 | AN171: 0 | AO171: 0 | AP171: 0 | AQ171: 0 | AR171: 0 | AS171: 0 | AT171: 0 | AU171: 0 | AV171: 0 | AW171: 0 | AX171: 0 | AY171: 0 | AZ171: 0 | BA171: 0
A172: 320 | B172: TRUE | C172: CAPRILAC INT. N MANTENIMIENTO | D172: CAPRINO | E172: LECHE | F172: ORDEÑO | G172: MEZCLA N | H172: PIENSO COMPLEMENTARIO | I172: OVEJAS Y CABRAS EN MANTENIMIENTO Y LACTACION | J172: 90 | K172: 155 | L172: 144 | M172: 28 | N172: 86 | O172: 200 | P172: 75 | Q172: Mezcla Integral con fibra larga complementaria de forraje destinada a la alimentacion de cabras en mantenimiento o recuperación de reservas corporales.Pienso complementario. | R172: Los animales dispondrán de agua limpia y fresca a libre servicio. Racionar según recomendaciones de los servicios técnicos. | S172: Mezcla Integral con fibra larga complementaria de forraje destinada a la alimentacion de cabras en mantenimiento o recuperación de reservas corporales.Los animales dispondrán de agua limpia y fresca a libre servicio. | T172: 9 | U172: 15.5 | V172: 14.4 | W172: 2.8 | X172: 8.6 | Y172: 20 | Z172: 0 | AA172: 0 | AB172: 0 | AC172: 0 | AD172: 0 | AE172: 0 | AF172: 0 | AG172: 0 | AH172: 0 | AI172: 0 | AJ172: 0 | AK172: 0 | AL172: 0 | AM172: 0 | AN172: 0 | AO172: 0 | AP172: 0 | AQ172: 0 | AR172: 0 | AS172: 0 | AT172: 0 | AU172: 0 | AV172: 0 | AW172: 0 | AX172: 0 | AY172: 0 | AZ172: 0 | BA172: 0
A173: 287 | B173: TRUE | C173: CAPRILACTAL | D173: CAPRINO | E173: LECHE | F173: ORDEÑO | G173: GRANULADO 3,5 | H173: PIENSO COMPLEMENTARIO | I173: CABRAS EN ORDEÑO | J173: 110 | K173: 175 | L173: 96 | M173: 45 | N173: 97 | O173: 250 | P173: 88 | Q173: Pienso complementario de cabras destinado a ordeño para animales de media-alta producción. Tambien como puenteo o raciones UNIFEED. Complementario de forrajes | R173: Las dosificaciones deben hacerse atendiendo a la producción y a las caractarísticas de la oveja así como a los forrajes de la ración de base Administrar siempre agua limpia y fresca | S173: Pienso de cabras destinado a ordeño para animales de media-alta producción. Tambien como puenteo o raciones UNIFEED. Complementario de forrajes.Administrar siempre agua limpia y fresca | T173: 11 | U173: 17.5 | V173: 9.6 | W173: 4.5 | X173: 9.7 | Y173: 25 | Z173: 0 | AA173: 0 | AB173: 0 | AC173: 0 | AD173: 0 | AE173: 0 | AF173: 0 | AG173: 0 | AH173: 0 | AI173: 0 | AJ173: 0 | AK173: 0 | AL173: 0 | AM173: 0 | AN173: 0 | AO173: 0 | AP173: 0 | AQ173: 0 | AR173: 0 | AS173: 0 | AT173: 0 | AU173: 0 | AV173: 0 | AW173: 0 | AX173: 0 | AY173: 0 | AZ173: 0 | BA173: 0
A174: 288 | B174: TRUE | C174: CAPRILACTAL EXTRA | D174: CAPRINO | E174: LECHE | F174: ORDEÑO | G174: GRANULADO 3,5 | H174: PIENSO COMPLEMENTARIO | I174: CABRAS EN ORDEÑO | J174: 110 | K174: 197 | L174: 78 | M174: 39 | N174: 100 | O174: 260 | P174: 90 | Q174: Pienso complementario de cabras destinado a ordeño para animales de media-alta producción. Tambien como puenteo o raciones UNIFEED. Complementario de forrajes | R174: Las dosificaciones deben hacerse atendiendo a la producción y a las caractarísticas de la oveja así como a los forrajes de la ración de base Administrar siempre agua limpia y fresca | S174: Pienso de cabras destinado a ordeño para animales de media-alta producción. Tambien como puenteo o raciones UNIFEED. Complementario de forrajes.Administrar siempre agua limpia y fresca | T174: 11 | U174: 19.7 | V174: 7.8 | W174: 3.9 | X174: 10 | Y174: 26 | Z174: 0 | AA174: 0 | AB174: 0 | AC174: 0 | AD174: 0 | AE174: 0 | AF174: 0 | AG174: 0 | AH174: 0 | AI174: 0 | AJ174: 0 | AK174: 0 | AL174: 0 | AM174: 0 | AN174: 0 | AO174: 0 | AP174: 0 | AQ174: 0 | AR174: 0 | AS174: 0 | AT174: 0 | AU174: 0 | AV174: 0 | AW174: 0 | AX174: 0 | AY174: 0 | AZ174: 0 | BA174: 0
A175: 289 | B175: TRUE | C175: CAPRILACTAL SUPER (CAPRILEITE) | D175: CAPRINO | E175: LECHE | F175: ORDEÑO | G175: GRANULADO 3,5 | H175: PIENSO COMPLEMENTARIO | I175: CABRAS EN ORDEÑO | J175: 110 | K175: 210 | L175: 70 | M175: 30 | N175: 84 | O175: 350 | P175: 93 | Q175: Pienso complementario de cabras destinado a ordeño para animales de media-alta producción. Tambien como puenteo o raciones UNIFEED. Complementario de forrajes | R175: Las dosificaciones deben hacerse atendiendo a la producción y a las caractarísticas de la oveja así como a los forrajes de la ración de base. Administrar siempre agua limpia y fresca | S175: Pienso de cabras destinado a ordeño para animales de media-alta producción. Tambien como puenteo o raciones UNIFEED. Complementario de forrajes.Administrar siempre agua limpia y fresca | T175: 11 | U175: 21 | V175: 7 | W175: 3 | X175: 8.4 | Y175: 35 | Z175: 0 | AA175: 0 | AB175: 0 | AC175: 0 | AD175: 0 | AE175: 0 | AF175: 0 | AG175: 0 | AH175: 0 | AI175: 0 | AJ175: 0 | AK175: 0 | AL175: 0 | AM175: 0 | AN175: 0 | AO175: 0 | AP175: 0 | AQ175: 0 | AR175: 0 | AS175: 0 | AT175: 0 | AU175: 0 | AV175: 0 | AW175: 0 | AX175: 0 | AY175: 0 | AZ175: 0 | BA175: 0
A176: 322 | B176: TRUE | C176: CAPRILACTAL TOP | D176: CAPRINO | E176: LECHE | F176: ORDEÑO | G176: GRANULADO 3,5 | H176: PIENSO COMPLEMENTARIO | I176: CABRAS EN ORDEÑO | J176: 110 | K176: 220 | L176: 72 | M176: 35 | N176: 80 | O176: 280 | P176: 96 | Q176: Pienso de cabras lecheras complementario de forraje para suministrar a ovejas de alta producción en ordeño, en pesebre o sala. Racionar según ración de volumen, peso y producción. | R176: Los animales dispondrán en todo momento de agua limpia y fresca a libre servicio. Consultar a los servicios técnicos. | S176: Pienso de cabras lecheras para suministrar a ovejas de alta producción.Complementario de forraje.Los animales dispondrán en todo momento de agua limpia y fresca a libre servicio. | T176: 11 | U176: 22 | V176: 7.2 | W176: 3.5 | X176: 8 | Y176: 28 | Z176: 0 | AA176: 0 | AB176: 0 | AC176: 0 | AD176: 0 | AE176: 0 | AF176: 0 | AG176: 0 | AH176: 0 | AI176: 0 | AJ176: 0 | AK176: 0 | AL176: 0 | AM176: 0 | AN176: 0 | AO176: 0 | AP176: 0 | AQ176: 0 | AR176: 0 | AS176: 0 | AT176: 0 | AU176: 0 | AV176: 0 | AW176: 0 | AX176: 0 | AY176: 0 | AZ176: 0 | BA176: 0
A177: 290 | B177: TRUE | C177: CAPRILACTAL TRIPLEX | D177: CAPRINO | E177: LECHE | F177: ORDEÑO | G177: GRANULADO 3,5 | H177: PIENSO COMPLEMENTARIO | I177: CABRAS EN ORDEÑO | J177: 110 | K177: 190 | L177: 58 | M177: 113 | N177: 56 | O177: 250 | P177: 112 | Q177: Pienso de cabras lecheras complementario de forraje para suministrar a cabras de alta producción en ordeño, en pesebre o sala. Racionar según ración de volumen, peso y producción. | R177: Los animales dispondrán en todo momento de agua limpia y fresca a libre servicio. Consultar a los servicios técnicos. | S177: Pienso de cabras destinado a ordeño para animales de alta producción. Tambien como puenteo o raciones UNIFEED. Complementario de forrajes.Administrar siempre agua limpia y fresca | T177: 11 | U177: 19 | V177: 5.8 | W177: 11.3 | X177: 5.6 | Y177: 25 | Z177: 0 | AA177: 0 | AB177: 0 | AC177: 0 | AD177: 0 | AE177: 0 | AF177: 0 | AG177: 0 | AH177: 0 | AI177: 0 | AJ177: 0 | AK177: 0 | AL177: 0 | AM177: 0 | AN177: 0 | AO177: 0 | AP177: 0 | AQ177: 0 | AR177: 0 | AS177: 0 | AT177: 0 | AU177: 0 | AV177: 0 | AW177: 0 | AX177: 0 | AY177: 0 | AZ177: 0 | BA177: 0
A178: 379 | B178: TRUE | C178: CAPRINOLAC | D178: CAPRINO | E178: LECHE | F178: ORDEÑO | G178: GRANULADO 3,5 | H178: PIENSO COMPLEMENTARIO | I178: CABRAS EN ORDEÑO | J178: 110 | K178: 175 | L178: 80 | M178: 35 | N178: 73 | O178: 320 | P178: 89 | Q178: Pienso complementario de cabras destinado a ordeño para animales de alta producción. Tambien como puenteo o raciones UNIFEED. Complementario de forrajes | R178: Las dosificaciones deben hacerse atendiendo a la producción y a las características de la oveja así como a los forrajes de la ración de base Administrar siempre agua limpia y fresca | S178: Pienso de cabras destinado a ordeño para animales de alta producción. Tambien como puenteo o raciones UNIFEED. Complementario de forrajes.Administrar siempre agua limpia y fresca | T178: 11 | U178: 17.5 | V178: 8 | W178: 3.5 | X178: 7.3 | Y178: 32 | Z178: 0 | AA178: 0 | AB178: 0 | AC178: 0 | AD178: 0 | AE178: 0 | AF178: 0 | AG178: 0 | AH178: 0 | AI178: 0 | AJ178: 0 | AK178: 0 | AL178: 0 | AM178: 0 | AN178: 0 | AO178: 0 | AP178: 0 | AQ178: 0 | AR178: 0 | AS178: 0 | AT178: 0 | AU178: 0 | AV178: 0 | AW178: 0 | AX178: 0 | AY178: 0 | AZ178: 0 | BA178: 0
A179: 380 | B179: TRUE | C179: CAPRINOLAC TOP | D179: CAPRINO | E179: LECHE | F179: ORDEÑO | G179: GRANULADO 3,5 | H179: PIENSO COMPLEMENTARIO | I179: CABRAS EN ORDEÑO | J179: 110 | K179: 221 | L179: 56 | M179: 35 | N179: 69 | O179: 320 | P179: 96 | Q179: Pienso complementario de cabras destinado a ordeño para animales de alta producción. Tambien como puenteo o raciones UNIFEED. Complementario de forrajes | R179: Las dosificaciones deben hacerse atendiendo a la producción y a las características de la oveja así como a los forrajes de la ración de base Administrar siempre agua limpia y fresca | S179: Pienso de cabras destinado a ordeño para animales de alta producción. Tambien como puenteo o raciones UNIFEED. Complementario de forrajes.Administrar siempre agua limpia y fresca | T179: 11 | U179: 22.1 | V179: 5.6 | W179: 3.5 | X179: 6.9 | Y179: 32 | Z179: 0 | AA179: 0 | AB179: 0 | AC179: 0 | AD179: 0 | AE179: 0 | AF179: 0 | AG179: 0 | AH179: 0 | AI179: 0 | AJ179: 0 | AK179: 0 | AL179: 0 | AM179: 0 | AN179: 0 | AO179: 0 | AP179: 0 | AQ179: 0 | AR179: 0 | AS179: 0 | AT179: 0 | AU179: 0 | AV179: 0 | AW179: 0 | AX179: 0 | AY179: 0 | AZ179: 0 | BA179: 0
A180: 285 | B180: TRUE | C180: CAPRIRECRIA | D180: CAPRINO | E180: LECHE | F180: REPOSICION | G180: GRANULADO 3,5 | H180: PIENSO COMPLEMENTARIO | I180: CHIVAS DE REPOSICION | J180: 110 | K180: 165 | L180: 82 | M180: 35 | N180: 78 | O180: 311 | P180: 89 | Q180: Pienso complementario destinados a chivas de reposición desde los 3 a los 6-7 meses. Se puede suministar a voluntad con paja ad libitumn pero es aconsejable el aporte de forrajes | R180: Los animales dispondrán en todo momento de agua limpia y fresca a libre servicio. Consultar a los servicios técnicos. | S180: Pienso destinado a chivas de reposición desde los 3 a los 6-7 meses. Se puede suministar a voluntad con paja ad libitumn pero es aconsejable el aporte de forrajes.Los animales dispondrán en todo momento de agua limpia y fresca a libre servicio. | T180: 11 | U180: 16.5 | V180: 8.2 | W180: 3.5 | X180: 7.8 | Y180: 31.1 | Z180: 0 | AA180: 0 | AB180: 0 | AC180: 0 | AD180: 0 | AE180: 0 | AF180: 0 | AG180: 0 | AH180: 0 | AI180: 0 | AJ180: 0 | AK180: 0 | AL180: 0 | AM180: 0 | AN180: 0 | AO180: 0 | AP180: 0 | AQ180: 0 | AR180: 0 | AS180: 0 | AT180: 0 | AU180: 0 | AV180: 0 | AW180: 0 | AX180: 0 | AY180: 0 | AZ180: 0 | BA180: 0
A181: 286 | B181: TRUE | C181: CAPRIRECRIA CONTINUACION | D181: CAPRINO | E181: LECHE | F181: REPOSICION | G181: GRANULADO 3,5 | H181: PIENSO COMPLEMENTARIO | I181: CHIVAS DE REPOSICION | J181: 110 | K181: 160 | L181: 90 | M181: 29 | N181: 81 | O181: 280 | P181: 82 | Q181: Pienso complementario destinados a chivasde reposición desde los 6-7 meses hasta el primer preparto. Suministrar racionado a razón de 0.7 Kg máximo por día como complementario de forrajes. | R181: Los animales dispondrán en todo momento de agua limpia y fresca a libre servicio. | S181: Pienso destinados a chivasde reposición desde los 6-7 meses hasta el primer preparto. Suministrar racionado a razón de 0.7 Kg máximo por día como complementario de forrajes.Los animales dispondrán en todo momento de agua limpia y fresca a libre servicio. | T181: 11 | U181: 16 | V181: 9 | W181: 2.9 | X181: 8.1 | Y181: 28 | Z181: 0 | AA181: 0 | AB181: 0 | AC181: 0 | AD181: 0 | AE181: 0 | AF181: 0 | AG181: 0 | AH181: 0 | AI181: 0 | AJ181: 0 | AK181: 0 | AL181: 0 | AM181: 0 | AN181: 0 | AO181: 0 | AP181: 0 | AQ181: 0 | AR181: 0 | AS181: 0 | AT181: 0 | AU181: 0 | AV181: 0 | AW181: 0 | AX181: 0 | AY181: 0 | AZ181: 0 | BA181: 0
A182: 291 | B182: TRUE | C182: CEREGEST | D182: OVINO/CAPRINO | E182: LECHE | F182: GESTACION | G182: GRANULADO 3,5 | H182: PIENSO COMPLEMENTARIO | I182: OVEJAS Y CABRAS EN GESTACION | J182: 110 | K182: 143 | L182: 82 | M182: 28 | N182: 65 | O182: 360 | P182: 92 | Q182: Pienso complementario especial para el preparto de ovejas y cabras de ordeño . Utilizar como complementario de cereales los últimos 45 días de antes del parto. | R182: No se recomienda la utilización de paja en esta fase sobre todo en razas muy lecheras y prolíficas.Los animales dispondrán de agua limpia y fresca a libre disposición. | S182: Pienso especial para el preparto de ovejas y cabras de ordeño . Utilizar como complementario de cereales los últimos 45 días de antes del parto.Complementario de forrajes. Los animales dispondrán de agua limpia y fresca a libre disposición. | T182: 11 | U182: 14.3 | V182: 8.2 | W182: 2.8 | X182: 6.5 | Y182: 36 | Z182: 0 | AA182: 0 | AB182: 0 | AC182: 0 | AD182: 0 | AE182: 0 | AF182: 0 | AG182: 0 | AH182: 0 | AI182: 0 | AJ182: 0 | AK182: 0 | AL182: 0 | AM182: 0 | AN182: 0 | AO182: 0 | AP182: 0 | AQ182: 0 | AR182: 0 | AS182: 0 | AT182: 0 | AU182: 0 | AV182: 0 | AW182: 0 | AX182: 0 | AY182: 0 | AZ182: 0 | BA182: 0
A183: 343 | B183: TRUE | C183: CEREGEST | D183: OVINO/CAPRINO | E183: LECHE | F183: GESTACION | G183: GRANULADO 3,5 | H183: PIENSO COMPLEMENTARIO | I183: OVEJAS Y CABRAS EN GESTACION | J183: 110 | K183: 150 | L183: 70 | M183: 27 | N183: 73 | O183: 360 | P183: 91 | Q183: Concentrado complementar especialmente desenhado, para a altura de preparto (60-45dias antes do parto), para ovelhas e cabras de leite. Pode ser fornecido tambem com outros cereais. | R183: Não se recomenda a utilização de palha nesta fase, principlmente em raças muito proliferas e produtivas. Sempre com agua fresca e limpa, á disposição. Consulte serviços tecnicos Nanta. | S183: Pienso especial para el preparto de ovejas y cabras de ordeño . Utilizar como complementario de cereales los últimos 45 días de antes del parto.Complementario de forrajes. Los animales dispondrán de agua limpia y fresca a libre disposición. | T183: 11 | U183: 15 | V183: 7 | W183: 2.7 | X183: 7.3 | Y183: 36 | Z183: 0 | AA183: 0 | AB183: 0 | AC183: 0 | AD183: 0 | AE183: 0 | AF183: 0 | AG183: 0 | AH183: 0 | AI183: 0 | AJ183: 0 | AK183: 0 | AL183: 0 | AM183: 0 | AN183: 0 | AO183: 0 | AP183: 0 | AQ183: 0 | AR183: 0 | AS183: 0 | AT183: 0 | AU183: 0 | AV183: 0 | AW183: 0 | AX183: 0 | AY183: 0 | AZ183: 0 | BA183: 0
A184: 293 | B184: TRUE | C184: CEREGEST PLUS | D184: OVINO/CAPRINO | E184: LECHE | F184: GESTACION | G184: GRANULADO 3,5 | H184: PIENSO COMPLEMENTARIO | I184: OVEJAS Y CABRAS EN GESTACION | J184: 110 | K184: 154 | L184: 85 | M184: 30 | N184: 65 | O184: 350 | P184: 91 | Q184: Pienso complementario para preparto (últimos 45 dias de gestación) de ovejas y cabras de aptitud lechera. Agua ad lib.Se utilizará como complemeto de ración de volumen, con forrajes de calidad. La paja está desaconsejada en este estadío productivo. | R184: Debe utilizarse un mínimo de 0,7 Kg de alfalfa heno o deshidratada en rama. No sobredosificar , máxime si el estado de carnes de los animales es alto. Utilizar de 0,7 a 1 Kg dependiendo de la raza, la prolificidad y los rendimientos lecheros. | S184: Pienso especial para el preparto de ovejas y cabras de ordeño . Utilizar como complementario de cereales los últimos 45 días de antes del parto.Complementario de forrajes. Los animales dispondrán de agua limpia y fresca a libre disposición. | T184: 11 | U184: 15.4 | V184: 8.5 | W184: 3 | X184: 6.5 | Y184: 35 | Z184: 0 | AA184: 0 | AB184: 0 | AC184: 0 | AD184: 0 | AE184: 0 | AF184: 0 | AG184: 0 | AH184: 0 | AI184: 0 | AJ184: 0 | AK184: 0 | AL184: 0 | AM184: 0 | AN184: 0 | AO184: 0 | AP184: 0 | AQ184: 0 | AR184: 0 | AS184: 0 | AT184: 0 | AU184: 0 | AV184: 0 | AW184: 0 | AX184: 0 | AY184: 0 | AZ184: 0 | BA184: 0
A185: 344 | B185: TRUE | C185: CEREGEST PLUS | D185: OVINO/CAPRINO | E185: LECHE | F185: GESTACION | G185: GRANULADO 3,5 | H185: PIENSO COMPLEMENTARIO | I185: OVEJAS Y CABRAS EN GESTACION | J185: 110 | K185: 145 | L185: 93 | M185: 27 | N185: 56 | O185: 340 | P185: 92 | Q185: Concentrado complementar especialmente desenhado, para a altura de preparto (60-45dias antes do parto), para ovelhas e cabras de leite. Pode ser fornecido tambem com outros cereais. | R185: Não se recomenda a utilização de palha nesta fase, principlmente em raças muito proliferas e produtivas. Recomenda-se 0,7kg feno luzerna, e entre 0,7-1kg concentrado. Sempre com agua fresca e limpa, á disposição. Consulte serviços tecnicos Nanta. | S185: Pienso especial para el preparto de ovejas y cabras de ordeño . Utilizar como complementario de cereales los últimos 45 días de antes del parto.Complementario de forrajes. Los animales dispondrán de agua limpia y fresca a libre disposición. | T185: 11 | U185: 14.5 | V185: 9.3 | W185: 2.7 | X185: 5.6 | Y185: 34 | Z185: 0 | AA185: 0 | AB185: 0 | AC185: 0 | AD185: 0 | AE185: 0 | AF185: 0 | AG185: 0 | AH185: 0 | AI185: 0 | AJ185: 0 | AK185: 0 | AL185: 0 | AM185: 0 | AN185: 0 | AO185: 0 | AP185: 0 | AQ185: 0 | AR185: 0 | AS185: 0 | AT185: 0 | AU185: 0 | AV185: 0 | AW185: 0 | AX185: 0 | AY185: 0 | AZ185: 0 | BA185: 0
A186: 294 | B186: TRUE | C186: CERELACTAL-200 | D186: OVINO | E186: LECHE | F186: ORDEÑO | G186: GRANULADO 3,5 | H186: PIENSO COMPLEMENTARIO | I186: OVEJAS Y CABRAS EN LACTACION | J186: 110 | K186: 175 | L186: 80 | M186: 30 | N186: 82 | O186: 270 | P186: 87 | Q186: Pienso complementario de forrajes destinado a ordeño para animales de media-alta producción. Tambien como puenteo o raciones UNIFEED. Complementario de forrajes | R186: Las dosificaciones deben hacerse atendiendo a la producción y a las caractarísticas de la oveja así como a los forrajes de la ración de base. Administrar siempre agua limpia y fresca. | S186: Pienso destinado a ordeño para animales de media-alta producción. Tambien como puenteo o raciones UNIFEED.Complementario de forrajes. Administrar siempre agua limpia y fresca. | T186: 11 | U186: 17.5 | V186: 8 | W186: 3 | X186: 8.2 | Y186: 27 | Z186: 0 | AA186: 0 | AB186: 0 | AC186: 0 | AD186: 0 | AE186: 0 | AF186: 0 | AG186: 0 | AH186: 0 | AI186: 0 | AJ186: 0 | AK186: 0 | AL186: 0 | AM186: 0 | AN186: 0 | AO186: 0 | AP186: 0 | AQ186: 0 | AR186: 0 | AS186: 0 | AT186: 0 | AU186: 0 | AV186: 0 | AW186: 0 | AX186: 0 | AY186: 0 | AZ186: 0 | BA186: 0
A187: 295 | B187: TRUE | C187: CERELACTAL-300 | D187: OVINO | E187: LECHE | F187: ORDEÑO | G187: GRANULADO 3,5 | H187: PIENSO COMPLEMENTARIO | I187: OVEJAS Y CABRAS EN LACTACION | J187: 110 | K187: 180 | L187: 110 | M187: 48 | N187: 89 | O187: 240 | P187: 95 | Q187: Pienso complementario de forrajes destinado a ordeño para animales de alta producción. Tambien como puenteo o raciones UNIFEED. Complementario de forrajes | R187: Las dosificaciones deben hacerse atendiendo a la producción y a las caractarísticas de la oveja así como a los forrajes de la ración de base.Los animales dispondrán de agua limpia y fresca a libre disposición. | S187: Pienso destinado a ordeño para animales de alta producción. Tambien como puenteo o raciones UNIFEED.Complementario de forrajes. Administrar siempre agua limpia y fresca. | T187: 11 | U187: 18 | V187: 11 | W187: 4.8 | X187: 8.9 | Y187: 24 | Z187: 0 | AA187: 0 | AB187: 0 | AC187: 0 | AD187: 0 | AE187: 0 | AF187: 0 | AG187: 0 | AH187: 0 | AI187: 0 | AJ187: 0 | AK187: 0 | AL187: 0 | AM187: 0 | AN187: 0 | AO187: 0 | AP187: 0 | AQ187: 0 | AR187: 0 | AS187: 0 | AT187: 0 | AU187: 0 | AV187: 0 | AW187: 0 | AX187: 0 | AY187: 0 | AZ187: 0 | BA187: 0
A188: 342 | B188: TRUE | C188: CERERECRIA | D188: OVINO/CAPRINO | E188: LECHE | F188: REPOSICION | G188: GRANULADO 3,5 | H188: PIENSO COMPLEMENTARIO | I188: CORDERAS Y CHIVAS DE REPOSICION | J188: 110 | K188: 165 | L188: 104 | M188: 27 | N188: 74 | O188: 290 | P188: 88 | Q188: Concentrado complementar para recria de borregas e chibas de substituição, apartir dos 3 meses de vida até 2 meses antes do parto. Sempre com palha/forragem de boa qualidade, e agua fresca e limpa, á disposição. | R188: Concentrado complementar para recria de borregas e chibas de substituição, apartir dos 3 meses de vida até 2 meses antes do parto. Sumnistrar á livre disposição ou restringido dependendo da quantidade e qualidade das forragens disponiveis. | S188: Pienso destinados a corderas y chivas de reposición desde los 3 a los 6-7 meses. Se puede suministar a voluntad con paja ad libitumn pero es aconsejable el aporte de forrajes.Los animales dispondrán en todo momento de agua limpia y fresca. | T188: 11 | U188: 16.5 | V188: 10.4 | W188: 2.7 | X188: 7.4 | Y188: 29 | Z188: 0 | AA188: 0 | AB188: 0 | AC188: 0 | AD188: 0 | AE188: 0 | AF188: 0 | AG188: 0 | AH188: 0 | AI188: 0 | AJ188: 0 | AK188: 0 | AL188: 0 | AM188: 0 | AN188: 0 | AO188: 0 | AP188: 0 | AQ188: 0 | AR188: 0 | AS188: 0 | AT188: 0 | AU188: 0 | AV188: 0 | AW188: 0 | AX188: 0 | AY188: 0 | AZ188: 0 | BA188: 0
A189: 374 | B189: TRUE | C189: INOGEST | D189: OVINO/CAPRINO | E189: LECHE | F189: GESTACION | G189: GRANULADO 3,5 | H189: PIENSO COMPLEMENTARIO | I189: OVEJAS Y CABRAS EN GESTACION | J189: 110 | K189: 143 | L189: 71 | M189: 28 | N189: 67 | O189: 375 | P189: 92 | Q189: Pienso complementario especial para el preparto de ovejas y cabras de ordeño . Utilizar como complementario de forrajes los últimos 45 días de antes del parto. | R189: No se recomienda la utilización de paja en esta fase sobre todo en razas muy lecheras y prolíficas.Los animales dispondrán de agua limpia y fresca a libre disposición. | S189: Pienso especial para el preparto de ovejas y cabras de ordeño . Utilizar como complementario de forrajes los últimos 45 días de antes del parto. Los animales dispondrán de agua limpia y fresca a libre disposición. | T189: 11 | U189: 14.3 | V189: 7.1 | W189: 2.8 | X189: 6.7 | Y189: 37.5 | Z189: 0 | AA189: 0 | AB189: 0 | AC189: 0 | AD189: 0 | AE189: 0 | AF189: 0 | AG189: 0 | AH189: 0 | AI189: 0 | AJ189: 0 | AK189: 0 | AL189: 0 | AM189: 0 | AN189: 0 | AO189: 0 | AP189: 0 | AQ189: 0 | AR189: 0 | AS189: 0 | AT189: 0 | AU189: 0 | AV189: 0 | AW189: 0 | AX189: 0 | AY189: 0 | AZ189: 0 | BA189: 0
A190: 375 | B190: TRUE | C190: INOGEST PLUS | D190: OVINO/CAPRINO | E190: LECHE | F190: GESTACION | G190: GRANULADO 3,5 | H190: PIENSO COMPLEMENTARIO | I190: OVEJAS Y CABRAS EN GESTACION | J190: 110 | K190: 143 | L190: 71 | M190: 28 | N190: 65 | O190: 375 | P190: 92 | Q190: Pienso complementario para preparto (últimos 45 dias de gestación) de ovejas y cabras de aptitud lechera. Agua ad lib.Se utilizará como complemento de ración de volumen, con forrajes de calidad. La paja está desaconsejada en este estadío productivo. | R190: Debe utilizarse un mínimo de 0,7 Kg de alfalfa heno o deshidratada en rama. No sobredosificar , máxime si el estado de carnes de los animales es alto. Utilizar de 0,7 a 1 Kg dependiendo de la raza, la prolificidad y los rendimientos lecheros. | S190: Pienso especial para el preparto de ovejas y cabras de ordeño . Utilizar los últimos 45 días de antes del parto.Complementario de forrajes. Los animales dispondrán de agua limpia y fresca a libre disposición. | T190: 11 | U190: 14.3 | V190: 7.1 | W190: 2.8 | X190: 6.5 | Y190: 37.5 | Z190: 0 | AA190: 0 | AB190: 0 | AC190: 0 | AD190: 0 | AE190: 0 | AF190: 0 | AG190: 0 | AH190: 0 | AI190: 0 | AJ190: 0 | AK190: 0 | AL190: 0 | AM190: 0 | AN190: 0 | AO190: 0 | AP190: 0 | AQ190: 0 | AR190: 0 | AS190: 0 | AT190: 0 | AU190: 0 | AV190: 0 | AW190: 0 | AX190: 0 | AY190: 0 | AZ190: 0 | BA190: 0
A191: 372 | B191: TRUE | C191: INOLAC | D191: OVINO/CAPRINO | E191: LECHE | F191: ORDEÑO | G191: GRANULADO 3,5 | H191: PIENSO COMPLEMENTARIO | I191: OVEJAS Y CABRAS EN LACTACION | J191: 110 | K191: 170 | L191: 96 | M191: 35 | N191: 76 | O191: 260 | P191: 87 | Q191: Pienso complementario de forrajes destinado a ordeño para animales de alta producción.Especialmente diseñado para altas ingestas de concentrado (forrajes de mala calidad o suministro 2 veces día) | R191: Las dosificaciones deben hacerse atendiendo a la producción y a las caractarísticas de la oveja así como a los forrajes de la ración de base. Administrar siempre agua limpia y fresca. | S191: Pienso destinado a ordeño para animales de alta producción según pesdo vivo y nivel productivo. Complementario de forrajes. Administrar siempre agua limpia y fresca. | T191: 11 | U191: 17 | V191: 9.6 | W191: 3.5 | X191: 7.6 | Y191: 26 | Z191: 0 | AA191: 0 | AB191: 0 | AC191: 0 | AD191: 0 | AE191: 0 | AF191: 0 | AG191: 0 | AH191: 0 | AI191: 0 | AJ191: 0 | AK191: 0 | AL191: 0 | AM191: 0 | AN191: 0 | AO191: 0 | AP191: 0 | AQ191: 0 | AR191: 0 | AS191: 0 | AT191: 0 | AU191: 0 | AV191: 0 | AW191: 0 | AX191: 0 | AY191: 0 | AZ191: 0 | BA191: 0
A192: 376 | B192: TRUE | C192: INOLAC EQ | D192: OVINO/CAPRINO | E192: LECHE | F192: ORDEÑO | G192: GRANULADO 3,5 | H192: PIENSO COMPLEMENTARIO | I192: OVEJAS Y CABRAS EN LACTACION | J192: 110 | K192: 195 | L192: 70 | M192: 54 | N192: 68 | O192: 260 | P192: 92 | Q192: Pienso complementario de ovejas/cabras destinado a ordeño para animales de alta producción. Tambien como puenteo o raciones UNIFEED. Complementario de forrajes. | R192: Las dosificaciones deben hacerse atendiendo a la producción y a las características de la oveja así como a los forrajes de la ración de base Administrar siempre agua limpia y fresca. | S192: Pienso para animales destinados a ordeño para animales de alta producción. Tambien como puenteo o raciones UNIFEED.Complementario de forrajes. Administrar siempre agua limpia y fresca. | T192: 11 | U192: 19.5 | V192: 7 | W192: 5.4 | X192: 6.8 | Y192: 26 | Z192: 0 | AA192: 0 | AB192: 0 | AC192: 0 | AD192: 0 | AE192: 0 | AF192: 0 | AG192: 0 | AH192: 0 | AI192: 0 | AJ192: 0 | AK192: 0 | AL192: 0 | AM192: 0 | AN192: 0 | AO192: 0 | AP192: 0 | AQ192: 0 | AR192: 0 | AS192: 0 | AT192: 0 | AU192: 0 | AV192: 0 | AW192: 0 | AX192: 0 | AY192: 0 | AZ192: 0 | BA192: 0
A193: 373 | B193: TRUE | C193: INOLAC EXTRA | D193: OVINO/CAPRINO | E193: LECHE | F193: ORDEÑO | G193: GRANULADO 3,5 | H193: PIENSO COMPLEMENTARIO | I193: OVEJAS Y CABRAS EN LACTACION | J193: 110 | K193: 185 | L193: 86 | M193: 40 | N193: 70 | O193: 259 | P193: 93 | Q193: Pienso complementario de forrajes destinado a ordeño para animales de alta exigencia productiva.Especialmente diseñado para altas ingestas de concentrado (forrajes de mala calidad o suministro 2 veces día) | R193: Las dosificaciones deben hacerse atendiendo a la producción y a las caractarísticas de la oveja así como a los forrajes de la ración de base. Administrar siempre agua limpia y fresca. | S193: Pienso destinado a ordeño para animales de alta producción según peso vivo y nivel productivo. Complementario de forrajes. Administrar siempre agua limpia y fresca. | T193: 11 | U193: 18.5 | V193: 8.6 | W193: 4 | X193: 7 | Y193: 25.9 | Z193: 0 | AA193: 0 | AB193: 0 | AC193: 0 | AD193: 0 | AE193: 0 | AF193: 0 | AG193: 0 | AH193: 0 | AI193: 0 | AJ193: 0 | AK193: 0 | AL193: 0 | AM193: 0 | AN193: 0 | AO193: 0 | AP193: 0 | AQ193: 0 | AR193: 0 | AS193: 0 | AT193: 0 | AU193: 0 | AV193: 0 | AW193: 0 | AX193: 0 | AY193: 0 | AZ193: 0 | BA193: 0
A194: 413 | B194: TRUE | C194: KOMPLET GESTACION | D194: OVINO/CAPRINO | E194: LECHE | F194: GESTACION | G194: GRANULADO 3,5 | H194: PIENSO COMPLEMENTARIO | I194: OVEJAS Y CABRAS EN GESTACION | J194: 110 | K194: 175 | L194: 90 | M194: 25 | N194: 83 | O194: 295 | P194: 90 | Q194: Pienso complementario especial para el preparto de ovejas y cabras de ordeño . Utilizar como complementario de forrajes (incluido paja) los últimos 45 días de antes del parto. | R194: racionar adecuadamente según peso vivo y prolificidad. .Los animales dispondrán de agua limpia y fresca a libre disposición. | S194: Pienso especial para el preparto de ovejas y cabras de ordeño . Utilizar como complementario de forrajes (incluso paja) los últimos 45 días de antes del parto. Los animales dispondrán de agua limpia y fresca a libre disposición. | T194: 11 | U194: 17.5 | V194: 9 | W194: 2.5 | X194: 8.3 | Y194: 29.5 | Z194: 0 | AA194: 0 | AB194: 0 | AC194: 0 | AD194: 0 | AE194: 0 | AF194: 0 | AG194: 0 | AH194: 0 | AI194: 0 | AJ194: 0 | AK194: 0 | AL194: 0 | AM194: 0 | AN194: 0 | AO194: 0 | AP194: 0 | AQ194: 0 | AR194: 0 | AS194: 0 | AT194: 0 | AU194: 0 | AV194: 0 | AW194: 0 | AX194: 0 | AY194: 0 | AZ194: 0 | BA194: 0
A195: 414 | B195: TRUE | C195: KOMPLET RECRIA | D195: OVINO/CAPRINO | E195: LECHE | F195: REPOSICION | G195: GRANULADO 3,5 | H195: PIENSO COMPLEMENTARIO | I195: CORDERAS Y CHIVAS DE REPOSICION | J195: 110 | K195: 170 | L195: 100 | M195: 38 | N195: 74 | O195: 270 | P195: 91 | Q195: Pienso complementario destinados a corderas y chivas de reposición desde los 3 hasta el preparto. Se puede suministar a voluntad con paja ad libitumn en la primera fase- Despues racionado. El aporte de forrajes es siempre preferible. | R195: Los animales dispondrán en todo momento de agua limpia y fresca a libre servicio. Consultar a los servicios técnicos. | S195: Pienso destinados a corderas de reposición Se puede suministrar con paja como único forraje Racionar según servicios técnicos.Los animales dispondrán en todo momento de agua limpia y fresca a libre servicio. | T195: 11 | U195: 17 | V195: 10 | W195: 3.8 | X195: 7.4 | Y195: 27 | Z195: 0 | AA195: 0 | AB195: 0 | AC195: 0 | AD195: 0 | AE195: 0 | AF195: 0 | AG195: 0 | AH195: 0 | AI195: 0 | AJ195: 0 | AK195: 0 | AL195: 0 | AM195: 0 | AN195: 0 | AO195: 0 | AP195: 0 | AQ195: 0 | AR195: 0 | AS195: 0 | AT195: 0 | AU195: 0 | AV195: 0 | AW195: 0 | AX195: 0 | AY195: 0 | AZ195: 0 | BA195: 0
A196: 369 | B196: TRUE | C196: MERILAC INT. N GESTACION | D196: OVINO | E196: LECHE | F196: GESTACION | G196: MEZCLA N | H196: PIENSO COMPLEMENTARIO | I196: OVEJAS EN GESTACION | J196: 90 | K196: 145 | L196: 90 | M196: 35 | N196: 71 | O196: 300 | P196: 90 | Q196: Mezcla Integral con fibra corta completa destinada a la alimentacion de ovejas de media-alta producción de leche en laq época de preparto (7 semanas antes del parto).Pienso complementario. | R196: Los animales dispondrán de agua limpia y fresca a libre servicio. Racionar según recomendaciones de los servicios técnicos | S196: Mezcla Integral con fibra corta completa destinada a la alimentacion de ovejas de media producción de leche en la época de preparto (7 semanas antes del parto).Complementario de forrajes.Los animales dispondrán de agua limpia y fresca a libre servicio. | T196: 9 | U196: 14.5 | V196: 9 | W196: 3.5 | X196: 7.1 | Y196: 30 | Z196: 0 | AA196: 0 | AB196: 0 | AC196: 0 | AD196: 0 | AE196: 0 | AF196: 0 | AG196: 0 | AH196: 0 | AI196: 0 | AJ196: 0 | AK196: 0 | AL196: 0 | AM196: 0 | AN196: 0 | AO196: 0 | AP196: 0 | AQ196: 0 | AR196: 0 | AS196: 0 | AT196: 0 | AU196: 0 | AV196: 0 | AW196: 0 | AX196: 0 | AY196: 0 | AZ196: 0 | BA196: 0
A197: 368 | B197: TRUE | C197: MERILAC INTEGRAL F 1000 | D197: OVINO | E197: LECHE | F197: ORDEÑO | G197: MEZCLA F | H197: PIENSO COMPLETO | I197: OVEJAS EN ORDEÑO | J197: 90 | K197: 170 | L197: 155 | M197: 34 | N197: 79 | O197: 108 | P197: 79 | Q197: Mezcla Integral con fibra larga completa destinada a la alimentacion de ovejas de ordeño de media-alta producción.Pienso complementario | R197: Los animales dispondrán de agua limpia y fresca a libre servicio. Racionar según recomendaciones de los servicios técnicos. | S197: Mezcla Integral con fibra larga completa destinada a la alimentacion de ovejas de ordeño de media-alta producción.Los animales dispondrán de agua limpia y fresca a libre servicio. Racionar según recomendaciones de los servicios técnicos | T197: 9 | U197: 17 | V197: 15.5 | W197: 3.4 | X197: 7.9 | Y197: 10.8 | Z197: 0 | AA197: 0 | AB197: 0 | AC197: 0 | AD197: 0 | AE197: 0 | AF197: 0 | AG197: 0 | AH197: 0 | AI197: 0 | AJ197: 0 | AK197: 0 | AL197: 0 | AM197: 0 | AN197: 0 | AO197: 0 | AP197: 0 | AQ197: 0 | AR197: 0 | AS197: 0 | AT197: 0 | AU197: 0 | AV197: 0 | AW197: 0 | AX197: 0 | AY197: 0 | AZ197: 0 | BA197: 0
A198: 381 | B198: TRUE | C198: NANTACOR | D198: CORDEROS | E198: LECHE | F198: ESTARTER | G198: GRANULADO 3,5 | H198: PIENSO COMPLEMENTARIO | I198: CORDEROS Y CHIVOS ARRANQUE | J198: 110 | K198: 184 | L198: 35 | M198: 41 | N198: 56 | O198: 420 | P198: 100 | Q198: Pienso complementario para arranque de corderos y cabritos. Desde la primera semana de vida a libre disposición con paja y agua limpia. Se recomienda utilizar hasta una semana tras el destete. | R198: Tambien es posible utilizarlo copmo pienso unico de arranque-crecimiento.Los animales dispondrán en todo momento de agua limpia y fresca a libre servicio. Consultar a los servicios técnicos. | S198: Pienso para arranque de corderos y cabritos. Desde la primera semana de vida a libre disposición con paja y agua limpia. Se recomienda utilizar hasta una semana tras el destete.Tambien es posible utilizarlo copmo pienso unico de arranque-crecimiento. | T198: 11 | U198: 18.4 | V198: 3.5 | W198: 4.1 | X198: 5.6 | Y198: 42 | Z198: 0 | AA198: 0 | AB198: 0 | AC198: 0 | AD198: 0 | AE198: 0 | AF198: 0 | AG198: 0 | AH198: 0 | AI198: 0 | AJ198: 0 | AK198: 0 | AL198: 0 | AM198: 0 | AN198: 0 | AO198: 0 | AP198: 0 | AQ198: 0 | AR198: 0 | AS198: 0 | AT198: 0 | AU198: 0 | AV198: 0 | AW198: 0 | AX198: 0 | AY198: 0 | AZ198: 0 | BA198: 0
A199: 382 | B199: TRUE | C199: NANTACOR CEBO INTENSIVO | D199: CORDEROS | E199: LECHE | F199: CEBO | G199: GRANULADO 3,5 | H199: PIENSO COMPLEMENTARIO | I199: CORDERAS DE REPOSICION | J199: 110 | K199: 176 | L199: 44 | M199: 25 | N199: 61 | O199: 450 | P199: 100 | Q199: Pienso complementario para cebo de corderos para administrar desde el destete hasta los 3-3.5 meses en corderas de reposición. Siempre con paja a libre disposición y agua limpia. | R199: Tambien es posible utilizarlo como pienso unico de arranque-cebo.Los animales dispondrán en todo momnento de agua limpia y fresca a libre disposición.El pienso puede ir medicado. | S199: Pienso para crecimiento de corderas de reposición. Los animales dispondrán de este pienso y paja a voluntad y en todo momento.Los animales dispondrán en todo momento de agua limpia y fresca a libre servicio. Consultar a los servicios técnicos. | T199: 11 | U199: 17.6 | V199: 4.4 | W199: 2.5 | X199: 6.1 | Y199: 45 | Z199: 0 | AA199: 0 | AB199: 0 | AC199: 0 | AD199: 0 | AE199: 0 | AF199: 0 | AG199: 0 | AH199: 0 | AI199: 0 | AJ199: 0 | AK199: 0 | AL199: 0 | AM199: 0 | AN199: 0 | AO199: 0 | AP199: 0 | AQ199: 0 | AR199: 0 | AS199: 0 | AT199: 0 | AU199: 0 | AV199: 0 | AW199: 0 | AX199: 0 | AY199: 0 | AZ199: 0 | BA199: 0
A200: 300 | B200: TRUE | C200: NANTADIET-50 | D200: OVINO | E200: LECHE | F200: ORDEÑO | G200: GRANULADO 3,5 | H200: PIENSO COMPLEMENTARIO | I200: OVEJAS Y CABRAS EN LACTACION | J200: 110 | K200: 325 | L200: 76 | M200: 30 | N200: 110 | O200: 160 | P200: 88 | Q200: Concentrado destinado a ovejas y cabras de ordeño de alta producción. Es posible mezclar con cereales.Pienso complementario. Complementario de forrajes También en carro mezclador. Siempre como complementario de forrajes | R200: Las dosificaciones deben hacerse atendiendo a la producción y a las caractarísticas de la oveja así como a los forrajes de la ración de base | S200: Concentrado destinado a ovejas y cabras de ordeño de alta producción. Es posible mezclar con cereales. Complementario de forrajes También en carro mezclador. Siempre como complementario de forrajes. Agua limpia ad lib. | T200: 11 | U200: 32.5 | V200: 7.6 | W200: 3 | X200: 11 | Y200: 16 | Z200: 0 | AA200: 0 | AB200: 0 | AC200: 0 | AD200: 0 | AE200: 0 | AF200: 0 | AG200: 0 | AH200: 0 | AI200: 0 | AJ200: 0 | AK200: 0 | AL200: 0 | AM200: 0 | AN200: 0 | AO200: 0 | AP200: 0 | AQ200: 0 | AR200: 0 | AS200: 0 | AT200: 0 | AU200: 0 | AV200: 0 | AW200: 0 | AX200: 0 | AY200: 0 | AZ200: 0 | BA200: 0
... 988 more rows

Sheet ENLACES DATOS
A1: SIMULACION PRODUCCION EQ Y %EQ POR ECUACIONES | F1: CAPRINO | H1: FLORIDA | I1: INVIERNO | J1: ='SIMULACION DATOS PRODUCTIVOS'!C11 -> 0 | K1: ='SIMULACION DATOS PRODUCTIVOS'!C12 -> 0 | L1: ='SIMULACION DATOS PRODUCTIVOS'!C14 ->  | M1: =CONCATENATE(J1,K1,L1) -> 00
D2: REFERENCIA | F2: OVINO | H2: MALAGUEÑA | I2: TEMPLADO
D3: =CONCATENATE(A3,B3,C3) ->  | H3: MURCIANA | I3: VERANO
H4: ASSAF
H5: LACAUNE
H6: MANCHEGA
H7: SAANEN
H8: ALPINA
E20: 1 | F20: 2 | H20: 3 | I20: 4 | J20: 5 | K20: 6
E21: REFERENCIA | F21: A | H21: B | I21: FC RAZA | J21: FC EPOCA | K21: R2 | L21: LITROS | M21: PROD EQ | N21: EQ(%) | O21: EQ(%) | P21: PROD EQ
D22: CALCULO PROD EQ ESPERADO | E22: =M1 -> 00 | F22: =VLOOKUP($E$22,ECUACIONES!$A$3:$F$20,F20,FALSE) ->  | H22: =VLOOKUP($E$22,ECUACIONES!$A$3:$F$20,H20,FALSE) ->  | I22: =VLOOKUP($E$22,ECUACIONES!$A$3:$F$20,I20,FALSE) ->  | J22: =VLOOKUP($E$22,ECUACIONES!$A$3:$F$20,J20,FALSE) ->  | K22: =VLOOKUP($E$22,ECUACIONES!$A$3:$F$20,K20,FALSE) ->  | L22: =IF('SIMULACION DATOS PRODUCTIVOS'!C17="","",'SIMULACION DATOS PRODUCTIVOS'!C17) ->  | M22: =IF(L22="","",((F22*L22)+H22)*I22*J22) ->  | N22: =IF(L22="","",(M22/L22)/10) ->  | O22: =IF('SIMULACION DATOS PRODUCTIVOS'!C18="","",'SIMULACION DATOS PRODUCTIVOS'!C18) ->  | P22: =IF(O22="","",M22/(O22*10)) -> 
A25: SIMULACION PRODUCCION EQ Y %EQ POR BBDD
A26: ='HOJA DE DATOS'!A2 -> CAPRINO | B26: ='HOJA DE DATOS'!B2 -> FLORIDA | C26: ='HOJA DE DATOS'!C2 -> INVIERNO | D26: REFERENCIA | E26: ='HOJA DE DATOS'!D2 -> 43 | F26: ='HOJA DE DATOS'!E2 -> 1.865515321 | G26: ='HOJA DE DATOS'!F2 -> 9.544186047 | H26: ='HOJA DE DATOS'!G2 -> 178.2040796 | I26: ='HOJA DE DATOS'!H2 -> 49.50098881 | M26: GRAFICO | N26: grEQ/dia
A27: ='HOJA DE DATOS'!A3 -> CAPRINO | B27: ='HOJA DE DATOS'!B3 -> FLORIDA | C27: ='HOJA DE DATOS'!C3 -> TEMPLADO | D27: =CONCATENATE(A27,B27,C27) -> CAPRINOFLORIDATEMPLADO | E27: ='HOJA DE DATOS'!D3 -> 43 | F27: ='HOJA DE DATOS'!E3 -> 1.988221047 | G27: ='HOJA DE DATOS'!F3 -> 8.441860465 | H27: ='HOJA DE DATOS'!G3 -> 167.863653 | I27: ='HOJA DE DATOS'!H3 -> 28.61611329 | M27: REAL | N27: =IF('SIMULACION DATOS PRODUCTIVOS'!C15="","",'ENLACES DATOS'!K54) -> 
A28: ='HOJA DE DATOS'!A4 -> CAPRINO | B28: ='HOJA DE DATOS'!B4 -> FLORIDA | C28: ='HOJA DE DATOS'!C4 -> VERANO | D28: =CONCATENATE(A28,B28,C28) -> CAPRINOFLORIDAVERANO | E28: ='HOJA DE DATOS'!D4 -> 23 | F28: ='HOJA DE DATOS'!E4 -> 2.380410276 | G28: ='HOJA DE DATOS'!F4 -> 7.660869565 | H28: ='HOJA DE DATOS'!G4 -> 182.6984589 | I28: ='HOJA DE DATOS'!H4 -> 39.0260749 | M28: OBTENIDO | N28: =IF('SIMULACION DATOS PRODUCTIVOS'!C15="","",'ENLACES DATOS'!H54) -> 
A29: ='HOJA DE DATOS'!A5 -> CAPRINO | B29: ='HOJA DE DATOS'!B5 -> MALAGUEÑA | C29: ='HOJA DE DATOS'!C5 -> INVIERNO | D29: CAPRINOMALAGUEÑAINVIERNO | E29: ='HOJA DE DATOS'!D5 -> 54 | F29: ='HOJA DE DATOS'!E5 -> 1.916275453 | G29: ='HOJA DE DATOS'!F5 -> 9.190740741 | H29: ='HOJA DE DATOS'!G5 -> 177.786153 | I29: ='HOJA DE DATOS'!H5 -> 67.75321099 | M29: CALCULADO | N29: =IF('SIMULACION DATOS PRODUCTIVOS'!C17="","",'ENLACES DATOS'!M22) -> 
A30: ='HOJA DE DATOS'!A6 -> CAPRINO | B30: ='HOJA DE DATOS'!B6 -> MALAGUEÑA | C30: ='HOJA DE DATOS'!C6 -> TEMPLADO | D30: CAPRINOMALAGUEÑATEMPLADO | E30: ='HOJA DE DATOS'!D6 -> 50 | F30: ='HOJA DE DATOS'!E6 -> 1.862775165 | G30: ='HOJA DE DATOS'!F6 -> 8.6266 | H30: ='HOJA DE DATOS'!G6 -> 161.7802396 | I30: ='HOJA DE DATOS'!H6 -> 70.46366496
A31: ='HOJA DE DATOS'!A7 -> CAPRINO | B31: ='HOJA DE DATOS'!B7 -> MALAGUEÑA | C31: ='HOJA DE DATOS'!C7 -> VERANO | D31: CAPRINOMALAGUEÑAVERANO | E31: ='HOJA DE DATOS'!D7 -> 29 | F31: ='HOJA DE DATOS'!E7 -> 2.240237861 | G31: ='HOJA DE DATOS'!F7 -> 8.037931034 | H31: ='HOJA DE DATOS'!G7 -> 181.755444 | I31: ='HOJA DE DATOS'!H7 -> 96.0361571
A32: ='HOJA DE DATOS'!A8 -> CAPRINO | B32: ='HOJA DE DATOS'!B8 -> MURCIANA | C32: ='HOJA DE DATOS'!C8 -> INVIERNO | D32: CAPRINOMURCIANAINVIERNO | E32: ='HOJA DE DATOS'!D8 -> 166 | F32: ='HOJA DE DATOS'!E8 -> 1.851040143 | G32: ='HOJA DE DATOS'!F8 -> 9.645180723 | H32: ='HOJA DE DATOS'!G8 -> 177.2442922 | I32: ='HOJA DE DATOS'!H8 -> 42.39750925
A33: ='HOJA DE DATOS'!A9 -> CAPRINO | B33: ='HOJA DE DATOS'!B9 -> MURCIANA | C33: ='HOJA DE DATOS'!C9 -> TEMPLADO | D33: CAPRINOMURCIANATEMPLADO | E33: ='HOJA DE DATOS'!D9 -> 207 | F33: ='HOJA DE DATOS'!E9 -> 1.938021927 | G33: ='HOJA DE DATOS'!F9 -> 8.899082126 | H33: ='HOJA DE DATOS'!G9 -> 171.6044096 | I33: ='HOJA DE DATOS'!H9 -> 38.46983788
A34: ='HOJA DE DATOS'!A10 -> CAPRINO | B34: ='HOJA DE DATOS'!B10 -> MURCIANA | C34: ='HOJA DE DATOS'!C10 -> VERANO | D34: CAPRINOMURCIANAVERANO | E34: ='HOJA DE DATOS'!D10 -> 118 | F34: ='HOJA DE DATOS'!E10 -> 1.902580849 | G34: ='HOJA DE DATOS'!F10 -> 8.292457627 | H34: ='HOJA DE DATOS'!G10 -> 157.2689067 | I34: ='HOJA DE DATOS'!H10 -> 34.68502689
A35: ='HOJA DE DATOS'!A11 -> OVINO | B35: ='HOJA DE DATOS'!B11 -> ASSAF | C35: ='HOJA DE DATOS'!C11 -> INVIERNO | D35: OVINOASSAFINVIERNO | E35: ='HOJA DE DATOS'!D11 -> 218 | F35: ='HOJA DE DATOS'!E11 -> 1.534474669 | G35: ='HOJA DE DATOS'!F11 -> 12.39220183 | H35: ='HOJA DE DATOS'!G11 -> 188.8890228 | I35: ='HOJA DE DATOS'!H11 -> 69.02446214
A36: ='HOJA DE DATOS'!A12 -> OVINO | B36: ='HOJA DE DATOS'!B12 -> ASSAF | C36: ='HOJA DE DATOS'!C12 -> TEMPLADO | D36: OVINOASSAFTEMPLADO | E36: ='HOJA DE DATOS'!D12 -> 274 | F36: ='HOJA DE DATOS'!E12 -> 1.746647528 | G36: ='HOJA DE DATOS'!F12 -> 11.55912409 | H36: ='HOJA DE DATOS'!G12 -> 198.6089482 | I36: ='HOJA DE DATOS'!H12 -> 65.86459594
A37: ='HOJA DE DATOS'!A13 -> OVINO | B37: ='HOJA DE DATOS'!B13 -> ASSAF | C37: ='HOJA DE DATOS'!C13 -> VERANO | D37: OVINOASSAFVERANO | E37: ='HOJA DE DATOS'!D13 -> 157 | F37: ='HOJA DE DATOS'!E13 -> 1.798410406 | G37: ='HOJA DE DATOS'!F13 -> 10.9910828 | H37: ='HOJA DE DATOS'!G13 -> 196.1613005 | I37: ='HOJA DE DATOS'!H13 -> 48.32626989
A38: ='HOJA DE DATOS'!A14 -> OVINO | B38: ='HOJA DE DATOS'!B14 -> LACAUNE | C38: ='HOJA DE DATOS'!C14 -> INVIERNO | D38: OVINOLACAUNEINVIERNO | E38: ='HOJA DE DATOS'!D14 -> 151 | F38: ='HOJA DE DATOS'!E14 -> 1.625722515 | G38: ='HOJA DE DATOS'!F14 -> 12.69668874 | H38: ='HOJA DE DATOS'!G14 -> 206.0799661 | I38: ='HOJA DE DATOS'!H14 -> 59.26572248
A39: ='HOJA DE DATOS'!A15 -> OVINO | B39: ='HOJA DE DATOS'!B15 -> LACAUNE | C39: ='HOJA DE DATOS'!C15 -> TEMPLADO | D39: OVINOLACAUNETEMPLADO | E39: ='HOJA DE DATOS'!D15 -> 181 | F39: ='HOJA DE DATOS'!E15 -> 1.861925969 | G39: ='HOJA DE DATOS'!F15 -> 11.89447514 | H39: ='HOJA DE DATOS'!G15 -> 219.8154524 | I39: ='HOJA DE DATOS'!H15 -> 62.92769563
A40: ='HOJA DE DATOS'!A16 -> OVINO | B40: ='HOJA DE DATOS'!B16 -> LACAUNE | C40: ='HOJA DE DATOS'!C16 -> VERANO | D40: OVINOLACAUNEVERANO | E40: ='HOJA DE DATOS'!D16 -> 107 | F40: ='HOJA DE DATOS'!E16 -> 1.815661746 | G40: ='HOJA DE DATOS'!F16 -> 11.47383178 | H40: ='HOJA DE DATOS'!G16 -> 206.4768649 | I40: ='HOJA DE DATOS'!H16 -> 57.13140933
A41: ='HOJA DE DATOS'!A17 -> OVINO | B41: ='HOJA DE DATOS'!B17 -> MANCHEGA | C41: ='HOJA DE DATOS'!C17 -> INVIERNO | D41: OVINOMANCHEGAINVIERNO | E41: ='HOJA DE DATOS'!D17 -> 36 | F41: ='HOJA DE DATOS'!E17 -> 1.151119691 | G41: ='HOJA DE DATOS'!F17 -> 13.44166667 | H41: ='HOJA DE DATOS'!G17 -> 154.5286074 | I41: ='HOJA DE DATOS'!H17 -> 38.51850579
A42: ='HOJA DE DATOS'!A18 -> OVINO | B42: ='HOJA DE DATOS'!B18 -> MANCHEGA | C42: ='HOJA DE DATOS'!C18 -> TEMPLADO | D42: OVINOMANCHEGATEMPLADO | E42: ='HOJA DE DATOS'!D18 -> 44 | F42: ='HOJA DE DATOS'!E18 -> 1.238335673 | G42: ='HOJA DE DATOS'!F18 -> 12.75227273 | H42: ='HOJA DE DATOS'!G18 -> 157.6868792 | I42: ='HOJA DE DATOS'!H18 -> 24.36306624
A43: ='HOJA DE DATOS'!A19 -> OVINO | B43: ='HOJA DE DATOS'!B19 -> MANCHEGA | C43: ='HOJA DE DATOS'!C19 -> VERANO | D43: OVINOMANCHEGAVERANO | E43: ='HOJA DE DATOS'!D19 -> 24 | F43: ='HOJA DE DATOS'!E19 -> 1.285644415 | G43: ='HOJA DE DATOS'!F19 -> 12.38333333 | H43: ='HOJA DE DATOS'!G19 -> 159.4169824 | I43: ='HOJA DE DATOS'!H19 -> 31.4073967
A44: ='HOJA DE DATOS'!A20 -> 0 | B44: ='HOJA DE DATOS'!B20 -> 0 | C44: ='HOJA DE DATOS'!C20 -> 0 | D44: 000 | E44: ='HOJA DE DATOS'!D20 -> 0 | F44: ='HOJA DE DATOS'!E20 -> 0 | G44: ='HOJA DE DATOS'!F20 -> 0 | H44: ='HOJA DE DATOS'!G20 -> 0 | I44: ='HOJA DE DATOS'!H20 -> 0
A45: ='HOJA DE DATOS'!A21 -> 0 | B45: ='HOJA DE DATOS'!B21 -> 0 | C45: ='HOJA DE DATOS'!C21 -> 0 | D45: 000 | E45: ='HOJA DE DATOS'!D21 -> 0 | F45: ='HOJA DE DATOS'!E21 -> 0 | G45: ='HOJA DE DATOS'!F21 -> 0 | H45: ='HOJA DE DATOS'!G21 -> 0 | I45: ='HOJA DE DATOS'!H21 -> 0
A46: ='HOJA DE DATOS'!A22 -> 0 | B46: ='HOJA DE DATOS'!B22 -> 0 | C46: ='HOJA DE DATOS'!C22 -> 0 | D46: 000 | E46: ='HOJA DE DATOS'!D22 -> 0 | F46: ='HOJA DE DATOS'!E22 -> 0 | G46: ='HOJA DE DATOS'!F22 -> 0 | H46: ='HOJA DE DATOS'!G22 -> 0 | I46: ='HOJA DE DATOS'!H22 -> 0
A47: ='HOJA DE DATOS'!A23 -> ESPECIE | B47: ='HOJA DE DATOS'!B23 -> MES CONTROL | C47: ='HOJA DE DATOS'!C23 -> PromedioDeANIMALES EN ORDEÑO | D47: ESPECIEMES CONTROLPromedioDeANIMALES EN ORDEÑO | E47: ='HOJA DE DATOS'!D23 -> PromedioDeLITROS TOTAL MES | F47: ='HOJA DE DATOS'!E23 -> PromedioDeGRAMOS GRASA | G47: ='HOJA DE DATOS'!F23 -> PromedioDeGRAMOS PROTEINA | H47: ='HOJA DE DATOS'!G23 -> LITROS/ANIMAL DIA | I47: ='HOJA DE DATOS'!H23 -> EQ
A48: ='HOJA DE DATOS'!A24 -> CAPRINO | B48: ='HOJA DE DATOS'!B24 -> 1 | C48: ='HOJA DE DATOS'!C24 -> 352.1666667 | D48: CAPRINO1352.166666666667 | E48: ='HOJA DE DATOS'!D24 -> 20889 | F48: ='HOJA DE DATOS'!E24 -> 55.42857143 | G48: ='HOJA DE DATOS'!F24 -> 38.28571429 | H48: ='HOJA DE DATOS'!G24 -> 1.977188831 | I48: ='HOJA DE DATOS'!H24 -> 9.371428571
A49: ='HOJA DE DATOS'!A25 -> CAPRINO | B49: ='HOJA DE DATOS'!B25 -> 2 | C49: ='HOJA DE DATOS'!C25 -> 352.2875 | D49: CAPRINO2352.2875 | E49: ='HOJA DE DATOS'!D25 -> 19679.82716 | F49: ='HOJA DE DATOS'!E25 -> 53.67901235 | G49: ='HOJA DE DATOS'!F25 -> 37.33333333 | H49: ='HOJA DE DATOS'!G25 -> 1.862099106 | I49: ='HOJA DE DATOS'!H25 -> 9.101234568
A50: ='HOJA DE DATOS'!A26 -> CAPRINO | B50: ='HOJA DE DATOS'!B26 -> 3 | C50: ='HOJA DE DATOS'!C26 -> 379.52 | D50: CAPRINO3379.52 | E50: ='HOJA DE DATOS'!D26 -> 24457.10667 | F50: ='HOJA DE DATOS'!E26 -> 50.89189189 | G50: ='HOJA DE DATOS'!F26 -> 36.17567568 | H50: ='HOJA DE DATOS'!G26 -> 2.14807359 | I50: ='HOJA DE DATOS'!H26 -> 8.706756757
D52: 1 | E52: 2 | F52: 3 | G52: 4 | H52: 5 | I52: 6
B53: CALCULO PROD EQ OBTENIDO | D53: REFERENCIA | E53: CuentaDeNºREGISTRO | F53: PromedioDeLECHE/ANIMALDIA | G53: PromedioDe%EQ | H53: PromedioDegrEQ/ANIMALDIA | I53: DesvEstDegrEQ/ANIMALDIA | J53: DesvST %EQ | K53: PROD. REAL EQ
D54: =M1 -> 00 | E54: =VLOOKUP($D$54,$D$27:$I$50,E52,FALSE) ->  | F54: =VLOOKUP($D$54,$D$27:$I$50,F52,FALSE) ->  | G54: =VLOOKUP($D$54,$D$27:$I$50,G52,FALSE) ->  | H54: =VLOOKUP($D$54,$D$27:$I$50,H52,FALSE) ->  | I54: =VLOOKUP($D$54,$D$27:$I$50,I52,FALSE) ->  | J54: =(I54/F54)/10 ->  | K54: =('SIMULACION DATOS PRODUCTIVOS'!C15*'SIMULACION DATOS PRODUCTIVOS'!C16)*10 -> 0
A57: EVOLUCION PRODUCCION POR MESES BBDD (ESPECIES) | H57: GRAFICOS | S57: =IF('EXPLOTACION TIPO'!L6="","",'EXPLOTACION TIPO'!L6) -> 
D58: PROD LECHE | E58: %EQ | H58: MES | I58: LITROS/DIA | J58: EQ | K58: %SECOS | L58: %PREPARTO | M58: %ORDEÑO | N58: % ABORTOS | O58: % BAJAS + ELIMINACION | P58: % MAMITIS | Q58: PARTOS/ANIMAL | S58: =IF(S57="","",HLOOKUP($S$57,$N$58:$P$70,H59,FALSE)) -> 
A59: ='HOJA DE DATOS'!A24 -> CAPRINO | B59: ='HOJA DE DATOS'!B24 -> 1 | C59: =CONCATENATE(,A59,B59) -> CAPRINO1 | D59: ='HOJA DE DATOS'!G24 -> 1.977188831 | E59: ='HOJA DE DATOS'!H24 -> 9.371428571 | H59: 1 | I59: =IF($A$84="CAPRINO",D59,IF($A$84="OVINO",D71,"")) ->  | J59: =IF($A$84="CAPRINO",E59,IF($A$84="OVINO",E71,"")) ->  | K59: =IF($A$84="CAPRINO",'HOJA DE DATOS'!G58,IF($A$84="OVINO",'HOJA DE DATOS'!G70,"")) ->  | L59: =IF($A$84="CAPRINO",'HOJA DE DATOS'!H58,IF($A$84="OVINO",'HOJA DE DATOS'!H70,"")) ->  | M59: =IF($A$84="CAPRINO",'HOJA DE DATOS'!I58,IF($A$84="OVINO",'HOJA DE DATOS'!I70,"")) ->  | N59: =IF($A$84="CAPRINO",'HOJA DE DATOS'!M92,IF($A$84="OVINO",'HOJA DE DATOS'!M104,"")) ->  | O59: =IF($A$84="CAPRINO",'HOJA DE DATOS'!N92,IF($A$84="OVINO",'HOJA DE DATOS'!N104,"")) ->  | P59: =IF($A$84="CAPRINO",'HOJA DE DATOS'!O92,IF($A$84="OVINO",'HOJA DE DATOS'!O104,"")) ->  | Q59: =IF($A$84="CAPRINO",'HOJA DE DATOS'!L92,IF($A$84="OVINO",'HOJA DE DATOS'!L104,"")) ->  | S59: =IF(S58="","",HLOOKUP($S$57,$N$58:$P$70,H60,FALSE)) -> 
A60: ='HOJA DE DATOS'!A25 -> CAPRINO | B60: ='HOJA DE DATOS'!B25 -> 2 | C60: =CONCATENATE(,A60,B60) -> CAPRINO2 | D60: ='HOJA DE DATOS'!G25 -> 1.862099106 | E60: ='HOJA DE DATOS'!H25 -> 9.101234568 | H60: 2 | I60: =IF($A$84="CAPRINO",D60,IF($A$84="OVINO",D72,"")) ->  | J60: =IF($A$84="CAPRINO",E60,IF($A$84="OVINO",E72,"")) ->  | K60: =IF($A$84="CAPRINO",'HOJA DE DATOS'!G59,IF($A$84="OVINO",'HOJA DE DATOS'!G71,"")) ->  | L60: =IF($A$84="CAPRINO",'HOJA DE DATOS'!H59,IF($A$84="OVINO",'HOJA DE DATOS'!H71,"")) ->  | M60: =IF($A$84="CAPRINO",'HOJA DE DATOS'!I59,IF($A$84="OVINO",'HOJA DE DATOS'!I71,"")) ->  | N60: =IF($A$84="CAPRINO",'HOJA DE DATOS'!M93,IF($A$84="OVINO",'HOJA DE DATOS'!M105,"")) ->  | O60: =IF($A$84="CAPRINO",'HOJA DE DATOS'!N93,IF($A$84="OVINO",'HOJA DE DATOS'!N105,"")) ->  | P60: =IF($A$84="CAPRINO",'HOJA DE DATOS'!O93,IF($A$84="OVINO",'HOJA DE DATOS'!O105,"")) ->  | Q60: =IF($A$84="CAPRINO",'HOJA DE DATOS'!L93,IF($A$84="OVINO",'HOJA DE DATOS'!L105,"")) -> 
A61: ='HOJA DE DATOS'!A26 -> CAPRINO | B61: ='HOJA DE DATOS'!B26 -> 3 | C61: CAPRINO3 | D61: ='HOJA DE DATOS'!G26 -> 2.14807359 | E61: ='HOJA DE DATOS'!H26 -> 8.706756757 | H61: 3 | K61: =IF($A$84="CAPRINO",'HOJA DE DATOS'!G60,IF($A$84="OVINO",'HOJA DE DATOS'!G72,"")) ->  | L61: =IF($A$84="CAPRINO",'HOJA DE DATOS'!H60,IF($A$84="OVINO",'HOJA DE DATOS'!H72,"")) ->  | M61: =IF($A$84="CAPRINO",'HOJA DE DATOS'!I60,IF($A$84="OVINO",'HOJA DE DATOS'!I72,"")) ->  | N61: =IF($A$84="CAPRINO",'HOJA DE DATOS'!M94,IF($A$84="OVINO",'HOJA DE DATOS'!M106,"")) ->  | O61: =IF($A$84="CAPRINO",'HOJA DE DATOS'!N94,IF($A$84="OVINO",'HOJA DE DATOS'!N106,"")) ->  | P61: =IF($A$84="CAPRINO",'HOJA DE DATOS'!O94,IF($A$84="OVINO",'HOJA DE DATOS'!O106,"")) ->  | Q61: =IF($A$84="CAPRINO",'HOJA DE DATOS'!L94,IF($A$84="OVINO",'HOJA DE DATOS'!L106,"")) -> 
A62: ='HOJA DE DATOS'!A27 -> CAPRINO | B62: ='HOJA DE DATOS'!B27 -> 4 | C62: CAPRINO4 | D62: ='HOJA DE DATOS'!G27 -> 2.246829385 | E62: ='HOJA DE DATOS'!H27 -> 8.520547945 | H62: 4 | K62: =IF($A$84="CAPRINO",'HOJA DE DATOS'!G61,IF($A$84="OVINO",'HOJA DE DATOS'!G73,"")) ->  | L62: =IF($A$84="CAPRINO",'HOJA DE DATOS'!H61,IF($A$84="OVINO",'HOJA DE DATOS'!H73,"")) ->  | M62: =IF($A$84="CAPRINO",'HOJA DE DATOS'!I61,IF($A$84="OVINO",'HOJA DE DATOS'!I73,"")) ->  | N62: =IF($A$84="CAPRINO",'HOJA DE DATOS'!M95,IF($A$84="OVINO",'HOJA DE DATOS'!M107,"")) ->  | O62: =IF($A$84="CAPRINO",'HOJA DE DATOS'!N95,IF($A$84="OVINO",'HOJA DE DATOS'!N107,"")) ->  | P62: =IF($A$84="CAPRINO",'HOJA DE DATOS'!O95,IF($A$84="OVINO",'HOJA DE DATOS'!O107,"")) ->  | Q62: =IF($A$84="CAPRINO",'HOJA DE DATOS'!L95,IF($A$84="OVINO",'HOJA DE DATOS'!L107,"")) -> 
A63: ='HOJA DE DATOS'!A28 -> CAPRINO | B63: ='HOJA DE DATOS'!B28 -> 5 | C63: CAPRINO5 | D63: ='HOJA DE DATOS'!G28 -> 2.4673381 | E63: ='HOJA DE DATOS'!H28 -> 8.324285714 | H63: 5 | K63: =IF($A$84="CAPRINO",'HOJA DE DATOS'!G62,IF($A$84="OVINO",'HOJA DE DATOS'!G74,"")) ->  | L63: =IF($A$84="CAPRINO",'HOJA DE DATOS'!H62,IF($A$84="OVINO",'HOJA DE DATOS'!H74,"")) ->  | M63: =IF($A$84="CAPRINO",'HOJA DE DATOS'!I62,IF($A$84="OVINO",'HOJA DE DATOS'!I74,"")) ->  | N63: =IF($A$84="CAPRINO",'HOJA DE DATOS'!M96,IF($A$84="OVINO",'HOJA DE DATOS'!M108,"")) ->  | O63: =IF($A$84="CAPRINO",'HOJA DE DATOS'!N96,IF($A$84="OVINO",'HOJA DE DATOS'!N108,"")) ->  | P63: =IF($A$84="CAPRINO",'HOJA DE DATOS'!O96,IF($A$84="OVINO",'HOJA DE DATOS'!O108,"")) ->  | Q63: =IF($A$84="CAPRINO",'HOJA DE DATOS'!L96,IF($A$84="OVINO",'HOJA DE DATOS'!L108,"")) -> 
A64: ='HOJA DE DATOS'!A29 -> CAPRINO | B64: ='HOJA DE DATOS'!B29 -> 6 | C64: CAPRINO6 | D64: ='HOJA DE DATOS'!G29 -> 2.374848906 | E64: ='HOJA DE DATOS'!H29 -> 8.057352941 | H64: 6 | K64: =IF($A$84="CAPRINO",'HOJA DE DATOS'!G63,IF($A$84="OVINO",'HOJA DE DATOS'!G75,"")) ->  | L64: =IF($A$84="CAPRINO",'HOJA DE DATOS'!H63,IF($A$84="OVINO",'HOJA DE DATOS'!H75,"")) ->  | M64: =IF($A$84="CAPRINO",'HOJA DE DATOS'!I63,IF($A$84="OVINO",'HOJA DE DATOS'!I75,"")) ->  | N64: =IF($A$84="CAPRINO",'HOJA DE DATOS'!M97,IF($A$84="OVINO",'HOJA DE DATOS'!M109,"")) ->  | O64: =IF($A$84="CAPRINO",'HOJA DE DATOS'!N97,IF($A$84="OVINO",'HOJA DE DATOS'!N109,"")) ->  | P64: =IF($A$84="CAPRINO",'HOJA DE DATOS'!O97,IF($A$84="OVINO",'HOJA DE DATOS'!O109,"")) ->  | Q64: =IF($A$84="CAPRINO",'HOJA DE DATOS'!L97,IF($A$84="OVINO",'HOJA DE DATOS'!L109,"")) -> 
A65: ='HOJA DE DATOS'!A30 -> CAPRINO | B65: ='HOJA DE DATOS'!B30 -> 7 | C65: CAPRINO7 | D65: ='HOJA DE DATOS'!G30 -> 2.373904309 | E65: ='HOJA DE DATOS'!H30 -> 7.996774194 | H65: 7 | K65: =IF($A$84="CAPRINO",'HOJA DE DATOS'!G64,IF($A$84="OVINO",'HOJA DE DATOS'!G76,"")) ->  | L65: =IF($A$84="CAPRINO",'HOJA DE DATOS'!H64,IF($A$84="OVINO",'HOJA DE DATOS'!H76,"")) ->  | M65: =IF($A$84="CAPRINO",'HOJA DE DATOS'!I64,IF($A$84="OVINO",'HOJA DE DATOS'!I76,"")) ->  | N65: =IF($A$84="CAPRINO",'HOJA DE DATOS'!M98,IF($A$84="OVINO",'HOJA DE DATOS'!M110,"")) ->  | O65: =IF($A$84="CAPRINO",'HOJA DE DATOS'!N98,IF($A$84="OVINO",'HOJA DE DATOS'!N110,"")) ->  | P65: =IF($A$84="CAPRINO",'HOJA DE DATOS'!O98,IF($A$84="OVINO",'HOJA DE DATOS'!O110,"")) ->  | Q65: =IF($A$84="CAPRINO",'HOJA DE DATOS'!L98,IF($A$84="OVINO",'HOJA DE DATOS'!L110,"")) -> 
A66: ='HOJA DE DATOS'!A31 -> CAPRINO | B66: ='HOJA DE DATOS'!B31 -> 8 | C66: CAPRINO8 | D66: ='HOJA DE DATOS'!G31 -> 2.322243981 | E66: ='HOJA DE DATOS'!H31 -> 8.027586207 | H66: 8 | K66: =IF($A$84="CAPRINO",'HOJA DE DATOS'!G65,IF($A$84="OVINO",'HOJA DE DATOS'!G77,"")) ->  | L66: =IF($A$84="CAPRINO",'HOJA DE DATOS'!H65,IF($A$84="OVINO",'HOJA DE DATOS'!H77,"")) ->  | M66: =IF($A$84="CAPRINO",'HOJA DE DATOS'!I65,IF($A$84="OVINO",'HOJA DE DATOS'!I77,"")) ->  | N66: =IF($A$84="CAPRINO",'HOJA DE DATOS'!M99,IF($A$84="OVINO",'HOJA DE DATOS'!M111,"")) ->  | O66: =IF($A$84="CAPRINO",'HOJA DE DATOS'!N99,IF($A$84="OVINO",'HOJA DE DATOS'!N111,"")) ->  | P66: =IF($A$84="CAPRINO",'HOJA DE DATOS'!O99,IF($A$84="OVINO",'HOJA DE DATOS'!O111,"")) ->  | Q66: =IF($A$84="CAPRINO",'HOJA DE DATOS'!L99,IF($A$84="OVINO",'HOJA DE DATOS'!L111,"")) -> 
A67: ='HOJA DE DATOS'!A32 -> CAPRINO | B67: ='HOJA DE DATOS'!B32 -> 9 | C67: CAPRINO9 | D67: ='HOJA DE DATOS'!G32 -> 2.108167864 | E67: ='HOJA DE DATOS'!H32 -> 8.544642857 | H67: 9 | K67: =IF($A$84="CAPRINO",'HOJA DE DATOS'!G66,IF($A$84="OVINO",'HOJA DE DATOS'!G78,"")) ->  | L67: =IF($A$84="CAPRINO",'HOJA DE DATOS'!H66,IF($A$84="OVINO",'HOJA DE DATOS'!H78,"")) ->  | M67: =IF($A$84="CAPRINO",'HOJA DE DATOS'!I66,IF($A$84="OVINO",'HOJA DE DATOS'!I78,"")) ->  | N67: =IF($A$84="CAPRINO",'HOJA DE DATOS'!M100,IF($A$84="OVINO",'HOJA DE DATOS'!M112,"")) ->  | O67: =IF($A$84="CAPRINO",'HOJA DE DATOS'!N100,IF($A$84="OVINO",'HOJA DE DATOS'!N112,"")) ->  | P67: =IF($A$84="CAPRINO",'HOJA DE DATOS'!O100,IF($A$84="OVINO",'HOJA DE DATOS'!O112,"")) ->  | Q67: =IF($A$84="CAPRINO",'HOJA DE DATOS'!L100,IF($A$84="OVINO",'HOJA DE DATOS'!L112,"")) -> 
A68: ='HOJA DE DATOS'!A33 -> CAPRINO | B68: ='HOJA DE DATOS'!B33 -> 10 | C68: CAPRINO10 | D68: ='HOJA DE DATOS'!G33 -> 2.114539886 | E68: ='HOJA DE DATOS'!H33 -> 9.233898305 | H68: 10 | K68: =IF($A$84="CAPRINO",'HOJA DE DATOS'!G67,IF($A$84="OVINO",'HOJA DE DATOS'!G79,"")) ->  | L68: =IF($A$84="CAPRINO",'HOJA DE DATOS'!H67,IF($A$84="OVINO",'HOJA DE DATOS'!H79,"")) ->  | M68: =IF($A$84="CAPRINO",'HOJA DE DATOS'!I67,IF($A$84="OVINO",'HOJA DE DATOS'!I79,"")) ->  | N68: =IF($A$84="CAPRINO",'HOJA DE DATOS'!M101,IF($A$84="OVINO",'HOJA DE DATOS'!M113,"")) ->  | O68: =IF($A$84="CAPRINO",'HOJA DE DATOS'!N101,IF($A$84="OVINO",'HOJA DE DATOS'!N113,"")) ->  | P68: =IF($A$84="CAPRINO",'HOJA DE DATOS'!O101,IF($A$84="OVINO",'HOJA DE DATOS'!O113,"")) ->  | Q68: =IF($A$84="CAPRINO",'HOJA DE DATOS'!L101,IF($A$84="OVINO",'HOJA DE DATOS'!L113,"")) -> 
A69: ='HOJA DE DATOS'!A34 -> CAPRINO | B69: ='HOJA DE DATOS'!B34 -> 11 | C69: CAPRINO11 | D69: ='HOJA DE DATOS'!G34 -> 1.991975198 | E69: ='HOJA DE DATOS'!H34 -> 9.677586207 | H69: 11 | K69: =IF($A$84="CAPRINO",'HOJA DE DATOS'!G68,IF($A$84="OVINO",'HOJA DE DATOS'!G80,"")) ->  | L69: =IF($A$84="CAPRINO",'HOJA DE DATOS'!H68,IF($A$84="OVINO",'HOJA DE DATOS'!H80,"")) ->  | M69: =IF($A$84="CAPRINO",'HOJA DE DATOS'!I68,IF($A$84="OVINO",'HOJA DE DATOS'!I80,"")) ->  | N69: =IF($A$84="CAPRINO",'HOJA DE DATOS'!M102,IF($A$84="OVINO",'HOJA DE DATOS'!M114,"")) ->  | O69: =IF($A$84="CAPRINO",'HOJA DE DATOS'!N102,IF($A$84="OVINO",'HOJA DE DATOS'!N114,"")) ->  | P69: =IF($A$84="CAPRINO",'HOJA DE DATOS'!O102,IF($A$84="OVINO",'HOJA DE DATOS'!O114,"")) ->  | Q69: =IF($A$84="CAPRINO",'HOJA DE DATOS'!L102,IF($A$84="OVINO",'HOJA DE DATOS'!L114,"")) -> 
A70: ='HOJA DE DATOS'!A35 -> CAPRINO | B70: ='HOJA DE DATOS'!B35 -> 12 | C70: CAPRINO12 | D70: ='HOJA DE DATOS'!G35 -> 2.169674068 | E70: ='HOJA DE DATOS'!H35 -> 9.598275862 | H70: 12 | K70: =IF($A$84="CAPRINO",'HOJA DE DATOS'!G69,IF($A$84="OVINO",'HOJA DE DATOS'!G81,"")) ->  | L70: =IF($A$84="CAPRINO",'HOJA DE DATOS'!H69,IF($A$84="OVINO",'HOJA DE DATOS'!H81,"")) ->  | M70: =IF($A$84="CAPRINO",'HOJA DE DATOS'!I69,IF($A$84="OVINO",'HOJA DE DATOS'!I81,"")) ->  | N70: =IF($A$84="CAPRINO",'HOJA DE DATOS'!M103,IF($A$84="OVINO",'HOJA DE DATOS'!M115,"")) ->  | O70: =IF($A$84="CAPRINO",'HOJA DE DATOS'!N103,IF($A$84="OVINO",'HOJA DE DATOS'!N115,"")) ->  | P70: =IF($A$84="CAPRINO",'HOJA DE DATOS'!O103,IF($A$84="OVINO",'HOJA DE DATOS'!O115,"")) ->  | Q70: =IF($A$84="CAPRINO",'HOJA DE DATOS'!L103,IF($A$84="OVINO",'HOJA DE DATOS'!L115,"")) -> 
A71: ='HOJA DE DATOS'!A36 -> OVINO | B71: ='HOJA DE DATOS'!B36 -> 1 | C71: OVINO1 | D71: ='HOJA DE DATOS'!G36 -> 1.5366369 | E71: ='HOJA DE DATOS'!H36 -> 12.44821429 | H71: 13
A72: ='HOJA DE DATOS'!A37 -> OVINO | B72: ='HOJA DE DATOS'!B37 -> 2 | C72: OVINO2 | D72: ='HOJA DE DATOS'!G37 -> 1.632823766 | E72: ='HOJA DE DATOS'!H37 -> 12.15412844
A73: ='HOJA DE DATOS'!A38 -> OVINO | B73: ='HOJA DE DATOS'!B38 -> 3 | C73: OVINO3 | D73: ='HOJA DE DATOS'!G38 -> 1.808728945 | E73: ='HOJA DE DATOS'!H38 -> 11.54857143
A74: ='HOJA DE DATOS'!A39 -> OVINO | B74: ='HOJA DE DATOS'!B39 -> 4 | C74: OVINO4 | D74: ='HOJA DE DATOS'!G39 -> 1.892637616 | E74: ='HOJA DE DATOS'!H39 -> 11.37019231
A75: ='HOJA DE DATOS'!A40 -> OVINO | B75: ='HOJA DE DATOS'!B40 -> 5 | C75: OVINO5 | D75: ='HOJA DE DATOS'!G40 -> 1.999780868 | E75: ='HOJA DE DATOS'!H40 -> 11.29126214
A76: ='HOJA DE DATOS'!A41 -> OVINO | B76: ='HOJA DE DATOS'!B41 -> 6 | C76: OVINO6 | D76: ='HOJA DE DATOS'!G41 -> 1.906702584 | E76: ='HOJA DE DATOS'!H41 -> 11.204
A77: ='HOJA DE DATOS'!A42 -> OVINO | B77: ='HOJA DE DATOS'!B42 -> 7 | C77: OVINO7 | D77: ='HOJA DE DATOS'!G42 -> 1.846173911 | E77: ='HOJA DE DATOS'!H42 -> 11.24329897
A78: ='HOJA DE DATOS'!A43 -> OVINO | B78: ='HOJA DE DATOS'!B43 -> 8 | C78: OVINO8 | D78: ='HOJA DE DATOS'!G43 -> 1.672469682 | E78: ='HOJA DE DATOS'!H43 -> 11.45104167
A79: ='HOJA DE DATOS'!A44 -> OVINO | B79: ='HOJA DE DATOS'!B44 -> 9 | C79: OVINO9 | D79: ='HOJA DE DATOS'!G44 -> 1.514766686 | E79: ='HOJA DE DATOS'!H44 -> 12.09591837
A80: ='HOJA DE DATOS'!A45 -> OVINO | B80: ='HOJA DE DATOS'!B45 -> 10 | C80: OVINO10 | D80: ='HOJA DE DATOS'!G45 -> 1.454563536 | E80: ='HOJA DE DATOS'!H45 -> 12.71515152
A81: ='HOJA DE DATOS'!A46 -> OVINO | B81: ='HOJA DE DATOS'!B46 -> 11 | C81: OVINO11 | D81: ='HOJA DE DATOS'!G46 -> 1.356247026 | E81: ='HOJA DE DATOS'!H46 -> 13.22708333
A82: ='HOJA DE DATOS'!A47 -> OVINO | B82: ='HOJA DE DATOS'!B47 -> 12 | C82: OVINO12 | D82: ='HOJA DE DATOS'!G47 -> 1.539088818 | E82: ='HOJA DE DATOS'!H47 -> 12.72688172
A84: =IF('EXPLOTACION TIPO'!C11="","",'EXPLOTACION TIPO'!C11) ->  | B84: ='BUSCAR FECHA'!F3 ->  | C84: =CONCATENATE(,A84,B84) ->  | D84: =VLOOKUP($C$84,$C$59:$E$82,2,FALSE) ->  | E84: =VLOOKUP($C$84,$C$59:$E$82,3,FALSE) -> 
A87: ESTADO DE LOS ANIMALES & INCIDENCIAS
B89: SECOS | C89: PREPARTO | D89: ORDEÑO | E89: %ABORTOS | F89: %BAJAS | H89: %MAMITIS | I89: PARTOS/ANIMAL
B90: =VLOOKUP($A$84,'HOJA DE DATOS'!$A$52:$I$53,7,FALSE) ->  | C90: =VLOOKUP($A$84,'HOJA DE DATOS'!$A$52:$I$53,8,FALSE) ->  | D90: =VLOOKUP($A$84,'HOJA DE DATOS'!$A$52:$I$53,9,FALSE) ->  | E90: =VLOOKUP($A$84,'HOJA DE DATOS'!$A$86:$O$87,13,FALSE) ->  | F90: =VLOOKUP($A$84,'HOJA DE DATOS'!$A$86:$O$87,14,FALSE) ->  | H90: =VLOOKUP($A$84,'HOJA DE DATOS'!$A$86:$O$87,15,FALSE) ->  | I90: =VLOOKUP($A$84,'HOJA DE DATOS'!$A$86:$O$87,12,FALSE) -> 
B93: =IF('BIENESTAR ANIMAL'!E9="",1,'BIENESTAR ANIMAL'!E9) -> 1 | C93: RANGO CONFIANZA MAXIMO
A94: BIENESTAR | B94: =IF('BIENESTAR ANIMAL'!E10="",1,'BIENESTAR ANIMAL'!E10) -> 1 | C94: RANGO CONFIANZA MINIMO
I96: PROMEDIO | J96: MAXIMO | K96: MINIMO
A97: ESPECIE | B97: INDICADOR | C97: PROMEDIO | D97: MAX | E97: MIN | F97: CAPRINO | H97: BA AMBIENTE | I97: =AVERAGE(C98:C101) -> 5.827272727 | J97: =AVERAGE(D98:D101) -> 6.768428618 | K97: =AVERAGE(E98:E101) -> 4.886116837
A98: ='HOJA DE DATOS'!B124 -> CAPRINO | B98: TEMPERATURA | C98: ='HOJA DE DATOS'!D119 -> 6.145454545 | D98: =(C98+('HOJA DE DATOS'!D124*B93)) -> 7.120711403 | E98: =(C98-('HOJA DE DATOS'!D124*B94)) -> 5.170197688 | F98: CAPRINO | H98: BA MANEJO | I98: =AVERAGE(C102:C106,C112) -> 6.089100684 | J98: =AVERAGE(D102:D106,D112) -> 7.012429026 | K98: =AVERAGE(E102:E106,E112) -> 5.165772342
A99: CAPRINO | B99: CORRIENTES | C99: ='HOJA DE DATOS'!E119 -> 6.245454545 | D99: =C99+('HOJA DE DATOS'!E124*B93) -> 7.013943634 | E99: =C99-('HOJA DE DATOS'!E124*B94) -> 5.476965457 | F99: CAPRINO | H99: BA INSTALACIONES | I99: =AVERAGE(C107:C109) -> 5.96969697 | J99: =AVERAGE(D107:D109) -> 6.9642922 | K99: =AVERAGE(E107:E109) -> 4.975101739
A100: CAPRINO | B100: VENTILACION | C100: ='HOJA DE DATOS'!F119 -> 5.445454545 | D100: =C100+('HOJA DE DATOS'!F124*B93) -> 6.464415733 | E100: =C100-('HOJA DE DATOS'!F124*B94) -> 4.426493358 | F100: CAPRINO | H100: BA GLOBAL | I100: =AVERAGE(I97:I99) -> 5.96202346 | J100: =AVERAGE(J97:J99) -> 6.915049948 | K100: 5.008996973
A101: CAPRINO | B101: AMBIENTE | C101: ='HOJA DE DATOS'!G119 -> 5.472727273 | D101: =C101+('HOJA DE DATOS'!G124*B93) -> 6.474643702 | E101: =C101-('HOJA DE DATOS'!G124*B94) -> 4.470810844
A102: CAPRINO | B102: DENSIDAD | C102: ='HOJA DE DATOS'!H119 -> 6.181818182 | D102: =C102+('HOJA DE DATOS'!H124*B93) -> 7.112259708 | E102: =C102-('HOJA DE DATOS'!H124*B94) -> 5.251376655 | F102: OVINO | H102: BA AMBIENTE | I102: =AVERAGE(C114:C117) -> 5.992 | J102: =AVERAGE(D114:D117) -> 6.883648297 | K102: =AVERAGE(E114:E117) -> 5.100351703
A103: CAPRINO | B103: CAMA | C103: ='HOJA DE DATOS'!I119 -> 5.972727273 | D103: =C103+('HOJA DE DATOS'!I124*B93) -> 7.077006613 | E103: =C103-('HOJA DE DATOS'!I124*B94) -> 4.868447933 | F103: OVINO | H103: BA MANEJO | I103: =AVERAGE(C118:C122,C128) -> 5.894095238 | J103: =AVERAGE(D118:D122,D128) -> 6.945283852 | K103: 4.842906625
A104: CAPRINO | B104: CONFORT | C104: ='HOJA DE DATOS'!J119 -> 5.890909091 | D104: =C104+('HOJA DE DATOS'!J124*B93) -> 6.782721538 | E104: =C104-('HOJA DE DATOS'!J124*B94) -> 4.999096644 | F104: OVINO | H104: BA INSTALACIONES | I104: =AVERAGE(C123:C125) -> 5.837333333 | J104: =AVERAGE(D123:D125) -> 6.829813767 | K104: =AVERAGE(E123:E125) -> 4.8448529
A105: CAPRINO | B105: ESTRÉS | C105: ='HOJA DE DATOS'!K119 -> 5.763636364 | D105: =C105+('HOJA DE DATOS'!K124*B93) -> 6.597850521 | E105: =C105-('HOJA DE DATOS'!K124*B94) -> 4.929422206 | F105: OVINO | H105: BA GLOBAL | I105: =AVERAGE(I102:I104) -> 5.907809524 | J105: =AVERAGE(J102:J104) -> 6.886248639 | K105: 4.929370409
A106: CAPRINO | B106: LIMPIEZA | C106: ='HOJA DE DATOS'!Q119 -> 6.854545455 | D106: =C106+('HOJA DE DATOS'!Q124*B93) -> 7.457844696 | E106: =C106-('HOJA DE DATOS'!Q124*B94) -> 6.251246213
A107: CAPRINO | B107: PIENSO | C107: ='HOJA DE DATOS'!L119 -> 5.936363636 | D107: =C107+('HOJA DE DATOS'!L124*B93) -> 6.961526615 | E107: =C107-('HOJA DE DATOS'!L124*B94) -> 4.911200658 | F107: GRAFICOS | I107: REAL | J107: BBDD | K107: MAXIMO | L107: MINIMO
A108: CAPRINO | B108: PAJA | C108: ='HOJA DE DATOS'!M119 -> 6.272727273 | D108: =C108+('HOJA DE DATOS'!M124*B93) -> 7.160039376 | E108: =C108-('HOJA DE DATOS'!M124*B94) -> 5.385415169 | H108: =B98 -> TEMPERATURA | I108: =IF('BIENESTAR ANIMAL'!C13="","",'BIENESTAR ANIMAL'!C13) ->  | J108: =IF($A$131="OVINO",C114,IF($A$131="CAPRINO",C98,"")) -> 
A109: CAPRINO | B109: BEBEDEROS | C109: ='HOJA DE DATOS'!N119 -> 5.7 | D109: =C109+('HOJA DE DATOS'!N124*B93) -> 6.771310609 | E109: =C109-('HOJA DE DATOS'!N124*B94) -> 4.628689391 | H109: =B99 -> CORRIENTES | I109: =IF('BIENESTAR ANIMAL'!C14="","",'BIENESTAR ANIMAL'!C14) -> 
A110: CAPRINO | B110: CONDICION CORPORAL | C110: ='HOJA DE DATOS'!A119 -> 2.928181818 | D110: =C110+('HOJA DE DATOS'!A124*B93) -> 3.296386443 | E110: =C110-('HOJA DE DATOS'!A124*B94) -> 2.559977194 | H110: VENTILACION | I110: =IF('BIENESTAR ANIMAL'!C15="","",'BIENESTAR ANIMAL'!C15) -> 
A111: CAPRINO | B111: CONSISTENCIA HECES | C111: ='HOJA DE DATOS'!O119 -> 3.372727273 | D111: =C111+('HOJA DE DATOS'!O124*B93) -> 4.020363637 | E111: =C111-('HOJA DE DATOS'!O124*B94) -> 2.725090908 | H111: AMBIENTE | I111: =IF('BIENESTAR ANIMAL'!C16="","",'BIENESTAR ANIMAL'!C16) -> 
A112: CAPRINO | B112: ESTADO PEZUÑAS | C112: ='HOJA DE DATOS'!S119 -> 5.870967742 | D112: =C112+('HOJA DE DATOS'!R124*B93) -> 7.046891081 | E112: =C112-('HOJA DE DATOS'!R124*B94) -> 4.695044403 | H112: ESTADO PEZUÑAS | I112: =IF('BIENESTAR ANIMAL'!C22="","",'BIENESTAR ANIMAL'!C22) ->  | J112: =IF($A$131="OVINO",C128,IF($A$131="CAPRINO",C112,"")) ->  | K112: =IF($A$131="OVINO",D128,IF($A$131="CAPRINO",D112,"")) -> 
A113: CAPRINO | B113: Nº CHEQUEOS | C113: ='HOJA DE DATOS'!R119 -> 110 | H113: =B102 -> DENSIDAD | I113: =IF('BIENESTAR ANIMAL'!C17="","",'BIENESTAR ANIMAL'!C17) ->  | J113: =IF($A$131="OVINO",C118,IF($A$131="CAPRINO",C102,"")) ->  | K113: =IF($A$131="OVINO",D118,IF($A$131="CAPRINO",D102,"")) ->  | L113: =IF($A$131="OVINO",E118,IF($A$131="CAPRINO",E102,"")) -> 
A114: ='HOJA DE DATOS'!B120 -> OVINO | B114: TEMPERATURA | C114: ='HOJA DE DATOS'!D120 -> 6.128 | D114: =C114+('HOJA DE DATOS'!D125*B93) -> 7.086628052 | E114: =C114-('HOJA DE DATOS'!D125*B94) -> 5.169371948 | H114: CAMA | I114: =IF('BIENESTAR ANIMAL'!C18="","",'BIENESTAR ANIMAL'!C18) -> 
A115: OVINO | B115: CORRIENTES | C115: ='HOJA DE DATOS'!E120 -> 6.28 | D115: =C115+('HOJA DE DATOS'!E125*B93) -> 7.058750032 | E115: =C115-('HOJA DE DATOS'!E125*B94) -> 5.501249968 | H115: CONFORT | I115: =IF('BIENESTAR ANIMAL'!C19="","",'BIENESTAR ANIMAL'!C19) -> 
A116: OVINO | B116: VENTILACION | C116: ='HOJA DE DATOS'!F120 -> 5.848 | D116: =C116+('HOJA DE DATOS'!F125*B93) -> 6.728395805 | E116: =C116-('HOJA DE DATOS'!F125*B94) -> 4.967604195 | H116: ESTRÉS | I116: =IF('BIENESTAR ANIMAL'!C20="","",'BIENESTAR ANIMAL'!C20) -> 
A117: OVINO | B117: AMBIENTE | C117: ='HOJA DE DATOS'!G120 -> 5.712 | D117: =C117+('HOJA DE DATOS'!G125*B93) -> 6.6608193 | E117: =C117-('HOJA DE DATOS'!G125*B94) -> 4.7631807 | H117: LIMPIEZA | I117: =IF('BIENESTAR ANIMAL'!C21="","",'BIENESTAR ANIMAL'!C21) -> 
A118: OVINO | B118: DENSIDAD | C118: ='HOJA DE DATOS'!H120 -> 6.088 | D118: =C118+('HOJA DE DATOS'!H125*B93) -> 7.158242662 | E118: =C118-('HOJA DE DATOS'!H125*B94) -> 5.017757338 | H118: PIENSO | I118: =IF('BIENESTAR ANIMAL'!C23="","",'BIENESTAR ANIMAL'!C23) -> 
A119: OVINO | B119: CAMA | C119: ='HOJA DE DATOS'!I120 -> 5.904 | D119: =C119+('HOJA DE DATOS'!I125*B93) -> 6.969772475 | E119: =C119-('HOJA DE DATOS'!I125*B94) -> 4.838227525 | H119: PAJA | I119: =IF('BIENESTAR ANIMAL'!C24="","",'BIENESTAR ANIMAL'!C24) -> 
A120: OVINO | B120: CONFORT | C120: ='HOJA DE DATOS'!J120 -> 5.928 | D120: =C120+('HOJA DE DATOS'!J125*B93) -> 6.809494332 | E120: =C120-('HOJA DE DATOS'!J125*B94) -> 5.046505668 | H120: BEBEDEROS | I120: =IF('BIENESTAR ANIMAL'!C25="","",'BIENESTAR ANIMAL'!C25) -> 
A121: OVINO | B121: ESTRÉS | C121: ='HOJA DE DATOS'!K120 -> 5.656 | D121: =C121+('HOJA DE DATOS'!K125*B93) -> 6.590154784 | E121: =C121-('HOJA DE DATOS'!K125*B94) -> 4.721845216 | H121: CONDICION CORPORAL | I121: =IF('BIENESTAR ANIMAL'!C26="","",'BIENESTAR ANIMAL'!C26) -> 
A122: OVINO | B122: LIMPIEZA | C122: ='HOJA DE DATOS'!Q120 -> 6.16 | D122: =C122+('HOJA DE DATOS'!Q125*B93) -> 7.16322062 | E122: =C122-('HOJA DE DATOS'!Q125*B94) -> 5.15677938 | H122: CONSISTENCIA HECES | I122: =IF('BIENESTAR ANIMAL'!C27="","",'BIENESTAR ANIMAL'!C27) -> 
A123: OVINO | B123: PIENSO | C123: ='HOJA DE DATOS'!L120 -> 5.992 | D123: =C123+('HOJA DE DATOS'!L125*B93) -> 6.920891118 | E123: =C123-('HOJA DE DATOS'!L125*B94) -> 5.063108882 | H123: Nº CHEQUEOS | J123: =IF($A$131="OVINO",C129,IF($A$131="CAPRINO",C113,"")) -> 
A124: OVINO | B124: PAJA | C124: ='HOJA DE DATOS'!M120 -> 6.008 | D124: =C124+('HOJA DE DATOS'!M125*B93) -> 7.019992605 | E124: =C124-('HOJA DE DATOS'!M125*B94) -> 4.996007395
A125: OVINO | B125: BEBEDEROS | C125: ='HOJA DE DATOS'!N120 -> 5.512 | D125: =C125+('HOJA DE DATOS'!N125*B93) -> 6.548557578 | E125: =C125-('HOJA DE DATOS'!N125*B94) -> 4.475442422 | I125: REAL | J125: BBDD | K125: MAXIMO | L125: MINIMO
A126: OVINO | B126: CONDICION CORPORAL | C126: ='HOJA DE DATOS'!A120 -> 3.1 | D126: =C126+('HOJA DE DATOS'!A125*B93) -> 3.434507341 | E126: =C126-('HOJA DE DATOS'!A125*B94) -> 2.765492659 | H126: =H97 -> BA AMBIENTE | I126: =IF('BIENESTAR ANIMAL'!C32="","",'BIENESTAR ANIMAL'!C32) ->  | J126: =IF($A$131="OVINO",I102,IF($A$131="CAPRINO",I97,"")) -> 
A127: OVINO | B127: CONSISTENCIA HECES | C127: ='HOJA DE DATOS'!O120 -> 3.44 | D127: =C127+('HOJA DE DATOS'!O125*B93) -> 4.06733435 | E127: =C127-('HOJA DE DATOS'!O125*B94) -> 2.81266565 | H127: =H98 -> BA MANEJO | I127: =IF('BIENESTAR ANIMAL'!C33="","",'BIENESTAR ANIMAL'!C33) -> 
A128: OVINO | B128: ESTADO PEZUÑAS | C128: ='HOJA DE DATOS'!S120 -> 5.628571429 | D128: =C128+('HOJA DE DATOS'!R125*B93) -> 6.980818236 | E128: =C128-('HOJA DE DATOS'!R125*B94) -> 4.276324621 | H128: =H99 -> BA INSTALACIONES | I128: =IF('BIENESTAR ANIMAL'!C34="","",'BIENESTAR ANIMAL'!C34) -> 
A129: OVINO | B129: Nº CHEQUEOS | C129: ='HOJA DE DATOS'!R120 -> 125 | H129: =H100 -> BA GLOBAL | I129: =IF('BIENESTAR ANIMAL'!C35="","",'BIENESTAR ANIMAL'!C35) -> 
A131: =IF('BIENESTAR ANIMAL'!C11="","",'BIENESTAR ANIMAL'!C11) -> 
A135: PPCC OVINO | B135: =IF('PPCC OVINO'!D11="",1,'PPCC OVINO'!D11) -> 1
A137: COMPETENCIAS | B137: PONDERACION | C137: VALORACION GRANJA | D137: REAL PONDERADA | E137: PROMEDIO | F137: MAXIMO | H137: MINIMO | I137: MEDIA PONDERADA | J137: MAX POND | K137: MIN POND
A138: Sistemas de alimentación | B138: 3 | C138: =IF('PPCC OVINO'!C13="","",'PPCC OVINO'!C13) ->  | D138: =IF(C138="","",B138*C138) ->  | E138: ='HOJA DE DATOS'!A129 -> 3.039215686 | F138: =E138+('HOJA DE DATOS'!A132*B135) -> 3.759237472 | H138: =E138-('HOJA DE DATOS'!A132*B135) -> 2.3191939 | I138: =E138*B138 -> 9.117647059 | J138: =F138*B138 -> 11.27771242 | K138: =H138*B138 -> 6.9575817
A139: Calidad y disponibilidad e forrajes | B139: 3 | C139: =IF('PPCC OVINO'!C14="","",'PPCC OVINO'!C14) ->  | D139: =IF(C139="","",B139*C139) ->  | E139: ='HOJA DE DATOS'!B129 -> 2.941176471 | F139: =E139+('HOJA DE DATOS'!B132*B135) -> 3.775724605 | H139: =E139-('HOJA DE DATOS'!B132*B135) -> 2.106628336 | I139: =E139*B139 -> 8.823529412 | J139: =F139*B139 -> 11.32717381 | K139: =H139*B139 -> 6.319885009
A140: Lotes de alimentacion | B140: 6 | C140: =IF('PPCC OVINO'!C15="","",'PPCC OVINO'!C15) ->  | E140: ='HOJA DE DATOS'!C129 -> 2.901960784 | F140: =E140+('HOJA DE DATOS'!C132*B135) -> 3.732741188 | H140: =E140-('HOJA DE DATOS'!C132*B135) -> 2.071180381 | I140: 17.41176471 | J140: 22.39644713 | K140: 12.42708229
A141: Aprovechamiento recursos naturales | B141: 4 | C141: =IF('PPCC OVINO'!C16="","",'PPCC OVINO'!C16) ->  | E141: ='HOJA DE DATOS'!D129 -> 2.352941176 | F141: =E141+('HOJA DE DATOS'!D132*B135) -> 3.899854612 | H141: =E141-('HOJA DE DATOS'!D132*B135) -> 0.8060277411 | I141: 9.411764706 | J141: 15.59941845 | K141: 3.224110964
A142: Automatización | B142: 3 | C142: =IF('PPCC OVINO'!C17="","",'PPCC OVINO'!C17) ->  | E142: ='HOJA DE DATOS'!E129 -> 2.941176471 | F142: =E142+('HOJA DE DATOS'!E132*B135) -> 4.02582876 | H142: =E142-('HOJA DE DATOS'!E132*B135) -> 1.856524181 | I142: 8.823529412 | J142: 12.07748628 | K142: 5.569572544
A143: Existencia de protocolo sanitario | B143: 5 | C143: =IF('PPCC OVINO'!C18="","",'PPCC OVINO'!C18) ->  | E143: ='HOJA DE DATOS'!F129 -> 3.333333333 | F143: =E143+('HOJA DE DATOS'!F132*B135) -> 4.26428267 | H143: =E143-('HOJA DE DATOS'!F132*B135) -> 2.402383997 | I143: 16.66666667 | J143: 21.32141335 | K143: 12.01191999
A144: Mortalidad en corderos | B144: 5 | C144: =IF('PPCC OVINO'!C19="","",'PPCC OVINO'!C19) ->  | E144: ='HOJA DE DATOS'!G129 -> 2.862745098 | F144: =E144+('HOJA DE DATOS'!G132*B135) -> 3.940142106 | H144: =E144-('HOJA DE DATOS'!G132*B135) -> 1.78534809 | I144: 14.31372549 | J144: 19.70071053 | K144: 8.926740448
A145: Mortalidad en adultos | B145: 5 | C145: =IF('PPCC OVINO'!C20="","",'PPCC OVINO'!C20) ->  | E145: ='HOJA DE DATOS'!H129 -> 3.235294118 | F145: =E145+('HOJA DE DATOS'!H132*B135) -> 4.266569741 | H145: =E145-('HOJA DE DATOS'!H132*B135) -> 2.204018494 | I145: 16.17647059 | J145: 21.33284871 | K145: 11.02009247
A146: Incidencia patologia más frecuente | B146: 2 | C146: =IF('PPCC OVINO'!C21="","",'PPCC OVINO'!C21) ->  | E146: ='HOJA DE DATOS'!I129 -> 2.784313725 | F146: =E146+('HOJA DE DATOS'!I132*B135) -> 3.640204501 | H146: =E146-('HOJA DE DATOS'!I132*B135) -> 1.92842295 | I146: 5.568627451 | J146: 7.280409002 | K146: 3.8568459
A147: Porcentaje de mamitis | B147: 3 | C147: =IF('PPCC OVINO'!C22="","",'PPCC OVINO'!C22) ->  | E147: ='HOJA DE DATOS'!J129 -> 2.568627451 | F147: =E147+('HOJA DE DATOS'!J132*B135) -> 3.55361277 | H147: =E147-('HOJA DE DATOS'!J132*B135) -> 1.583642132 | I147: 7.705882353 | J147: 10.66083831 | K147: 4.750926396
A148: Lactancia Artificial | B148: 2 | C148: =IF('PPCC OVINO'!C23="","",'PPCC OVINO'!C23) ->  | E148: ='HOJA DE DATOS'!K129 -> 1.549019608 | F148: =E148+('HOJA DE DATOS'!K132*B135) -> 3.102257844 | H148: =E148-('HOJA DE DATOS'!K132*B135) -> -0.004218628748 | I148: 3.098039216 | J148: 6.204515689 | K148: -0.008437257495
A149: Tipo sala de ordeño | B149: 3 | C149: =IF('PPCC OVINO'!C24="","",'PPCC OVINO'!C24) ->  | E149: ='HOJA DE DATOS'!L129 -> 2.941176471 | F149: =E149+('HOJA DE DATOS'!L132*B135) -> 3.673617996 | H149: =E149-('HOJA DE DATOS'!L132*B135) -> 2.208734945 | I149: 8.823529412 | J149: 11.02085399 | K149: 6.626204835
A150: Control ambiental en naves | B150: 3 | C150: =IF('PPCC OVINO'!C25="","",'PPCC OVINO'!C25) ->  | E150: ='HOJA DE DATOS'!M129 -> 2.470588235 | F150: =E150+('HOJA DE DATOS'!M132*B135) -> 3.254244823 | H150: =E150-('HOJA DE DATOS'!M132*B135) -> 1.686931648 | I150: 7.411764706 | J150: 9.762734468 | K150: 5.060794944
A151: Parques por lotes | B151: 3 | C151: =IF('PPCC OVINO'!C26="","",'PPCC OVINO'!C26) ->  | E151: ='HOJA DE DATOS'!N129 -> 2.274509804 | F151: =E151+('HOJA DE DATOS'!N132*B135) -> 3.276077203 | H151: =E151-('HOJA DE DATOS'!N132*B135) -> 1.272942405 | I151: 6.823529412 | J151: 9.828231609 | K151: 3.818827215
A152: Comederos/Bebederos | B152: 3 | C152: =IF('PPCC OVINO'!C27="","",'PPCC OVINO'!C27) ->  | E152: ='HOJA DE DATOS'!O129 -> 2.745098039 | F152: =E152+('HOJA DE DATOS'!O132*B135) -> 3.855830001 | H152: =E152-('HOJA DE DATOS'!O132*B135) -> 1.634366078 | I152: 8.235294118 | J152: 11.56749 | K152: 4.903098233
A153: Leche oveja/año | B153: 7 | C153: =IF('PPCC OVINO'!C28="","",'PPCC OVINO'!C28) ->  | E153: ='HOJA DE DATOS'!P129 -> 2.549019608 | F153: =E153+('HOJA DE DATOS'!P132*B135) -> 3.754237024 | H153: =E153-('HOJA DE DATOS'!P132*B135) -> 1.343802192 | I153: 17.84313725 | J153: 26.27965917 | K153: 9.406615344
A154: Corderos vendidos | B154: 3 | C154: =IF('PPCC OVINO'!C29="","",'PPCC OVINO'!C29) ->  | E154: ='HOJA DE DATOS'!Q129 -> 2.37254902 | F154: =E154+('HOJA DE DATOS'!Q132*B135) -> 3.430108178 | H154: =E154-('HOJA DE DATOS'!Q132*B135) -> 1.314989862 | I154: 7.117647059 | J154: 10.29032453 | K154: 3.944969585
A155: Ovejas/UTH | B155: 4 | C155: =IF('PPCC OVINO'!C30="","",'PPCC OVINO'!C30) ->  | E155: ='HOJA DE DATOS'!R129 -> 2.529411765 | F155: =E155+('HOJA DE DATOS'!R132*B135) -> 3.667004683 | H155: =E155-('HOJA DE DATOS'!R132*B135) -> 1.391818847 | I155: 10.11764706 | J155: 14.66801873 | K155: 5.567275387
A156: Calidad de leche | B156: 5 | C156: =IF('PPCC OVINO'!C31="","",'PPCC OVINO'!C31) ->  | E156: ='HOJA DE DATOS'!S129 -> 2.058823529 | F156: =E156+('HOJA DE DATOS'!S132*B135) -> 3.08667108 | H156: =E156-('HOJA DE DATOS'!S132*B135) -> 1.030975978 | I156: 10.29411765 | J156: 15.4333554 | K156: 5.154879892
A157: Tasa de reposición | B157: 3 | C157: =IF('PPCC OVINO'!C32="","",'PPCC OVINO'!C32) ->  | E157: ='HOJA DE DATOS'!T129 -> 2.68627451 | F157: =E157+('HOJA DE DATOS'!T132*B135) -> 3.82627795 | H157: =E157-('HOJA DE DATOS'!T132*B135) -> 1.54627107 | I157: 8.058823529 | J157: 11.47883385 | K157: 4.63881321
A158: Ingresos brutos por leche | B158: 8 | C158: =IF('PPCC OVINO'!C33="","",'PPCC OVINO'!C33) ->  | E158: ='HOJA DE DATOS'!U129 -> 3.098039216 | F158: =E158+('HOJA DE DATOS'!U132*B135) -> 3.769005741 | H158: =E158-('HOJA DE DATOS'!U132*B135) -> 2.42707269 | I158: 24.78431373 | J158: 30.15204593 | K158: 19.41658152
A159: Ingresos brutos por venta animales (corderos, desvieje, machos) | B159: 3 | C159: =IF('PPCC OVINO'!C34="","",'PPCC OVINO'!C34) ->  | E159: ='HOJA DE DATOS'!V129 -> 3.176470588 | F159: =E159+('HOJA DE DATOS'!V132*B135) -> 3.799555891 | H159: =E159-('HOJA DE DATOS'!V132*B135) -> 2.553385286 | I159: 9.529411765 | J159: 11.39866767 | K159: 7.660155857
A160: Gastos de alimentación (concentrados + forrajes) | B160: 6 | C160: =IF('PPCC OVINO'!C35="","",'PPCC OVINO'!C35) ->  | E160: ='HOJA DE DATOS'!W129 -> 3.137254902 | F160: =E160+('HOJA DE DATOS'!W132*B135) -> 4.096829971 | H160: =E160-('HOJA DE DATOS'!W132*B135) -> 2.177679833 | I160: 18.82352941 | J160: 24.58097983 | K160: 13.066079
A161: Amortizaciones (maquinaria, naves...). | B161: 4 | C161: =IF('PPCC OVINO'!C36="","",'PPCC OVINO'!C36) ->  | E161: ='HOJA DE DATOS'!X129 -> 2.862745098 | F161: =E161+('HOJA DE DATOS'!X132*B135) -> 4.0292717 | H161: =E161-('HOJA DE DATOS'!X132*B135) -> 1.696218496 | I161: 11.45098039 | J161: 16.1170868 | K161: 6.784873983
A162: Mano de obra (costes por UTH) | B162: 4 | C162: =IF('PPCC OVINO'!C37="","",'PPCC OVINO'!C37) ->  | E162: ='HOJA DE DATOS'!Y129 -> 2.921568627 | F162: =E162+('HOJA DE DATOS'!Y132*B135) -> 3.877458522 | H162: =E162-('HOJA DE DATOS'!Y132*B135) -> 1.965678733 | I162: 11.68627451 | J162: 15.50983409 | K162: 7.862714932
A163: TOTAL CHEQUEOS | B163: =SUM(B138:B162) -> 100 | C163: =SUM(C138:C162) -> 0 | D163: =SUM(D138:D162) -> 0 | E163: ='HOJA DE DATOS'!Z129 -> 51 | I163: =SUM(I138:I162) -> 278.1176471 | J163: =SUM(J138:J162) -> 377.2670897 | K163: =SUM(K138:K162) -> 178.9682044
B166: REAL | C166: MEDIA BBDD | D166: MAXIMO | E166: MINIMO
A167: ALIMENTACION | B167: =AVERAGE(D138:D142) ->  | C167: =AVERAGE(I138:I142) -> 10.71764706 | D167: =AVERAGE(J138:J142) -> 14.53564762 | E167: =AVERAGE(K138:K142) -> 6.899646501 | H167: REAL | I167: =D163 -> 0
A168: SANIDAD | B168: =AVERAGE(D143:D147) ->  | C168: =AVERAGE(I143:I147) -> 12.08627451 | D168: =AVERAGE(J143:J147) -> 16.05924398 | E168: =AVERAGE(K143:K147) -> 8.11330504 | H168: PROMEDIO BBDD | I168: =I163 -> 278.1176471
A169: INSTALACIONES Y B.A. | B169: =AVERAGE(D148:D152) ->  | C169: =AVERAGE(I148:I152) -> 6.878431373 | D169: =AVERAGE(J148:J152) -> 9.676765151 | E169: =AVERAGE(K148:K152) -> 4.080097594 | H169: MAXIMO | I169: =J163 -> 377.2670897
A170: PRODUCCIONES-INDICES | B170: =AVERAGE(D153:D157) ->  | C170: =AVERAGE(I153:I157) -> 10.68627451 | D170: =AVERAGE(J153:J157) -> 15.63003834 | E170: =AVERAGE(K153:K157) -> 5.742510683 | H170: MINIMO | I170: =K163 -> 178.9682044
A171: CONDICIONES ECONOMICAS | B171: =AVERAGE(D158:D162) ->  | C171: =AVERAGE(I158:I162) -> 15.25490196 | D171: =AVERAGE(J158:J162) -> 19.55172286 | E171: =AVERAGE(K158:K162) -> 10.95808106
A176: PPCC CAPRINO | B176: =IF('PPCC CAPRINO'!D11="",1,'PPCC CAPRINO'!D11) -> 1
A178: COMPETENCIAS | B178: PONDERACION | C178: VALORACION GRANJA | D178: REAL PONDERADA | E178: PROMEDIO | F178: MAXIMO | H178: MINIMO | I178: MEDIA PONDERADA | J178: MAX POND | K178: MIN POND
A179: Sistemas de alimentación | B179: 5 | C179: =IF('PPCC CAPRINO'!C13="","",'PPCC CAPRINO'!C13) ->  | D179: =IF(C179="","",B179*C179) ->  | E179: ='HOJA DE DATOS'!A135 -> 3.469387755 | F179: =E179+('HOJA DE DATOS'!A138*B176) -> 4.288483822 | H179: =E179-('HOJA DE DATOS'!A138*B176) -> 2.650291688 | I179: =E179*B179 -> 17.34693878 | J179: =F179*B179 -> 21.44241911 | K179: =H179*B179 -> 13.25145844
A180: Calidad y disponibilidad e forrajes | B180: 4 | C180: =IF('PPCC CAPRINO'!C14="","",'PPCC CAPRINO'!C14) ->  | D180: =IF(C180="","",B180*C180) ->  | E180: ='HOJA DE DATOS'!B135 -> 3.102040816 | F180: =E180+('HOJA DE DATOS'!B138*B176) -> 3.973937646 | H180: =E180-('HOJA DE DATOS'!B138*B176) -> 2.230143987 | I180: =E180*B180 -> 12.40816327 | J180: =F180*B180 -> 15.89575058 | K180: =H180*B180 -> 8.920575947
A181: Lotes de alimentacion | B181: 7 | C181: =IF('PPCC CAPRINO'!C15="","",'PPCC CAPRINO'!C15) ->  | E181: ='HOJA DE DATOS'!C135 -> 2.795918367 | F181: =E181+('HOJA DE DATOS'!C138*B176) -> 3.68519691 | H181: =E181-('HOJA DE DATOS'!C138*B176) -> 1.906639825 | I181: 19.57142857 | J181: 25.79637837 | K181: 13.34647877
A182: Aprovechamiento recursos naturales | B182: 3 | C182: =IF('PPCC CAPRINO'!C16="","",'PPCC CAPRINO'!C16) ->  | E182: ='HOJA DE DATOS'!D135 -> 1.367346939 | F182: =E182+('HOJA DE DATOS'!D138*B176) -> 2.876953366 | H182: =E182-('HOJA DE DATOS'!D138*B176) -> -0.1422594883 | I182: 4.102040816 | J182: 8.630860098 | K182: -0.4267784649
A183: Automatización | B183: 2 | C183: =IF('PPCC CAPRINO'!C17="","",'PPCC CAPRINO'!C17) ->  | E183: ='HOJA DE DATOS'!E135 -> 2.224489796 | F183: =E183+('HOJA DE DATOS'!E138*B176) -> 2.9393705 | H183: =E183-('HOJA DE DATOS'!E138*B176) -> 1.509609091 | I183: 4.448979592 | J183: 5.878741001 | K183: 3.019218183
A184: Existencia de protocolo sanitario | B184: 5 | C184: =IF('PPCC CAPRINO'!C18="","",'PPCC CAPRINO'!C18) ->  | E184: ='HOJA DE DATOS'!F135 -> 2.959183673 | F184: =E184+('HOJA DE DATOS'!F138*B176) -> 4.297079778 | H184: =E184-('HOJA DE DATOS'!F138*B176) -> 1.621287569 | I184: 14.79591837 | J184: 21.48539889 | K184: 8.106437845
A185: Mortalidad en chivos | B185: 4 | C185: =IF('PPCC CAPRINO'!C19="","",'PPCC CAPRINO'!C19) ->  | E185: ='HOJA DE DATOS'!G135 -> 2.897959184 | F185: =E185+('HOJA DE DATOS'!G138*B176) -> 3.923566686 | H185: =E185-('HOJA DE DATOS'!G138*B176) -> 1.872351682 | I185: 11.59183673 | J185: 15.69426674 | K185: 7.489406726
A186: Mortalidad en adultos | B186: 5 | C186: =IF('PPCC CAPRINO'!C20="","",'PPCC CAPRINO'!C20) ->  | E186: ='HOJA DE DATOS'!H135 -> 2.87755102 | F186: =E186+('HOJA DE DATOS'!H138*B176) -> 3.930971106 | H186: =E186-('HOJA DE DATOS'!H138*B176) -> 1.824130934 | I186: 14.3877551 | J186: 19.65485553 | K186: 9.120654672
A187: Incidencia patologia más frecuente | B187: 2 | C187: =IF('PPCC CAPRINO'!C21="","",'PPCC CAPRINO'!C21) ->  | E187: ='HOJA DE DATOS'!I135 -> 2.367346939 | F187: =E187+('HOJA DE DATOS'!I138*B176) -> 3.249906605 | H187: =E187-('HOJA DE DATOS'!I138*B176) -> 1.484787272 | I187: 4.734693878 | J187: 6.49981321 | K187: 2.969574545
A188: Porcentaje de mamitis | B188: 3 | C188: =IF('PPCC CAPRINO'!C22="","",'PPCC CAPRINO'!C22) ->  | E188: ='HOJA DE DATOS'!J135 -> 2.408163265 | F188: =E188+('HOJA DE DATOS'!J138*B176) -> 3.467218807 | H188: =E188-('HOJA DE DATOS'!J138*B176) -> 1.349107724 | I188: 7.224489796 | J188: 10.40165642 | K188: 4.047323172
A189: Lactancia Artificial | B189: 2 | C189: =IF('PPCC CAPRINO'!C23="","",'PPCC CAPRINO'!C23) ->  | E189: ='HOJA DE DATOS'!K135 -> 2.020408163 | F189: =E189+('HOJA DE DATOS'!K138*B176) -> 3.219188723 | H189: =E189-('HOJA DE DATOS'!K138*B176) -> 0.8216276037 | I189: 4.040816327 | J189: 6.438377446 | K189: 1.643255207
A190: Tipo sala de ordeño | B190: 4 | C190: =IF('PPCC CAPRINO'!C24="","",'PPCC CAPRINO'!C24) ->  | E190: ='HOJA DE DATOS'!L135 -> 2.693877551 | F190: =E190+('HOJA DE DATOS'!L138*B176) -> 3.435612051 | H190: =E190-('HOJA DE DATOS'!L138*B176) -> 1.952143051 | I190: 10.7755102 | J190: 13.7424482 | K190: 7.808572205
A191: Control ambiental en naves | B191: 3 | C191: =IF('PPCC CAPRINO'!C25="","",'PPCC CAPRINO'!C25) ->  | E191: ='HOJA DE DATOS'!M135 -> 2.326530612 | F191: =E191+('HOJA DE DATOS'!M138*B176) -> 3.044970911 | H191: =E191-('HOJA DE DATOS'!M138*B176) -> 1.608090314 | I191: 6.979591837 | J191: 9.134912732 | K191: 4.824270941
A192: Parques por lotes | B192: 3 | C192: =IF('PPCC CAPRINO'!C26="","",'PPCC CAPRINO'!C26) ->  | E192: ='HOJA DE DATOS'!N135 -> 2.224489796 | F192: =E192+('HOJA DE DATOS'!N138*B176) -> 2.995455265 | H192: =E192-('HOJA DE DATOS'!N138*B176) -> 1.453524326 | I192: 6.673469388 | J192: 8.986365796 | K192: 4.360572979
A193: Comederos/Bebederos | B193: 3 | C193: =IF('PPCC CAPRINO'!C27="","",'PPCC CAPRINO'!C27) ->  | E193: ='HOJA DE DATOS'!O135 -> 2.551020408 | F193: =E193+('HOJA DE DATOS'!O138*B176) -> 3.465287521 | H193: =E193-('HOJA DE DATOS'!O138*B176) -> 1.636753295 | I193: 7.653061224 | J193: 10.39586256 | K193: 4.910259886
A194: Porcentaje de reposición | B194: 3 | C194: =IF('PPCC CAPRINO'!C28="","",'PPCC CAPRINO'!C28) ->  | E194: ='HOJA DE DATOS'!P135 -> 3.428571429 | F194: =E194+('HOJA DE DATOS'!P138*B176) -> 4.13567821 | H194: =E194-('HOJA DE DATOS'!P138*B176) -> 2.721464647 | I194: 10.28571429 | J194: 12.40703463 | K194: 8.164393942
A195: Producción media | B195: 8 | C195: =IF('PPCC CAPRINO'!C29="","",'PPCC CAPRINO'!C29) ->  | E195: ='HOJA DE DATOS'!Q135 -> 2.224489796 | F195: =E195+('HOJA DE DATOS'!Q138*B176) -> 3.290348333 | H195: =E195-('HOJA DE DATOS'!Q138*B176) -> 1.158631259 | I195: 17.79591837 | J195: 26.32278667 | K195: 9.269050068
A196: Calidad Media | B196: 7 | C196: =IF('PPCC CAPRINO'!C30="","",'PPCC CAPRINO'!C30) ->  | E196: ='HOJA DE DATOS'!R135 -> 2.693877551 | F196: =E196+('HOJA DE DATOS'!R138*B176) -> 3.611394164 | H196: =E196-('HOJA DE DATOS'!R138*B176) -> 1.776360938 | I196: 18.85714286 | J196: 25.27975915 | K196: 12.43452657
A197: Cabritos vendidos | B197: 3 | C197: =IF('PPCC CAPRINO'!C31="","",'PPCC CAPRINO'!C31) ->  | E197: ='HOJA DE DATOS'!S135 -> 1.612244898 | F197: =E197+('HOJA DE DATOS'!S138*B176) -> 2.68881984 | H197: =E197-('HOJA DE DATOS'!S138*B176) -> 0.5356699561 | I197: 4.836734694 | J197: 8.066459519 | K197: 1.607009868
A198: Cabras por UTH | B198: 3 | C198: =IF('PPCC CAPRINO'!C32="","",'PPCC CAPRINO'!C32) ->  | E198: ='HOJA DE DATOS'!T135 -> 1.775510204 | F198: =E198+('HOJA DE DATOS'!T138*B176) -> 2.987693258 | H198: =E198-('HOJA DE DATOS'!T138*B176) -> 0.5633271506 | I198: 5.326530612 | J198: 8.963079773 | K198: 1.689981452
A199: Ingresos por leche | B199: 7 | C199: =IF('PPCC CAPRINO'!C33="","",'PPCC CAPRINO'!C33) ->  | E199: ='HOJA DE DATOS'!U135 -> 2.836734694 | F199: =E199+('HOJA DE DATOS'!U138*B176) -> 3.711066314 | H199: =E199-('HOJA DE DATOS'!U138*B176) -> 1.962403074 | I199: 19.85714286 | J199: 25.9774642 | K199: 13.73682151
A200: Ingresos por animales vendidos | B200: 2 | C200: =IF('PPCC CAPRINO'!C34="","",'PPCC CAPRINO'!C34) ->  | E200: ='HOJA DE DATOS'!V135 -> 2.326530612 | F200: =E200+('HOJA DE DATOS'!V138*B176) -> 3.177700276 | H200: =E200-('HOJA DE DATOS'!V138*B176) -> 1.475360949 | I200: 4.653061224 | J200: 6.355400551 | K200: 2.950721898
A201: Coste mano de obra | B201: 3 | C201: =IF('PPCC CAPRINO'!C35="","",'PPCC CAPRINO'!C35) ->  | E201: ='HOJA DE DATOS'!W135 -> 2.571428571 | F201: =E201+('HOJA DE DATOS'!W138*B176) -> 3.612261571 | H201: =E201-('HOJA DE DATOS'!W138*B176) -> 1.530595572 | I201: 7.714285714 | J201: 10.83678471 | K201: 4.591786715
A202: Coste alimentación | B202: 6 | C202: =IF('PPCC CAPRINO'!C36="","",'PPCC CAPRINO'!C36) ->  | E202: ='HOJA DE DATOS'!X135 -> 3.081632653 | F202: =E202+('HOJA DE DATOS'!X138*B176) -> 3.840928783 | H202: =E202-('HOJA DE DATOS'!X138*B176) -> 2.322336524 | I202: 18.48979592 | J202: 23.0455727 | K202: 13.93401914
A203: Amortizaciones /Subvenciones | B203: 3 | C203: =IF('PPCC CAPRINO'!C37="","",'PPCC CAPRINO'!C37) ->  | E203: ='HOJA DE DATOS'!Y135 -> 2.489795918 | F203: =E203+('HOJA DE DATOS'!Y138*B176) -> 3.628553446 | H203: =E203-('HOJA DE DATOS'!Y138*B176) -> 1.35103839 | I203: 7.469387755 | J203: 10.88566034 | K203: 4.053115171
A204: TOTAL CHEQUEOS | B204: =SUM(B179:B203) -> 100 | C204: =SUM(C179:C203) -> 0 | D204: =SUM(D179:D203) -> 0 | E204: ='HOJA DE DATOS'!Z135 -> 49 | I204: =SUM(I179:I203) -> 262.0204082 | J204: =SUM(J179:J203) -> 358.2181089 | K204: =SUM(K179:K203) -> 165.8227074
B207: REAL | C207: MEDIA BBDD | D207: MAXIMO | E207: MINIMO
A208: ALIMENTACION | B208: =AVERAGE(D179:D183) ->  | C208: =AVERAGE(I179:I183) -> 11.5755102 | D208: =AVERAGE(J179:J183) -> 15.52882983 | E208: =AVERAGE(K179:K183) -> 7.622190575 | H208: REAL | I208: =D204 -> 0
A209: SANIDAD | B209: =AVERAGE(D184:D188) ->  | C209: =AVERAGE(I184:I188) -> 10.54693878 | D209: =AVERAGE(J184:J188) -> 14.74719816 | E209: =AVERAGE(K184:K188) -> 6.346679392 | H209: PROMEDIO BBDD | I209: =I204 -> 262.0204082
A210: INSTALACIONES Y B.A. | B210: =AVERAGE(D189:D193) ->  | C210: =AVERAGE(I189:I193) -> 7.224489796 | D210: =AVERAGE(J189:J193) -> 9.739593348 | E210: =AVERAGE(K189:K193) -> 4.709386244 | H210: MAXIMO | I210: =J204 -> 358.2181089
A211: PRODUCCIONES-INDICES | B211: =AVERAGE(D194:D198) ->  | C211: =AVERAGE(I194:I198) -> 11.42040816 | D211: =AVERAGE(J194:J198) -> 16.20782395 | E211: =AVERAGE(K194:K198) -> 6.63299238 | H211: MINIMO | I211: =K204 -> 165.8227074
A212: CONDICIONES ECONOMICAS | B212: =AVERAGE(D199:D203) ->  | C212: =AVERAGE(I199:I203) -> 11.63673469 | D212: =AVERAGE(J199:J203) -> 15.4201765 | E212: =AVERAGE(K199:K203) -> 7.853292888
A215: PLAN EXPLOTACION | D215: TIEMPO ENTRE PARIDERAS | E215: Nº BANDAS | F215: M2 NAVE | G215: =IF('PLAN DE EXPLOTACIÓN'!C14="","",'PLAN DE EXPLOTACIÓN'!C14) -> 
B216: 1 | C216: 1 paridera/año | D216: 365 | F216: OVEJAS TOTAL | G216: =IF('PLAN DE EXPLOTACIÓN'!C12="","",'PLAN DE EXPLOTACIÓN'!C12) -> 
A217: LACTANCIA NATURAL | B217: 2 | C217: 2 parideras/año | D217: =$D$216/B217 -> 182.5 | F217: Ovejas /paridera | G217: =IF('PLAN DE EXPLOTACIÓN'!C28="","",'PLAN DE EXPLOTACIÓN'!C28) -> 
A218: LACTANCIA ARTIFICIAL | B218: 3 | C218: 3 parideras/año | D218: =$D$216/B218 -> 121.6666667
A219: =IF('PLAN DE EXPLOTACIÓN'!B10="","",'PLAN DE EXPLOTACIÓN'!B10) ->  | B219: 4 | C219: 4 paridera/año | D219: =$D$216/B219 -> 91.25 | F219: m2 nevesarios tot | G219: =G216*1.5 -> 
B220: 5 | C220: Sistema STAR | D220: =$D$216/B220 -> 73 | F220: m2 disp LN | G220: =IF(G215="","",G215-((G216-G217)*1.5)) -> 
B221: 6 | C221: Sisitema CAMAL | D221: =$D$216/B221 -> 60.83333333 | G221: =IF('PLAN DE EXPLOTACIÓN'!D34="","",'PLAN DE EXPLOTACIÓN'!D34) -> 
B223: PARIDERAS MIN | C223: =IF('PLAN DE EXPLOTACIÓN'!C16="","",('PLAN DE EXPLOTACIÓN'!C12*'PLAN DE EXPLOTACIÓN'!C16)/('PLAN DE EXPLOTACIÓN'!C14/'PLAN DE EXPLOTACIÓN'!C24)) ->  | D223: =C223+0.25 -> 
B225: TIPO | C225: TIEMPO | D225: FECHA PARTO PLANIF.
B226: ='PLAN DE EXPLOTACIÓN'!C19 ->  | C226: =VLOOKUP(B226,C216:D221,2,FALSE) ->  | D226: ='PLAN DE EXPLOTACIÓN'!C13 -> 00:00:00
B228: BANDA 1 | C228: =D226 -> 00:00:00
B229: BANDA 2 | C229: =C228+$C$226 -> 
B230: BANDA 3 | C230: =C229+$C$226 -> 
B231: BANDA 4 | C231: =C230+$C$226 -> 
B233: BANDA ELEGIDA
B234: ='PLAN DE EXPLOTACIÓN'!G9 -> 0 | C234: =VLOOKUP(B234,B228:C231,2,FALSE) -> 
A237: CALENDARIO REPRODUCTIVO
A241: Cría | B241: ='CALENDARIO REPRODUCTIVO'!C12 -> 0 | C241: d
A242: Gestación | B242: 148 | C242: d
B243: Duraciuon | C243: Colocar | D243: Retirar/Soltar machos | E243: Cubrición | F243: d100 gestac | G243: Parto | H243: Destete | I243: d1 ordeño | J243: d90 ordeño | K243: d150 ordeño | L243: d240 ordeño
A244: ESPONJAS | B244: 12 | C244: ='CALENDARIO REPRODUCTIVO'!C13 -> 00:00:00 | D244: =C244+B$244-1 -> 1900-01-11 | E244: =D244+2 -> 1900-01-13 | F244: =E244+100 -> 1900-04-22 | G244: =E244+B$242 -> 1900-06-09 | H244: =G244+B$241 -> 1900-06-09 | I244: =H244+1 -> 1900-06-10 | J244: =I244+89 -> 1900-09-07 | K244: =I244+149 -> 1900-11-06 | L244: =I244+239 -> 1901-02-04
A245: EFECTO MACHO | B245: 45 | C245: =C244 -> 00:00:00 | D245: =C245+B245 -> 1900-02-14 | E245: =D245+2 -> 1900-02-16 | F245: =E245+100 -> 1900-05-26 | G245: =E245+B$242 -> 1900-07-13 | H245: =G245+B$241 -> 1900-07-13 | I245: =H245+1 -> 1900-07-14 | J245: =I245+89 -> 1900-10-11 | K245: =I245+149 -> 1900-12-10 | L245: =I245+239 -> 1901-03-10
A246: IMPLANTES MELATONINA | B246: 45 | C246: =C244 -> 00:00:00 | D246: =C246+B246 -> 1900-02-14 | E246: =D246+2 -> 1900-02-16 | F246: =E246+100 -> 1900-05-26 | G246: =E246+B$242 -> 1900-07-13 | H246: =G246+B$241 -> 1900-07-13 | I246: =H246+1 -> 1900-07-14 | J246: =I246+89 -> 1900-10-11 | K246: =I246+149 -> 1900-12-10 | L246: =I246+239 -> 1901-03-10
B249: 2 | C249: 3 | D249: 4 | E249: 5 | F249: 6 | G249: 7 | H249: 8 | I249: 9 | J249: 10 | K249: 11 | L249: 12
A251: ='CALENDARIO REPRODUCTIVO'!C11 -> 0 | B251: =VLOOKUP($A$251,$A$244:$L$246,B249,FALSE) -> 
... 744 more rows

Sheet ECUACIONES
A1: ECUACIONES CALCULO PROD EQ A PARTIR DE LITROS/DIA | D1: Y=AX+B
A2: REFERENCIA | B2: A | C2: B | D2: FC RAZA | E2: FC EPOCA | F2: R2
A3: CAPRINOFLORIDAINVIERNO | B3: 79.178 | C3: 20.653 | D3: 1 | E3: 1 | F3: 0.9587
A4: CAPRINOFLORIDATEMPLADO | B4: 78.927 | C4: 14.682 | D4: 1 | E4: 1 | F4: 0.7448
A5: CAPRINOFLORIDAVERANO | B5: 78.927 | C5: 14.682 | D5: 1 | E5: 0.94 | F5: 0.7448
A6: CAPRINOMALAGUEÑAINVIERNO | B6: 81.599 | C6: 17.252 | D6: 1 | E6: 1 | F6: 0.8711
A7: CAPRINOMALAGUEÑATEMPLADO | B7: 78.92 | C7: 11.474 | D7: 1 | E7: 1 | F7: 0.9564
A8: CAPRINOMALAGUEÑAVERANO | B8: 80.087 | C8: 2.558 | D8: 1 | E8: 1 | F8: 0.9165
A9: CAPRINOMURCIANAINVIERNO | B9: 87.379 | C9: 18.988 | D9: 1 | E9: 1 | F9: 0.9157
A10: CAPRINOMURCIANATEMPLADO | B10: 82.216 | C10: 13.966 | D10: 1 | E10: 1 | F10: 0.885
A11: CAPRINOMURCIANAVERANO | B11: 71.408 | C11: 22.722 | D11: 1 | E11: 1 | F11: 0.8756
A12: OVINOASSAFINVIERNO | B12: 116.55 | C12: 10.054 | D12: 1 | E12: 1 | F12: 0.96
A13: OVINOASSAFTEMPLADO | B13: 99.69 | C13: 24.49 | D13: 1 | E13: 1 | F13: 0.958
A14: OVINOASSAFVERANO | B14: 99.912 | C14: 16.479 | D14: 1 | E14: 1 | F14: 0.9517
A15: OVINOLACAUNEINVIERNO | B15: 122.97 | C15: 6.158 | D15: 1 | E15: 1 | F15: 0.9251
A16: OVINOLACAUNETEMPLADO | B16: 108.42 | C16: 17.942 | D16: 1 | E16: 1 | F16: 0.952
A17: OVINOLACAUNEVERANO | B17: 106.35 | C17: 13.379 | D17: 1 | E17: 1 | F17: 0.9382
A18: OVINOMANCHEGAINVIERNO | B18: 130.35 | C18: 6.2658 | D18: 1 | E18: 1 | F18: 0.9189
A19: OVINOMANCHEGATEMPLADO | B19: 119.67 | C19: 10.48 | D19: 1 | E19: 1 | F19: 0.8834
A20: OVINOMANCHEGAVERANO | B20: 130.58 | C20: -7.0624 | D20: 1 | E20: 0.93 | F20: 0.967
A23: ECUACIONES PREDICCION PRODUCCION LECHE (MANTECON)
B24: A | C24: B | D24: Y= AxProd + BxDias
A25: ECUACION 1 /1º CONTROL) | B25: 0.259 | C25: 0.75
A26: ECUACION2 (CONTROL CUALQUIERA) | B26: 0.255 | C26: 1.319
A28: NECESIDADES INRA | B28: FACTOR MANT UFL | C28: CI | D28: FACTOR PLS x GB | E28: FACTOR PLS x PB | F28: FACTOR PLS SUMA | G28: FACTOR LECHE
A29: OVINO | B29: 0.033 | C29: 0.085 | D29: 0.0071 | E29: 0.0043 | F29: 0.2224 | G29: 0.71
B30: MANT1 | C30: MANT2 | D30: MANT3 | E30: UFLREAL1 | F30: UFLREAL2 GB1 | G30: UFLREAL2 GB2 | H30: UFLREAL2 PB1 | I30: UFLREAL5 | J30: UFLREAL2 SUMA
A31: CAPRINO | B31: 0.79 | C31: 0.01 | D31: 60 | E31: 0.4 | F31: 0.0055 | G31: 35 | H31: 0.0033 | I31: 31 | J31: 0.4
A34: DISTANCIUA ENTRE NAVES | B34: FACTOR | D34: Y= FACTORxALTURA + RAIZ CUADRADA DE LONGITUD
B35: 0.724
A37: ECUACIONES PREDICCION PRODUCCION DIARIA (MANTECON)
B39: cod ecuaci | C39: A | D39: B | E39: n | F39: Prod= A- BxDias
B40: 1 | C40: 1135 | D40: 3.05 | E40: 58160
B41: 2 | C41: 751 | D41: 2.82 | E41: 17091
B42: 3 | C42: 1126 | D42: 3.81 | E42: 21420
B43: 4 | C43: 1446 | D43: 4.45 | E43: 13221
B44: 5 | C44: 1800 | D44: 3.99 | E44: 5659
B45: 6 | C45: 2163 | D45: 5.48 | E45: 769
A47: ECUACIONES PREDICCION ENERGIA PIENSOS
C50: SSF | D50: SSF
C51: UFC | D51: UFL
B52: MS | C52: 1.149 | D52: 1.141
B53: Cenizas | C53: -2.011 | D53: -1.88
B54: PB | C54: 0.446 | D54: 0.441
B55: FB | C55: -1.962 | D55: -1.623
B56: GB | C56: 2.624 | D56: 2.509
A60: ECUACIONES PREDICCION UREA EN LECHE
C62: ECUACIÓN | D62: ESPECIE | E62: FUENTE
B63: "1" | C63: UL = 200 + (12xRMIC) + (23.5xPL) | D63: OVINO | E63: Martinez 2017 | F63: OVEJAS
B64: "2" | C64: UL = 377 + 13.4xRMIC | D64: OVINO (LACAUNE) | E64: INRA | F64: OVEJAS
B65: "3" | C65: UL = 391+ 8.28xRMIC | D65: OVINO | E65: Centre Départemental de l’Elevage Ovin | F65: OVEJAS
B66: "4" | C66: UL = ((grPB/KgMSx0.56)-57.5)x10 | D66: CAPRINO | E66: Rapetti 2016 | F66: CABRAS
B67: "5" | C67: UL =((balance PDINx0.35)+25)x10 | D67: CAPRINO | E67: Rapetti 2016 | F67: CABRAS

Sheet CREDITOS
A6: CRÉDITOS GESTIMILK MODEL
A12: DATOS GESTIMILK | B12: TOTAL MESES | C12: =SUM(C13:C14) -> 2037
B13: MESES OVINO | C13: ='ENLACES DATOS'!D1477 -> 1227
B14: MESES CAPRINO | C14: ='ENLACES DATOS'!D1478 -> 810
A16: DATOS GESTIMILK RAZAS | B16: ='ENLACES DATOS'!C1479 -> FLORIDA | C16: ='ENLACES DATOS'!D1479 -> 109
B17: ='ENLACES DATOS'!C1480 -> MALAGUEÑA | C17: ='ENLACES DATOS'!D1480 -> 133
B18: ='ENLACES DATOS'!C1481 -> MURCIANA | C18: ='ENLACES DATOS'!D1481 -> 491
B19: ='ENLACES DATOS'!C1482 -> ASSAF | C19: ='ENLACES DATOS'!D1482 -> 649
B20: ='ENLACES DATOS'!C1483 -> LACAUNE | C20: ='ENLACES DATOS'!D1483 -> 439
B21: ='ENLACES DATOS'!C1484 -> MANCHEGA | C21: ='ENLACES DATOS'!D1484 -> 104
A23: CHEQUEOS BIENESTAR ANIMAL | B23: TOTAL CHEQUEOS | C23: =SUM(C24:C25) -> 235
B24: CHEQUEOS OVINO | C24: ='ENLACES DATOS'!D1485 -> 125
B25: CHEQUEOS CAPRINO | C25: ='ENLACES DATOS'!D1486 -> 110
A27: AUDITORIAS PUNTOS CRITICOS | B27: TOTAL AUDITORIAS | C27: =SUM(C28:C29) -> 100
B28: AUDITORIAS OVINO | C28: ='ENLACES DATOS'!D1487 -> 51
B29: AUDITORIAS CAPRINO | C29: ='ENLACES DATOS'!D1488 -> 49
A31: INFORMACION PIENSOS | B31: TOTAL PIENSOS | C31: =SUM(C32:C34) -> 65
B32: PIENSOS OVINO | C32: ='ENLACES DATOS'!D1489 -> 31
B33: PIENSOS CAPRINO | C33: ='ENLACES DATOS'!D1490 -> 22
B34: PIENSOS OVINO/CAPRINO | C34: ='ENLACES DATOS'!D1491 -> 12

Sheet UREA EN LECHE
A5: PREDICCION/CALCULO UREA EN LECHE
B10: RMIC (PDIN-PDIE)/UFL)
B11: PRODUCCION (l/dia)
B12: UREA (mg/l) | C12: =IF($C$10="","",'ENLACES DATOS'!C1593) -> 
B13: UREA (mg/l) | C13: =IF($C$10="","",'ENLACES DATOS'!C1594) -> 
B14: UREA (mg/l) | C14: =IF($C$10="","",'ENLACES DATOS'!C1595) -> 
B16: grPB/KgMS
B17: PDIN balance
B18: UREA (mg/l) | C18: =IF(C16="","",'ENLACES DATOS'!C1598) -> 
B19: UREA (mg/l) | C19: =IF(C17="","",'ENLACES DATOS'!C1599) -> 

Sheet COMPARATIVA RACIONES
A5: COMPARATIVA RACIONES
A8: DATOS ANIMALES Y PRODUCTIVOS | B8: PRECIO EQ (Euros/grado)
B9: LITROS | D9: =IF(C12="","",'ENLACES DATOS'!G1553) -> 
B10: GRASA | D10: =IF(C12="","",(D12-(D11-D12))) -> 
B11: PROTEINA | D11: =IF(C12="","",(((D26-C26)/C9)/1000)+(C10+C11)) -> 
B12: EXTRA BENEFICIO | D12: =IF(C10="","",C10+C11) -> 
C14: EUROS/TM | D14: KG/DIA
A15: RACIÓN TESTIGO | B15: PAJA
B16: ALFALFA HENO/FORRAJE/UNIFEED
B17: CONCENTRADO TESTIGO
C19: EUROS/TM | D19: KG/DIA
A20: RACIÓN CONTROL | B20: PAJA
B21: ALFALFA HENO/FORRAJE/UNIFEED
B22: CONCENTRADO CONTROL
C24: TESTIGO | D24: CONTROL
A25: DIFERENCIAS SISTEMAS | B25: COSTE RACIÓN (EUROS DIA) | C25: =IF(C16="","",'ENLACES DATOS'!D1552) ->  | D25: =IF(C16="","",'ENLACES DATOS'!D1553) -> 
B26: PRODUCCIÓN EQ DIA (GR) | C26: =IF(C9="","",'ENLACES DATOS'!C1565) ->  | D26: =IF(C9="","",'ENLACES DATOS'!C1566) -> 
B27: INGRESOS/DIA | C27: =IF(C25="","",'ENLACES DATOS'!C1567) ->  | D27: =IF(D25="","",'ENLACES DATOS'!C1568) -> 
A29: PRECIO UMBRAL | B29: TESTIGO | C29: =IF(C17="","",'ENLACES DATOS'!C1577*1000) ->  | D29: =IF('ENLACES DATOS'!C1571="","",IF('ENLACES DATOS'!C1571>0,"¡CONTROL!","¡TESTIGO!")) -> 
B30: CONTROL | C30: =IF(C22="","",'ENLACES DATOS'!C1578*1000) -> 

Sheet DIAGRAMA
A7: DIAGRAMA DECISIONES OVINO LECHERO | F7: DIAGRAMA DECISIONES OVINO LECHERO
A9: GANADERO | B9: E
A11: PASO 1 (EUROS/OVEJA Y AÑO) | B11: BENEFICIO OVEJA/AÑO
B12: MANO DE OBRA FAMILIAR | D12: 80
B13: AMORTIZACION | D13: 18
B14: INTERES CAPITAL PROPIO | D14: 3
B15: GASTOS FIJOS | C15: =IF(C12="","",SUM(C12:C14)) ->  | D15: =SUM(D12:D14) -> 101
B16: RENTA DISPONIBLE | C16: =IF(C13="","",C11-C15) -> 
A18: PASO 2 | B18: PARTOS OVEJA/AÑO | D18: 0.9
A20: PASO 3 (EUROS/OVEJA Y AÑO) | B20: INGRESOS PRODUCCIONES
B21: GASTOS ALIMENTACIÓN
B22: INDICE ALIMENTACIÓN | C22: =IF(C20="","",C21/C20) ->  | D22: 0.7
A24: PASO 4 | B24: %ESTACIONALIDAD (2ºSEMESTRE) | D24: 0.5
A26: PASO 1.- | B26: =IF(C15="","",IF(C16>0,"INDICADOR OK;PASO SIGUIENTE","VER PLANIFICACION REPRODUCTIVA")) -> 
A27: PASO 2.- | B27: =IF(C18="","",IF(C18>D18,"INDICADOR OK;PASO SIGUIENTE","REVISAR CONTROL REPRODUCTIVO")) ->  | F27: INDICADORES:
A28: PASO 3.- | B28: =IF(C22="","",IF(C22<D22,"INDICADOR OK;PASO SIGUIENTE","REVISAR ALIMENTACION")) -> 
A29: PASO 4.- | B29: =IF(C24="","",IF(C24>D24,"INDICADOR OK","REVISAR PLANIFICACION REPRODUCTIVA")) -> 

Sheet AMBIENTALES ADMISIBLES
A5: CHEQUEO VALORES AMBIENTALES
A9: GANADERO
A11: ESTACION
C12: OBTENIDO | D12: ADMISIBLE
A13: TEMPERATURA (ºC) | B13: EXTERIOR | D13: 1
B14: INTERIOR NAVE | D14: =IF(C14="","",'ENLACES DATOS'!I1508) -> 
B15: ALTURA ANIMALES | D15: =IF(C15="","",'ENLACES DATOS'!I1509) -> 
B16: CAMA | D16: =IF(C16="","",'ENLACES DATOS'!I1510) -> 
A18: HUMEDAD RELATIVA (%) | B18: EXTERIOR | D18: 1
B19: INTERIOR NAVE | D19: =IF(C19="","",'ENLACES DATOS'!I1511) -> 
B20: ALTURA ANIMALES | D20: =IF(C20="","",'ENLACES DATOS'!I1512) -> 
B21: CAMA | D21: =IF(C21="","",'ENLACES DATOS'!I1513) -> 
A23: VELOCIDAD AIRE (m/s) | B23: EXTERIOR | D23: 1
B24: INTERIOR NAVE | D24: =IF(C24="","",'ENLACES DATOS'!I1514) -> 
B25: ALTURA ANIMALES
A27: RESULTADO CHEQUEO
A28: NAVE | B28: AISLAMIENTO | C28: =IF('ENLACES DATOS'!I1518="","",'ENLACES DATOS'!I1518) -> 
B29: VENTILACION | C29: =IF('ENLACES DATOS'!I1519="","",'ENLACES DATOS'!I1519) -> 
A31: ANIMALES | B31: DENSIDAD | C31: =IF('ENLACES DATOS'!I1521="","",'ENLACES DATOS'!I1521) -> 
A33: CAMA | B33: CAMA | C33: =IF('ENLACES DATOS'!I1525="","",'ENLACES DATOS'!I1525) -> 

Sheet PIENSOS OVINO Y CAPRINO LECHE
A5: PIENSOS OVINO&CAPRINO LECHE | E5: VALORACION ENERGÉTICA PIENSOS
A9: PIENSO | E9: PIENSO
A11: ESPECIE/APTITUD | B11: GANADO | C11: =IF('ENLACES DATOS'!C1393="","",'ENLACES DATOS'!C1393) ->  | E11: DATOS ANALISIS/ETIQUETA | F11: Humedad (%) | G11: 0.01
B12: CLASE | C12: =IF('ENLACES DATOS'!D1393="","",'ENLACES DATOS'!D1393) ->  | F12: Proteína Bruta (%) | G12: 0.25
B13: TIPO | C13: =IF('ENLACES DATOS'!E1393="","",'ENLACES DATOS'!E1393) ->  | F13: Fibra Bruta (%) | G13: 0
F14: Grasa Bruta (%) | G14: 0.25
A15: PERFIL NUTRICIONAL | B15: Humedad (%) | C15: =IF('ENLACES DATOS'!L1393="","",'ENLACES DATOS'!L1393/100) ->  | F15: Cenizas (%) | G15: 0.071
B16: Proteína Bruta (%) | C16: =IF('ENLACES DATOS'!M1393="","",'ENLACES DATOS'!M1393/100) ->  | F16: Almidon + Azucar (%)
B17: Fibra Bruta (%) | C17: =IF('ENLACES DATOS'!N1393="","",'ENLACES DATOS'!N1393/100) -> 
B18: Grasa Bruta (%) | C18: =IF('ENLACES DATOS'!O1393="","",'ENLACES DATOS'!O1393/100) ->  | E18: VALORACION ENERGÉTICA | F18: UFL/100 Kg | G18: =IF(G12="","",'ENLACES DATOS'!G1543/10) -> 173.361
B19: Cenizas (%) | C19: =IF('ENLACES DATOS'!P1393="","",'ENLACES DATOS'!P1393/100) ->  | F19: UFC/100 Kg | G19: =IF(G12="","",'ENLACES DATOS'!F1543/10) -> 176.2229
B20: Almidon + Azucar (%) | C20: =IF('ENLACES DATOS'!Q1393="","",'ENLACES DATOS'!Q1393/100) -> 
B21: UFL/100Kg | C21: =IF('ENLACES DATOS'!R1393="","",'ENLACES DATOS'!R1393) ->  | G21: UFL/LITRO | H21: ml leche/Kg PIENSO
E22: PIENSO 1 (UFL/100 Kg) | H22: =IF(F22="","",(F22/G22)*10) -> 
A23: PRESENTACIÓN | B23: =IF('ENLACES DATOS'!F1393="","",'ENLACES DATOS'!F1393) ->  | E23: PIENSO 2 (UFL/100 Kg) | H23: =IF(F23="","",(F23/G22)*10) -> 
H24: =IF(H23="","",H22-H23) -> 
A25: MODO DE EMPLEO | B25: =IF('ENLACES DATOS'!J1393="","",'ENLACES DATOS'!J1393) -> 
A27: PRECAUCIONES DE USO | B27: =IF('ENLACES DATOS'!K1393="","",'ENLACES DATOS'!K1393) -> 
A29: DESTINO ETIQUETA | B29: =IF('ENLACES DATOS'!H1393="","",'ENLACES DATOS'!H1393) -> 
A31: TEXTO ETIQUETA | B31: =IF('ENLACES DATOS'!I1393="","",'ENLACES DATOS'!I1393) -> 

Sheet CALCULO DISTANCIA ENTRE NAVES
A5: CÁLULO DISTANIA ENTRE NAVES
A9: GANADERO
A11: NAVE QUE CORTA EN VIENTO | B11: ALTURA
B12: LONGITUD
A14: DISTANCIA RECOMENDADA | B14: DISTANCIA ENTRE NAVES (M) | C14: =IF('ENLACES DATOS'!B1299="","",'ENLACES DATOS'!B1299) -> 
B34: =IF(C14="","",C14) -> 

Sheet CHEQUEO DIMENSIONADO NAVE
A5: CHEQUEO DIMENSIONADO NAVE
M8: =IF(C37="","",C37) -> 
A9: GANADERO
A11: DATOS DE LA INSTALACIÓN | B11: Nº ANIMALES
B12: LONGITUD (M) | H12: =IF(C36="","",C36) -> 
B13: ANCHURA (M)
B14: ALTURA LATERAL (M)
B15: ALTURA CENTRAL (M)
B16: Nº PASILLOS | L16: =IF(C13="","",C13) -> 
B17: ANCHURA CADA PASILLO (M)
D19: RECOMENDADOS
A20: DATOS PARA CÁLCULOS | B20: ENTRADAS DE AIRE (M2/ANIMAL) | D20: =IF(C11="","",0.06) -> 
B21: SALIDAS DE AIRE (M2/ANIMAL) | D21: =IF(C11="","",0.03) -> 
B22: VOLUMEN ESTATICO ANIMAL (M3) | D22: =IF(C11="","","8 a 10") -> 
B23: SUPERFICIE/ANIMAL (M2) | D23: =IF(C11="","","1.25 a 1.5") -> 
L24: =IF(C12="","",C12) ->  | O24: =IF(C36="","",C36) -> 
A26: RECOMENDACIONES DIMENSIONADO NAVE | B26: SUPERFICIE TOTAL (M2) | C26: =IF('ENLACES DATOS'!B1278="","",'ENLACES DATOS'!B1278) -> 
B27: SUPERFICE PASILLOS (M2) | C27: =IF('ENLACES DATOS'!B1279="","",'ENLACES DATOS'!B1279) -> 
B28: SUPERFICIE ANIMALES (M2) | C28: =IF('ENLACES DATOS'!B1280="","",'ENLACES DATOS'!B1280) -> 
B29: Nº ANIMALES MAXIMO (SUPERF) | C29: =IF('ENLACES DATOS'!B1281="","",'ENLACES DATOS'!B1281) -> 
B30: VOLUMEN ESTATICO (M3)REAL | C30: =IF('ENLACES DATOS'!B1284="","",'ENLACES DATOS'!B1284) -> 
B31: VOL ESTATICO (M3) RECOMENDADO | C31: =IF(C22="","",C11*C22) -> 
B32: Nº ANIMALES MAXIMO (VOL EST) | C32: =IF('ENLACES DATOS'!B1285="","",'ENLACES DATOS'!B1285) -> 
B33: %PENDIENTE | C33: =IF('ENLACES DATOS'!B1286="","",'ENLACES DATOS'!B1286) -> 
B34: SUPERFICIE MIN ENTRADA AIRE (M2) | C34: =IF('ENLACES DATOS'!B1287="","",'ENLACES DATOS'!B1287) -> 
B35: SUPERF MAX SALIDA AIRE (M2) | C35: =IF('ENLACES DATOS'!B1288="","",'ENLACES DATOS'!B1288) -> 
B36: ANCHURA MINIMA DE VENTANA (M) | C36: =IF('ENLACES DATOS'!B1289="","",'ENLACES DATOS'!B1289) -> 
B37: ANCHURA MINIMA CABALLETE (M) | C37: =IF('ENLACES DATOS'!B1290="","",'ENLACES DATOS'!B1290) -> 
A39: =IF(C33="","",IF($C$33>0.29,"","La pendiente debería tener al menos un 30% para que funcione el efecto chimenea")) -> 
A40: =IF(C33="","",IF($C$33>0.29,"","Tal vez se necesiten sistemas de ventilación añadidos")) ->  | K40: =IF(C37="","",C37) -> 
A41: =IF(C13="","",IF($C$13>13,"","Tal vez se necesiten sistemas de ventilación añadidos, ya que la anhura de la nave compromete el funcionamiento del efecto chimenea")) -> 

Sheet INGESTA MS CAPRINO
A6: INGESTA MATERIA SECA (IMS) | D6: FEDNA 2009 | F6: INGESTA MATERIA SECA (IMS)
G8: ECUACIONES IMS
F9: CALCULOS INGESTA MATERIA SECA | G9: DIETAS SILO MAIZ | H9: =IF(C21="","",((165+(368.6*C22)+(34.8*C29)))/1000) ->  | I9: Kg MS | J9: Sauvant 8 primeras semanas
G10: DIETAS SILO MAIZ | H10: =IF(C21="","",(533+(305.2*C22)+(13.3*C21))/1000) ->  | I10: Kg MS | J10: Sauvant 8-19 semanas
G11: DIETAS SILO HIERBA | H11: =IF($C$22="","",((0.305*((((38*$C$23)+(24.44*$C$24)+(16.45*$C$25))/1000)*$C$22)/2.84))+(0.062*C29)) ->  | I11: Kg MS | J11: UK. 2º mes lactacion
G12: MURCIANA | H12: =IF(C29="","",((0.022*C30)+(0.107*C29))*C137) ->  | I12: Kg MS | J12: Fernandez.Ración Completa. Toda la lactacion
G13: MURCIANA | H13: =IF(C29="","",(0.111*C29)*C140) ->  | I13: Kg MS | J13: Fernandez. Ración Completa. Toda la lactacion
A21: ENTRADA DATOS | B21: PV | D21: Kg
B22: PL | D22: litros
B23: GB | D23: gr
B24: PB | D24: gr
B25: L | D25: gr
B26: t
A29: CÁLCULOS METABOLICOS | B29: PVmetabólico | C29: =IF(C21="","",POWER(C21,0.75)) ->  | D29: Kg
B30: PLE(a 5.88%MG) | C30: =IF($C$22="","",((((38*$C$23)+(24.44*$C$24)+(16.45*$C$25))/1000)*$C$22)/3.59) ->  | D30: litros
C136: =-0.444*(C26+7.221) -> -3.206124
C137: =1-(EXP(C136)) -> 0.959486661
C139: =-0.8*C26 -> 0
C140: =1-(EXP(C139)) -> 0

Sheet ENERGIA CAPRINO
A5: ENERGÍA | D5: FEDNA 2009 | F5: ENERGÍA | K5: ENERGÍA
A24: ENTRADA DATOS | B24: PV | D24: Kg
B25: PL | D25: litros
B26: GB | D26: gr
B27: PB | D27: gr
B28: L | D28: gr
B29: t
B30: d | D30: Km
B31: Mes Gestación | D31: m
C33: MJ EM | D33: Mcal ENL | E33: UFL ENL
A34: CÁLCULOS ENERGIA | B34: EM Mantenimiento | C34: =IF(C24="","",(0.401*H36)) ->  | D34: =IF(C34="","",((C34*0.67)*0.24)) ->  | E34: =IF(D34="","",D34/1.7) -> 
B35: EM Mantenimiento | C35: =IF(C24="","",IF(C24>45,0,(0.421*H36))) ->  | D35: =IF(C35="","",((C35*0.67)*0.24)) -> 
B36: EM Mantenimiento | C36: =IF(C24="","",(0.443*H36)) ->  | D36: =IF(C36="","",((C36*0.67)*0.24)) ->  | F36: CÁLCULOS ENERGIA | G36: PVmetabólico | H36: =IF(C24="","",POWER(C24,0.75)) ->  | I36: Kg
B37: EM Gestacion | C37: =IF(C31="",0,VLOOKUP(C31,B140:C143,2,FALSE)) -> 0 | D37: =IF(C37="","",((C37*0.36)*0.24)) -> 0 | E37: 0 | G37: ENL leche | H37: =IF($C$25="","",((((38*$C$26)+(24.44*$C$27)+(16.45*$C$28))/1000))) ->  | I37: MJ/Kg
B38: EM Lactacion | C38: =IF(C25="",0,C146) -> 0 | D38: =IF(C38="","",((C38*0.667)*0.24)) -> 0 | E38: 0 | G38: ENL leche | H38: =IF(H37="","",H37/7.11) ->  | I38: UFL
B39: EM reservas (mov) | C39: =IF(C29="",0,IF(C29>5.9,1.12,(IF(C29<1,0,(((7.87-(1.02*C29)+(0.027*(C29*C29)))))*(-1))))) -> 0 | D39: =IF(C39="","",((C39*0.79)*0.24)) -> 0 | E39: 0 | G39: PLE(a 5.88%MG) | H39: =IF($C$25="","",((((38*$C$26)+(24.44*$C$27)+(16.45*$C$28))/1000)*$C$25)/3.59) ->  | I39: litros
B40: EM Locomoción | C40: =IF(C30="",0,((3.35*C24*C30)/1000)) -> 0 | D40: =IF(C40="","",((C40*0.67)*0.24)) -> 0 | E40: =IF(D40="","",D40/1.7) -> 0 | G40: PLE(a 3.55%MG) | H40: =IF($C$25="","",((((38*$C$26)+(24.44*$C$27)+(16.45*$C$28))/1000)*$C$25)/2.84) ->  | I40: litros
B41: EM Termorregulacion | C41: =IF(C34="","",1.98*C34) ->  | D41: =IF(C41="","",((C41*0.67)*0.24)) -> 
B42: NECESIDADES TOTALES | C42: =IF(C34="","",C34+C37+C38+C39+C40) ->  | D42: =IF(C42="","",((C42*0.67)*0.24)) ->  | E42: =IF(D42="","",D42/1.7) -> 
B140: 4º Mes, 40KgPV | C140: 1.04
B141: 4º Mes, 50KgPV | C141: 1.35
B142: 5º Mes, 40KgPV | C142: 2.27
B143: 5º Mes, 50KgPV | C143: 2.59
B146: ENERGIA NETA LECHE | C146: =IF(C25="","",(((((38*C26)+(24.44*C27)+(16.45*C28)))/0.667))*C25)/1000 -> 

Sheet PROTEINA CAPRINO
A5: PROTEíNA (PDI) | D5: FEDNA 2009
A35: ENTRADA DATOS | B35: PV | D35: Kg
B36: PL | D36: litros
B37: Mes de Gestación
B38: Mes de Lactación
A40: CáLCULOS PROTEINA (PDI) | B40: PVmetabólico | C40: =IF(C35="","",POWER(C35,0.75)) ->  | D40: Kg
B41: grPDI Mantenim. | C41: =IF($C$35="","",2.99*$C$40) ->  | D41: grPDI
B42: grPDI Mantenim. | C42: =IF($C$35="","",2.56*$C$40) ->  | D42: grPDI
B43: grPDI Gestación | C43: =IF(C37="",0,((VLOOKUP(C37,B147:C148,2,FALSE))*C41)-C41) -> 0 | D43: grPDI
B44: grPDI Lactación | C44: =IF(C36="",0,(35*C36)/0.68) -> 0 | D44: grPDI
B45: grPDI Reservas | C45: =IF(C38="",0,IF(C38<3.9,-30,4)) -> 0 | D45: grPDI
B46: grPDI TOTALES | C46: =IF(C35="","",C41+C43+C44+C45) ->  | D46: grPDI
B147: 4ºMES | C147: 1.6
B148: 5ºMES | C148: 2.2

Sheet MINERALES CAPRINO
A5: MINERALES & VITAMINAS | F5: FEDNA 2009 | G5: MINERALES & VITAMINAS
A22: NECESIDADES EN GANADO OVINO LECHERO
A24: ENTRADA DATO | B24: IMS | D24: KgMS/dia
C26: POR KG/MS | D26: POR DIA
A27: CÁLCULO MINERALES | B27: Ca %MS | C27: =IF($C$24="","",VLOOKUP(B27,$B$148:$C$165,2,FALSE)) ->  | D27: =IF($C$24="","",(C27*$C$24)*10) ->  | E27: gr/dia
B28: P %MS | C28: =IF($C$24="","",VLOOKUP(B28,$B$148:$C$165,2,FALSE)) ->  | E28: gr/dia
B29: Na %MS | E29: gr/dia
B30: Cl %MS | E30: gr/dia
B31: K %MS | E31: gr/dia
B32: Mg %MS | E32: gr/dia
B33: S %MS | E33: gr/dia
B34: Co ppm | D34: =IF($C$24="","",(C34*$C$24)) ->  | E34: mg/dia
B35: Cu ppm | D35: =IF($C$24="","",(C35*$C$24)) ->  | E35: mg/dia
B36: I ppm | E36: mg/dia
B37: Fe ppm | E37: mg/dia
B38: Mn ppm | E38: mg/dia
B39: Zn ppm | C39: =IF($C$24="","",VLOOKUP(B39,$B$148:$C$165,2,FALSE)) ->  | D39: =IF($C$24="","",(C39*$C$24)) -> 
B40: Se ppm | E40: mg/dia
B41: vit A UI/dia | E41: UI/dia
B42: vitD UI/dia | E42: UI/dia
B43: vitE UI/dia | C43: =IF($C$24="","",VLOOKUP(B43,$B$148:$C$166,2,FALSE)) ->  | E43: UI/dia
C132: =-0.00643*C27 -> 
C133: =EXP(C132) -> 
C134: =-11.465*C133 -> 
C135: =C134-(0.00643*C27) -> 
C136: =EXP(C135) -> 
C148: MINIMO
B149: Ca %MS | C149: 0.65
B150: P %MS | C150: 0.3931841564
B151: Na %MS | C151: 0.1135185185
B152: Cl %MS | C152: 0.1157407407
B153: K %MS | C153: 0.4416666667
B154: Mg %MS | C154: 0.04462962963
B155: S %MS | C155: 0.2
B156: Co ppm | C156: 0.3
B157: Cu ppm | C157: 15
B158: I ppm | C158: 0.6
B159: Fe ppm | C159: 0
B160: Mn ppm | C160: 50
B161: Zn ppm | C161: 50
B162: Se ppm | C162: 0.2
B163: vit A UI/dia | C163: 3625.925926
B164: vitD UI/dia | C164: 1000
B165: vitE UI/dia | C165: 122.2222222

Sheet RACIONAMIENTO CAPRINO
A5: RECOMENDACIONES RACIONAMIENTO | D5: FEDNA 2009 | F5: RECOMENDACIONES RACIONAMIENTO
C147: =-0.444*(C37+7.221) -> -3.206124
C148: =1-(EXP(C147)) -> 0.959486661
C150: =-0.8*C37 -> 0
C151: =1-(EXP(C150)) -> 0

Sheet INGESTA MS OVINO
A7: INGESTA MATERIA SECA (IMS) | D7: FEDNA 2009
A29: INTRODUCIR DATOS | B29: PV | D29: Kg
B30: PVc | D30: gr
B31: PLS | D31: litros
B32: K
B33: TEMPERATURA | D33: ºC
A35: RESULTADOS CÁLCULO | B35: PVmetabólico | C35: =IF(C29="","",POWER(C29,0.75)) ->  | D35: Kg
B36: IMS Secas | C36: =IF(C29="","",(-0.545+(0.095*C35)+(0.005*C30))*C32) ->  | D36: Kg MS
B37: IMS Lactación | C37: =IF(C30="","",(-0.545+(0.095*C35)+(0.65*C31)+(0.0025*C30))*C32) ->  | D37: Kg MS
B38: Correccion Tª | C38: =IF(C29="","",IF(C33="",0,(IF(C33<25,0,(C33-25)*0.02)*C37))) ->  | D38: Kg MS
B39: IMS | C39: =IF(C37="","",C37-C38) ->  | D39: Kg MS

Sheet ENERGIA OVINO
A5: ENERGÍA (ENL) | D5: FEDNA 2009 | F5: ENERGÍA (ENL) | K5: ENERGÍA (ENL)
J9: UFL
F10: CALCULOS ENERGIA | G10: ENL Mantenim | H10: =IF(H19="","",((57.5*H19)*1.1)) ->  | I10: Kcal/día | J10: =IF(H10="","",H10/1700) -> 
G11: ENL Lactacion | H11: =IF(H20="","",1132*H20) ->  | I11: Kcal/día
G12: ENL Gestación | H12: =IF(C27="","",((9248*C27*C139)*4.9)) ->  | I12: Kcal/día
G13: ENL Pérdida Peso | H13: =IF(C30="","",((((0.13*C30*C24)*H29)/C31)*1000)*(-1)) ->  | I13: Kcal/día
G14: ENL Ganancia Peso | H14: =IF(C32="","",((C32*H30)/C33)*1000) ->  | I14: Kcal/día
G15: OVEJAS SECAS | H15: =IF(H10="","",H10-H13+H14) ->  | I15: Kcal/día
G16: OVEJAS GESTANTES | H16: =IF(H12="","",H10+H12) ->  | I16: Kcal/día
G17: OVEJAS ORDEÑO | H17: =IF(H11="","",H10+H11-H13+H14) ->  | I17: Kcal/día
B19: EB | C19: PLS | F19: MOVILIZACION DE RESERVAS CORPORALES | G19: PVmetabólico | H19: =IF(C24="","",POWER(C24,0.75)) ->  | I19: Kg
A20: MANCHEGA | B20: =IF(C26="","",(111.1*C26)+409.7) ->  | C20: =IF(C25="","",C25*((0.098*C26)+0.36)) ->  | G20: PLS | H20: =IF(C25="","",VLOOKUP($C$23,$A$19:$C$21,3,FALSE)) ->  | I20: litros
A21: LACAUNE | B21: =IF(C26="","",(99.96*C26)+450.5) ->  | C21: =IF(C25="","",C25*((0.091*C26)+0.41)) ->  | G21: EB (Energía Bruta de leche) | H21: =IF(C26="","",VLOOKUP($C$23,$A$19:$C$21,2,FALSE)) ->  | I21: Kcal/kg leche
G22: PVV (PV vacío) | H22: =IF(C24="","",0.817*C24) ->  | I22: Kg
A23: ENTRADA DATOS | B23: RAZA | G23: AG (% grasa corporal) | H23: =IF(C29="","",0.0269+(0.0869*C29)) ->  | I23: %
B24: PV | D24: Kg | G24: AP (% proteína corporal) | H24: =IF(C29="","",(-0.0039*(C29*C29))+(0.0279*C29)+0.1449) ->  | I24: %
B25: PL | D25: litros | G25: TG (total grasa corp) | H25: =IF(H23="","",H23*H22) ->  | I25: Kg
B26: %MG | D26: % | G26: TP(total proteína corp) | H26: =IF(H24="","",H24*H22) ->  | I26: Kg
B27: Pc | D27: Kg | G27: ET (Energia Total) | H27: =IF(H25="","",(9.4*H25)+(5.7*H26)) ->  | I27: Mcal
B28: t (dias gestacion) | D28: dias | G28: ET (Energia Total) | H28: =IF(H27="","",H27/H22) ->  | I28: Mcal
B29: CC (Estado Corporal) | G29: ENL Pérdida Peso | H29: =IF(H28="","",H28*0.84) ->  | I29: Mcal/Kg PVV
B30: PERDIDA CC | G30: ENL Ganancia Peso | H30: =IF(H28="","",1.066*H28) ->  | I30: Mcal/Kg PVV
B31: TIEMPO PERDIDA | D31: días | G31: Kg perdidos | H31: =IF(C30="","",(0.13*C30*C24)) ->  | I31: KgPV
B32: KG RECUPERACION | D32: KgPV
B33: TIEMPO REC | D33: dias
C135: =-0.00643*C28 -> 0
C136: =EXP(C135) -> 1
C137: =-11.465*C136 -> -11.465
C138: =C137-(0.00643*C28) -> -11.465
C139: =EXP(C138) -> 1.049092458e-05

Sheet PROTEINA OVINO
A5: PROTEÍNA (PDI) | D5: FEDNA 2009 | F5: PROTEÍNA (PDI)
A29: ENTRADA DATOS | B29: PV | D29: Kg
B30: Pc | D30: Kg
B31: t | D31: dias
B32: PL | D32: litros
B33: P | D33: %
A35: CÁLCULOS PROTEINA | B35: PVmetabólico | C35: =IF(C29="","",POWER(C29,0.75)) ->  | D35: Kg
B36: PDI Mant | C36: =IF(C35="","",2.5*C35) ->  | D36: gr PDI
B37: PDI Gest | C37: =IF(C30="","",((1428.06*C30*C152))/0.7) ->  | D37: gr PDI
B38: PDI Lact | C38: =IF(C32="","",(10*C32*C33)*0.58) ->  | D38: gr PDI
B39: OVEJAS SECAS | C39: =IF(C36="","",C36) ->  | D39: gr PDI
B40: OVEJAS GESTANTES | C40: =IF(C37="","",C36+C37) ->  | D40: gr PDI
B41: OVEJAS ORDEÑO | C41: =IF(C38="","",C36+C38) ->  | D41: gr PDI
C148: =-0.00601*C31 -> 0
C149: =EXP(C148) -> 1
C150: =-11.22*C149 -> -11.22
C151: =C150-(0.00601*C31) -> -11.22
C152: =EXP(C151) -> 1.340342884e-05

Sheet MINERALES OVINO
A5: MINERALES & VITAMINAS | F5: MINERALES & VITAMINAS
D6: FEDNA 2009
H7: MINIMO
F8: REQUERIMIENTOS MINIMOS | G8: Ca %MS | H8: 0.65
G9: P %MS | H9: 0.3717261905
A10: ENTRADA DATO | B10: IMS | D10: KgMS/dia | G10: Na %MS | H10: 0.08457142857
G11: Cl %MS | H11: 0.08285714286
C12: POR KG/MS | D12: POR DIA | G12: K %MS | H12: 0.35
A13: CÁLCULOS MINERALES Y VITAMINAS | B13: Ca %MS | C13: =IF($C$10="","",VLOOKUP(B13,$G$8:$H$25,2,FALSE)) ->  | D13: =IF($C$10="","",(C13*$C$10)*10) ->  | E13: gr/dia | G13: Mg %MS | H13: 0.04342857143
B14: P %MS | C14: =IF($C$10="","",VLOOKUP(B14,$G$8:$H$25,2,FALSE)) ->  | E14: gr/dia | G14: S %MS | H14: 0.2
B15: Na %MS | E15: gr/dia | G15: Co ppm | H15: 0.3
B16: Cl %MS | E16: gr/dia | G16: Cu ppm | H16: 0
B17: K %MS | E17: gr/dia | G17: I ppm | H17: 0.6
B18: Mg %MS | E18: gr/dia | G18: Fe ppm | H18: 0
B19: S %MS | E19: gr/dia | G19: Mn ppm | H19: 50
B20: Co ppm | G20: Zn ppm | H20: 50
B21: Cu ppm | D21: =IF($C$10="","",(C21*$C$10)) ->  | E21: mg/dia | G21: Se ppm | H21: 0.2
B22: I ppm | D22: =IF($C$10="","",(C22*$C$10)) ->  | E22: mg/dia | G22: vit A UI/dia | H22: 2797.142857
B23: Fe ppm | E23: mg/dia | G23: vitD UI/dia | H23: 1000
B24: Mn ppm | E24: mg/dia | G24: vitE UI/dia | H24: 94.28571429
B25: Zn ppm | E25: mg/dia
B26: Se ppm | E26: mg/dia
B27: vit A UI/dia | E27: UI/dia
B28: vitD UI/dia | E28: UI/dia
B29: vitE UI/dia | E29: UI/dia
C141: =-0.00643*C13 -> 
C142: =EXP(C141) -> 
C143: =-11.465*C142 -> 
C144: =C143-(0.00643*C13) -> 
C145: =EXP(C144) -> 

Sheet FNDyCNF OV-CAP
A5: FND & CNF | D5: FEDNA 2009
A23: INTRODUCCIÓN DATOS | B23: PV | D23: Kg
B24: IMS | D24: Kg/dia
A27: CÁLCULOS FND | B27: Optimo FND (PL) | C27: =IF($C$23="","",(0.012*$C$23)*1000) ->  | D27: gramos/día
B28: Optimo FND (PL) | C28: =IF($C$24="","",(C27/1000)/$C$24) ->  | D28: %
B29: Optimo FND (IMS) | C29: =IF($C$23="","",(0.0145*$C$23)*1000) ->  | D29: gramos/día
B30: Optimo FND (IMS) | C30: =IF($C$24="","",(C29/1000)/$C$24) ->  | D30: %
A32: CÁLCULOS CNF | B32: Optimo CNF | C32: =IF($C$24="","",($C$24*C33)*1000) ->  | D32: gramos/día (Inicio lactación)
B33: Optimo CNF | C33: =IF($C$24="","",(0.35)) ->  | D33: %
B34: Máximo CNF | C34: =IF($C$24="","",($C$24*C35)*1000) ->  | D34: gramos/día (con BEP)
B35: Máximo CNF | C35: =IF($C$24="","",(0.38)) ->  | D35: %
C133: =-0.00643*#REF! -> 
C134: =EXP(C133) -> 
C135: =-11.465*C134 -> 
C136: =C135-(0.00643*#REF!) -> 
C137: =EXP(C136) -> 

Sheet GRASA OVI-CAP
A5: GRASA AÑADIDA | C5: FEDNA 2009
A29: ENTRADA DATOS | B29: IMS | D29: Kg/dia
A32: CÁLCULOS GRASA | B32: Optimo GRASA AÑADIDA | C32: =IF($C$29="","",190) ->  | D32: gramos/día
B33: Optimo GRASA AÑADIDA | C33: =IF($C$29="","",(190/1000)/C29) ->  | D33: %MS
B34: Máximo GRASA ADMIBLE. | C34: =IF($C$29="","",(C29*C35)*1000) ->  | D34: gramos/día
B35: Máximo GRASA ADMIBLE. | C35: =IF($C$29="","",0.07) ->  | D35: %MS
C139: =-0.00643*#REF! -> 
C140: =EXP(C139) -> 
C141: =-11.465*C140 -> 
C142: =C141-(0.00643*#REF!) -> 
C143: =EXP(C142) -> 

Sheet AGUA
A5: AGUA | C5: FEDNA 2009
A29: NECESIDADES DE AGUA PARA GANADO CAPRINO
A31: ENTRADA DATOS | B31: PV | D31: Kg
B32: PL | D32: litros
A36: CÁLCULO NECESIDADES AGUA | B36: PVmetabólico | C36: =IF(C31="","",POWER(C31,0.75)) ->  | D36: Kg
B37: MANTENIMIENTO | C37: =IF(C31="","",0.1456*C36) ->  | D37: litros
B38: PRODUCCION | C38: =IF(C31="","",1.43*C32) ->  | D38: litros
B39: TOTALES | C39: =IF(C31="","",C37+C38) ->  | D39: litros
C144: =-0.444*(#REF!+7.221) -> 
C145: =1-(EXP(C144)) -> 
C147: =-0.8*#REF! -> 
C148: =1-(EXP(C147)) -> 

Sheet PASTOREO OVINO Y CAPRINO
Z3: ANALISIS FORRAJE | AD3: BASE DATOS FORRAJES VERDES | AM3: NECESIDADES OVINO
Z4: FORAGE | AA4: PASTURE GRASS | AD4: Description short | AE4: DM* | AF4: CP* | AG4: CF* | AH4: UEL | AI4: NDF** | AJ4: UFL | AK4: Ash* | AM4: BW | AN4: MILK | AO4: ULO | AP4: UFL | AQ4: UFL/ULO | AR4: PDI
B5: INRA 2007 | Z5: MS | AA5: 0.2 | AD5: Pasto de hierba 1 corte, joven | AE5: 150 | AF5: 173 | AG5: 200 | AH5: 0.95 | AI5: 507 | AJ5: 1 | AK5: 80 | AM5: 50 | AN5: 2.5 | AO5: 2.7 | AP5: 2.08 | AQ5: =AP5/AO5 -> 0.7703703704 | AR5: 258
Z6: %PB | AA6: 0.1235 | AD6: Pasto de hierba 1 corte, largo | AE6: 200 | AF6: 125 | AG6: 310 | AH6: 1.15 | AI6: 660 | AJ6: 0.79 | AK6: 85 | AN6: 2 | AO6: 2.6 | AP6: 1.86 | AQ6: =AP6/AO6 -> 0.7153846154 | AR6: 229
A7: PASTOREO OVINO Y CAPRINO | G7: =A7 -> PASTOREO OVINO Y CAPRINO | Z7: %FB | AA7: 0.274 | AD7: Pasto de hierba 2 corte joven | AE7: 150 | AF7: 187 | AG7: 233 | AH7: 0.95 | AI7: 393 | AJ7: 0.95 | AK7: 87 | AN7: 1.6 | AO7: 2.3 | AP7: 1.58 | AQ7: 0.6869565217 | AR7: 189
J8: RACION vs NEC | Z8: %Cz | AA8: 0.1 | AD8: Pasto de hierba 2 corte, maduro | AE8: 200 | AF8: 140 | AG8: 270 | AH8: 1 | AI8: 510 | AJ8: 0.87 | AK8: 75 | AM8: 70 | AN8: 3 | AO8: 3.3 | AP8: 2.57 | AQ8: 0.7787878788 | AR8: 142
G9: NECESIDADES | H9: UEL | J9: =IF(I31="","",(I31-I9)/I9) ->  | AD9: Pasto de hierba, en flor | AE9: 180 | AF9: 144 | AG9: 272 | AH9: 1 | AI9: 600 | AJ9: 0.86 | AK9: 83 | AN9: 2.5 | AO9: 3.1 | AP9: 2.26 | AQ9: 0.7290322581 | AR9: 312
H10: UFL | J10: =IF(I32="","",(I32-I10)/I10) ->  | Z10: UEL? | AA10: 1.15 | AD10: Pasto hierba 1 corte, brote buena Q | AE10: 160 | AF10: 188 | AG10: 200 | AH10: 0.95 | AI10: 406 | AJ10: 0.98 | AK10: 100 | AN10: 2 | AO10: 3 | AP10: 2.03 | AQ10: 0.6766666667 | AR10: 278
H11: PDI (gr) | J11: =IF(I34="","",(I34-I11)/I11) ->  | Z11: UFL? | AA11: 0.82 | AD11: Pasto hierba 1 corte, espiga buena Q | AE11: 180 | AF11: 161 | AG11: 239 | AH11: 0.95 | AI11: 472 | AJ11: 0.9 | AK11: 100 | AN11: 1.6 | AO11: 2.8 | AP11: 1.75 | AQ11: 0.625 | AR11: 245
H12: Ca (gr) | J12: =IF(I35="","",(I35-I12)/I12) ->  | AD12: Pasto hierba 1 corte, final flor, buena Q | AE12: 220 | AF12: 109 | AG12: 314 | AH12: 1.15 | AI12: 586 | AJ12: 0.76 | AK12: 100
H13: P (gr) | J13: =IF(I36="","",(I36-I13)/I13) ->  | AD13: Pasto hierba 1 corte, hojas buena Q | AE13: 150 | AF13: 207 | AG13: 167 | AH13: 0.9 | AI13: 353 | AJ13: 1.05 | AK13: 100
AD14: Pasto hierba 1 corte, inicio flor, buena Q | AE14: 200 | AF14: 130 | AG14: 280 | AH14: 1.15 | AI14: 535 | AJ14: 0.82 | AK14: 100
AD15: Pasto hierba 2 corte, brote buena Q | AE15: 170 | AF15: 194 | AG15: 200 | AH15: 0.95 | AI15: 400 | AJ15: 0.98 | AK15: 106
I16: FORRAJE | J16: CONCENTRADO | AD16: Pasto hierba 2 corte, espiga buena Q | AE16: 180 | AF16: 172 | AG16: 239 | AH16: 1 | AI16: 456 | AJ16: 0.9 | AK16: 106
G17: INGREDIENTES | H17: MS (%) | AD17: Pasto hierba 2 corte, hojas, buenas Q | AE17: 160 | AF17: 206 | AG17: 162 | AH17: 0.9 | AI17: 362 | AJ17: 1.05 | AK17: 106
H18: UEL | J18: =IF(I18="","",((3.35-(2.3*I18))*I18)) ->  | AD18: Pasto hierba 2 corte, inicio flor, buena Q | AE18: 200 | AF18: 155 | AG18: 275 | AH18: 1.1 | AI18: 505 | AJ18: 0.84 | AK18: 105
H19: UFL/Kg MS | AD19: Ray grass 2 corte | AE19: 160 | AF19: 169 | AG19: 250 | AH19: 1 | AI19: 481 | AJ19: 0.9 | AK19: 94
H20: PDI (gr/KgMS) | AD20: Ray grass en flor | AE20: 180 | AF20: 133 | AG20: 283 | AH20: 1.1 | AI20: 550 | AJ20: 0.82 | AK20: 94
H21: Ca (gr/Kg MS) | AD21: Ryegrass (pasto ballico) | AE21: 140 | AF21: 200 | AG21: 200 | AH21: 0.95 | AI21: 414 | AJ21: 1 | AK21: 93
B22: UEL | C22: 1.05 | H22: P (gr/Kg MS) | AD22: Trebol rojo + hierba, en flor | AE22: 160 | AF22: 150 | AG22: 256 | AH22: 1 | AI22: 581 | AJ22: 0.88 | AK22: 88
B23: ALTURA ENTRADA | C23: 12 | AD23: Trebol rojo + hierba, joven | AE23: 140 | AF23: 207 | AG23: 186 | AH23: 0.9 | AI23: 450 | AJ23: 1.03 | AK23: 93
B24: ALTURA SALIDA | C24: 6 | I24: DM basis | J24: FRESH basis | AD24: Trebol rojo, en flor | AE24: 200 | AF24: 160 | AG24: 280 | AH24: 1.1 | AI24: 580 | AJ24: 0.84 | AK24: 95
G25: RACION | H25: FORRAJE (Kg) | J25: =IF(I25="","",I25/I17) ->  | AD25: Trebol rojo, joven | AE25: 140 | AF25: 207 | AG25: 200 | AH25: 0.9 | AI25: 471 | AJ25: 1 | AK25: 100
B26: Suma de INGESTA MS | C26: Total | H26: PAJA (Kg) | J26: =IF(I26="","",I26/0.9) ->  | AD26: Alfalfa final floración | AE26: 210 | AF26: 169 | AG26: 331 | AH26: 1.25 | AI26: 530 | AJ26: 0.655 | AK26: 91
B27: Total | C27: 1.771 | H27: CONCENTRADO (Kg) | J27: =IF(I27="","",I27/J17) ->  | AD27: Alfalfa inicio floración | AE27: 200 | AF27: 188 | AG27: 277 | AH27: 1.15 | AI27: 485 | AJ27: 0.705 | AK27: 97
H28: MS TOTAL | I28: =SUM(I25:I27) -> 0 | AD28: Alfalfa pre-floración | AE28: 180 | AF28: 216 | AG28: 231 | AH28: 1.15 | AI28: 419 | AJ28: 0.745 | AK28: 110
AD29: Avena verde en flor | AE29: 240 | AF29: 116.667 | AG29: 308.333 | AH29: 1.15 | AI29: 475 | AJ29: 0.758 | AK29: 87.5
G30: COMPOSICION RACION | H30: MS (%) | I30: =IF(I17="","",(I25+I26+I27)/(J25+J26+J27)) ->  | AD30: Avena verde, hojas | AE30: 170 | AF30: 170.588 | AG30: 258.824 | AH30: 0.95 | AI30: 411.765 | AJ30: 0.953 | AK30: 88.235
H31: UEL | I31: =IF(I18="","",(I18*$I$25)+(J18*$I$27)+(I26*2.2)) ->  | AD31: Centeno verde | AE31: 170 | AF31: 170.588 | AG31: 282.353 | AH31: 1 | AI31: 441.176 | AJ31: 0.871 | AK31: 100
H32: UFL | I32: =IF(I19="","",(I19*$I$25)+(J19*$I$27)+(I26*0.35)) ->  | AD32: Colza de invierno | AE32: 110 | AF32: 200 | AG32: 209.091 | AH32: 0.95 | AI32: 400 | AJ32: 0.991 | AK32: 136.364
H33: UFL/UEL | I33: =IF(I32="","",I32/I31) ->  | AD33: Colza de invierno, Perko, joven | AE33: 100 | AF33: 220 | AG33: 130 | AH33: 0.9 | AI33: 260 | AJ33: 1.08 | AK33: 140
H34: PDI (gr) | I34: =IF(I20="","",(I20*$I$25)+(J20*$I$27)) ->  | AD34: Colza de invierno, Perko, madura | AE34: 130 | AF34: 200 | AG34: 184.615 | AH34: 0.95 | AI34: 353.846 | AJ34: 0.992 | AK34: 138.462
H35: Ca (gr) | I35: =IF(I21="","",(I21*$I$25)+(J21*$I$27)) ->  | AD35: Colza de verano joven | AE35: 120 | AF35: 216.667 | AG35: 125 | AH35: 0.9 | AI35: 250 | AJ35: 1.083 | AK35: 141.667
H36: P (gr) | I36: =IF(I22="","",(I22*$I$25)+(J22*$I$27)) ->  | AD36: Colza de verano madura | AE36: 140 | AF36: 207.143 | AG36: 164.286 | AH36: 0.9 | AI36: 307.143 | AJ36: 1.043 | AK36: 142.857
AD37: Hierba alfalfa en flor | AE37: 185 | AF37: 167 | AG37: 282 | AH37: 1.2 | AI37: 491 | AJ37: 0.69 | AK37: 98
AD38: Hierba alfalfa, pre-floración | AE38: 150 | AF38: 200 | AG38: 216 | AH38: 1.15 | AI38: 395 | AJ38: 0.756 | AK38: 105
AD39: Hierba Landsb, media, en flor | AE39: 190 | AF39: 163.158 | AG39: 268.421 | AH39: 1 | AI39: 484.211 | AJ39: 0.847 | AK39: 110.526
AD40: Hierba Landsb, pre-floración | AE40: 170 | AF40: 194.118 | AG40: 217.647 | AH40: 0.95 | AI40: 370.588 | AJ40: 0.994 | AK40: 111.765
AD41: Hojas de remolacha azucarera | AE41: 160 | AF41: 150 | AG41: 106.25 | AH41: 0.9 | AI41: 225 | AJ41: 1.031 | AK41: 162.5
AD42: Hojas de remolacha forrajera | AE42: 120 | AF42: 141.667 | AG42: 116.667 | AH42: 0.9 | AI42: 258.333 | AJ42: 1.008 | AK42: 166.667
AD43: Maíz verde, lechoso | AE43: 240 | AF43: 83.333 | AG43: 229.167 | AH43: 1.1 | AI43: 487.5 | AJ43: 0.883 | AK43: 70.833
AD44: Maiz verde, pastoso | AE44: 280 | AF44: 85.714 | AG44: 235.714 | AH44: 1 | AI44: 475 | AJ44: 0.907 | AK44: 60.714
AD45: Mezcla de leguminosas | AE45: 120 | AF45: 200 | AG45: 241.667 | AH45: 1.1 | AI45: 358.333 | AJ45: 0.851 | AK45: 91.667
AD46: Mostaza pre-floración | AE46: 120 | AF46: 216.667 | AG46: 200 | AH46: 0.95 | AI46: 391.667 | AJ46: 0.992 | AK46: 133.333
AD47: Nabo en flor | AE47: 120 | AF47: 191.667 | AG47: 150 | AH47: 0.9 | AI47: 283.333 | AJ47: 1.067 | AK47: 133.333
AD48: Nabo para florecer | AE48: 110 | AF48: 181.818 | AG48: 109.091 | AH48: 0.9 | AI48: 209.091 | AJ48: 1.091 | AK48: 154.545
AD49: Trebol de Alejandría | AE49: 125 | AF49: 200 | AG49: 240 | AH49: 0.95 | AI49: 496 | AJ49: 0.984 | AK49: 120
AD50: Trebol joven | AE50: 118 | AF50: 237.288 | AG50: 211.864 | AH50: 0.9 | AI50: 440.678 | AJ50: 1.042 | AK50: 110.169
AD51: Trebol maduro | AE51: 130 | AF51: 192.308 | AG51: 230.769 | AH51: 0.9 | AI51: 500 | AJ51: 1 | AK51: 100
AD52: Alcachofa (fresco) | AE52: 112 | AF52: 162 | AG52: 275 | AH52: 1.15 | AI52: 458 | AJ52: 0.798 | AK52: 90
A138: I nota cc | F138: 0.095
A139: PV metabolico | F139: 0.089
F140: 0.081
F141: 0.075
F142: 0.075

Sheet EVOLUCION RENTABILIDAD
A5: EVOLUCIÓN RENTABILIDAD | F5: EVOLUCIÓN RENTABILIDAD | K5: EVOLUCIÓN RENTABILIDAD
K7: PARAMETRO 1
A8: GANADERO | F8: PERIODO PUNTUAL | K8: PARAMETRO 2
K9: PARAMETRO 3
A10: DATOS GENERALES | B10: PRODUCCION LECHE | F10: RESULTADO | G10: COSTE ALIMENTACIÓN | H10: =IF($G$8="","",B169) ->  | K10: PARAMETRO 4
B11: PRECIO LECHE | G11: COSTE TOTAL | H11: =IF($G$8="","",B170) -> 
G12: INGRESOS TOTAL | H12: =IF($G$8="","",B171) -> 
C13: POR REP/AÑO | G13: MARGEN/ANIMAL | H13: =IF($G$8="","",B173) -> 
A14: DESGLOSE COSTOS | B14: ALIMENTACION | G14: %ALIMENTACIÓN | H14: =IF($G$8="","",B172) -> 
B15: MANO DE OBRA
B16: SANITARIOS | F16: RENTABILIDAD | G16: % RENTABILIDAD | H16: =IF($G$8="","",B175) -> 
B17: AMORTIZACION | G17: ALIMENT.vs INGRESOS | H17: =IF($G$8="","",B179) -> 
B18: ANIMALES
B19: OTROS GASTOS | F19: UMBRALES RENTABILIDAD | G19: UMBRAL PRODUCCION | H19: =IF($G$8="","",B177) ->  | I19: LITROS/ANIMAL Y AÑO
B20: OPORTUNIDAD | G20: UMBRAL PRECIO LECHE | H20: =IF($G$8="","",B178) ->  | I20: EUROS/LITRO
B21: TOTAL GASTOS | C21: =IF(C14="","",SUM(C14:C20)) -> 
A23: DESGLOSE INGRESOS | B23: VENTA LECHE | D23: =IF(C10="","",(C10*C11)) -> 
B24: VENTA GENÉTICA
B25: VENTA CEBO
B26: AYUDAS&SUBVENCIONES
B27: OTROS | K27: PARAMETRO 1
B28: TOTAL INGRESOS | C28: =IF(C23="","",SUM(C23:C27)) ->  | K28: PARAMETRO 2
K29: PARAMETRO 3
A30: RESULTADO | B30: COSTE ALIMENTACIÓN | C30: =IF(C14="","",C14) ->  | K30: PARAMETRO 4
B31: COSTE TOTAL | C31: =IF(C21="","",C21) -> 
B32: INGRESOS TOTAL | C32: =IF(C28="","",C28) -> 
B33: % ALIMENTACIÓN | C33: =IF(C31="","",C30/C31) -> 
B34: MARGEN/ANIMAL | C34: =IF(C28="","",(C28-C21)) -> 
A36: RENTABILIDAD | B36: % RENTABILIDAD | C36: =IF(C34="","",(C34/C21)) -> 
A113: 1 | B113: 2 | C113: 3 | D113: 4 | E113: 5 | F113: 6 | G113: 7 | H113: 8 | I113: 9 | J113: 10 | K113: 11 | L113: 12 | M113: 13 | N113: 14 | O113: 15 | P113: 16 | Q113: 17 | R113: 18 | S113: 19 | T113: 20 | U113: 21 | V113: 22 | W113: 23 | X113: 24 | Y113: 25 | Z113: 26 | AA113: 27 | AB113: 28 | AC113: 29 | AD113: 30 | AE113: 31 | AF113: 32 | AG113: 33 | AH113: 34 | AI113: 35 | AJ113: 36 | AK113: 37 | AL113: 38 | AM113: 39 | AN113: 40 | AO113: 41 | AP113: 42 | AQ113: 43 | AR113: 44 | AS113: 45 | AT113: 46 | AU113: 47 | AV113: 48 | AW113: 49 | AX113: 50
B114: SIMULADO | C114: 2013-01-01 | D114: 2013-02-01 | E114: 2013-03-01 | F114: 2013-04-01 | G114: 2013-05-01 | H114: 2013-06-01 | I114: 2013-07-01 | J114: 2013-08-01 | K114: 2013-09-01 | L114: 2013-10-01 | M114: 2013-11-01 | N114: 2013-12-01 | O114: 2014-01-01 | P114: 2014-02-01 | Q114: 2014-03-01 | R114: 2014-04-01 | S114: 2014-05-01 | T114: 2014-06-01 | U114: 2014-07-01 | V114: 2014-08-01 | W114: 2014-09-01 | X114: 2014-10-01 | Y114: 2014-11-01 | Z114: 2014-12-01 | AA114: 2015-01-01 | AB114: 2015-02-01 | AC114: 2015-03-01 | AD114: 2015-04-01 | AE114: 2015-05-01 | AF114: 2015-06-01 | AG114: 2015-07-01 | AH114: 2015-08-01 | AI114: 2015-09-01 | AJ114: 2015-10-01 | AK114: 2015-11-01 | AL114: 2015-12-01 | AM114: 2016-01-01 | AN114: 2016-02-01 | AO114: 2016-03-01 | AP114: 2016-04-01 | AQ114: 2016-05-01 | AR114: 2016-06-01 | AS114: 2016-07-01 | AT114: 2016-08-01 | AU114: 2016-09-01 | AV114: 2016-10-01 | AW114: 2016-11-01 | AX114: 2016-12-01
A115: PRODUCCION LECHE | B115: 420 | C115: 390 | D115: 390 | E115: 390 | F115: 390 | G115: 390 | H115: 390 | I115: 390 | J115: 390 | K115: 390 | CB115: 2
A116: PRECIO LECHE | B116: 0.87 | C116: 0.87 | D116: 0.87 | E116: 0.87 | F116: 0.87 | G116: 0.87 | H116: 0.9 | I116: 0.9 | J116: 0.9 | K116: 0.9 | CB116: 3
CB117: 4
B118: POR REP/AÑO | CB118: 5
A119: ALIMENTACION | B119: 290 | C119: 268.931563 | D119: 290 | E119: 285 | F119: 265 | G119: 255 | H119: 268.931563 | I119: 240 | J119: 268.931563 | K119: 290 | CB119: 6
A120: MANO DE OBRA | B120: 80 | C120: 80 | D120: 80 | E120: 80 | F120: 80 | G120: 80 | H120: 80 | I120: 80 | J120: 80 | K120: 80 | CB120: 7
A121: SANITARIOS | B121: 2.1 | C121: 2.1 | D121: 2.1 | E121: 2.1 | F121: 2.1 | G121: 2.1 | H121: 2.1 | I121: 2.1 | J121: 2.1 | K121: 2.1 | CB121: 8
A122: AMORTIZACION | B122: 13.52 | C122: 13.52 | D122: 13.52 | E122: 13.52 | F122: 13.52 | G122: 13.52 | H122: 13.52 | I122: 13.52 | J122: 13.52 | K122: 13.52 | CB122: 9
A123: ANIMALES | B123: 1.8 | C123: 1.8 | D123: 1.8 | E123: 1.8 | F123: 1.8 | G123: 1.8 | H123: 1.8 | I123: 1.8 | J123: 1.8 | K123: 1.8 | CB123: 10
A124: OTROS GASTOS | B124: 5.5 | C124: 5.5 | D124: 5.5 | E124: 5.5 | F124: 5.5 | G124: 5.5 | H124: 5.5 | I124: 5.5 | J124: 5.5 | K124: 5.5 | CB124: 11
A125: OPORTUNIDAD | B125: 12.7894736 | C125: 12.7894736 | D125: 12.7894736 | E125: 12.7894736 | F125: 12.7894736 | G125: 12.7894736 | H125: 12.7894736 | I125: 12.7894736 | J125: 12.7894736 | K125: 12.7894736 | CB125: 12
A126: TOTAL GASTOS | B126: 405.7094736 | C126: 384.6410366 | D126: 405.7094736 | E126: 400.7094736 | F126: 380.7094736 | G126: 370.7094736 | H126: 384.6410366 | I126: 355.7094736 | J126: 384.6410366 | K126: 405.7094736 | CB126: 13
CB127: 14
A128: VENTA LECHE | B128: 370 | C128: 351 | D128: 351 | E128: 351 | F128: 351 | G128: 351 | H128: 351 | I128: 351 | J128: 351 | K128: 351 | CB128: 15
A129: VENTA GENETICA | B129: 3.25 | C129: 3.25 | D129: 3.25 | E129: 3.25 | F129: 3.25 | G129: 3.25 | H129: 3.25 | I129: 3.25 | J129: 3.25 | K129: 3.25 | CB129: 16
A130: VENTA CEBO | B130: 50.96808 | C130: 50.96808 | D130: 50.96808 | E130: 50.96808 | F130: 50.96808 | G130: 50.96808 | H130: 50.96808 | I130: 50.96808 | J130: 50.96808 | K130: 50.96808 | CB130: 17
A131: AYUDAS&SUBVENCIONES | B131: 10 | C131: 10 | D131: 10 | E131: 10 | F131: 10 | G131: 10 | H131: 10 | I131: 10 | J131: 10 | K131: 10 | CB131: 18
A132: OTROS | B132: 2 | C132: 2 | D132: 2 | E132: 2 | F132: 2 | G132: 2 | H132: 2 | I132: 2 | J132: 2 | K132: 2 | CB132: 19
A133: TOTAL INGRESOS | B133: 436.21808 | C133: 417.21808 | D133: 417.21808 | E133: 417.21808 | F133: 417.21808 | G133: 417.21808 | H133: 417.21808 | I133: 417.21808 | J133: 417.21808 | K133: 417.21808 | CB133: 20
CB134: 21
A135: COSTE ALIMENTACION | B135: 290 | C135: 268.931563 | D135: 290 | E135: 285 | F135: 265 | G135: 255 | H135: 268.931563 | I135: 240 | J135: 268.931563 | K135: 290 | CB135: 22
A136: COSTE TOTAL | B136: 405.7094736 | C136: 384.6410366 | D136: 405.7094736 | E136: 400.7094736 | F136: 380.7094736 | G136: 370.7094736 | H136: 384.6410366 | I136: 355.7094736 | J136: 384.6410366 | K136: 405.7094736 | CB136: 23
A137: INGRESOS TOTAL | B137: 436.21808 | C137: 417.21808 | D137: 417.21808 | E137: 417.21808 | F137: 417.21808 | G137: 417.21808 | H137: 417.21808 | I137: 417.21808 | J137: 417.21808 | K137: 417.21808 | CB137: 24
A138: % ALIMENTACION | B138: 0.7147972105 | C138: 0.6991754322 | D138: 0.7147972105 | E138: 0.7112384877 | F138: 0.6960688356 | G138: 0.6878702007 | H138: 0.6991754322 | I138: 0.6747079227 | J138: 0.6991754322 | K138: 0.7147972105 | CB138: 25
A139: MARGEN/ANIMAL | B139: 30.5086064 | C139: 32.57704336 | D139: 11.5086064 | E139: 16.5086064 | F139: 36.5086064 | G139: 46.5086064 | H139: 32.57704336 | I139: 61.5086064 | J139: 32.57704336 | K139: 11.5086064 | CB139: 26
CB140: 27
A141: % RENTABILIDAD | B141: 0.07519816121 | C141: 0.084694664 | D141: 0.02836661983 | E141: 0.04119844298 | F141: 0.09589623829 | G141: 0.1254583703 | H141: 0.084694664 | I141: 0.1729181002 | J141: 0.084694664 | K141: 0.02836661983 | CB141: 28
CB142: 29
A143: UMBRAL PRODUC | B143: =IF(B116="","",(B126-B132-B131-B130-B129)/B116) -> 390.2199926 | C143: =IF(C116="","",(C126-C132-C131-C130-C129)/C116) -> 366.0033984 | D143: 390.2199926 | E143: 384.4728662 | F143: 361.4843605 | G143: 349.9901076 | H143: 353.8032852 | I143: 321.657104 | J143: 353.8032852 | K143: 377.2126596 | M143: =IF(M116="","",(M126-M132-M131-M130-M129)/M116) ->  | AA143: =IF(AA116="","",(AA126-AA132-AA131-AA130-AA129)/AA116) ->  | CB143: 30
A144: UMBRAL PRECIO | B144: =IF(B115="","",(B126-B132-B131-B130-B129)/B115) -> 0.8083128419 | C144: =IF(C115="","",(C126-C132-C131-C130-C129)/C115) -> 0.8164691196 | D144: 0.8704907528 | E144: 0.85767024 | F144: 0.8063881887 | G144: 0.7807471631 | H144: 0.8164691196 | I144: 0.7422856246 | J144: 0.8164691196 | K144: 0.8704907528 | M144: =IF(M115="","",(M126-M132-M131-M130-M129)/M115) ->  | AA144: =IF(AA115="","",(AA126-AA132-AA131-AA130-AA129)/AA115) ->  | CB144: 31
A145: ALIMN VS INGRESOS (%) | B145: =IF(B133="","",(B119/B128)) -> 0.7837837838 | C145: =IF(C133="","",(C119/C128)) -> 0.7661867893 | D145: 0.8262108262 | E145: 0.811965812 | F145: 0.754985755 | G145: 0.7264957265 | H145: 0.7661867893 | I145: 0.6837606838 | J145: 0.7661867893 | K145: 0.8262108262 | CB145: 32
CB146: 33
CB147: 34
B148: SIMULACION | CB148: 35
A149: PRODUCCION LECHE | B149: =IF($G$8="","",HLOOKUP($G$8,$B$114:$BV$145,CB115,FALSE)) ->  | CB149: 36
A150: PRECIO LECHE | B150: =IF($G$8="","",HLOOKUP($G$8,$B$114:$BV$145,CB116,FALSE)) ->  | CB150: 37
CB151: 38
CB152: 39
A153: ALIMENTACION | CB153: 40
A154: MANO DE OBRA | CB154: 41
A155: SANITARIOS | CB155: 42
A156: AMORTIZACION | CB156: 43
A157: ANIMALES | CB157: 44
A158: OTROS GASTOS | CB158: 45
A159: OPORTUNIDAD | CB159: 46
A160: TOTAL GASTOS | CB160: 47
CB161: 48
A162: VENTA LECHE | CB162: 49
A163: VENTA GENETICA | CB163: 50
A164: VENTA CEBO | CB164: 51
A165: AYUDAS&SUBVENCIONES | CB165: 52
A166: OTROS | CB166: 53
A167: TOTAL INGRESOS | CB167: 54
CB168: 55
A169: COSTE ALIMENTACION | CB169: 56
A170: COSTE TOTAL | CB170: 57
A171: INGRESOS TOTAL
A172: % ALIMENTACION
A173: MARGEN/ANIMAL
A175: % RENTABILIDAD
A177: UMBRAL PRODUC
A178: UMBRAL PRECIO
A179: ALIMN VS INGRESOS (%)
A182: GRAFICO 1
A183: =IF(L7="","",L7) ->  | B183: =IF($A$183="","",IF(C119="","",VLOOKUP($A$183,$A$115:$AX$146,C113,FALSE))) ->  | C183: =IF($A$183="","",IF(D119="","",VLOOKUP($A$183,$A$115:$AX$146,D113,FALSE))) ->  | D183: =IF($A$183="","",IF(E119="","",VLOOKUP($A$183,$A$115:$AX$146,E113,FALSE))) ->  | N183: =IF($A$183="","",IF(O119="","",VLOOKUP($A$183,$A$115:$AX$146,O113,FALSE))) -> 
A184: =IF(L8="","",L8) ->  | B184: =IF($A$184="","",IF(C119="","",VLOOKUP($A$184,$A$115:$AX$146,C113,FALSE))) ->  | C184: =IF($A$184="","",IF(D119="","",VLOOKUP($A$184,$A$115:$AX$146,D113,FALSE))) ->  | D184: =IF($A$184="","",IF(E119="","",VLOOKUP($A$184,$A$115:$AX$146,E113,FALSE))) ->  | N184: =IF($A$184="","",IF(O119="","",VLOOKUP($A$184,$A$115:$AX$146,O113,FALSE))) -> 
B185: =IF($A$185="","",IF(C119="","",VLOOKUP($A$185,$A$115:$AX$146,C113,FALSE))) ->  | C185: =IF($A$185="","",IF(D119="","",VLOOKUP($A$185,$A$115:$AX$146,D113,FALSE))) ->  | D185: =IF($A$185="","",IF(E119="","",VLOOKUP($A$185,$A$115:$AX$146,E113,FALSE))) ->  | N185: =IF($A$185="","",IF(O119="","",VLOOKUP($A$185,$A$115:$AX$146,O113,FALSE))) -> 
B186: =IF($A$186="","",IF(C119="","",VLOOKUP($A$186,$A$115:$AX$146,C113,FALSE))) ->  | C186: =IF($A$186="","",IF(D119="","",VLOOKUP($A$186,$A$115:$AX$146,D113,FALSE))) ->  | D186: =IF($A$186="","",IF(E119="","",VLOOKUP($A$186,$A$115:$AX$146,E113,FALSE))) ->  | N186: =IF($A$186="","",IF(O119="","",VLOOKUP($A$186,$A$115:$AX$146,O113,FALSE))) -> 
A188: GRAFICO 2
A189: =IF(L27="","",L27) ->  | B189: =IF($A$189="","",IF(C135="","",VLOOKUP($A$189,$A$115:$AX$146,C113,FALSE))) ->  | C189: =IF($A$189="","",IF(D135="","",VLOOKUP($A$189,$A$115:$AX$146,D113,FALSE))) ->  | K189: =IF($A$189="","",IF(L135="","",VLOOKUP($A$189,$A$115:$AX$146,L113,FALSE))) ->  | L189: =IF($A$189="","",IF(M135="","",VLOOKUP($A$189,$A$115:$AX$146,M113,FALSE))) -> 
A190: =IF(L28="","",L28) ->  | B190: =IF($A$190="","",IF(C135="","",VLOOKUP($A$190,$A$115:$AX$146,C113,FALSE))) ->  | C190: =IF($A$190="","",IF(D135="","",VLOOKUP($A$190,$A$115:$AX$146,D113,FALSE))) ->  | K190: =IF($A$190="","",IF(L135="","",VLOOKUP($A$190,$A$115:$AX$146,L113,FALSE))) ->  | L190: =IF($A$190="","",IF(M135="","",VLOOKUP($A$190,$A$115:$AX$146,M113,FALSE))) -> 
B191: =IF($A$191="","",IF(C135="","",VLOOKUP($A$191,$A$115:$AX$146,C113,FALSE))) ->  | C191: =IF($A$191="","",IF(D135="","",VLOOKUP($A$191,$A$115:$AX$146,D113,FALSE))) ->  | K191: =IF($A$191="","",IF(L135="","",VLOOKUP($A$191,$A$115:$AX$146,L113,FALSE))) ->  | L191: =IF($A$191="","",IF(M135="","",VLOOKUP($A$191,$A$115:$AX$146,M113,FALSE))) -> 
B192: =IF($A$192="","",IF(C135="","",VLOOKUP($A$192,$A$115:$AX$146,C113,FALSE))) ->  | C192: =IF($A$192="","",IF(D135="","",VLOOKUP($A$192,$A$115:$AX$146,D113,FALSE))) ->  | K192: =IF($A$192="","",IF(L135="","",VLOOKUP($A$192,$A$115:$AX$146,L113,FALSE))) ->  | L192: =IF($A$192="","",IF(M135="","",VLOOKUP($A$192,$A$115:$AX$146,M113,FALSE))) -> 

Sheet CUENTA EXPLOTACION(RES)
A3: CUENTA DE EXPLOTACIÓN (RESULTADO)
G4: CUENTA DE EXPLOTACIÓN (RESULTADO) | M4: CUENTA DE EXPLOTACIÓN (RESULTADO)
A6: GANADERO | B6: =IF('CUENTA EXPLOTACION(ID)'!B8:C8="","",'CUENTA EXPLOTACION(ID)'!B8:C8) ->  | G6: GANADERO | H6: =IF(B6="","",B6) ->  | M6: GANADERO | N6: =IF(B6="","",B6) -> 
C8: TOTAL | D8: POR REP/AÑO | M8: COSTES POR LITRO | N8: ALIMENTACIÓN | O8: =IF(J10="","",J10/'CUENTA EXPLOTACION(ID)'!$O$22) -> 
A9: RESULTADOS PRODUCTIVOS | B9: LITROS PRODUCIDOS | C9: =IF('CUENTA EXPLOTACION(ID)'!N22="","",'CUENTA EXPLOTACION(ID)'!N22) ->  | D9: =IF(C9="","",C9/'CUENTA EXPLOTACION(ID)'!$C$12) ->  | I9: TOTAL | J9: POR REP/AÑO | K9: % IMPORTANCIA | N9: MANO DE OBRA | O9: =IF(J11="","",J11/'CUENTA EXPLOTACION(ID)'!$O$22) -> 
B10: VENDIDOS GENETICA | C10: =IF('CUENTA EXPLOTACION(ID)'!N28="","",'CUENTA EXPLOTACION(ID)'!N26+'CUENTA EXPLOTACION(ID)'!N28) ->  | D10: =IF(C10="","",C10/'CUENTA EXPLOTACION(ID)'!$C$12) ->  | G10: DESGLOSE COSTOS | H10: ALIMENTACIÓN | I10: =IF(C13="","",SUM(C13:C17)) ->  | J10: =IF(I10="","",I10/'CUENTA EXPLOTACION(ID)'!$C$12) ->  | K10: =IF(I10="","",I10/$I$18) ->  | N10: SANITARIOS | O10: =IF(J12="","",J12/'CUENTA EXPLOTACION(ID)'!$O$22) -> 
B11: VENDIDOS CEBO | C11: =IF('CUENTA EXPLOTACION(ID)'!N23="","",'ENLACES DATOS'!B1161+'ENLACES DATOS'!B1162) ->  | D11: =IF(C11="","",C11/'CUENTA EXPLOTACION(ID)'!$C$12) ->  | H11: MANO DE OBRA | I11: =IF(C19="","",C19) ->  | J11: =IF(I11="","",I11/'CUENTA EXPLOTACION(ID)'!$C$12) ->  | N11: AMORTIZACIÓN | O11: =IF(J13="","",J13/'CUENTA EXPLOTACION(ID)'!$O$22) -> 
H12: SANITARIOS | I12: =IF(C21="","",SUM(C21:C25)) ->  | J12: =IF(I12="","",I12/'CUENTA EXPLOTACION(ID)'!$C$12) ->  | N12: PROGRAMA GENETICO | O12: =IF(J14="","",J14/'CUENTA EXPLOTACION(ID)'!$O$22) -> 
A13: COSTES ALIMENTACIÓN | B13: ORDEÑO | C13: =IF('ENLACES DATOS'!B1192="","",'ENLACES DATOS'!B1192) ->  | D13: =IF(C13="","",C13/'CUENTA EXPLOTACION(ID)'!$C$12) ->  | H13: AMORTIZACIÓN | I13: =IF(C27="","",SUM(C27:C29)) ->  | J13: =IF(I13="","",I13/'CUENTA EXPLOTACION(ID)'!$C$12) ->  | N13: ANIMALES | O13: =IF(J15="","",J15/'CUENTA EXPLOTACION(ID)'!$O$22) -> 
B14: PREPARTO | C14: =IF('ENLACES DATOS'!B1193="","",'ENLACES DATOS'!B1193) ->  | D14: =IF(C14="","",C14/'CUENTA EXPLOTACION(ID)'!$C$12) ->  | H14: PROGRAMA GENETICO | I14: =IF(C34="","",C34) ->  | J14: =IF(I14="","",I14/'CUENTA EXPLOTACION(ID)'!$C$12) ->  | N14: OTROS GASTOS | O14: =IF(J16="","",J16/'CUENTA EXPLOTACION(ID)'!$O$22) -> 
B15: MANTENIMIENTO | C15: =IF('ENLACES DATOS'!B1194="","",'ENLACES DATOS'!B1194) ->  | D15: =IF(C15="","",C15/'CUENTA EXPLOTACION(ID)'!$C$12) ->  | H15: ANIMALES | I15: =IF(C31="","",SUM(C31:C32)) ->  | J15: =IF(I15="","",I15/'CUENTA EXPLOTACION(ID)'!$C$12) ->  | N15: OPORTUNIDAD | O15: =IF(J17="","",J17/'CUENTA EXPLOTACION(ID)'!$O$22) -> 
B16: RECRIA | C16: =IF('ENLACES DATOS'!B1195="","",'ENLACES DATOS'!B1195) ->  | D16: =IF(C16="","",C16/'CUENTA EXPLOTACION(ID)'!$C$12) ->  | H16: OTROS GASTOS | I16: =IF(C36="","",SUM(C36:C39)) ->  | J16: =IF(I16="","",I16/'CUENTA EXPLOTACION(ID)'!$C$12) ->  | N16: TOTAL GASTOS | O16: =IF(J18="","",J18/'CUENTA EXPLOTACION(ID)'!$O$22) -> 
B17: CEBO | C17: =IF('ENLACES DATOS'!B1196="","",'ENLACES DATOS'!B1196) ->  | D17: =IF(C17="","",C17/'CUENTA EXPLOTACION(ID)'!$C$12) ->  | H17: OPORTUNIDAD | I17: =IF('ENLACES DATOS'!B1217=0,"",('ENLACES DATOS'!B1217)) ->  | J17: =IF(I17="","",I17/'CUENTA EXPLOTACION(ID)'!$C$12) -> 
H18: TOTAL GASTOS | I18: =IF(I10="","",SUM(I10:I17)) ->  | J18: =IF(I18="","",I18/'CUENTA EXPLOTACION(ID)'!$C$12) ->  | M18: RESUMEN | N18: PRODUCCIÓN TOTAL | O18: =IF('CUENTA EXPLOTACION(ID)'!N22="","",'CUENTA EXPLOTACION(ID)'!N22) ->  | P18: SIMULAR
A19: MANO DE OBRA | B19: COSTE TOTAL | C19: =IF('CUENTA EXPLOTACION(ID)'!C35="","",'CUENTA EXPLOTACION(ID)'!C35) ->  | D19: =IF(C19="","",C19/'CUENTA EXPLOTACION(ID)'!$C$12) ->  | N19: PRECIO LITRO | O19: =IF('CUENTA EXPLOTACION(ID)'!N21="","",'CUENTA EXPLOTACION(ID)'!N21) -> 
G20: DESGLOSE INGRESOS | H20: VENTA LECHE | I20: =IF('CUENTA EXPLOTACION(ID)'!N22="","",'CUENTA EXPLOTACION(ID)'!N21*'CUENTA EXPLOTACION(ID)'!N22) ->  | J20: =IF(I20="","",I20/'CUENTA EXPLOTACION(ID)'!$C$12) ->  | K20: =IF(I20="","",I20/$I$25) ->  | N20: PRODUCCIÓN POR ANIMAL | O20: =IF('CUENTA EXPLOTACION(ID)'!O22="","",'CUENTA EXPLOTACION(ID)'!O22) -> 
A21: SANITARIOS | B21: VACUNAS | C21: =IF('CUENTA EXPLOTACION(ID)'!C37="","",'CUENTA EXPLOTACION(ID)'!C37) ->  | D21: =IF(C21="","",C21/'CUENTA EXPLOTACION(ID)'!$C$12) ->  | H21: VENTA GENÉTICA | I21: =IF('CUENTA EXPLOTACION(ID)'!N28="","",'ENLACES DATOS'!B1222) ->  | J21: =IF(I21="","",I21/'CUENTA EXPLOTACION(ID)'!$C$12) ->  | N21: MARGEN POR LITRO | O21: =IF(I29="","",I29/O18) -> 
B22: ANTIPARASITARIOS | C22: =IF('CUENTA EXPLOTACION(ID)'!C38="","",'CUENTA EXPLOTACION(ID)'!C38) ->  | D22: =IF(C22="","",C22/'CUENTA EXPLOTACION(ID)'!$C$12) ->  | H22: VENTA CEBO | I22: =IF('CUENTA EXPLOTACION(ID)'!N23="","",'ENLACES DATOS'!B1225) ->  | J22: =IF(I22="","",I22/'CUENTA EXPLOTACION(ID)'!$C$12) ->  | N22: PRECIO LECHE UMBRAL | O22: =IF('ENLACES DATOS'!G1188="","",'ENLACES DATOS'!G1188) -> 
B23: ANTIMAMITICOS | C23: =IF('CUENTA EXPLOTACION(ID)'!C39="","",'CUENTA EXPLOTACION(ID)'!C39) ->  | D23: =IF(C23="","",C23/'CUENTA EXPLOTACION(ID)'!$C$12) ->  | H23: AYUDAS&SUBVENCIONES | I23: =IF('CUENTA EXPLOTACION(ID)'!N19="","",'CUENTA EXPLOTACION(ID)'!N19) ->  | J23: =IF(I23="","",I23/'CUENTA EXPLOTACION(ID)'!$C$12) ->  | N23: PRODUCCIÓN UMBRAL (litros/animal) | O23: =IF('ENLACES DATOS'!G1189="","",'ENLACES DATOS'!G1189) -> 
B24: ANTIBIOTICOS | C24: =IF('CUENTA EXPLOTACION(ID)'!C40="","",'CUENTA EXPLOTACION(ID)'!C40) ->  | D24: =IF(C24="","",C24/'CUENTA EXPLOTACION(ID)'!$C$12) ->  | H24: OTROS | I24: =IF('CUENTA EXPLOTACION(ID)'!N30="","",'CUENTA EXPLOTACION(ID)'!N30) ->  | J24: =IF(I24="","",I24/'CUENTA EXPLOTACION(ID)'!$C$12) -> 
B25: OTROS TRATAMIENTOS | C25: =IF('CUENTA EXPLOTACION(ID)'!C41="","",'CUENTA EXPLOTACION(ID)'!C41) ->  | D25: =IF(C25="","",C25/'CUENTA EXPLOTACION(ID)'!$C$12) ->  | H25: TOTAL INGRESOS | I25: =IF(I20="","",SUM(I20:I24)) ->  | J25: =IF(I25="","",I25/'CUENTA EXPLOTACION(ID)'!$C$12) -> 
A27: AMORTIZACIÓN | B27: INSTALACION | C27: =IF('CUENTA EXPLOTACION(ID)'!C43="","",'ENLACES DATOS'!B1204) ->  | D27: =IF(C27="","",C27/'CUENTA EXPLOTACION(ID)'!$C$12) ->  | G27: RESULTADO | H27: TOTAL GASTOS | I27: =IF(I18="","",I18) ->  | J27: =IF(J18="","",J18) ->  | K27: INDICE ALIM
B28: SALA ORDEÑO | C28: =IF('CUENTA EXPLOTACION(ID)'!C45="","",'ENLACES DATOS'!B1205) ->  | D28: =IF(C28="","",C28/'CUENTA EXPLOTACION(ID)'!$C$12) ->  | H28: TOTAL INGRESOS | I28: =IF(I25="","",I25) ->  | J28: =IF(J25="","",J25) ->  | K28: =IF(J10="","",J10/J20) -> 
B29: MAQUINARIA | C29: =IF('CUENTA EXPLOTACION(ID)'!C44="","",'ENLACES DATOS'!B1206) ->  | D29: =IF(C29="","",C29/'CUENTA EXPLOTACION(ID)'!$C$12) ->  | H29: BENEFICIO | I29: =IF(I27="","",I28-I27) ->  | J29: =IF(J27="","",J28-J27) ->  | K29: % EFICACIA
H30: RENTABILIDAD (%) | I30: =IF(I27="","",(I28-I27)/I27) ->  | K30: =IF('CUENTA EXPLOTACION(ID)'!C17="","",'ENLACES DATOS'!C1167) -> 
A31: COMPRA ANIMALES | B31: MACHOS | C31: =IF('CUENTA EXPLOTACION(ID)'!I42="","",'ENLACES DATOS'!B1210) ->  | D31: =IF(C31="","",C31/'CUENTA EXPLOTACION(ID)'!$C$12) -> 
B32: HEMBRAS/RECRIA | C32: =IF('CUENTA EXPLOTACION(ID)'!I44="","",'ENLACES DATOS'!B1211) ->  | D32: =IF(C32="","",C32/'CUENTA EXPLOTACION(ID)'!$C$12) -> 
A34: PROGRAMA GENETICO | B34: COSTE TOTAL | C34: =IF('CUENTA EXPLOT GENETICA'!C27:E27="","",'CUENTA EXPLOT GENETICA'!C27:E27) ->  | D34: =IF(C34="","",C34/'CUENTA EXPLOTACION(ID)'!$C$12) -> 
A36: OTROS EXPLOTACIÓN | B36: AGUA | C36: =IF('CUENTA EXPLOTACION(ID)'!I35="","",'CUENTA EXPLOTACION(ID)'!I35) ->  | D36: =IF(C36="","",C36/'CUENTA EXPLOTACION(ID)'!$C$12) -> 
B37: GAS OIL | C37: =IF('CUENTA EXPLOTACION(ID)'!I36="","",'CUENTA EXPLOTACION(ID)'!I36) ->  | D37: =IF(C37="","",C37/'CUENTA EXPLOTACION(ID)'!$C$12) -> 
B38: GESTION | C38: =IF('CUENTA EXPLOTACION(ID)'!I37="","",'CUENTA EXPLOTACION(ID)'!I37) ->  | D38: =IF(C38="","",C38/'CUENTA EXPLOTACION(ID)'!$C$12) -> 
B39: TRIBUTOS | C39: =IF('CUENTA EXPLOTACION(ID)'!I38="","",'CUENTA EXPLOTACION(ID)'!I38) ->  | D39: =IF(C39="","",C39/'CUENTA EXPLOTACION(ID)'!$C$12) -> 

Sheet CUENTA EXPLOTACION(ID)
A5: CUENTA DE EXPLOTACIÓN (INTRODUCIR DATOS)
A8: GANADERO | G8: =A8 -> GANADERO | H8: =IF(B8="","",B8) ->  | L8: =G8 -> GANADERO | M8: =IF(B8="","",B8) -> 
I10: KG/ANIMAL Y DIA
G11: DIETAS ANIMALES | I11: ALTA PROD. | J11: BAJA PROD. | L11: VALOR ANIMALES
A12: DATOS ANIMALES | B12: Nº REPRODUCTORAS | G12: DIETA ORDEÑO | H12: ALFALFA/UNIFEED | L12: STOCK ANIMALES | M12: VALOR REPRODUCTORAS
B13: % REPOSICIÓN | H13: PAJA | M13: VALOR MACHOS
B14: MORTALIDAD PERINATAL (%) | H14: CONCENTRADO ORDEÑO | M14: VALOR REPOSICIÓN
B15: MORTALIDAD CEBO (%) | M15: VALOR LACTANTES
G16: DIETA PREPARTO | H16: ALFALFA/UNIFEED
A17: DATOS REPRODUCTIVOS | B17: PARTOS ANIMAL/AÑO | H17: PAJA
B18: INTERVALO PARTO-PARTO | D18: =IF(C17="","",365/C17) ->  | H18: CONC. PREPARTO | L18: INGRESOS
B19: FERTILIDAD (%) | L19: AYUDAS | M19: PRIMAS&SUBVENCIONES
B20: PROLIFICIDAD | G20: DIETA MANTENIMIENTO | H20: ALFALFA/UNIFEED
B21: Nº DIAS SECOS | D21: =IF(C21="","",60) ->  | H21: PAJA | L21: INGRESOS PRODUCCIONES | M21: PRECIO LITRO (Euros/litro)
H22: CONC. MANTENIMIENTO | M22: LITROS TOTALES | O22: =IF('CUENTA EXPLOTACION(RES)'!D9="","",'CUENTA EXPLOTACION(RES)'!D9) -> 
A23: COSTE INGREDIENTES | B23: ALFALFA/UNIFEED | M23: PRECIO VENTA CEBO
B24: PAJA | G24: DIETA RECRIA | H24: ALFALFA/UNIFEED
B25: CONCENTRADO ORDEÑO | H25: PAJA | L25: INGRESOS GENÉTICA | M25: PRECIO MACHOS
B26: CONC. PREPARTO | H26: CONC. RECRIA | M26: Nº MACHOS VENDIDOS
B27: CONC. MANTENIMIENTO | M27: PRECIO RECRIA/ADULTAS
B28: LACTORREMPLAZANTE | I28: KG/ANIMAL TOTAL | M28: Nº RECRIA/ADULTAS VENDIDAS
B29: CONC. CRECIMIENTO | G29: DIETA ARRANQUE/CREC | H29: LACTORREMPLAZANTE
B30: CONC. RECRIA | H30: CONC. CRECIMIENTO | L30: OTROS INGRESOS | M30: OTROS
B31: CONC. CEBO
G32: CEBO | H32: CONC. CEBO
A33: MANO DE OBRA | B33: Nº OPERARIOS | D33: =IF(C12="","",(C12*8)/1785) -> 
B34: COSTE DE LA HORA | G34: OTROS GASTOS
B35: COSTE MANO DE OBRA | D35: =IF(C34="","",((C12*8)*C34)) ->  | G35: OTROS EXPLOTACIÓN | H35: AGUA | J35: =IF(I35="","",(I35/$C$12)) -> 
H36: GAS OIL
A37: SANITARIOS | B37: VACUNAS | D37: =IF(C37="","",(C37/$C$12)) ->  | H37: GESTION
B38: ANTIPARASITARIOS | D38: =IF(C38="","",(C38/$C$12)) ->  | H38: TRIBUTOS
B39: ANTIMAMITICOS
B40: ANTIBIOTICOS | G40: COMPRA ANIMALES
B41: OTROS TRATAMIENTOS | G41: COMPRAS | H41: PRECIO MACHOS
H42: MACHOS COMPRADOS
A43: AMORTIZACIÓN | B43: VALOR INSTALACION | D43: =IF(C43="","",(C43/$C$12)) ->  | H43: PRECIO ADULTAS/RECRIA
B44: VALOR MAQUINARIA | H44: ADULTAS/RECRIA COMPRADAS
B45: VALOR SALA ORDEÑO
B46: TIPO INTERES
B47: AÑOS AMORTIZACION

Sheet CUENTA EXPLOT GENETICA
A5: CUENTA DE EXPLOTACIÓN (INTRODUCIR DATOS)
A8: GANADERO | B8: =IF('CUENTA EXPLOTACION(ID)'!B8:C8="","",'CUENTA EXPLOTACION(ID)'!B8:C8) -> 
A12: DATOS ANIMALES | B12: Nº REPRODUCTORAS | C12: =IF('CUENTA EXPLOTACION(ID)'!C12="","",'CUENTA EXPLOTACION(ID)'!C12) -> 
C14: NUMERO | D14: PRECIO | E14: TOTAL
A15: PROGRAMA | B15: PATERNIDADES | D15: 7 | E15: =IF(C15="","",C15*D15) ->  | F15: =IF(E15="","",E15/$C$12) -> 
B16: CONTROL LECHERO | D16: 100 | E16: =IF(C16="","",C16*D16) ->  | F16: =IF(E16="","",E16/$C$12) -> 
B17: CUOTA DE SOCIO (HEMBRA) | D17: 2
A19: INSEMINACION | B19: ESPONJAS | D19: 3 | E19: =IF(C19="","",C19*D19) ->  | F19: =IF(E19="","",E19/$C$12) -> 
B20: SEMEN | D20: 2.5
B21: APLICACIÓN | D21: 2
A23: ASOCIACION | B23: TRABAJOS VETERINARIOS | F23: =IF(C23="","",C23/$C$12) -> 
A25: OTROS | B25: OTROS CONCEPTOS | F25: =IF(C25="","",C25/$C$12) -> 
A27: TOTAL | B27: TOTAL PROGRAMA | C27: =IF(C17="","",E15+E16+E17+E19+E20+E21+C23+C25) ->  | F27: =IF(C27="","",C27/$C$12) -> 

Sheet RACIONAMIENTO KOMPLET
A5: RACIONAMIENTO KOMPLET
A8: DATOS ANIMALES Y PRODUCTIVOS | B8: ESPECIE
B9: PESO VIVO (KG)
B10: LITROS
B11: GRASA
B12: PROTEINA
C14: KOMPLET | D14: KG/DIA
A15: RACIONAMIENTO | B15: PIENSO KOMPLET
B16: PAJA
B17: HENO
A19: NECESIDADES | B19: REQUERIMIENTOS UFL | C19: =IF(C15="","",'ENLACES DATOS'!C1129) -> 
B20: UFL APORTADAS | C20: =IF(C15="","",'ENLACES DATOS'!F1136) -> 
A22: RECOMENDACIÓN | B22: KILOS NECESARIOS | C22: =IF(C15="","",'ENLACES DATOS'!G1132) -> 
A24: EFICIENCIA | B24: KG PIENSO/LITRO LECHE | C24: =IF(C22="","",C22/C10) -> 

Sheet PRODUCTOS KOMPLET
A5: PRODUCTOS KOMPLET
A8: DATOS ANIMALES Y PRODUCTIVOS | B8: ESPECIE
B9: RAZA
B10: FORRAJE
B11: OBJETIVO PRODUCTIVO
A13: PIENSO RECOMENDADO | B13: =IF($C$11="","",'ENLACES DATOS'!C1109) ->  | C13: =IF($C$11="","",'ENLACES DATOS'!D1109) ->  | D13: =IF($C$11="","",'ENLACES DATOS'!E1109) -> 
A15: PERFIL NUTRICIONAL | B15: Humedad (%) | C15: =IF($C$11="","",0.11) -> 
B16: Proteína Bruta (%) | C16: =IF($C$11="","",'ENLACES DATOS'!G1109/1000) -> 
B17: Fibra Bruta (%) | C17: =IF($C$11="","",'ENLACES DATOS'!H1109/1000) -> 
B18: Grasa Bruta (%) | C18: =IF($C$11="","",'ENLACES DATOS'!I1109/1000) -> 
B19: Cenizas (%) | C19: =IF($C$11="","",'ENLACES DATOS'!J1109/1000) -> 
B20: UFV(2007) | C20: =IF($C$11="","",'ENLACES DATOS'!F1109/100) -> 
A22: PRESENTACIÓN | B22: =IF($C$11="","",'ENLACES DATOS'!E1109) ->  | C22: =IF($C$11="","",'ENLACES DATOS'!D1119) -> 
A24: MODO DE EMPLEO | B24: =IF($C$11="","",'ENLACES DATOS'!K1109) -> 
A26: PRECAUCIONES DE USO | B26: =IF($C$11="","",'ENLACES DATOS'!L1109) -> 

Sheet COMPARATIVA KOMPLET
A5: COMPARATIVA TRADICIONAL vs KOMPLET CONCEPT
A8: DATOS ANIMALES Y PRODUCTIVOS | B8: PRECIO EQ (Euros/grado)
B9: LITROS
B10: GRASA
B11: PROTEINA
B12: EXTRA KOMPLET
C14: EUROS/TM | D14: KG/DIA
A15: RACIÓN TRADICIONAL | B15: PAJA
B16: ALFALFA HENO/FORRAJE/UNIFEED
B17: CONCENTRADO
C19: EUROS/TM | D19: KG/DIA
A20: RACIÓN KOMPLET | B20: PAJA
B21: KOMPLET
C23: TRADICIONAL | D23: KOMPLET
A24: DIFERENCIAS SISTEMAS | B24: COSTE RACIÓN (EUROS DIA) | C24: =IF(C16="","",'ENLACES DATOS'!D922) ->  | D24: =IF(C16="","",'ENLACES DATOS'!D923) -> 
B25: PRODUCCIÓN EQ DIA (GR) | C25: =IF(C9="","",'ENLACES DATOS'!C935) ->  | D25: =IF(C9="","",'ENLACES DATOS'!C936) -> 
B26: INGRESOS/DIA | C26: =IF(C24="","",'ENLACES DATOS'!C937) ->  | D26: =IF(D24="","",'ENLACES DATOS'!C938) -> 
A28: PRECIO UMBRAL | B28: KOMPLET | C28: =IF(C21="","",'ENLACES DATOS'!C944) ->  | D28: =IF('ENLACES DATOS'!C947="","",IF('ENLACES DATOS'!C947>0,"¡KOMPLET!","¡TRADICIONAL!")) -> 
B29: ALFALFA /FORRAJE /UNIFEED | C29: =IF(C16="","",'ENLACES DATOS'!C945) -> 

Sheet CHEQUEO SALA ORDEÑO
A4: CHEQUEO BÁSICO SALAS DE ORDEÑO | F4: =A4 -> CHEQUEO BÁSICO SALAS DE ORDEÑO
A6: DETECCIÓN DE PROBLEMAS DE FUNCIONAMIENTO O REGLAJE | B6: VACÍO DE ORDEÑO | D6: Kpas | E6: =IF(C6="","",IF(C6<32,"INCORRECTO",(IF(C6>40,"INCORRECTO","CORRECTO")))) ->  | F6: DETECCION DE PROBLEMAS DE FUNCIONAMIENTO O REGLAJE | G6: VACÍO DE ORDEÑO | H6: =IF(C6="","",(IF(C6>40,"Depende del nº de pulsaciones. Hasta 32 Kpa con 180 ppm en linea baja","Ver tabla de equivalencias"))) -> 
B7: RESERVA DE VACÍO | D7: Kpas | E7: =IF(C7="","",(IF(C7>2,"INCORRECTO","CORRECTO"))) ->  | G7: RESERVA DE VACÍO | H7: =IF(C7="","",(IF(C7>2,"Ojo capacidad de bomba, regulador, fugas...","Al abrir unidades el vacio no bajará más de 2 Kpas"))) -> 
B8: (Abrir nº unidades= Ordeñadores + 1 | D8: Bajada | G8: (Abrir nº unidades= Ordeñadores + 1 | H8: COMENTARIO:
D9: maxima
B10: REGULADOR | G10: REGULADOR | H10: =IF(C10="","",(IF(C10="INCORRECTO","Revisar regulador. Limpieza y funcionamiento","Regulador funciona correctamente"))) -> 
B11: Abrir unidades y bajar vacío 2 Kpas. ¿Sigue admitiendo aire? | G11: Abrir unidades y bajar vacío 2 Kpas. ¿Sigue admitiendo aire? | H11: COMENTARIO:
B12: Limpieza | G12: Limpieza | H12: COMENTARIO:
B13: Prueba mechero: Llama hacia regulador | G13: Prueba mechero: Llama hacia regulador) | H13: COMENTARIO:
B14: PULSACIÓN | D14: ppm | E14: =IF(C14="","","Revisar si el valor coincide con el establecido") ->  | G14: PULSACIÓN | H14: =IF(C14="","","Revisar según sea OVINO O CAPRINO, y el dimensionado de la sala") -> 
B15: FLUJO DE LECHE | G15: FLUJO DE LECHE | H15: =IF(C15="","","El flujo de leche debe ser laminar") -> 
B16: Ver tuberias de leche. Debe ser laminar y no a borbotones. | G16: Ver tuberias de leche. Debe ser laminar y no a borbotones. | H16: COMENTARIO:
B17: Ver pezoneras | G17: Ver pezonaras | H17: COMENTARIO:
B18: Ver orificios del colector | G18: Ver orificios del colector | H18: COMENTARIO:
B19: LAVADO ORDEÑADORA | G19: LAVADO ORDEÑADORA | H19: =IF(C19="","",IF(C19="INCORRECTO", "Ver apartados más abajo","Lavado correcto")) -> 
B20: Ver turbulencias en todo el ciclo del lavado | G20: Ver turbulencias en todo el ciclo del lavado | H20: COMENTARIO:
B21: Temperatura agua | E21: =IF(C21="","",(IF(C21<65,"INCORRECTO","CORRECTO"))) ->  | G21: Temperatura agua | H21: =IF(C21="","",(IF(C21<65,"Tª correcta a más de 65ºC","Se admite 40ºC al final del lavado"))) -> 
B22: Ver presión de lavado, ausencia sistemas de inyección de aire, fondos ciegos que quedan sucios | G22: Ver presión de lavado, ausencia sistemas de inyección de aire, fondos ciegos que quedan sucios | H22: COMENTARIO:
A24: DETECCIÓN DE ERRORES DE DISEÑO | B24: POTENCIA DE BOMBA | D24: l/unidad | E24: =IF(C24="","",(IF(C24<110,"INCORRECTO","CORRECTO"))) ->  | F24: DETECCION DE ERRORES DE DISEÑO | G24: POTENCIA DE BOMBA | H24: =IF(C24="","",(IF(C24<110,"Mínimo 110 litros por unidad de ordeño a 50 Kpas","Capacidad de bomba adecuada"))) -> 
B25: CONDUCCION DE AIRE | G25: CONDUCCION DE AIRE | H25: =IF(C25="","",IF(C25="INCORRECTO", "Ver apartados más abajo","Conducción de aire correctamente dimensionada")) -> 
B26: Diametro Interior Aire | D26: mm | E26: =IF(C26="","",(IF(C26<60,"INCORRECTO","CORRECTO"))) ->  | G26: Diametro Interior Aire | H26: =IF(C26="","",(IF(C26<60,"Minimo 60 mm en salas con 8 unidades. A más unidades más diámetro","Comprobar diámetro necesario según unidades ordeño"))) -> 
B27: CONDUCCION LECHE | G27: CONDUCCION LECHE | H27: =IF(C27="","",IF(C27="INCORRECTO", "Ver apartados más abajo","Conducción de leche correctamente dimensionada")) -> 
B28: Diametro Interior Leche | D28: mm | E28: =IF(C28="","",(IF(C28<50,"INCORRECTO","CORRECTO"))) ->  | G28: Diametro Interior Leche | H28: =IF(C28="","",(IF(C28<50,"Minimo 60 mm para salas de hasta 12 unidades","Comprobar diámetro necesario según unidades ordeño"))) -> 
B29: RECEPTOR | D29: Litros | E29: =IF(C29="","",(IF(C29<30,"INCORRECTO","CORRECTO"))) ->  | G29: RECEPTOR | H29: =IF(C29="","",(IF(C29<30,"Minimo 30 litros para 8 unidades. Ver referencias","Comprobar capacidad recomendada según unidades de ordeño"))) -> 
B30: PURGADORES | G30: PURGADORES | H30: =IF(C30="","",IF(C30="INCORRECTO", "Ver apartados más abajo","Purgadores correctos")) -> 
B31: Deben estar situados en las partes declives. No se admite ausencia | G31: Deben nestar situados en las partes declives. No se admite ausencia | H31: COMENTARIO:
B32: PULSADORES | G32: PULSADORES | H32: =IF(C32="","",IF(C32="INCORRECTO", "Ver apartados más abajo","Pulsadores correctos")) -> 
B33: Ver tuberia de filtración | G33: Ver tuberia de filtración | H33: COMENTARIO:
B34: Maximo a 2 unidades de ordeño | G34: Maximo a 2 unidades de ordeño | H34: COMENTARIO:
B35: REGULADOR | G35: REGULADOR | H35: =IF(C35="","",IF(C35="INCORRECTO", "Ver apartados más abajo","Regulador correcto")) -> 
B36: Distancia a codo | D36: cm | E36: =IF(C36="","",(IF(C36<50,"INCORRECTO","CORRECTO"))) ->  | G36: Distancia a codo | H36: =IF(C36="","",(IF(C36<50,"Minimo 50 cm del codo","Distancia correcta"))) -> 
B37: Caudal Nominal | D37: litros | E37: =IF(C37="","",(IF(C37<C24,"INCORRECTO","CORRECTO"))) ->  | G37: Caudal Nominal | H37: =IF(C37="","",(IF(C37<C24,"Caudal regulador el mismo que el de la bomba","Caudal correcto"))) -> 
B38: COLECTORES | G38: COLECTORES | H38: =IF(C38="","",IF(C38="INCORRECTO", "Ver apartados más abajo","Colectores correctos")) -> 
B39: Capacidad | D39: cc | E39: =IF(C39="","",(IF(C39<100,"INCORRECTO","CORRECTO"))) ->  | G39: Capacidad | H39: =IF(C39="","",IF(E39="INCORRECTO", "Comprobar capacidad de colector. Debe ser mayor de 100ml","Capacidad colector adecuada")) -> 
B40: Long tubo largo leche | D40: cm | E40: =IF(C40="","",(IF(C40<120,"INCORRECTO","CORRECTO"))) ->  | G40: Long tubo largo leche | H40: =IF(C40="","",IF(E40="INCORRECTO", "Revisar longitud tubo largo de leche. Será mayor que 120cm","Longitud tubo largo de leche adecuada")) -> 
B41: PEZONERAS | G41: PEZONERAS | H41: =IF(C41="","",IF(C41="INCORRECTO", "Ver apartados más abajo","Manguitos adecuados")) -> 
B42: Nº Ordeños | D42: ordeños | E42: =IF(C42="","",(IF(C42>7000,"INCORRECTO","CORRECTO"))) ->  | G42: Nº Ordeños | H42: =IF(C42="","",(IF(C42>7000,"Maximo admisible 7000 ordeños","Maximo admisible 7000 ordeños"))) -> 
B43: Material | D43: rpm | E43: =IF(C43="","",(IF(C43<180,"CAUCHO O SILICONA","SILICONA"))) ->  | G43: Material | H43: =IF(C43="","",(IF(C43<180,"Silicona en 180 ppm","Silicona en 180 ppm"))) -> 
B44: Nº ORDEÑADORES | D44: unidades | E44: =IF(C44="","",(IF(C44<8," 1 ordeñador","1 ordeñador cada 8 puntos de ordeño mínimo"))) ->  | G44: Nº ORDEÑADORES | H44: =IF(C44="","",(IF(C44<8," 1 ordeñador","1 ordeñador cada 8 puntos de ordeño mínimo"))) -> 
A46: ERRORES DE MANTENIMIENTO | B46: MANTENIMIENTO | D46: vez/año | E46: =IF(C46="","",(IF(C46<1,"INCORRECTO","CORRECTO"))) ->  | F46: ERRORES DE MANTENIMIENTO | G46: MANTENIMIENTO | H46: =IF(C46="","",(IF(C46<1,"Mínimo al menos 1 vez al año","Recomendable cada 6 meses por personal especializado"))) -> 
B47: COMPONENTES DE GOMA | G47: COMPONENTES DE GOMA | H47: =IF(C47="","",IF(C47="INCORRECTO", "Ver apartados más abajo","Manguitos adecuados")) -> 
B48: Ver prueba del algodón o torunda.- Ennegrecido=deteriorado | G48: Ver prueba del algodón o torunda.- Ennegrecido=deteriorado | H48: COMENTARIO:
B49: COLECTORES OBSTRUIDOS | G49: COLECTORES OBSTRUIDOS | H49: =IF(C49="","",IF(C49="INCORRECTO", "Ver apartados más abajo","Colectores en buen funcionamiento")) -> 
B50: Comprobar. Limpiar al menos una vez a la semana | G50: Comprobar. Limpiar al menos una vez a la semana | H50: COMENTARIO:
B51: PULSADORES SUCIOS | G51: PULSADORES SUCIOS | H51: =IF(C51="","",IF(C51="INCORRECTO", "Limpiar y revisar pulsadores","Pulsadores en buen funcionamiento")) -> 
A101: OK
A102: INCORRECTO

Sheet VALORACION ALIMENTOS INRA
A6: VALORACIÓN ALIMENTOS. INRA 2007 | E6: =A6 -> VALORACIÓN ALIMENTOS. INRA 2007
A8: GANADERO | E8: GANADERO | F8: =IF(B8="","",B8) -> 
A11: CONVERTIDOR FORRAJES VERDES A M.S. | B11: MATERIA SECA | C11: =IF(D19="","",D19) ->  | E11: CONVERTIDOR FORRAJES VERDES A M.S. | F11: MATERIA SECA | G11: =C11 -> 
C12: SSS | D12: SSF | G12: SSS | H12: SSF
B13: FIBRA BRUTA | D13: =IF($D$19="","",(C13*$C$11)) ->  | F13: FIBRA BRUTA | G13: =IF(C13="","",C13) ->  | H13: =IF(D13="","",D13) -> 
B14: PROTEINA BRUTA | D14: =IF($D$19="","",(C14*$C$11)) ->  | F14: PROTEINA BRUTA | G14: =IF(C14="","",C14) -> 
B15: GRASA BRUTA | D15: =IF($D$19="","",(C15*$C$11)) ->  | F15: GRASA BRUTA
B16: CENIZAS | D16: =IF(D19="","",(C16*$C$11)) ->  | F16: CENIZAS
A18: DATOS DEL ALIMENTO | B18: ALIMENTO A VALORAR | E18: DATOS DEL ALIMENTO | F18: ALIMENTO A VALORAR | G18: =IF(C18="","",C18) -> 
B19: MATERIA SECA | F19: MATERIA SECA | H19: =IF(D19="","",D19) -> 
C20: SSS | D20: SSF | G20: SSS | H20: SSF
B21: FIBRA BRUTA | C21: =IF($D$19="","",D21/$D$19) ->  | F21: FIBRA BRUTA | G21: =IF(C21="","",C21) ->  | H21: =IF(D21="","",D21) -> 
B22: PROTEINA BRUTA | C22: =IF($D$19="","",D22/$D$19) ->  | F22: PROTEINA BRUTA
B23: GRASA BRUTA | C23: =IF($D$19="","",D23/$D$19) ->  | F23: GRASA BRUTA
B24: CENIZAS | C24: =IF($D$19="","",D24/$D$19) ->  | F24: CENIZAS
A26: VALORACIÓN GENERAL DEL ALIMENTO | C26: SSS | D26: SSF | E26: VALORACIÓN PROTÉICA | F26: PDIME | G26: =IF($C$18="","",'ENLACES DATOS'!C861) -> 
B27: UFL | C27: =IF($C$18="","",'ENLACES DATOS'!C800) ->  | D27: =IF($C$18="","",'ENLACES DATOS'!D800) ->  | F27: PDIMN | G27: =IF($C$18="","",'ENLACES DATOS'!C862) -> 
B28: UFC | C28: =IF($C$18="","",'ENLACES DATOS'!C801) ->  | D28: =IF($C$18="","",'ENLACES DATOS'!D801) ->  | F28: DEGRADABILIDAD TEORICA (DT) | G28: =IF($C$18="","",'ENLACES DATOS'!C867) -> 
B29: PDIE | C29: =IF($C$18="","",'ENLACES DATOS'!C857) ->  | D29: =IF($C$18="","",'ENLACES DATOS'!D857) -> 
B30: PDIN | C30: =IF($C$18="","",'ENLACES DATOS'!C858) ->  | D30: =IF($C$18="","",'ENLACES DATOS'!D858) ->  | E30: VALORACIÓN DIGESTIBILIDAD | F30: M.O. FERMENCESTIBLE (MOF) | G30: =IF($C$18="","",'ENLACES DATOS'!C865) -> 
B31: PDIA | C31: =IF($C$18="","",'ENLACES DATOS'!C859) ->  | D31: =IF($C$18="","",'ENLACES DATOS'!D859) ->  | F31: DIGESTIBILIDAD REAL (dr) | G31: =IF($C$18="","",'ENLACES DATOS'!C866) -> 
F32: DIGESTIBILIDAD M.O. (dMO) | G32: =IF($C$18="","",'ENLACES DATOS'!C868) -> 
A33: VALORACIÓN ENERGÉTICA | B33: ENERGIA BRUTA | C33: =IF($C$18="","",'ENLACES DATOS'!C795) -> 
B34: ENERGIA DIGESTIBLE | C34: =IF($C$18="","",'ENLACES DATOS'!C796) -> 
B35: ENERGIA METABOLIZABLE | C35: =IF($C$18="","",'ENLACES DATOS'!C797) -> 
B36: ENERGIA NETA LACTACION | C36: =IF($C$18="","",'ENLACES DATOS'!C798) -> 
B37: ENERGIA NETA MANT Y CEBO | C37: =IF($C$18="","",'ENLACES DATOS'!C799) -> 
B38: dE | C38: =IF($C$18="","",'ENLACES DATOS'!C804) -> 
B39: NA | C39: =IF($C$18="","",'ENLACES DATOS'!C805) -> 
B40: kl | C40: =IF($C$18="","",'ENLACES DATOS'!C806) -> 
B41: kmf | C41: =IF($C$18="","",'ENLACES DATOS'!C807) -> 
B42: q | C42: =IF($C$18="","",'ENLACES DATOS'!C808) -> 

Sheet SIMULACION DATOS PRODUCTIVOS
A7: SIMULADOR DATOS PRODUCTIVOS DE LECHE | F7: SIMULACIÓN ECONÓMICA
A9: GANADERO | F9: GANADERO | G9: =IF(B9="","",B9) -> 
A11: DATOS GENERALES | B11: ESPECIE | F11: PRECIO LECHE | G11: PRECIO HECTOGRADO EQ
B12: RAZA
B13: FECHA SIMULACION | F13: INGRESOS POR ANIMAL Y DIA | G13: INGRESO EUROS REAL | H13: =IF($H$11="","",($H$11*'ENLACES DATOS'!N27))/10000 -> 
B14: EPOCA DEL AÑO | C14: =IF(C13="","",'BUSCAR FECHA'!G2) ->  | G14: INGRESO EUROS OBTENIDO | H14: =IF($H$11="","",($H$11*'ENLACES DATOS'!N28))/10000 -> 
B15: PRODUCCION REAL | G15: INGRESO EUROS CALCULADO | H15: =IF($H$11="","",($H$11*'ENLACES DATOS'!N29))/10000 -> 
B16: EQ REAL
B17: PRODUCCIÓN SIMULADA
B18: EQ SIMULADO
A20: OBTENIDOS BBDD | B20: PRODUCCION MEDIA | C20: =IF(C15="","",'ENLACES DATOS'!F54) -> 
B21: EQ MEDIO | C21: =IF(C15="","",'ENLACES DATOS'!G54) -> 
B22: %VARIABILIDAD | C22: =IF(C15="","",'ENLACES DATOS'!I54/'ENLACES DATOS'!H54) -> 
B23: EQ MAXIMO | C23: =IF(C15="","",'ENLACES DATOS'!G54+'ENLACES DATOS'!J54) -> 
B24: EQ MINIMO | C24: =IF(C15="","",'ENLACES DATOS'!G54-'ENLACES DATOS'!J54) -> 
B25: IC REAL vs OBTENIDA | C25: =IF(C15="","",'ENLACES DATOS'!K54/'ENLACES DATOS'!H54) -> 
B26: Nº DATOS MENSUALES | C26: =IF(C15="","",'ENLACES DATOS'!E54) -> 
A28: CALCULADOS ECUACIONES | B28: EQ CALCULADO | C28: =IF(C17="","",'ENLACES DATOS'!N22) -> 
B29: LITROS CALCULADOS | C29: =IF(C18="","",'ENLACES DATOS'!P22) -> 
B30: IC vs OBTENIDO | C30: =IF(C17="","",'ENLACES DATOS'!M22/'ENLACES DATOS'!H54) -> 
B31: IC vs REAL | C31: =IF(C17="","",'ENLACES DATOS'!M22/'ENLACES DATOS'!K54) -> 
A51: CAPRINO | B51: FLORIDA | C51: INVIERNO
A52: OVINO | B52: MALAGUEÑA | C52: TEMPLADO
B53: MURCIANA | C53: VERANO
B54: ASSAF
B55: LACAUNE
B56: MANCHEGA

Sheet EXPLOTACION TIPO
K6: INCIDENCIA
A7: DESCRIPCIÓN EXPLOTACIÓN TIPO
A9: GANADERO
A11: DATOS GENERALES | B11: ESPECIE
B12: MES
A14: PRODUCCIÓN | B14: PRODUCCION MEDIA | C14: =IF(C12="","",'ENLACES DATOS'!D84) -> 
B15: EQ MEDIO | C15: =IF(C12="","",'ENLACES DATOS'!E84) -> 
A17: ESTADO ANIMALES | B17: % ANIMALES SECOS | C17: =IF(C12="","",'ENLACES DATOS'!B90) -> 
B18: % ANIMALES EN PREPARTO | C18: =IF(C12="","",'ENLACES DATOS'!C90) -> 
B19: % ANIMALES EN ORDEÑO | C19: =IF(C12="","",'ENLACES DATOS'!D90) -> 
A21: INCIDENCIAS | B21: % ABORTOS | C21: =IF(C12="","",'ENLACES DATOS'!E90) -> 
B22: % BAJAS + ELIMINACION | C22: =IF(C12="","",'ENLACES DATOS'!F90) -> 
B23: % MAMITIS | C23: =IF(C12="","",'ENLACES DATOS'!H90) -> 
A25: REPRODUCTIVO | B25: PARTOS/ANIMAL.AÑO | C25: =IF(C12="","",'ENLACES DATOS'!I90) -> 
A39: CAPRINO
A40: OVINO
A43: ENERO
A44: FEBRERO
A45: MARZO
A46: ABRIL
A47: MAYO
A48: JUNIO
A49: JULIO
A50: AGOSTO
A51: SEPTIEMBRE
A52: OCTUBRE
A53: NOVIEMBRE
A54: DICIEMBRE

Sheet CURVA DE LACTACION CAPRINO
A7: CURVA DE LACTACIÓN CAPRINO LECHERO
A9: GANADERO
A11: DATOS GENERALES | B11: FECHA PARTO
B12: FECHA CONTROL
B13: LECHE CONTROL (litros/dia)
B14: FECHA SIMULACION
A16: SIMULACIÓN | B16: PRODUC. RESTO LACTACION | C16: =IF(C13="","",'ENLACES DATOS'!C770) -> 
B17: PRODUCCION FECHA (DIA) | C17: =IF(C14="","",'ENLACES DATOS'!E476) -> 

Sheet CURVA DE LACTACION OVINO
A7: CURVA DE LACTACIÓN OVINO LECHERO
A9: GANADERO
A11: DATOS GENERALES | B11: FECHA PARTO
B12: FECHA CONTROL
B13: LECHE CONTROL (litros/dia)
B14: FECHA SIMULACION
A16: SIMULACIÓN | B16: PRODUCCION/LACTACION | C16: =IF(C13="","",'ENLACES DATOS'!C286) -> 
B17: PRODUC. RESTO LACTACION | C17: =IF(C13="","",'ENLACES DATOS'!C466) -> 
B18: PRODUCCION FECHA (DIA) | C18: =IF(C14="","",'ENLACES DATOS'!E278) -> 

Sheet CURVA DE LACTACION OVINO CSIC
A6: CSIC
A7: CURVA DE LACTACIÓN OVINO LECHERO (CSIC)
A9: GANADERO
A11: DATOS GENERALES | B11: FECHA PARTO
B12: FECHA CONTROL
B13: LECHE CONTROL (litros/dia)
B14: FECHA SIMULACION
A16: SIMULACIÓN | B16: PRODUCCION/LACTACION | C16: =IF(C13="","",'ENLACES DATOS'!I282) -> 
B17: PRODUCCION FECHA (DIA) | C17: =IF(C14="","",'ENLACES DATOS'!M279) -> 

Sheet EVOLUCION PRODUCCION
A7: EVOLUCIÓN PRODUCCIÓN
A9: GANADERO
A10: FECHA
C12: FECHA PARTO | D12: Nº ANIMALES | E12: LIT/DIA | F12: DML
A13: CÁLCULO DML Y PRODUCCION MEDIA | B13: LOTE 1 | F13: =IF($B$10="","",'ENLACES DATOS'!E1230) -> 
B14: LOTE 2 | F14: =IF($B$10="","",'ENLACES DATOS'!E1231) -> 
B15: LOTE 3 | F15: =IF($B$10="","",'ENLACES DATOS'!E1232) -> 
B16: LOTE 4 | F16: =IF($B$10="","",'ENLACES DATOS'!E1233) -> 
B17: D.M.L. | C17: =IF(C13="","",'ENLACES DATOS'!C1236) -> 
B18: LITROS/ANIMAL | C18: =IF(E13="","",'ENLACES DATOS'!C1237) -> 
B20: FECHA ENTREGA | C20: LITROS TANQUE | D20: ANIMALES ORDEÑO | E20: DML | F20: Nº ANIM | G20: LIT TOT
A21: ENTREGAS DE LECHE | F21: =IF(C13="","",'ENLACES DATOS'!C1234) ->  | G21: =IF(E13="","",'ENLACES DATOS'!D1234) -> 

Sheet MOMENTO DE SECADO
A7: MOMENTO DE SECADO | F7: =A7 -> MOMENTO DE SECADO
A9: GANADERO | F9: PARTO | H9: =IF(C12="","",C12) -> 
A11: DATOS GENERALES | B11: PRECIO LECHE (E/Hctgr) | F11: CONTROL LECHERO | H11: =IF(C13="","",C13) -> 
B12: FECHA PARTO
B13: FECHA CONTROL | F13: CUBRICION | H13: =IF(C27="","",H9+C27) -> 
B14: LECHE CONTROL (litros/dia)
B15: EXTRACTO QUESERO (%) | F15: SECADO | H15: =IF(C13="","",H9+C28) -> 
B16: COSTE ANIMAL/DIA
F17: SIGUIENTE PARTO | H17: =IF(C13="","",H13+148) -> 
A18: DATOS PRODUCCIÓN | B18: PRODUCCION EQ (GR/DIA) | C18: =IF(C15="","",'ENLACES DATOS'!B266) -> 
B19: INGRESOS DIARIOS | C19: =IF(C11="","",'ENLACES DATOS'!B268) -> 
B20: PRECIO LITRO LECHE | C20: =IF(C19="","",'ENLACES DATOS'!B267) -> 
B21: UMBRAL DE RENTABILIDAD (LITROS) | C21: =IF(C19="","",'ENLACES DATOS'!B269) -> 
